Workbook

Sheet notes (hidden)
A1: FY22 Chapter 70
A3: Tabs | B3: What happens on this sheet | C3: Data source (if any) | D3: Notes
A4: Parameters | B4: Allows the user to adjust all of the policy levers in Chapter 70, except for changes to foundation. Foundation budget scenarios can be changed, but they must 1st be run separately and dropped into localcont (all the way to the right). Up to 11 alternatives can be included. | D4: Updated table for graph re: "additional increments toward target" to include 175%CEY increment
A5: Index | B5: Controls the district being viewed for all reports except regional dist members | C5: Dropdown box reads LEAs | D5: Changed LEA 603 label to "Hoosac Valley"
A6: Rates | B6: CY and PY foundation budget rates Used to calculate foundation budget report | C6: Copied in from found file | D6: Copied in FY22 rates
A7: Foundation Budget | B7: 1 district report showing build-up of foundation budget | C7: Rates, dist435 | D7: labels
A8: Municipal Contribution | B8: 1 city/town report showing build-up of required local contribution (municipal level) | C8: townwide contributions | D8: labels
A9: Regional Allocation | B9: 1 city/town report showing allocation of total municipal required local contribution based on proportion of foundation budget at each district to which it belongs | C9: localcont | D9: labels
A10: Summary | B10: 1 district report summarizing C70 calculation and comparison to PY | C10: aid436, disthist | D10: labels
A11: Regional Dist Members | B11: 1 regional district report summarizing enrollment and local contribution for each member town Changed in FY18 to vlookup on localcont | C11: localcont, leas | D11: Updated sheet to present foundation enrollment and local contribution for each town-to-regional-district combination
A12: LocalCont | B12: Results from distfrac get copied into the far right (up to 11 versions of foundation budget can be entered). Toggle is on parameters sheet. Data is organized in 5 row format for each city/town (municipality and its districts, blanks are 998 and total is 999). Used to calculate each municipal-district combination's RLC. | C12: found file, distfrac (allocate sheet) | D12: Copied in FY21 foundation budget, %s, RLCs and enro.
A14: Comparison to FY19 | B14: 2 year comparison for operating districts | C14: aid436, disthist, localcont
A15: Townwide Contributions | B15: Calculates municipal required local contributions | C15: DOR (EQV, Income, MRGFs), PY file (RLCs), parameters | D15: Copied FY21 RLCs into PY RLC column
A16: Aid436 | B16: Calculates district Ch 70 aid | C16: disthist, localcont, frac, parameters Starting w/ LEA 406, in col J (target aid %), formula changes to pull from frac tab. | D16: Minimum aid adjustment amounts copied from c70fy22_min_aid_adjustment.xlsm
A17: Frac | B17: Calculates target aid percentage for regional districts | D17: Copied from distfrac22prelim_updated
A18: DistHist | B18: ***Don't forget to copy in target aid %s from PY Historical C70 data used in summary report, and other places | D18: Copied in FY21 FB, RLC and Aid Copied in target aid %s from FY21 updated FY20 aid values for Belmont & Minuteman to match base aid adjustments on aid436
A19: Dist435 | B19: Data source for foundation budget report, shows detailed enrollment and budget columns | C19: found22
A21: Data | B21: Source | C21: Year | D21: Notes
A22: Inflation | B22: BEA website | C22: Q3 2019 to Q3 2020 as of Dec 2020 (1.41%) | D22: Table 1.1.9. Implicit Price Deflators for Gross Domestic Product
A23: Wage Adjustment Factor Inputs | B23: EOLWD | C23: Calendar Year 2019 | D23: wagesense22
A24: EQV | B24: DOR | C24: 2020 EQV | D24: DOR file Dec. 2020
A25: Income | B25: DOR | C25: 2018 Income | D25: DOR file Dec. 2020
A26: Enrollment | B26: DESE | C26: October 2020 | D26: found22
A27: Postgrad Enrollment | B27: DESE-CVTE office | C27: Fall 2020 | D27: found22
A28: MRGFs | B28: DOR/ANF | C28: FY22 | D28: DOR 4/2/2021
B30: 2021-03-08
B31: Enrollment change from FY22 House 1:
B32: Franklin County high school students reassigned as vocational students

Sheet parameters (hidden)
A1: Cyr | B1: FY22 | C1: 22
A2: Pyr | B2: FY21 | C2: 21
A3: As of | B3: 2021-06-15
A5: Parameters | D5: Base | K5: Analysis of Aggregate Wealth Model Implementation
B6: Which version of foundation budget? | C6: 1 | D6: 1 | G6: FY21 C70 including Devens | H6: 5283651631
B7: Effort reduction | C7: 1 | D7: 0 | K7: Progress Towards Target Local Share
B8: Pct downpayment on target aid share | C8: 0 | D8: 0 | G8: FY22 foundation aid increase | H8: ='Aid436'!L448 -> 199286644.4
D9: 0 | L9: FY07 | M9: FY08 | N9: FY09 | O9: FY10 | P9: FY11 | Q9: FY12 | R9: FY13 | S9: FY14 | T9: FY15 | U9: FY16 | V9: FY17 | W9: FY18 | X9: FY19 | Y9: FY20 | Z9: FY21 | AA9: FY22
G10: Minimum per pupil aid increase | H10: ='Aid436'!R448 -> 16714836 | K10: excess effort before effort reduction | L10: 621.084157 | M10: 494.058912 | N10: 372.382091 | O10: 228.110232 | P10: 366 | Q10: 293.3 | R10: 229.8 | S10: 234.5 | T10: 307.903014 | U10: 235.358789 | V10: 299.86437 | W10: 151.670894 | X10: 68.664221 | Y10: 21.435137 | Z10: 104.649236 | AA10: ='Townwide Contributions'!V361/1000000 -> 93.814687
G11: Min aid adjustment increase | H11: ='Aid436'!U448 -> 3553119 | K11: effort reduction | L11: 124.2168314 | M11: 123.514728 | N11: 122.88609 | O11: 34.216535 | P11: 109.8 | Q11: 58.7 | R11: 34.5 | S11: 35.2 | T11: 153.951507 | U11: 117.6793945 | V11: 254.8847145 | W11: 128.9202599 | X11: 68.664221 | Y11: 21.435137 | Z11: 104.649236 | AA11: ='Townwide Contributions'!V361/1000000 -> 93.814687
G12: Non-op reduction | H12: ='Aid436'!W448 -> 31346.88 | K12: net excess after effort reduction | L12: 496.8673256 | M12: 370.544184 | N12: 249.496001 | O12: 193.893697 | P12: 256.2 | Q12: =Q10-Q11 -> 234.6 | R12: =R10-R11 -> 195.3 | S12: 199.3 | T12: 152.0806983 | U12: 117.4829132 | V12: 44.97879348 | W12: 22.74921402 | X12: 0 | Y12: 0 | Z12: 0 | AA12: ='Townwide Contributions'!AC361/1000000 -> 0
G13: FY22 Chapter 70 | H13: ='Aid436'!Y448 -> 5502959667 | K13: shortfall below target before increment | L13: -321.452322 | M13: -352.174875 | N13: -359.193563 | O13: -427.2 | P13: -228 | Q13: -211 | R13: -200 | S13: -180.2 | T13: -162.972215 | U13: -132.627218 | V13: -96.928091 | W13: -103.17317 | X13: -117.254713 | Y13: -207.485209 | Z13: -163.71 | AA13: ='Townwide Contributions'!AA361/1000000 -> -228.999327
B14: Per pupil guaranteed increase | C14: 30 | D14: 0 | G14: Devens | H14: =308558 -> 308558 | K14: additional increments toward target | L14: 0 | M14: -19.739149 | N14: -21.387588 | O14: -121.2 | P14: -10.6 | Q14: -10 | R14: -4.2 | S14: -3.9 | T14: -7.563093 | U14: -5.848739 | V14: -2.474215 | W14: -3.628178 | X14: -5.320349 | Y14: -19.253945 | Z14: -9.378217 | AA14: =('Townwide Contributions'!T361/1000000*-1)+('Townwide Contributions'!W361/1000000*-1) -> -20.199768
B15: Which version of mrgf? | C15: 1 | D15: 1 | K15: net shortfall below target after increment | L15: -321.452322 | M15: -332.435726 | N15: -337.805975 | O15: -306 | P15: -217.4 | Q15: -200.9 | R15: -195.7 | S15: -176.3 | T15: -155.409122 | U15: -126.778479 | V15: -94.453876 | W15: -99.544992 | X15: -111.934364 | Y15: -188.231264 | Z15: -154.331783 | AA15: ='Townwide Contributions'!AB361/1000000 -> -208.799559
B16: Below effort threshold 1 | C16: 2.5 | D16: 2.5 | G16: Change in C70 Appropriation | H16: =H13+H14-H6 -> 219616593.1 | K16: n of municipalities with effort too high | L16: 232 | M16: 218 | N16: 214 | O16: 193 | P16: 282 | Q16: 257 | R16: 249 | S16: 255 | T16: 279 | U16: 278 | V16: 303 | W16: 291 | X16: 0 | Y16: 0 | Z16: 0 | AA16: ='Townwide Contributions'!AC364 -> 0
B17: Below effort threshold 2 | C17: 7.5 | D17: 7.5 | G17: Percent Change | H17: =H16/H6 -> 0.04156530529
B18: Below effort contribution increment, 5-10% under | C18: 0.01 | D18: 0.01
B19: Below effort contribution increment, >10% under | C19: 0.02 | D19: 0.02 | G19: N of Foundation Aid Districts | H19: ='Aid436'!P448 -> 80
B20: Maximum local contribution pct of foundation | C20: 0.825 | D20: 0.825 | G20: N of Districts with an Aid Increase | H20: ='Comparison to FY21'!N331 -> 318
B21: Statewide target for local contribution % of foundation | C21: 0.59 | D21: 0.59 | G21: Total C70 Including Devens | H21: =H13+H14 -> 5503268225
B22: Cap contributions at fixed percentage of foundation | C22: 0.9 | D22: 0.9
D23: 0
A24: Eqv/income percentages
B26: Target effort | C26: =C21*localcont!K1765 -> 7036473217
B27: Effort based upon following percentages | C27: ='Townwide Contributions'!K361 -> 7036473216
B28: Difference from target | C28: =IF(ABS(C27-C26)<10,0,C27-C26) -> 0
B29: Percentage of EQV | C29: 0.003325837062
B30: Percentage of INCOME | C30: =C29*1/C34 -> 0.01419874795
B32: Total EQV | C32: ='Townwide Contributions'!C361 -> 1420130860400
B33: Total Income | C33: ='Townwide Contributions'!E361 -> 3.326436855e+11
B34: State Average % of EQV | C34: =C33/C32 -> 0.2342345306
A37: See Progress Towards Targets
K42: Progress Towards Target Aid Share
L44: FY07 | M44: FY08 | N44: FY09 | O44: FY10 | P44: FY11 | Q44: FY12 | R44: FY13 | S44: FY14 | T44: FY15 | U44: FY16 | V44: FY17 | W44: FY18 | X44: FY19 | Y44: FY20 | Z44: FY21 | AA44: FY22
K45: aid above target | L45: 394.9 | M45: 421 | N45: 440.4 | O45: 413.5991456 | P45: 489.2905867 | Q45: 360.5802896 | R45: 372.9139726 | S45: 385.3 | T45: 404.6539336 | U45: 419.0730779 | V45: 488.1362137 | W45: 497.4038449 | X45: 487.8069694 | Y45: 518.4487954 | Z45: 516.4943275 | AA45: ='Aid436'!AE449/1000000 -> 613.17696
K46: aid below target | L46: -176.3 | M46: -143 | N46: -105.5 | O46: -97.82363262 | P46: -75.73073977 | Q46: -110.4290612 | R46: -84.70629692 | S46: -66.9 | T46: -49.39921427 | U46: -44.48798888 | V46: -13.01302676 | W46: -7.202688836 | X46: -0.01809683687 | Y46: -0.001189981026 | Z46: -0.01283887927 | AA46: ='Aid436'!AE450/1000000 -> -0.001771922842
C50: =TEXT(effortred,"0%") -> 100%

Sheet Index
A1: Massachusetts Department of Elementary and Secondary Education | J1: 2021-07-16
A2: =parameters!B1& " Chapter 70 and Net School Spending Formula Spreadsheet" -> FY22 Chapter 70 and Net School Spending Formula Spreadsheet
B3: Select or type full district name below | C3: LEA code
A4: =C4 -> 999 | B4: State Total | C4: =VLOOKUP(B4,leas!$E$4:$F$445,2,FALSE) -> 999
B6: Use the drop-down menu to select a municipal or regional district and then go to any of the first four links below.
B7: Only municipal district selections will activate the Municipal Contribution Requirement and Regional Allocation reports.
B8: A list of LEAs by code begins on row 26 of this sheet.
B10: We recommend that you save this workbook to your computer before proceeding, then leave this browser, and open the workbook using Excel or My Computer.
B12: Summary
B13: Foundation Budget
B14: Municipal Contribution Requirement
B15: Regional Allocation
B17: Regional District Detail | D17: (go to this sheet to see any particular regional district's comparison of enrollment and minimum contributions to the prior year)
B19: There are also a number of "hidden" sheets which contain the underlying spreadsheet calculations.
B20: They can be accessed by right-clicking on any of the tabs below and choosing a sheet to unhide.
B22: Questions or comments about Chapter 70 may be directed to:
B23: Rob Hanna | D23: Robert.Hanna@mass.gov | G23: 781-338-6525
B24: Rob O'Donnell | D24: Robert.F.O'Donnell@mass.gov | G24: 781-338-6512
B26: District | D26: LEA Number
B27: Abington | D27: 1
B28: Acton | D28: 2
B29: Acton Boxborough | D29: 600
B30: Acushnet | D30: 3
B31: Adams | D31: 4
B32: Agawam | D32: 5
B33: Alford | D33: 6
B34: Amesbury | D34: 7
B35: Amherst | D35: 8
B36: Amherst Pelham | D36: 605
B37: Andover | D37: 9
B38: Arlington | D38: 10
B39: Ashburnham | D39: 11
B40: Ashburnham Westminster | D40: 610
B41: Ashby | D41: 12
B42: Ashfield | D42: 13
B43: Ashland | D43: 14
B44: Assabet Valley | D44: 801
B45: Athol | D45: 15
B46: Athol Royalston | D46: 615
B47: Attleboro | D47: 16
B48: Auburn | D48: 17
B49: Avon | D49: 18
B50: Ayer | D50: 19
B51: Ayer Shirley | D51: 616
B52: Barnstable | D52: 20
B53: Barre | D53: 21
B54: Becket | D54: 22
B55: Bedford | D55: 23
B56: Belchertown | D56: 24
B57: Bellingham | D57: 25
B58: Belmont | D58: 26
B59: Berkley | D59: 27
B60: Berkshire Hills | D60: 618
B61: Berlin | D61: 28
B62: Berlin Boylston | D62: 620
B63: Bernardston | D63: 29
B64: Beverly | D64: 30
B65: Billerica | D65: 31
B66: Blackstone | D66: 32
B67: Blackstone Millville | D67: 622
B68: Blackstone Valley | D68: 805
B69: Blandford | D69: 33
B70: Blue Hills | D70: 806
B71: Bolton | D71: 34
B72: Boston | D72: 35
B73: Bourne | D73: 36
B74: Boxborough | D74: 37
B75: Boxford | D75: 38
B76: Boylston | D76: 39
B77: Braintree | D77: 40
B78: Brewster | D78: 41
B79: Bridgewater | D79: 42
B80: Bridgewater Raynham | D80: 625
B81: Brimfield | D81: 43
B82: Bristol County | D82: 910
B83: Bristol Plymouth | D83: 810
B84: Brockton | D84: 44
B85: Brookfield | D85: 45
B86: Brookline | D86: 46
B87: Buckland | D87: 47
B88: Burlington | D88: 48
B89: Cambridge | D89: 49
B90: Canton | D90: 50
B91: Cape Cod | D91: 815
B92: Carlisle | D92: 51
B93: Carver | D93: 52
B94: Central Berkshire | D94: 635
B95: Charlemont | D95: 53
B96: Charlton | D96: 54
B97: Chatham | D97: 55
B98: Chelmsford | D98: 56
B99: Chelsea | D99: 57
B100: Cheshire | D100: 58
B101: Chester | D101: 59
B102: Chesterfield | D102: 60
B103: Chesterfield Goshen | D103: 632
B104: Chicopee | D104: 61
B105: Chilmark | D105: 62
B106: Clarksburg | D106: 63
B107: Clinton | D107: 64
B108: Cohasset | D108: 65
B109: Colrain | D109: 66
B110: Concord | D110: 67
B111: Concord Carlisle | D111: 640
B112: Conway | D112: 68
B113: Cummington | D113: 69
B114: Dalton | D114: 70
B115: Danvers | D115: 71
B116: Dartmouth | D116: 72
B117: Dedham | D117: 73
B118: Deerfield | D118: 74
B119: Dennis | D119: 75
B120: Dennis Yarmouth | D120: 645
B121: Dighton | D121: 76
B122: Dighton Rehoboth | D122: 650
B123: Douglas | D123: 77
B124: Dover | D124: 78
B125: Dover Sherborn | D125: 655
B126: Dracut | D126: 79
B127: Dudley | D127: 80
B128: Dudley Charlton | D128: 658
B129: Dunstable | D129: 81
B130: Duxbury | D130: 82
B131: East Bridgewater | D131: 83
B132: East Brookfield | D132: 84
B133: East Longmeadow | D133: 87
B134: Eastham | D134: 85
B135: Easthampton | D135: 86
B136: Easton | D136: 88
B137: Edgartown | D137: 89
B138: Egremont | D138: 90
B139: Erving | D139: 91
B140: Essex | D140: 92
B141: Essex North Shore | D141: 817
B142: Everett | D142: 93
B143: Fairhaven | D143: 94
B144: Fall River | D144: 95
B145: Falmouth | D145: 96
B146: Farmington River | D146: 662
B147: Fitchburg | D147: 97
B148: Florida | D148: 98
B149: Foxborough | D149: 99
B150: Framingham | D150: 100
B151: Franklin | D151: 101
B152: Franklin County | D152: 818
B153: Freetown | D153: 102
B154: Freetown Lakeville | D154: 665
B155: Frontier | D155: 670
B156: Gardner | D156: 103
B157: Gateway | D157: 672
B158: Gay Head | D158: 104
B159: Georgetown | D159: 105
B160: Gill | D160: 106
B161: Gill Montague | D161: 674
B162: Gloucester | D162: 107
B163: Goshen | D163: 108
B164: Gosnold | D164: 109
B165: Grafton | D165: 110
B166: Granby | D166: 111
B167: Granville | D167: 112
B168: Great Barrington | D168: 113
B169: Greater Fall River | D169: 821
B170: Greater Lawrence | D170: 823
B171: Greater Lowell | D171: 828
B172: Greater New Bedford | D172: 825
B173: Greenfield | D173: 114
B174: Groton | D174: 115
B175: Groton Dunstable | D175: 673
B176: Groveland | D176: 116
B177: Hadley | D177: 117
B178: Halifax | D178: 118
B179: Hamilton | D179: 119
B180: Hamilton Wenham | D180: 675
B181: Hampden | D181: 120
B182: Hampden Wilbraham | D182: 680
B183: Hampshire | D183: 683
B184: Hancock | D184: 121
B185: Hanover | D185: 122
B186: Hanson | D186: 123
B187: Hardwick | D187: 124
B188: Harvard | D188: 125
B189: Harwich | D189: 126
B190: Hatfield | D190: 127
B191: Haverhill | D191: 128
B192: Hawlemont | D192: 685
B193: Hawley | D193: 129
B194: Heath | D194: 130
B195: Hingham | D195: 131
B196: Hinsdale | D196: 132
B197: Holbrook | D197: 133
B198: Holden | D198: 134
B199: Holland | D199: 135
B200: Holliston | D200: 136
B201: Holyoke | D201: 137
B202: Hoosac Valley | D202: 603
B203: Hopedale | D203: 138
B204: Hopkinton | D204: 139
B205: Hubbardston | D205: 140
B206: Hudson | D206: 141
B207: Hull | D207: 142
... 257 more rows

Sheet MoreAboutData
B1: =CYr&" Chapter 70 and Net School Spending Formula" -> FY22 Chapter 70 and Net School Spending Formula | C1: FY18 Chapter 70 and Net School Spending Formula Spreadsheet | D1: FY18 Chapter 70 and Net School Spending Formula Spreadsheet | E1: FY18 Chapter 70 and Net School Spending Formula Spreadsheet | F1: FY18 Chapter 70 and Net School Spending Formula Spreadsheet | G1: Return to Index
B2: More about the data
A3: TABLE OF CONTENTS
A4: Index | E4: Back to the top
A5: Select the district you're interested in from the dropdown list on this sheet.
A6: Foundation Budget | E6: Back to the top
A7: This report displays the foundation enrollment and foundation budget for a single district. A district’s foundation budget is updated each year and it is derived by multiplying the number of pupils in thirteen enrollment categories by cost rates in eleven functional areas.
A9: Key Terms
A10: Foundation Enrollment: A count of the students for whom a school district is financially responsible on October 1st of any given year. Inflation: Foundation budget rates are adjusted each year by a statutorily defined inflationary factor. It affects all districts in the same way. Wage Adjustment Factor (WAF): Gives a district credit for having higher school costs if it is located in a geographic area where average wages are higher than in other areas of the state. Calculated using the latest available average wage data supplied by the state’s Executive Office of Labor and Workforce Development (EOLWD). Low Income Group: Determined based on the relative concentration of low income students served in the district. Corresponds to a foundation budget rate for low income students.
A11: Municipal Contribution | E11: Back to the top
A12: This report displays the required local contribution for a single municipality. Each municipality has a target local share of its foundation budget, based on local ability to pay. The required local contribution for each municipality is based on the previous year's required contribution, and includes some transition factors so that the shift toward the target levels occurs over a period of several years.
A14: Key Terms
A15: Equalized Valuation (EQV): Calculated by DOR every two years. Full and fair cash value of all taxable property for each municipality. Income: Derived annually by DOR from state income tax returns. Includes all forms of wage, pension, interest, business, investment, and capital gains income. Combined Effort Yield (CEY): Sum of property and income effort. Based on DESE-calculated property and income percentages, which, when applied to all municipalities in the Commonwealth, yields 59% of statewide foundation coming from local revenue. Target Local Contribution/Share: Calculated for each municipality as an equitable share of its foundation budget based on property wealth and income. Municipal Revenue Growth Factor (MRGF): Calculated each year by DOR and quantifies the most recent annual percentage change in each community's local revenues (such as the annual increase in the Proposition 2½ levy limit) that should be available for schools.
A16: Regional Allocation | E16: Back to the top
A17: This report displays the allocation of a municipality's required local contribution across the districts to which it belongs. The municipality's required contribution is allocated in direct proportion to the district's share of the municipality's foundation budget.
A18: Summary | E18: Back to the top
A19: This report displays the Chapter 70 aid calculation for a single district. The aid calculation begins with each district's prior year Chapter 70 amount. The difference between each district's foundation budget and its required contribution equals foundation aid. On the right-hand side, there is a comparison to the prior year.
A20: Key Terms
A21: Foundation Aid: The amount of aid needed by a district to reach its foundation budget, after factoring in this year's required local contribution. Foundation budget - Required Local Contribution = Foundation Aid Minimum Aid: A guaranteed per pupil aid increase over the prior year. Required Net School Spending (NSS): The sum of this year's required local contribution and Chapter 70 aid. A district must spend this amount to be in compliance.
A22: Regional District Members | E22: Back to the top
A23: This report displays relevant data for municipal members of a single regional district.
A24: Key Terms
A25: Foundation Enrollment: Foundation enrollment for the selected district, in total and by member. Required Minimum Contribution: Total required minimum contribution for the selected district, in total and by member.
A26: ="Comparison to "&PYr -> Comparison to FY21 | E26: Back to the top
A27: This report displays prior year and current year foundation enrollment, foundation budget, required local contribution and Chapter 70 aid for all operating districts.
A29: Rates | E29: Back to the top
A30: This sheet displays the FY22 foundation budget rates.
A31: Townwide Contributions | E31: Back to the top
A32: This sheet calculates FY22 required local contributions for each municipality.
A33: Aid436 | E33: Back to the top
A34: This sheet calculates FY22 Chapter 70 aid for each district.

Sheet localcont (hidden)
I1: c70fy21 | J1: c70fy21 | O1: c70fy21 | R1: c70fy21 | Z1: 2021-02-05 | CM1: Lookup table for foundation budget scenarios | CN1: 1 | CO1: 2
CN2: 2 | CO2: 8
D3: 1 | E3: 2 | F3: 3 | G3: 4 | H3: 5 | I3: 6 | J3: 7 | K3: 8 | L3: 9 | M3: 10 | N3: 11 | O3: 12 | P3: 13 | Q3: 14 | R3: 15 | S3: 16 | T3: 17 | U3: 18 | V3: 19 | W3: 20 | X3: 21 | Y3: 1 | Z3: 2 | AA3: 3 | AB3: 4 | AC3: 5 | AD3: 6 | AE3: 7 | AF3: 8 | AG3: 9 | AH3: 10 | AI3: 11 | AJ3: 12 | AK3: 13 | AL3: 14 | AM3: 15 | AN3: 16 | AO3: 17 | AP3: 18 | AQ3: 19 | AR3: 20 | AS3: 21 | AT3: 22 | AU3: 23 | AV3: 24 | AW3: 25 | AX3: 26 | AY3: 27 | AZ3: 28 | BA3: 29 | BB3: 30 | BC3: 31 | BD3: 32 | BE3: 33 | BF3: 34 | BG3: 35 | BH3: 36 | BI3: 37 | BJ3: 38 | BK3: 39 | BL3: 40 | BM3: 41 | BN3: 42 | BO3: 43 | BP3: 44 | BQ3: 45 | BR3: 46 | BS3: 47 | BT3: 48 | BU3: 49 | BV3: 50 | BW3: 51 | BX3: 52 | BY3: 53 | BZ3: 54 | CA3: 55 | CB3: 56 | CC3: 57 | CD3: 58 | CE3: 59 | CF3: 60 | CG3: 61 | CH3: 62 | CI3: 63 | CJ3: 64 | CK3: 65 | CL3: 66 | CN3: 3 | CO3: 14
G4: lea1755 | K4: found1755 | N4: prelcont1755 | O4: pynetmin | R4: pyenro | W4: enro1755 | CN4: 4 | CO4: 20
Z5: 1 | AF5: 2 | AL5: 3 | AR5: 4 | AX5: 5 | BD5: 6 | BJ5: 7 | BP5: 8 | BV5: 9 | CB5: 10 | CH5: 11 | CN5: 5 | CO5: 26
T6: =parameters!$C$6 -> 1 | Z6: 1/6th SOA | CN6: 6 | CO6: 32
I7: =PYr -> FY21 | J7: =PYr -> FY21 | K7: =CYr -> FY22 | L7: =CYr -> FY22 | M7: =CYr -> FY22 | N7: =CYr -> FY22 | O7: =PYr -> FY21 | CN7: 7 | CO7: 38
I8: Foundation | J8: Share of Total | K8: Foundation | L8: Share of Total | M8: Townwide | N8: Net Minimum | O8: Net Minimum | P8: =PYr&" to "&CYr -> FY21 to FY22 | Q8: Percent | R8: =PYr -> FY21 | S8: =CYr -> FY22 | W8: final | X8: foundation | AC8: final | AD8: foundation | AI8: final | AJ8: foundation | AO8: final | AP8: foundation | AU8: final | AV8: foundation | BA8: final | BB8: foundation | BG8: final | BH8: foundation | BM8: final | BN8: foundation | BS8: final | BT8: foundation | BY8: final | BZ8: foundation | CE8: final | CF8: foundation | CK8: final | CL8: foundation | CN8: 8 | CO8: 44
A9: TownLEA | B9: Town | C9: LEA | D9: Order | E9: Town | F9: City or Town | G9: LEA | H9: School District | I9: Budget | J9: Foundation | K9: Budget | L9: Foundation | M9: Contribution | N9: Contribution | O9: Contribution | P9: Change | Q9: Change | R9: Enrollment | S9: Enrollment | T9: Town | U9: LEA | V9: Order | W9: enrollment | X9: budget | Z9: Town | AA9: LEA | AB9: Order | AC9: enrollment | AD9: budget | AF9: Town | AG9: LEA | AH9: Order | AI9: enrollment | AJ9: budget | AL9: Town | AM9: LEA | AN9: Order | AO9: enrollment | AP9: budget | AR9: Town | AS9: LEA | AT9: Order | AU9: enrollment | AV9: budget | AX9: Town | AY9: LEA | AZ9: Order | BA9: enrollment | BB9: budget | BD9: Town | BE9: LEA | BF9: Order | BG9: enrollment | BH9: budget | BJ9: Town | BK9: LEA | BL9: Order | BM9: enrollment | BN9: budget | BP9: Town | BQ9: LEA | BR9: Order | BS9: enrollment | BT9: budget | BV9: Town | BW9: LEA | BX9: Order | BY9: enrollment | BZ9: budget | CB9: Town | CC9: LEA | CD9: Order | CE9: enrollment | CF9: budget | CH9: Town | CI9: LEA | CJ9: Order | CK9: enrollment | CL9: budget | CN9: 9 | CO9: 50
A10: =B10&C10 -> 00010001 | B10: 0001 | C10: 0001 | D10: 1 | E10: 1 | F10: Abington | G10: 1 | H10: Abington | I10: 25332546.71 | J10: 0.9439033323 | K10: =X10 -> 26529795.66 | L10: =IF(K14>0, K10/K14, 0) -> 0.9424119752 | N10: =ROUND(M14*L10,0) -> 15771170 | O10: 15287069 | P10: =N10-O10 -> 484101 | Q10: =IF(O10>0,P10*100/O10,IF(P10>0,100,0)) -> 3.166735232 | R10: 2197 | S10: =W10 -> 2193 | T10: =VLOOKUP($D10, foundoptions, VLOOKUP($T$6, foundoptcell, 2, FALSE), FALSE) -> 1 | U10: =VLOOKUP($D10, foundoptions, VLOOKUP($T$6, foundoptcell, 2, FALSE)+1, FALSE) -> 1 | V10: =VLOOKUP($D10, foundoptions, VLOOKUP($T$6, foundoptcell, 2, FALSE)+2, FALSE) -> 1 | W10: =VLOOKUP($D10, foundoptions, VLOOKUP($T$6, foundoptcell, 2, FALSE)+3, FALSE) -> 2193 | X10: =VLOOKUP($D10, foundoptions, VLOOKUP($T$6, foundoptcell, 2, FALSE)+4, FALSE) -> 26529795.66 | Y10: =D10 -> 1 | Z10: 1 | AA10: 1 | AB10: 1 | AC10: 2193 | AD10: 26529795.66 | CN10: 10 | CO10: 56
A11: 00010873 | B11: 0001 | C11: 0873 | D11: 2 | E11: 1 | F11: Abington | G11: 873 | H11: South Shore | I11: 1505526.474 | J11: 0.05609666772 | K11: =X11 -> 1621157.805 | L11: =IF(K14>0, K11/K14, 0) -> 0.05758802476 | N11: =ROUND(M14*L11,0) -> 963730 | O11: 908518 | P11: =N11-O11 -> 55212 | Q11: 6.07714982 | R11: 84.46580407 | S11: =W11 -> 88 | T11: 1 | U11: 873 | V11: 2 | W11: 88 | X11: 1621157.805 | Y11: =D11 -> 2 | Z11: 1 | AA11: 873 | AB11: 2 | AC11: 88 | AD11: 1621157.805 | CN11: 11 | CO11: 62
A12: 00010998 | B12: 0001 | C12: 0998 | D12: 3 | E12: 1 | G12: 998 | I12: 0 | J12: 0 | K12: =X12 -> 0 | L12: =IF(K14>0, K12/K14, 0) -> 0 | N12: =ROUND(M14*L12,0) -> 0 | O12: 0 | P12: =N12-O12 -> 0 | Q12: 0 | R12: 0 | S12: 0 | T12: 1 | U12: 998 | V12: 3 | W12: 0 | X12: 0 | Y12: 3 | Z12: 1 | AA12: 998 | AB12: 3 | AC12: 0 | AD12: 0
A13: 00010998 | B13: 0001 | C13: 0998 | D13: 4 | E13: 1 | G13: 998 | I13: 0 | J13: 0 | K13: =X13 -> 0 | L13: =IF(K14>0, K13/K14, 0) -> 0 | N13: =ROUND(M14*L13,0) -> 0 | O13: 0 | P13: =N13-O13 -> 0 | Q13: 0 | R13: 0 | S13: 0 | T13: 1 | U13: 998 | V13: 4 | W13: 0 | X13: 0 | Y13: 4 | Z13: 1 | AA13: 998 | AB13: 4 | AC13: 0 | AD13: 0
A14: 00010999 | B14: 0001 | C14: 0999 | D14: 5 | E14: 1 | F14: Abington | G14: 999 | H14: Total | I14: 26838073.19 | J14: 1 | K14: =SUM(K10:K13) -> 28150953.47 | L14: =SUM(L10:L13) -> 1 | M14: =VLOOKUP(E14,town351,24) -> 16734900 | N14: =SUM(N10:N13) -> 16734900 | O14: 16195587 | P14: =SUM(P10:P13) -> 539313 | Q14: 3.329999709 | R14: 2281.465804 | S14: 2281 | T14: 1 | U14: 999 | V14: 5 | W14: 2281 | X14: 28150953.47 | Y14: 5 | Z14: 1 | AA14: 999 | AB14: 5 | AC14: 2281 | AD14: 28150953.47
A15: 00020002 | B15: 0002 | C15: 0002 | D15: 6 | E15: 2 | F15: Acton | G15: 2 | H15: Acton | I15: 0 | J15: 0 | K15: =X15 -> 0 | L15: =IF(K19>0, K15/K19, 0) -> 0 | N15: =ROUND(M19*L15,0) -> 0 | O15: 0 | P15: =N15-O15 -> 0 | Q15: 0 | R15: 0 | S15: 0 | T15: 2 | U15: 2 | V15: 6 | W15: 0 | X15: 0 | Y15: 6 | Z15: 2 | AA15: 2 | AB15: 6 | AC15: 0 | AD15: 0
A16: 00020600 | B16: 0002 | C16: 0600 | D16: 7 | E16: 2 | F16: Acton | G16: 600 | H16: Acton Boxborough | I16: 48408644.57 | J16: 0.9844972316 | K16: 48416592.18 | L16: =IF(K19>0, K16/K19, 0) -> 0.9752454961 | N16: =ROUND(M19*L16,0) -> 38962815 | O16: 38561442 | P16: =N16-O16 -> 401373 | Q16: 1.040866158 | R16: 4437.978144 | S16: 4287.104809 | T16: 2 | U16: 600 | V16: 7 | W16: 4287.104809 | X16: 48416592.18 | Y16: 7 | Z16: 2 | AA16: 600 | AB16: 7 | AC16: 4287.104809 | AD16: 48416592.18
A17: 00020830 | B17: 0002 | C17: 0830 | D17: 8 | E17: 2 | F17: Acton | G17: 830 | H17: Minuteman | I17: 762285.54 | J17: 0.01550276837 | K17: 1228950.787 | L17: =IF(K19>0, K17/K19, 0) -> 0.0247545039 | N17: =ROUND(M19*L17,0) -> 988987 | O17: 607223 | P17: =N17-O17 -> 381764 | Q17: 62.87047757 | R17: 41 | S17: 61 | T17: 2 | U17: 830 | V17: 8 | W17: 61 | X17: 1228950.787 | Y17: 8 | Z17: 2 | AA17: 830 | AB17: 8 | AC17: 61 | AD17: 1228950.787
A18: 00020998 | B18: 0002 | C18: 0998 | D18: 9 | E18: 2 | G18: 998 | I18: 0 | J18: 0 | K18: 0 | L18: =IF(K19>0, K18/K19, 0) -> 0 | N18: =ROUND(M19*L18,0) -> 0 | O18: 0 | P18: =N18-O18 -> 0 | Q18: 0 | R18: 0 | S18: 0 | T18: 2 | U18: 998 | V18: 9 | W18: 0 | X18: 0 | Y18: 9 | Z18: 2 | AA18: 998 | AB18: 9 | AC18: 0 | AD18: 0
A19: 00020999 | B19: 0002 | C19: 0999 | D19: 10 | E19: 2 | F19: Acton | G19: 999 | H19: Total | I19: 49170930.11 | J19: 1 | K19: =SUM(K15:K18) -> 49645542.97 | L19: =SUM(L15:L18) -> 1 | M19: =VLOOKUP(E19,town351,24) -> 39951802 | N19: =SUM(N15:N18) -> 39951802 | O19: 39168665 | P19: =SUM(P15:P18) -> 783137 | Q19: =IF(O19>0,P19*100/O19,IF(P19>0,100,0)) -> 1.999396712 | R19: 4478.978144 | S19: 4348.104809 | T19: 2 | U19: 999 | V19: 10 | W19: 4348.104809 | X19: 49645542.97 | Y19: 10 | Z19: 2 | AA19: 999 | AB19: 10 | AC19: 4348.104809 | AD19: 49645542.97
A20: 00030003 | B20: 0003 | C20: 0003 | D20: 11 | E20: 3 | F20: Acushnet | G20: 3 | H20: Acushnet | I20: 13990412.9 | J20: 0.855919388 | K20: =X20 -> 13489100.06 | L20: =IF(K24>0, K20/K24, 0) -> 0.8325215517 | N20: =ROUND(M24*L20,0) -> 7882117 | O20: 7889510 | P20: =N20-O20 -> -7393 | Q20: -0.09370670675 | R20: 1292 | S20: 1207 | T20: 3 | U20: 3 | V20: 11 | W20: 1207 | X20: 13489100.06 | Y20: 11 | Z20: 3 | AA20: 3 | AB20: 11 | AC20: 1207 | AD20: 13489100.06
A21: 00030855 | B21: 0003 | C21: 0855 | D21: 12 | E21: 3 | F21: Acushnet | G21: 855 | H21: Old Colony | I21: 2180595.949 | J21: 0.1334066666 | K21: 2536404.642 | L21: =IF(K24>0, K21/K24, 0) -> 0.1565420613 | N21: =ROUND(M24*L21,0) -> 1482103 | O21: 1229687 | P21: =N21-O21 -> 252416 | Q21: 20.52684952 | R21: 128.5505376 | S21: 144 | T21: 3 | U21: 855 | V21: 12 | W21: 144 | X21: 2536404.642 | Y21: 12 | Z21: 3 | AA21: 855 | AB21: 12 | AC21: 144 | AD21: 2536404.642
A22: 00030910 | B22: 0003 | C22: 0910 | D22: 13 | E22: 3 | F22: Acushnet | G22: 910 | H22: Bristol County | I22: 174470.7556 | J22: 0.01067394532 | K22: 177199.0387 | L22: =IF(K24>0, K22/K24, 0) -> 0.01093638701 | N22: =ROUND(M24*L22,0) -> 103543 | O22: 98388 | P22: =N22-O22 -> 5155 | Q22: 5.239460097 | R22: 10 | S22: 10 | T22: 3 | U22: 910 | V22: 13 | W22: 10 | X22: 177199.0387 | Y22: 13 | Z22: 3 | AA22: 910 | AB22: 13 | AC22: 10 | AD22: 177199.0387
A23: 00030998 | B23: 0003 | C23: 0998 | D23: 14 | E23: 3 | G23: 998 | I23: 0 | J23: 0 | K23: 0 | L23: =IF(K24>0, K23/K24, 0) -> 0 | N23: =ROUND(M24*L23,0) -> 0 | O23: 0 | P23: =N23-O23 -> 0 | Q23: 0 | R23: 0 | S23: 0 | T23: 3 | U23: 998 | V23: 14 | W23: 0 | X23: 0 | Y23: 14 | Z23: 3 | AA23: 998 | AB23: 14 | AC23: 0 | AD23: 0
A24: 00030999 | B24: 0003 | C24: 0999 | D24: 15 | E24: 3 | F24: Acushnet | G24: 999 | H24: Total | I24: 16345479.6 | J24: 1 | K24: =SUM(K20:K23) -> 16202703.74 | L24: =SUM(L20:L23) -> 1 | M24: =VLOOKUP(E24,town351,24) -> 9467763 | N24: =SUM(N20:N23) -> 9467763 | O24: 9217585 | P24: =SUM(P20:P23) -> 250178 | Q24: 2.714138248 | R24: 1430.550538 | S24: 1361 | T24: 3 | U24: 999 | V24: 15 | W24: 1361 | X24: 16202703.74 | Y24: 15 | Z24: 3 | AA24: 999 | AB24: 15 | AC24: 1361 | AD24: 16202703.74
A25: 00040004 | B25: 0004 | C25: 0004 | D25: 16 | E25: 4 | F25: Adams | G25: 4 | H25: Adams | I25: 0 | J25: 0 | K25: =X25 -> 0 | L25: =IF(K29>0, K25/K29, 0) -> 0 | N25: =ROUND(M29*L25,0) -> 0 | O25: 0 | P25: =N25-O25 -> 0 | Q25: 0 | R25: 0 | S25: 0 | T25: 4 | U25: 4 | V25: 16 | W25: 0 | X25: 0 | Y25: 16 | Z25: 4 | AA25: 4 | AB25: 16 | AC25: 0 | AD25: 0
A26: 00040603 | B26: 0004 | C26: 0603 | D26: 17 | E26: 4 | F26: Adams | G26: 603 | H26: Hoosac Valley | I26: 11030366.69 | J26: 0.8139311601 | K26: 11141094.78 | L26: =IF(K29>0, K26/K29, 0) -> 0.8132693054 | N26: =ROUND(M29*L26,0) -> 3677626 | O26: 3790093 | P26: =N26-O26 -> -112467 | Q26: -2.967394204 | R26: 901.7089494 | S26: 862.4819479 | T26: 4 | U26: 603 | V26: 17 | W26: 862.4819479 | X26: 11141094.78 | Y26: 17 | Z26: 4 | AA26: 603 | AB26: 17 | AC26: 862.4819479 | AD26: 11141094.78
A27: 00040851 | B27: 0004 | C27: 0851 | D27: 18 | E27: 4 | F27: Adams | G27: 851 | H27: Northern Berkshire | I27: 2521598.427 | J27: 0.1860688399 | K27: 2558051.009 | L27: =IF(K29>0, K27/K29, 0) -> 0.1867306946 | N27: =ROUND(M29*L27,0) -> 844401 | O27: 866435 | P27: =N27-O27 -> -22034 | Q27: -2.543064396 | R27: 141 | S27: 138 | T27: 4 | U27: 851 | V27: 18 | W27: 138 | X27: 2558051.009 | Y27: 18 | Z27: 4 | AA27: 851 | AB27: 18 | AC27: 138 | AD27: 2558051.009
A28: 00040998 | B28: 0004 | C28: 0998 | D28: 19 | E28: 4 | G28: 998 | I28: 0 | J28: 0 | K28: 0 | L28: =IF(K29>0, K28/K29, 0) -> 0 | N28: =ROUND(M29*L28,0) -> 0 | O28: 0 | P28: =N28-O28 -> 0 | Q28: 0 | R28: 0 | S28: 0 | T28: 4 | U28: 998 | V28: 19 | W28: 0 | X28: 0 | Y28: 19 | Z28: 4 | AA28: 998 | AB28: 19 | AC28: 0 | AD28: 0
A29: 00040999 | B29: 0004 | C29: 0999 | D29: 20 | E29: 4 | F29: Adams | G29: 999 | H29: Total | I29: 13551965.12 | J29: 1 | K29: =SUM(K25:K28) -> 13699145.79 | L29: =SUM(L25:L28) -> 1 | M29: =VLOOKUP(E29,town351,24) -> 4522027 | N29: =SUM(N25:N28) -> 4522027 | O29: 4656528 | P29: =SUM(P25:P28) -> -134501 | Q29: -2.888439627 | R29: 1042.708949 | S29: 1000.481948 | T29: 4 | U29: 999 | V29: 20 | W29: 1000.481948 | X29: 13699145.79 | Y29: 20 | Z29: 4 | AA29: 999 | AB29: 20 | AC29: 1000.481948 | AD29: 13699145.79
A30: 00050005 | B30: 0005 | C30: 0005 | D30: 21 | E30: 5 | F30: Agawam | G30: 5 | H30: Agawam | I30: 42427489.5 | J30: 1 | K30: =X30 -> 42850725.39 | L30: =IF(K34>0, K30/K34, 0) -> 1 | N30: =ROUND(M34*L30,0) -> 23421246 | O30: 23256462 | P30: =N30-O30 -> 164784 | Q30: 0.7085514555 | R30: 3623 | S30: 3516 | T30: 5 | U30: 5 | V30: 21 | W30: 3516 | X30: 42850725.39 | Y30: 21 | Z30: 5 | AA30: 5 | AB30: 21 | AC30: 3516 | AD30: 42850725.39
A31: 00050998 | B31: 0005 | C31: 0998 | D31: 22 | E31: 5 | G31: 998 | I31: 0 | J31: 0 | K31: 0 | L31: =IF(K34>0, K31/K34, 0) -> 0 | N31: =ROUND(M34*L31,0) -> 0 | O31: 0 | P31: =N31-O31 -> 0 | Q31: 0 | R31: 0 | S31: 0 | T31: 5 | U31: 998 | V31: 22 | W31: 0 | X31: 0 | Y31: 22 | Z31: 5 | AA31: 998 | AB31: 22 | AC31: 0 | AD31: 0
A32: 00050998 | B32: 0005 | C32: 0998 | D32: 23 | E32: 5 | G32: 998 | I32: 0 | J32: 0 | K32: 0 | L32: =IF(K34>0, K32/K34, 0) -> 0 | N32: =ROUND(M34*L32,0) -> 0 | O32: 0 | P32: =N32-O32 -> 0 | Q32: 0 | R32: 0 | S32: 0 | T32: 5 | U32: 998 | V32: 23 | W32: 0 | X32: 0 | Y32: 23 | Z32: 5 | AA32: 998 | AB32: 23 | AC32: 0 | AD32: 0
A33: 00050998 | B33: 0005 | C33: 0998 | D33: 24 | E33: 5 | G33: 998 | I33: 0 | J33: 0 | K33: 0 | L33: =IF(K34>0, K33/K34, 0) -> 0 | N33: =ROUND(M34*L33,0) -> 0 | O33: 0 | P33: =N33-O33 -> 0 | Q33: 0 | R33: 0 | S33: 0 | T33: 5 | U33: 998 | V33: 24 | W33: 0 | X33: 0 | Y33: 24 | Z33: 5 | AA33: 998 | AB33: 24 | AC33: 0 | AD33: 0
A34: 00050999 | B34: 0005 | C34: 0999 | D34: 25 | E34: 5 | F34: Agawam | G34: 999 | H34: Total | I34: 42427489.5 | J34: 1 | K34: =SUM(K30:K33) -> 42850725.39 | L34: =SUM(L30:L33) -> 1 | M34: =VLOOKUP(E34,town351,24) -> 23421246 | N34: =SUM(N30:N33) -> 23421246 | O34: 23256462 | P34: =SUM(P30:P33) -> 164784 | Q34: 0.7085514555 | R34: 3623 | S34: 3516 | T34: 5 | U34: 999 | V34: 25 | W34: 3516 | X34: 42850725.39 | Y34: 25 | Z34: 5 | AA34: 999 | AB34: 25 | AC34: 3516 | AD34: 42850725.39
A35: 00060006 | B35: 0006 | C35: 0006 | D35: 26 | E35: 6 | F35: Alford | G35: 6 | H35: Alford | I35: 0 | J35: 0 | K35: =X35 -> 0 | L35: =IF(K39>0, K35/K39, 0) -> 0 | N35: =ROUND(M39*L35,0) -> 0 | O35: 0 | P35: =N35-O35 -> 0 | Q35: 0 | R35: 0 | S35: 0 | T35: 6 | U35: 6 | V35: 26 | W35: 0 | X35: 0 | Y35: 26 | Z35: 6 | AA35: 6 | AB35: 26 | AC35: 0 | AD35: 0
A36: 00060765 | B36: 0006 | C36: 0765 | D36: 27 | E36: 6 | F36: Alford | G36: 765 | H36: Southern Berkshire | I36: 249430.3231 | J36: 1 | K36: 243289.8046 | L36: =IF(K39>0, K36/K39, 0) -> 1 | N36: =ROUND(M39*L36,0) -> 200714 | O36: 205780 | P36: =N36-O36 -> -5066 | Q36: -2.461852464 | R36: 21.27089337 | S36: 20.45058139 | T36: 6 | U36: 765 | V36: 27 | W36: 20.45058139 | X36: 243289.8046 | Y36: 27 | Z36: 6 | AA36: 765 | AB36: 27 | AC36: 20.45058139 | AD36: 243289.8046
A37: 00060998 | B37: 0006 | C37: 0998 | D37: 28 | E37: 6 | G37: 998 | I37: 0 | J37: 0 | K37: 0 | L37: =IF(K39>0, K37/K39, 0) -> 0 | N37: =ROUND(M39*L37,0) -> 0 | O37: 0 | P37: =N37-O37 -> 0 | Q37: 0 | R37: 0 | S37: 0 | T37: 6 | U37: 998 | V37: 28 | W37: 0 | X37: 0 | Y37: 28 | Z37: 6 | AA37: 998 | AB37: 28 | AC37: 0 | AD37: 0
A38: 00060998 | B38: 0006 | C38: 0998 | D38: 29 | E38: 6 | G38: 998 | I38: 0 | J38: 0 | K38: 0 | L38: =IF(K39>0, K38/K39, 0) -> 0 | N38: =ROUND(M39*L38,0) -> 0 | O38: 0 | P38: =N38-O38 -> 0 | Q38: 0 | R38: 0 | S38: 0 | T38: 6 | U38: 998 | V38: 29 | W38: 0 | X38: 0 | Y38: 29 | Z38: 6 | AA38: 998 | AB38: 29 | AC38: 0 | AD38: 0
A39: 00060999 | B39: 0006 | C39: 0999 | D39: 30 | E39: 6 | F39: Alford | G39: 999 | H39: Total | I39: 249430.3231 | J39: 1 | K39: =SUM(K35:K38) -> 243289.8046 | L39: =SUM(L35:L38) -> 1 | M39: =VLOOKUP(E39,town351,24) -> 200714 | N39: =SUM(N35:N38) -> 200714 | O39: 205780 | P39: =SUM(P35:P38) -> -5066 | Q39: -2.461852464 | R39: 21.27089337 | S39: 20.45058139 | T39: 6 | U39: 999 | V39: 30 | W39: 20.45058139 | X39: 243289.8046 | Y39: 30 | Z39: 6 | AA39: 999 | AB39: 30 | AC39: 20.45058139 | AD39: 243289.8046
A40: 00070007 | B40: 0007 | C40: 0007 | D40: 31 | E40: 7 | F40: Amesbury | G40: 7 | H40: Amesbury | I40: 22553274.58 | J40: 0.9306505241 | K40: =X40 -> 22473928.55 | L40: =IF(K44>0, K40/K44, 0) -> 0.9198310235 | N40: =ROUND(M44*L40,0) -> 16512866 | O40: 16118764 | P40: =N40-O40 -> 394102 | Q40: 2.444988958 | R40: 2036 | S40: 1930 | T40: 7 | U40: 7 | V40: 31 | W40: 1930 | X40: 22473928.55 | Y40: 31 | Z40: 7 | AA40: 7 | AB40: 31 | AC40: 1930 | AD40: 22473928.55
A41: 00070885 | B41: 0007 | C41: 0885 | D41: 32 | E41: 7 | F41: Amesbury | G41: 885 | H41: Whittier | I41: 1680606.986 | J41: 0.06934947591 | K41: 1958742.207 | L41: =IF(K44>0, K41/K44, 0) -> 0.08016897647 | N41: =ROUND(M44*L41,0) -> 1439199 | O41: 1201125 | P41: =N41-O41 -> 238074 | Q41: 19.82091789 | R41: 95.00000001 | S41: 106 | T41: 7 | U41: 885 | V41: 32 | W41: 106 | X41: 1958742.207 | Y41: 32 | Z41: 7 | AA41: 885 | AB41: 32 | AC41: 106 | AD41: 1958742.207
A42: 00070998 | B42: 0007 | C42: 0998 | D42: 33 | E42: 7 | G42: 998 | I42: 0 | J42: 0 | K42: 0 | L42: =IF(K44>0, K42/K44, 0) -> 0 | N42: =ROUND(M44*L42,0) -> 0 | O42: 0 | P42: =N42-O42 -> 0 | Q42: 0 | R42: 0 | S42: 0 | T42: 7 | U42: 998 | V42: 33 | W42: 0 | X42: 0 | Y42: 33 | Z42: 7 | AA42: 998 | AB42: 33 | AC42: 0 | AD42: 0
A43: 00070998 | B43: 0007 | C43: 0998 | D43: 34 | E43: 7 | G43: 998 | I43: 0 | J43: 0 | K43: 0 | L43: =IF(K44>0, K43/K44, 0) -> 0 | N43: =ROUND(M44*L43,0) -> 0 | O43: 0 | P43: =N43-O43 -> 0 | Q43: 0 | R43: 0 | S43: 0 | T43: 7 | U43: 998 | V43: 34 | W43: 0 | X43: 0 | Y43: 34 | Z43: 7 | AA43: 998 | AB43: 34 | AC43: 0 | AD43: 0
A44: 00070999 | B44: 0007 | C44: 0999 | D44: 35 | E44: 7 | F44: Amesbury | G44: 999 | H44: Total | I44: 24233881.57 | J44: 1 | K44: =SUM(K40:K43) -> 24432670.76 | L44: =SUM(L40:L43) -> 1 | M44: =VLOOKUP(E44,town351,24) -> 17952065 | N44: =SUM(N40:N43) -> 17952065 | O44: 17319889 | P44: =SUM(P40:P43) -> 632176 | Q44: 3.650000297 | R44: 2131 | S44: 2036 | T44: 7 | U44: 999 | V44: 35 | W44: 2036 | X44: 24432670.76 | Y44: 35 | Z44: 7 | AA44: 999 | AB44: 35 | AC44: 2036 | AD44: 24432670.76
A45: 00080008 | B45: 0008 | C45: 0008 | D45: 36 | E45: 8 | F45: Amherst | G45: 8 | H45: Amherst | I45: 12512134.57 | J45: 0.4777109969 | K45: =X45 -> 12765297.7 | L45: =IF(K49>0, K45/K49, 0) -> 0.4856332443 | N45: =ROUND(M49*L45,0) -> 9889673 | O45: 9645618 | P45: =N45-O45 -> 244055 | Q45: 2.530216312 | R45: 1097 | S45: 1045 | T45: 8 | U45: 8 | V45: 36 | W45: 1045 | X45: 12765297.7 | Y45: 36 | Z45: 8 | AA45: 8 | AB45: 36 | AC45: 1045 | AD45: 12765297.7
A46: 00080605 | B46: 0008 | C46: 0605 | D46: 37 | E46: 8 | F46: Amherst | G46: 605 | H46: Amherst Pelham | I46: 13679715 | J46: 0.5222890031 | K46: 13520583.36 | L46: =IF(K49>0, K46/K49, 0) -> 0.5143667557 | N46: =ROUND(M49*L46,0) -> 10474817 | O46: 10545708 | P46: =N46-O46 -> -70891 | Q46: -0.6722260848 | R46: 1131 | S46: 1078.811136 | T46: 8 | U46: 605 | V46: 37 | W46: 1078.811136 | X46: 13520583.36 | Y46: 37 | Z46: 8 | AA46: 605 | AB46: 37 | AC46: 1078.811136 | AD46: 13520583.36
A47: 00080998 | B47: 0008 | C47: 0998 | D47: 38 | E47: 8 | G47: 998 | I47: 0 | J47: 0 | K47: 0 | L47: =IF(K49>0, K47/K49, 0) -> 0 | N47: =ROUND(M49*L47,0) -> 0 | O47: 0 | P47: =N47-O47 -> 0 | Q47: 0 | R47: 0 | S47: 0 | T47: 8 | U47: 998 | V47: 38 | W47: 0 | X47: 0 | Y47: 38 | Z47: 8 | AA47: 998 | AB47: 38 | AC47: 0 | AD47: 0
A48: 00080998 | B48: 0008 | C48: 0998 | D48: 39 | E48: 8 | G48: 998 | I48: 0 | J48: 0 | K48: 0 | L48: =IF(K49>0, K48/K49, 0) -> 0 | N48: =ROUND(M49*L48,0) -> 0 | O48: 0 | P48: =N48-O48 -> 0 | Q48: 0 | R48: 0 | S48: 0 | T48: 8 | U48: 998 | V48: 39 | W48: 0 | X48: 0 | Y48: 39 | Z48: 8 | AA48: 998 | AB48: 39 | AC48: 0 | AD48: 0
A49: 00080999 | B49: 0008 | C49: 0999 | D49: 40 | E49: 8 | F49: Amherst | G49: 999 | H49: Total | I49: 26191849.57 | J49: 1 | K49: =SUM(K45:K48) -> 26285881.06 | L49: =SUM(L45:L48) -> 1 | M49: =VLOOKUP(E49,town351,24) -> 20364490 | N49: =SUM(N45:N48) -> 20364490 | O49: 20191326 | P49: =SUM(P45:P48) -> 173164 | Q49: 0.8576157901 | R49: 2228 | S49: 2123.811136 | T49: 8 | U49: 999 | V49: 40 | W49: 2123.811136 | X49: 26285881.06 | Y49: 40 | Z49: 8 | AA49: 999 | AB49: 40 | AC49: 2123.811136 | AD49: 26285881.06
A50: 00090009 | B50: 0009 | C50: 0009 | D50: 41 | E50: 9 | F50: Andover | G50: 9 | H50: Andover | I50: 64237434.88 | J50: 0.9898346414 | K50: =X50 -> 64739542.48 | L50: =IF(K54>0, K50/K54, 0) -> 0.9847432263 | N50: =ROUND(M54*L50,0) -> 53410123 | O50: 52995883 | P50: =N50-O50 -> 414240 | Q50: 0.7816456233 | R50: 5740 | S50: 5628 | T50: 9 | U50: 9 | V50: 41 | W50: 5628 | X50: 64739542.48 | Y50: 41 | Z50: 9 | AA50: 9 | AB50: 41 | AC50: 5628 | AD50: 64739542.48
A51: 00090823 | B51: 0009 | C51: 0823 | D51: 42 | E51: 9 | F51: Andover | G51: 823 | H51: Greater Lawrence | I51: 659702.6749 | J51: 0.01016535859 | K51: 1003019.392 | L51: =IF(K54>0, K51/K54, 0) -> 0.01525677375 | N51: =ROUND(M54*L51,0) -> 827491 | O51: 544255 | P51: =N51-O51 -> 283236 | Q51: 52.04104694 | R51: 32 | S51: 46.00000001 | T51: 9 | U51: 823 | V51: 42 | W51: 46.00000001 | X51: 1003019.392 | Y51: 42 | Z51: 9 | AA51: 823 | AB51: 42 | AC51: 46.00000001 | AD51: 1003019.392
A52: 00090998 | B52: 0009 | C52: 0998 | D52: 43 | E52: 9 | G52: 998 | I52: 0 | J52: 0 | K52: 0 | L52: =IF(K54>0, K52/K54, 0) -> 0 | N52: =ROUND(M54*L52,0) -> 0 | O52: 0 | P52: =N52-O52 -> 0 | Q52: 0 | R52: 0 | S52: 0 | T52: 9 | U52: 998 | V52: 43 | W52: 0 | X52: 0 | Y52: 43 | Z52: 9 | AA52: 998 | AB52: 43 | AC52: 0 | AD52: 0
A53: 00090998 | B53: 0009 | C53: 0998 | D53: 44 | E53: 9 | G53: 998 | I53: 0 | J53: 0 | K53: 0 | L53: =IF(K54>0, K53/K54, 0) -> 0 | N53: =ROUND(M54*L53,0) -> 0 | O53: 0 | P53: =N53-O53 -> 0 | Q53: 0 | R53: 0 | S53: 0 | T53: 9 | U53: 998 | V53: 44 | W53: 0 | X53: 0 | Y53: 44 | Z53: 9 | AA53: 998 | AB53: 44 | AC53: 0 | AD53: 0
A54: 00090999 | B54: 0009 | C54: 0999 | D54: 45 | E54: 9 | F54: Andover | G54: 999 | H54: Total | I54: 64897137.55 | J54: 1 | K54: =SUM(K50:K53) -> 65742561.87 | L54: =SUM(L50:L53) -> 1 | M54: =VLOOKUP(E54,town351,24) -> 54237614 | N54: =SUM(N50:N53) -> 54237614 | O54: 53540138 | P54: =SUM(P50:P53) -> 697476 | Q54: 1.302716104 | R54: 5772 | S54: 5674 | T54: 9 | U54: 999 | V54: 45 | W54: 5674 | X54: 65742561.87 | Y54: 45 | Z54: 9 | AA54: 999 | AB54: 45 | AC54: 5674 | AD54: 65742561.87
A55: 00100010 | B55: 0010 | C55: 0010 | D55: 46 | E55: 10 | F55: Arlington | G55: 10 | H55: Arlington | I55: 64895656.34 | J55: 0.9601150127 | K55: =X55 -> 64412505.94 | L55: =IF(K59>0, K55/K59, 0) -> 0.9483858505 | N55: =ROUND(M59*L55,0) -> 51220285 | O55: 50343449 | P55: =N55-O55 -> 876836 | Q55: 1.741708241 | R55: 6092 | S55: 5836 | T55: 10 | U55: 10 | V55: 46 | W55: 5836 | X55: 64412505.94 | Y55: 46 | Z55: 10 | AA55: 10 | AB55: 46 | AC55: 5836 | AD55: 64412505.94
A56: 00100830 | B56: 0010 | C56: 0830 | D56: 47 | E56: 10 | F56: Arlington | G56: 830 | H56: Minuteman | I56: 2695887.885 | J56: 0.03988498733 | K56: 3505531.753 | L56: =IF(K59>0, K56/K59, 0) -> 0.05161414953 | N56: =ROUND(M59*L56,0) -> 2787570 | O56: 2091362 | P56: =N56-O56 -> 696208 | Q56: 33.28969351 | R56: 145 | S56: 174 | T56: 10 | U56: 830 | V56: 47 | W56: 174 | X56: 3505531.753 | Y56: 47 | Z56: 10 | AA56: 830 | AB56: 47 | AC56: 174 | AD56: 3505531.753
A57: 00100998 | B57: 0010 | C57: 0998 | D57: 48 | E57: 10 | G57: 998 | I57: 0 | J57: 0 | K57: 0 | L57: =IF(K59>0, K57/K59, 0) -> 0 | N57: =ROUND(M59*L57,0) -> 0 | O57: 0 | P57: =N57-O57 -> 0 | Q57: 0 | R57: 0 | S57: 0 | T57: 10 | U57: 998 | V57: 48 | W57: 0 | X57: 0 | Y57: 48 | Z57: 10 | AA57: 998 | AB57: 48 | AC57: 0 | AD57: 0
A58: 00100998 | B58: 0010 | C58: 0998 | D58: 49 | E58: 10 | G58: 998 | I58: 0 | J58: 0 | K58: 0 | L58: =IF(K59>0, K58/K59, 0) -> 0 | N58: =ROUND(M59*L58,0) -> 0 | O58: 0 | P58: =N58-O58 -> 0 | Q58: 0 | R58: 0 | S58: 0 | T58: 10 | U58: 998 | V58: 49 | W58: 0 | X58: 0 | Y58: 49 | Z58: 10 | AA58: 998 | AB58: 49 | AC58: 0 | AD58: 0
A59: 00100999 | B59: 0010 | C59: 0999 | D59: 50 | E59: 10 | F59: Arlington | G59: 999 | H59: Total | I59: 67591544.23 | J59: 1 | K59: =SUM(K55:K58) -> 67918037.69 | L59: =SUM(L55:L58) -> 1 | M59: =VLOOKUP(E59,town351,24) -> 54007855 | N59: =SUM(N55:N58) -> 54007855 | O59: 52434811 | P59: =SUM(P55:P58) -> 1573044 | Q59: 2.999999371 | R59: 6237 | S59: 6010 | T59: 10 | U59: 999 | V59: 50 | W59: 6010 | X59: 67918037.69 | Y59: 50 | Z59: 10 | AA59: 999 | AB59: 50 | AC59: 6010 | AD59: 67918037.69
A60: 00110011 | B60: 0011 | C60: 0011 | D60: 51 | E60: 11 | F60: Ashburnham | G60: 11 | H60: Ashburnham | I60: 0 | J60: 0 | K60: =X60 -> 0 | L60: =IF(K64>0, K60/K64, 0) -> 0 | N60: =ROUND(M64*L60,0) -> 0 | O60: 0 | P60: =N60-O60 -> 0 | Q60: 0 | R60: 0 | S60: 0 | T60: 11 | U60: 11 | V60: 51 | W60: 0 | X60: 0 | Y60: 51 | Z60: 11 | AA60: 11 | AB60: 51 | AC60: 0 | AD60: 0
A61: 00110610 | B61: 0011 | C61: 0610 | D61: 52 | E61: 11 | F61: Ashburnham | G61: 610 | H61: Ashburnham Westminster | I61: 11216451.87 | J61: 0.9065010139 | K61: 11231931.15 | L61: =IF(K64>0, K61/K64, 0) -> 0.9005322139 | N61: =ROUND(M64*L61,0) -> 5107875 | O61: 5065245 | P61: =N61-O61 -> 42630 | Q61: 0.8416177302 | R61: 1040.34715 | S61: 1003.110505 | T61: 11 | U61: 610 | V61: 52 | W61: 1003.110505 | X61: 11231931.15 | Y61: 52 | Z61: 11 | AA61: 610 | AB61: 52 | AC61: 1003.110505 | AD61: 11231931.15
A62: 00110832 | B62: 0011 | C62: 0832 | D62: 53 | E62: 11 | F62: Ashburnham | G62: 832 | H62: Montachusett | I62: 1156895.427 | J62: 0.09349898613 | K62: 1240616.724 | L62: =IF(K64>0, K62/K64, 0) -> 0.09946778613 | N62: =ROUND(M64*L62,0) -> 564187 | O62: 522443 | P62: =N62-O62 -> 41744 | Q62: 7.99015395 | R62: 67 | S62: 69.99999999 | T62: 11 | U62: 832 | V62: 53 | W62: 69.99999999 | X62: 1240616.724 | Y62: 53 | Z62: 11 | AA62: 832 | AB62: 53 | AC62: 69.99999999 | AD62: 1240616.724
A63: 00110998 | B63: 0011 | C63: 0998 | D63: 54 | E63: 11 | G63: 998 | I63: 0 | J63: 0 | K63: 0 | L63: =IF(K64>0, K63/K64, 0) -> 0 | N63: =ROUND(M64*L63,0) -> 0 | O63: 0 | P63: =N63-O63 -> 0 | Q63: 0 | R63: 0 | S63: 0 | T63: 11 | U63: 998 | V63: 54 | W63: 0 | X63: 0 | Y63: 54 | Z63: 11 | AA63: 998 | AB63: 54 | AC63: 0 | AD63: 0
A64: 00110999 | B64: 0011 | C64: 0999 | D64: 55 | E64: 11 | F64: Ashburnham | G64: 999 | H64: Total | I64: 12373347.3 | J64: 1 | K64: =SUM(K60:K63) -> 12472547.87 | L64: =SUM(L60:L63) -> 1 | M64: =VLOOKUP(E64,town351,24) -> 5672062 | N64: =SUM(N60:N63) -> 5672062 | O64: 5587688 | P64: =SUM(P60:P63) -> 84374 | Q64: 1.509998411 | R64: 1107.34715 | S64: 1073.110505 | T64: 11 | U64: 999 | V64: 55 | W64: 1073.110505 | X64: 12472547.87 | Y64: 55 | Z64: 11 | AA64: 999 | AB64: 55 | AC64: 1073.110505 | AD64: 12472547.87
A65: 00120012 | B65: 0012 | C65: 0012 | D65: 56 | E65: 12 | F65: Ashby | G65: 12 | H65: Ashby | I65: 0 | J65: 0 | K65: =X65 -> 0 | L65: =IF(K69>0, K65/K69, 0) -> 0 | N65: =ROUND(M69*L65,0) -> 0 | O65: 0 | P65: =N65-O65 -> 0 | Q65: 0 | R65: 0 | S65: 0 | T65: 12 | U65: 12 | V65: 56 | W65: 0 | X65: 0 | Y65: 56 | Z65: 12 | AA65: 12 | AB65: 56 | AC65: 0 | AD65: 0
A66: 00120735 | B66: 0012 | C66: 0735 | D66: 57 | E66: 12 | F66: Ashby | G66: 735 | H66: North Middlesex | I66: 3861597.255 | J66: 0.8646762836 | K66: 3906150.518 | L66: =IF(K69>0, K66/K69, 0) -> 0.8562542307 | N66: =ROUND(M69*L66,0) -> 2313778 | O66: 2247102 | P66: =N66-O66 -> 66676 | Q66: 2.967199531 | R66: 357.1371446 | S66: 349.0162899 | T66: 12 | U66: 735 | V66: 57 | W66: 349.0162899 | X66: 3906150.518 | Y66: 57 | Z66: 12 | AA66: 735 | AB66: 57 | AC66: 349.0162899 | AD66: 3906150.518
A67: 00120832 | B67: 0012 | C67: 0832 | D67: 58 | E67: 12 | F67: Ashby | G67: 832 | H67: Montachusett | I67: 604348.3576 | J67: 0.1353237164 | K67: 655754.5541 | L67: =IF(K69>0, K67/K69, 0) -> 0.1437457693 | N67: =ROUND(M69*L67,0) -> 388431 | O67: 351676 | P67: =N67-O67 -> 36755 | Q67: 10.45138139 | R67: 35 | S67: 37 | T67: 12 | U67: 832 | V67: 58 | W67: 37 | X67: 655754.5541 | Y67: 58 | Z67: 12 | AA67: 832 | AB67: 58 | AC67: 37 | AD67: 655754.5541
A68: 00120998 | B68: 0012 | C68: 0998 | D68: 59 | E68: 12 | G68: 998 | I68: 0 | J68: 0 | K68: 0 | L68: =IF(K69>0, K68/K69, 0) -> 0 | N68: =ROUND(M69*L68,0) -> 0 | O68: 0 | P68: =N68-O68 -> 0 | Q68: 0 | R68: 0 | S68: 0 | T68: 12 | U68: 998 | V68: 59 | W68: 0 | X68: 0 | Y68: 59 | Z68: 12 | AA68: 998 | AB68: 59 | AC68: 0 | AD68: 0
A69: 00120999 | B69: 0012 | C69: 0999 | D69: 60 | E69: 12 | F69: Ashby | G69: 999 | H69: Total | I69: 4465945.613 | J69: 1 | K69: =SUM(K65:K68) -> 4561905.072 | L69: =SUM(L65:L68) -> 1 | M69: =VLOOKUP(E69,town351,24) -> 2702209 | N69: =SUM(N65:N68) -> 2702209 | O69: 2598778 | P69: =SUM(P65:P68) -> 103431 | Q69: 3.979985978 | R69: 392.1371446 | S69: 386.0162899 | T69: 12 | U69: 999 | V69: 60 | W69: 386.0162899 | X69: 4561905.072 | Y69: 60 | Z69: 12 | AA69: 999 | AB69: 60 | AC69: 386.0162899 | AD69: 4561905.072
A70: 00130013 | B70: 0013 | C70: 0013 | D70: 61 | E70: 13 | F70: Ashfield | G70: 13 | H70: Ashfield | I70: 117262.4 | J70: 0.06320717214 | K70: =X70 -> 134575.02 | L70: =IF(K74>0, K70/K74, 0) -> 0.07660823161 | N70: =ROUND(M74*L70,0) -> 111024 | O70: 96741 | P70: =N70-O70 -> 14283 | Q70: 14.76416411 | R70: 8 | S70: 9 | T70: 13 | U70: 13 | V70: 61 | W70: 9 | X70: 134575.02 | Y70: 61 | Z70: 13 | AA70: 13 | AB70: 61 | AC70: 9 | AD70: 134575.02
A71: 00130717 | B71: 0013 | C71: 0717 | D71: 62 | E71: 13 | F71: Ashfield | G71: 717 | H71: Mohawk Trail | I71: 1737944.787 | J71: 0.9367928279 | K71: 1622090.252 | L71: =IF(K74>0, K71/K74, 0) -> 0.9233917684 | N71: =ROUND(M74*L71,0) -> 1338225 | O71: 1433805 | P71: =N71-O71 -> -95580 | Q71: -6.666178455 | R71: 150.1666667 | S71: 136.8085612 | T71: 13 | U71: 717 | V71: 62 | W71: 136.8085612 | X71: 1622090.252 | Y71: 62 | Z71: 13 | AA71: 717 | AB71: 62 | AC71: 136.8085612 | AD71: 1622090.252
A72: 00130998 | B72: 0013 | C72: 0998 | D72: 63 | E72: 13 | G72: 998 | I72: 0 | J72: 0 | K72: 0 | L72: =IF(K74>0, K72/K74, 0) -> 0 | N72: =ROUND(M74*L72,0) -> 0 | O72: 0 | P72: =N72-O72 -> 0 | Q72: 0 | R72: 0 | S72: 0 | T72: 13 | U72: 998 | V72: 63 | W72: 0 | X72: 0 | Y72: 63 | Z72: 13 | AA72: 998 | AB72: 63 | AC72: 0 | AD72: 0
A73: 00130998 | B73: 0013 | C73: 0998 | D73: 64 | E73: 13 | G73: 998 | I73: 0 | J73: 0 | K73: 0 | L73: =IF(K74>0, K73/K74, 0) -> 0 | N73: =ROUND(M74*L73,0) -> 0 | O73: 0 | P73: =N73-O73 -> 0 | Q73: 0 | R73: 0 | S73: 0 | T73: 13 | U73: 998 | V73: 64 | W73: 0 | X73: 0 | Y73: 64 | Z73: 13 | AA73: 998 | AB73: 64 | AC73: 0 | AD73: 0
A74: =B74&C74 -> 00130999 | B74: 0013 | C74: 0999 | D74: 65 | E74: 13 | F74: Ashfield | G74: 999 | H74: Total | I74: 1855207.187 | J74: 1 | K74: =SUM(K70:K73) -> 1756665.272 | L74: =SUM(L70:L73) -> 1 | M74: =VLOOKUP(E74,town351,24) -> 1449249 | N74: =SUM(N70:N73) -> 1449249 | O74: 1530546 | P74: =SUM(P70:P73) -> -81297 | Q74: -5.311633888 | R74: 158.1666667 | S74: 145.8085612 | T74: =VLOOKUP($D74, foundoptions, VLOOKUP($T$6, foundoptcell, 2, FALSE), FALSE) -> 13 | U74: =VLOOKUP($D74, foundoptions, VLOOKUP($T$6, foundoptcell, 2, FALSE)+1, FALSE) -> 999 | V74: =VLOOKUP($D74, foundoptions, VLOOKUP($T$6, foundoptcell, 2, FALSE)+2, FALSE) -> 65 | W74: =VLOOKUP($D74, foundoptions, VLOOKUP($T$6, foundoptcell, 2, FALSE)+3, FALSE) -> 145.8085612 | X74: =VLOOKUP($D74, foundoptions, VLOOKUP($T$6, foundoptcell, 2, FALSE)+4, FALSE) -> 1756665.272 | Y74: 65 | Z74: 13 | AA74: 999 | AB74: 65 | AC74: 145.8085612 | AD74: 1756665.272
A75: 00140014 | B75: 0014 | C75: 0014 | D75: 66 | E75: 14 | F75: Ashland | G75: 14 | H75: Ashland | I75: 30232498.72 | J75: 0.9673029453 | K75: =X75 -> 30147061.93 | L75: =IF(K79>0, K75/K79, 0) -> 0.9593346108 | N75: =ROUND(M79*L75,0) -> 22838677 | O75: 22294876 | P75: =N75-O75 -> 543801 | Q75: 2.43912996 | R75: 2786 | S75: =W75 -> 2694 | T75: 14 | U75: 14 | V75: 66 | W75: 2694 | X75: 30147061.93 | Y75: =D75 -> 66 | Z75: 14 | AA75: 14 | AB75: 66 | AC75: 2694 | AD75: 30147061.93
A76: 00140829 | B76: 0014 | C76: 0829 | D76: 67 | E76: 14 | F76: Ashland | G76: 829 | H76: South Middlesex | I76: 1021927.69 | J76: 0.0326970547 | K76: 1277908.66 | L76: =IF(K79>0, K76/K79, 0) -> 0.04066538921 | N76: =ROUND(M79*L76,0) -> 968112 | O76: 753618 | P76: =N76-O76 -> 214494 | Q76: 28.4618998 | R76: 53.06649937 | S76: 63.07720588 | T76: 14 | U76: 829 | V76: 67 | W76: 63.07720588 | X76: 1277908.66 | Y76: 67 | Z76: 14 | AA76: 829 | AB76: 67 | AC76: 63.07720588 | AD76: 1277908.66
A77: 00140998 | B77: 0014 | C77: 0998 | D77: 68 | E77: 14 | G77: 998 | I77: 0 | J77: 0 | K77: 0 | L77: =IF(K79>0, K77/K79, 0) -> 0 | N77: =ROUND(M79*L77,0) -> 0 | O77: 0 | P77: =N77-O77 -> 0 | Q77: 0 | R77: 0 | S77: 0 | T77: 14 | U77: 998 | V77: 68 | W77: 0 | X77: 0 | Y77: 68 | Z77: 14 | AA77: 998 | AB77: 68 | AC77: 0 | AD77: 0
A78: 00140998 | B78: 0014 | C78: 0998 | D78: 69 | E78: 14 | G78: 998 | I78: 0 | J78: 0 | K78: 0 | L78: =IF(K79>0, K78/K79, 0) -> 0 | N78: =ROUND(M79*L78,0) -> 0 | O78: 0 | P78: =N78-O78 -> 0 | Q78: 0 | R78: 0 | S78: 0 | T78: 14 | U78: 998 | V78: 69 | W78: 0 | X78: 0 | Y78: 69 | Z78: 14 | AA78: 998 | AB78: 69 | AC78: 0 | AD78: 0
A79: 00140999 | B79: 0014 | C79: 0999 | D79: 70 | E79: 14 | F79: Ashland | G79: 999 | H79: Total | I79: 31254426.41 | J79: 1 | K79: =SUM(K75:K78) -> 31424970.59 | L79: =SUM(L75:L78) -> 1 | M79: =VLOOKUP(E79,town351,24) -> 23806789 | N79: =SUM(N75:N78) -> 23806789 | O79: 23048494 | P79: =SUM(P75:P78) -> 758295 | Q79: 3.289998036 | R79: 2839.066499 | S79: 2757.077206 | T79: 14 | U79: 999 | V79: 70 | W79: 2757.077206 | X79: 31424970.59 | Y79: 70 | Z79: 14 | AA79: 999 | AB79: 70 | AC79: 2757.077206 | AD79: 31424970.59
A80: 00150015 | B80: 0015 | C80: 0015 | D80: 71 | E80: 15 | F80: Athol | G80: 15 | H80: Athol | I80: 0 | J80: 0 | K80: =X80 -> 0 | L80: =IF(K84>0, K80/K84, 0) -> 0 | N80: =ROUND(M84*L80,0) -> 0 | O80: 0 | P80: =N80-O80 -> 0 | Q80: =IF(O80>0,P80*100/O80,IF(P80>0,100,0)) -> 0 | R80: 0 | S80: 0 | T80: 15 | U80: 15 | V80: 71 | W80: 0 | X80: 0 | Y80: 71 | Z80: 15 | AA80: 15 | AB80: 71 | AC80: 0 | AD80: 0
A81: 00150615 | B81: 0015 | C81: 0615 | D81: 72 | E81: 15 | F81: Athol | G81: 615 | H81: Athol Royalston | I81: 20152139.44 | J81: 0.9152996519 | K81: 19986457.48 | L81: =IF(K84>0, K81/K84, 0) -> 0.9089228881 | N81: =ROUND(M84*L81,0) -> 3259668 | O81: 3085382 | P81: =N81-O81 -> 174286 | Q81: =IF(O81>0,P81*100/O81,IF(P81>0,100,0)) -> 5.648765696 | R81: 1641.540166 | S81: 1547.563981 | T81: 15 | U81: 615 | V81: 72 | W81: 1547.563981 | X81: 19986457.48 | Y81: 72 | Z81: 15 | AA81: 615 | AB81: 72 | AC81: 1547.563981 | AD81: 19986457.48
A82: 00150832 | B82: 0015 | C82: 0832 | D82: 73 | E82: 15 | F82: Athol | G82: 832 | H82: Montachusett | I82: 1864846.361 | J82: 0.08470034805 | K82: 2002709.855 | L82: =IF(K84>0, K82/K84, 0) -> 0.09107711192 | N82: =ROUND(M84*L82,0) -> 326630 | O82: 285516 | P82: =N82-O82 -> 41114 | Q82: =IF(O82>0,P82*100/O82,IF(P82>0,100,0)) -> 14.39989353 | R82: 108 | S82: 113 | T82: 15 | U82: 832 | V82: 73 | W82: 113 | X82: 2002709.855 | Y82: 73 | Z82: 15 | AA82: 832 | AB82: 73 | AC82: 113 | AD82: 2002709.855
A83: 00150998 | B83: 0015 | C83: 0998 | D83: 74 | E83: 15 | G83: 998 | I83: 0 | J83: 0 | K83: 0 | L83: =IF(K84>0, K83/K84, 0) -> 0 | N83: =ROUND(M84*L83,0) -> 0 | O83: 0 | P83: =N83-O83 -> 0 | Q83: =IF(O83>0,P83*100/O83,IF(P83>0,100,0)) -> 0 | R83: 0 | S83: 0 | T83: 15 | U83: 998 | V83: 74 | W83: 0 | X83: 0 | Y83: 74 | Z83: 15 | AA83: 998 | AB83: 74 | AC83: 0 | AD83: 0
A84: 00150999 | B84: 0015 | C84: 0999 | D84: 75 | E84: 15 | F84: Athol | G84: 999 | H84: Total | I84: 22016985.81 | J84: 1 | K84: =SUM(K80:K83) -> 21989167.34 | L84: =SUM(L80:L83) -> 1 | M84: =VLOOKUP(E84,town351,24) -> 3586298 | N84: =SUM(N80:N83) -> 3586298 | O84: 3370898 | P84: =SUM(P80:P83) -> 215400 | Q84: =IF(O84>0,P84*100/O84,IF(P84>0,100,0)) -> 6.389988662 | R84: 1749.540166 | S84: 1660.563981 | T84: 15 | U84: 999 | V84: 75 | W84: 1660.563981 | X84: 21989167.34 | Y84: 75 | Z84: 15 | AA84: 999 | AB84: 75 | AC84: 1660.563981 | AD84: 21989167.34
A85: 00160016 | B85: 0016 | C85: 0016 | D85: 76 | E85: 16 | F85: Attleboro | G85: 16 | H85: Attleboro | I85: 79207276.43 | J85: 0.9947412933 | K85: =X85 -> 80741145.67 | L85: =IF(K89>0, K85/K89, 0) -> 0.9956298699 | N85: =ROUND(M89*L85,0) -> 39217459 | O85: 38037529 | P85: =N85-O85 -> 1179930 | Q85: 3.102015381 | R85: 6383 | S85: 6188 | T85: 16 | U85: 16 | V85: 76 | W85: 6188 | X85: 80741145.67 | Y85: 76 | Z85: 16 | AA85: 16 | AB85: 76 | AC85: 6188 | AD85: 80741145.67
A86: 00160910 | B86: 0016 | C86: 0910 | D86: 77 | E86: 16 | F86: Attleboro | G86: 910 | H86: Bristol County | I86: 418729.8133 | J86: 0.00525870671 | K86: 354398.0775 | L86: =IF(K89>0, K86/K89, 0) -> 0.004370130109 | N86: =ROUND(M89*L86,0) -> 172138 | O86: 201086 | P86: =N86-O86 -> -28948 | Q86: -14.39583064 | R86: 24 | S86: 20 | T86: 16 | U86: 910 | V86: 77 | W86: 20 | X86: 354398.0775 | Y86: 77 | Z86: 16 | AA86: 910 | AB86: 77 | AC86: 20 | AD86: 354398.0775
A87: 00160998 | B87: 0016 | C87: 0998 | D87: 78 | E87: 16 | G87: 998 | I87: 0 | J87: 0 | K87: 0 | L87: =IF(K89>0, K87/K89, 0) -> 0 | N87: =ROUND(M89*L87,0) -> 0 | O87: 0 | P87: =N87-O87 -> 0 | Q87: 0 | R87: 0 | S87: 0 | T87: 16 | U87: 998 | V87: 78 | W87: 0 | X87: 0 | Y87: 78 | Z87: 16 | AA87: 998 | AB87: 78 | AC87: 0 | AD87: 0
A88: 00160998 | B88: 0016 | C88: 0998 | D88: 79 | E88: 16 | G88: 998 | I88: 0 | J88: 0 | K88: 0 | L88: =IF(K89>0, K88/K89, 0) -> 0 | N88: =ROUND(M89*L88,0) -> 0 | O88: 0 | P88: =N88-O88 -> 0 | Q88: 0 | R88: 0 | S88: 0 | T88: 16 | U88: 998 | V88: 79 | W88: 0 | X88: 0 | Y88: 79 | Z88: 16 | AA88: 998 | AB88: 79 | AC88: 0 | AD88: 0
A89: 00160999 | B89: 0016 | C89: 0999 | D89: 80 | E89: 16 | F89: Attleboro | G89: 999 | H89: Total | I89: 79626006.24 | J89: 1 | K89: =SUM(K85:K88) -> 81095543.75 | L89: =SUM(L85:L88) -> 1 | M89: =VLOOKUP(E89,town351,24) -> 39389597 | N89: =SUM(N85:N88) -> 39389597 | O89: 38238615 | P89: =SUM(P85:P88) -> 1150982 | Q89: 3.009999185 | R89: 6407 | S89: 6208 | T89: 16 | U89: 999 | V89: 80 | W89: 6208 | X89: 81095543.75 | Y89: 80 | Z89: 16 | AA89: 999 | AB89: 80 | AC89: 6208 | AD89: 81095543.75
A90: 00170017 | B90: 0017 | C90: 0017 | D90: 81 | E90: 17 | F90: Auburn | G90: 17 | H90: Auburn | I90: 27521289.79 | J90: 0.946950121 | K90: =X90 -> 27367440.74 | L90: =IF(K94>0, K90/K94, 0) -> 0.9393513518 | N90: =ROUND(M94*L90,0) -> 15568309 | O90: 15309359 | P90: =N90-O90 -> 258950 | Q90: 1.691449002 | R90: 2511 | S90: 2421 | T90: 17 | U90: 17 | V90: 81 | W90: 2421 | X90: 27367440.74 | Y90: 81 | Z90: 17 | AA90: 17 | AB90: 81 | AC90: 2421 | AD90: 27367440.74
A91: 00170876 | B91: 0017 | C91: 0876 | D91: 82 | E91: 17 | F91: Auburn | G91: 876 | H91: Southern Worcester | I91: 1541793.028 | J91: 0.05304987904 | K91: 1766962.151 | L91: =IF(K94>0, K91/K94, 0) -> 0.06064864818 | N91: =ROUND(M94*L91,0) -> 1005158 | O91: 857658 | P91: =N91-O91 -> 147500 | Q91: 17.19799734 | R91: 89.99999999 | S91: 99 | T91: 17 | U91: 876 | V91: 82 | W91: 99 | X91: 1766962.151 | Y91: 82 | Z91: 17 | AA91: 876 | AB91: 82 | AC91: 99 | AD91: 1766962.151
A92: 00170998 | B92: 0017 | C92: 0998 | D92: 83 | E92: 17 | G92: 998 | I92: 0 | J92: 0 | K92: 0 | L92: =IF(K94>0, K92/K94, 0) -> 0 | N92: =ROUND(M94*L92,0) -> 0 | O92: 0 | P92: =N92-O92 -> 0 | Q92: 0 | R92: 0 | S92: 0 | T92: 17 | U92: 998 | V92: 83 | W92: 0 | X92: 0 | Y92: 83 | Z92: 17 | AA92: 998 | AB92: 83 | AC92: 0 | AD92: 0
A93: 00170998 | B93: 0017 | C93: 0998 | D93: 84 | E93: 17 | G93: 998 | I93: 0 | J93: 0 | K93: 0 | L93: =IF(K94>0, K93/K94, 0) -> 0 | N93: =ROUND(M94*L93,0) -> 0 | O93: 0 | P93: =N93-O93 -> 0 | Q93: 0 | R93: 0 | S93: 0 | T93: 17 | U93: 998 | V93: 84 | W93: 0 | X93: 0 | Y93: 84 | Z93: 17 | AA93: 998 | AB93: 84 | AC93: 0 | AD93: 0
A94: 00170999 | B94: 0017 | C94: 0999 | D94: 85 | E94: 17 | F94: Auburn | G94: 999 | H94: Total | I94: 29063082.82 | J94: 1 | K94: =SUM(K90:K93) -> 29134402.89 | L94: =SUM(L90:L93) -> 1 | M94: =VLOOKUP(E94,town351,24) -> 16573467 | N94: =SUM(N90:N93) -> 16573467 | O94: 16167017 | P94: =SUM(P90:P93) -> 406450 | Q94: 2.514069231 | R94: 2601 | S94: 2520 | T94: 17 | U94: 999 | V94: 85 | W94: 2520 | X94: 29134402.89 | Y94: 85 | Z94: 17 | AA94: 999 | AB94: 85 | AC94: 2520 | AD94: 29134402.89
A95: 00180018 | B95: 0018 | C95: 0018 | D95: 86 | E95: 18 | F95: Avon | G95: 18 | H95: Avon | I95: 7045846.11 | J95: 0.8522800851 | K95: =X95 -> 7016240.13 | L95: =IF(K99>0, K95/K99, 0) -> 0.8527820329 | N95: =ROUND(M99*L95,0) -> 4689958 | O95: 4598969 | P95: =N95-O95 -> 90989 | Q95: 1.978465173 | R95: 586 | S95: 560 | T95: 18 | U95: 18 | V95: 86 | W95: 560 | X95: 7016240.13 | Y95: 86 | Z95: 18 | AA95: 18 | AB95: 86 | AC95: 560 | AD95: 7016240.13
A96: 00180806 | B96: 0018 | C96: 0806 | D96: 87 | E96: 18 | F96: Avon | G96: 806 | H96: Blue Hills | I96: 1149360.157 | J96: 0.1390289764 | K96: 1118469.058 | L96: =IF(K99>0, K96/K99, 0) -> 0.1359432259 | N96: =ROUND(M99*L96,0) -> 747633 | O96: 750211 | P96: =N96-O96 -> -2578 | Q96: -0.3436366569 | R96: 63 | S96: 59 | T96: 18 | U96: 806 | V96: 87 | W96: 59 | X96: 1118469.058 | Y96: 87 | Z96: 18 | AA96: 806 | AB96: 87 | AC96: 59 | AD96: 1118469.058
A97: 00180915 | B97: 0018 | C97: 0915 | D97: 88 | E97: 18 | F97: Avon | G97: 915 | H97: Norfolk County | I97: 71848.46428 | J97: 0.008690938505 | K97: 92762.61494 | L97: =IF(K99>0, K97/K99, 0) -> 0.01127474115 | N97: =ROUND(M99*L97,0) -> 62007 | O97: 46897 | P97: =N97-O97 -> 15110 | Q97: 32.21954496 | R97: 4.000000001 | S97: 4.999999999 | T97: 18 | U97: 915 | V97: 88 | W97: 4.999999999 | X97: 92762.61494 | Y97: 88 | Z97: 18 | AA97: 915 | AB97: 88 | AC97: 4.999999999 | AD97: 92762.61494
A98: 00180998 | B98: 0018 | C98: 0998 | D98: 89 | E98: 18 | G98: 998 | I98: 0 | J98: 0 | K98: 0 | L98: =IF(K99>0, K98/K99, 0) -> 0 | N98: =ROUND(M99*L98,0) -> 0 | O98: 0 | P98: =N98-O98 -> 0 | Q98: 0 | R98: 0 | S98: 0 | T98: 18 | U98: 998 | V98: 89 | W98: 0 | X98: 0 | Y98: 89 | Z98: 18 | AA98: 998 | AB98: 89 | AC98: 0 | AD98: 0
A99: 00180999 | B99: 0018 | C99: 0999 | D99: 90 | E99: 18 | F99: Avon | G99: 999 | H99: Total | I99: 8267054.731 | J99: 1 | K99: =SUM(K95:K98) -> 8227471.803 | L99: =SUM(L95:L98) -> 1 | M99: =VLOOKUP(E99,town351,24) -> 5499598 | N99: =SUM(N95:N98) -> 5499598 | O99: 5396077 | P99: =SUM(P95:P98) -> 103521 | Q99: 1.918449273 | R99: 653 | S99: 624 | T99: 18 | U99: 999 | V99: 90 | W99: 624 | X99: 8227471.803 | Y99: 90 | Z99: 18 | AA99: 999 | AB99: 90 | AC99: 624 | AD99: 8227471.803
A100: 00190019 | B100: 0019 | C100: 0019 | D100: 91 | E100: 19 | F100: Ayer | G100: 19 | H100: Ayer | I100: 0 | J100: 0 | K100: =X100 -> 0 | L100: =IF(K104>0, K100/K104, 0) -> 0 | N100: =ROUND(M104*L100,0) -> 0 | O100: 0 | P100: =N100-O100 -> 0 | Q100: 0 | R100: 0 | S100: 0 | T100: 19 | U100: 19 | V100: 91 | W100: 0 | X100: 0 | Y100: 91 | Z100: 19 | AA100: 19 | AB100: 91 | AC100: 0 | AD100: 0
A101: 00190616 | B101: 0019 | C101: 0616 | D101: 92 | E101: 19 | F101: Ayer | G101: 616 | H101: Ayer Shirley | I101: 10850922.74 | J101: 0.9192623296 | K101: 10929926.09 | L101: =IF(K104>0, K101/K104, 0) -> 0.9125370411 | N101: =ROUND(M104*L101,0) -> 8156896 | O101: 7768754 | P101: =N101-O101 -> 388142 | Q101: 4.996193727 | R101: 961.138115 | S101: 928.6067961 | T101: 19 | U101: 616 | V101: 92 | W101: 928.6067961 | X101: 10929926.09 | Y101: 92 | Z101: 19 | AA101: 616 | AB101: 92 | AC101: 928.6067961 | AD101: 10929926.09
A102: 00190852 | B102: 0019 | C102: 0852 | D102: 93 | E102: 19 | F102: Ayer | G102: 852 | H102: Nashoba Valley | I102: 953023.0879 | J102: 0.08073767045 | K102: 1047588.901 | L102: =IF(K104>0, K102/K104, 0) -> 0.08746295887 | N102: =ROUND(M104*L102,0) -> 781805 | O102: 682320 | P102: =N102-O102 -> 99485 | Q102: 14.58040216 | R102: 55 | S102: 59 | T102: 19 | U102: 852 | V102: 93 | W102: 59 | X102: 1047588.901 | Y102: 93 | Z102: 19 | AA102: 852 | AB102: 93 | AC102: 59 | AD102: 1047588.901
A103: 00190998 | B103: 0019 | C103: 0998 | D103: 94 | E103: 19 | G103: 998 | I103: 0 | J103: 0 | K103: 0 | L103: =IF(K104>0, K103/K104, 0) -> 0 | N103: =ROUND(M104*L103,0) -> 0 | O103: 0 | P103: =N103-O103 -> 0 | Q103: 0 | R103: 0 | S103: 0 | T103: 19 | U103: 998 | V103: 94 | W103: 0 | X103: 0 | Y103: 94 | Z103: 19 | AA103: 998 | AB103: 94 | AC103: 0 | AD103: 0
A104: 00190999 | B104: 0019 | C104: 0999 | D104: 95 | E104: 19 | F104: Ayer | G104: 999 | H104: Total | I104: 11803945.82 | J104: 1 | K104: =SUM(K100:K103) -> 11977515 | L104: =SUM(L100:L103) -> 1 | M104: =VLOOKUP(E104,town351,24) -> 8938701 | N104: =SUM(N100:N103) -> 8938701 | O104: 8451074 | P104: =SUM(P100:P103) -> 487627 | Q104: 5.770000357 | R104: 1016.138115 | S104: 987.6067961 | T104: 19 | U104: 999 | V104: 95 | W104: 987.6067961 | X104: 11977515 | Y104: 95 | Z104: 19 | AA104: 999 | AB104: 95 | AC104: 987.6067961 | AD104: 11977515
A105: 00200020 | B105: 0020 | C105: 0020 | D105: 96 | E105: 20 | F105: Barnstable | G105: 20 | H105: Barnstable | I105: 65773443.14 | J105: 0.9483805832 | K105: =X105 -> 65238260.34 | L105: =IF(K109>0, K105/K109, 0) -> 0.953234973 | N105: =ROUND(M109*L105,0) -> 53821564 | O105: 52762387 | P105: =N105-O105 -> 1059177 | Q105: 2.007447085 | R105: 5405 | S105: 5147 | T105: 20 | U105: 20 | V105: 96 | W105: 5147 | X105: 65238260.34 | Y105: 96 | Z105: 20 | AA105: 20 | AB105: 96 | AC105: 5147 | AD105: 65238260.34
A106: 00200815 | B106: 0020 | C106: 0815 | D106: 97 | E106: 20 | F106: Barnstable | G106: 815 | H106: Cape Cod | I106: 3579983.431 | J106: 0.05161941677 | K106: 3200542.459 | L106: =IF(K109>0, K106/K109, 0) -> 0.04676502698 | N106: =ROUND(M109*L106,0) -> 2640448 | O106: 2871805 | P106: =N106-O106 -> -231357 | Q106: -8.056152838 | R106: 195 | S106: 170 | T106: 20 | U106: 815 | V106: 97 | W106: 170 | X106: 3200542.459 | Y106: 97 | Z106: 20 | AA106: 815 | AB106: 97 | AC106: 170 | AD106: 3200542.459
A107: 00200998 | B107: 0020 | C107: 0998 | D107: 98 | E107: 20 | G107: 998 | I107: 0 | J107: 0 | K107: 0 | L107: =IF(K109>0, K107/K109, 0) -> 0 | N107: =ROUND(M109*L107,0) -> 0 | O107: 0 | P107: =N107-O107 -> 0 | Q107: 0 | R107: 0 | S107: 0 | T107: 20 | U107: 998 | V107: 98 | W107: 0 | X107: 0 | Y107: 98 | Z107: 20 | AA107: 998 | AB107: 98 | AC107: 0 | AD107: 0
A108: 00200998 | B108: 0020 | C108: 0998 | D108: 99 | E108: 20 | G108: 998 | I108: 0 | J108: 0 | K108: 0 | L108: =IF(K109>0, K108/K109, 0) -> 0 | N108: =ROUND(M109*L108,0) -> 0 | O108: 0 | P108: =N108-O108 -> 0 | Q108: 0 | R108: 0 | S108: 0 | T108: 20 | U108: 998 | V108: 99 | W108: 0 | X108: 0 | Y108: 99 | Z108: 20 | AA108: 998 | AB108: 99 | AC108: 0 | AD108: 0
A109: 00200999 | B109: 0020 | C109: 0999 | D109: 100 | E109: 20 | F109: Barnstable | G109: 999 | H109: Total | I109: 69353426.57 | J109: 1 | K109: =SUM(K105:K108) -> 68438802.8 | L109: =SUM(L105:L108) -> 1 | M109: =VLOOKUP(E109,town351,24) -> 56462012 | N109: =SUM(N105:N108) -> 56462012 | O109: 55634192 | P109: =SUM(P105:P108) -> 827820 | Q109: 1.487969844 | R109: 5600 | S109: 5317 | T109: 20 | U109: 999 | V109: 100 | W109: 5317 | X109: 68438802.8 | Y109: 100 | Z109: 20 | AA109: 999 | AB109: 100 | AC109: 5317 | AD109: 68438802.8
A110: 00210021 | B110: 0021 | C110: 0021 | D110: 101 | E110: 21 | F110: Barre | G110: 21 | H110: Barre | I110: 0 | J110: 0 | K110: =X110 -> 0 | L110: =IF(K114>0, K110/K114, 0) -> 0 | N110: =ROUND(M114*L110,0) -> 0 | O110: 0 | P110: =N110-O110 -> 0 | Q110: 0 | R110: 0 | S110: 0 | T110: 21 | U110: 21 | V110: 101 | W110: 0 | X110: 0 | Y110: 101 | Z110: 21 | AA110: 21 | AB110: 101 | AC110: 0 | AD110: 0
A111: 00210753 | B111: 0021 | C111: 0753 | D111: 102 | E111: 21 | F111: Barre | G111: 753 | H111: Quabbin | I111: 8321416.382 | J111: 0.8992393185 | K111: 8480820.1 | L111: =IF(K114>0, K111/K114, 0) -> 0.9088350219 | N111: =ROUND(M114*L111,0) -> 3434842 | O111: 3314067 | P111: =N111-O111 -> 120775 | Q111: 3.644313769 | R111: 734.5938462 | S111: 719.1044776 | T111: 21 | U111: 753 | V111: 102 | W111: 719.1044776 | X111: 8480820.1 | Y111: 102 | Z111: 21 | AA111: 753 | AB111: 102 | AC111: 719.1044776 | AD111: 8480820.1
A112: 00210832 | B112: 0021 | C112: 0832 | D112: 103 | E112: 21 | F112: Barre | G112: 832 | H112: Montachusett | I112: 932423.1804 | J112: 0.1007606815 | K112: 850708.6109 | L112: =IF(K114>0, K112/K114, 0) -> 0.09116497813 | N112: =ROUND(M114*L112,0) -> 344548 | O112: 371345 | P112: =N112-O112 -> -26797 | Q112: -7.216200568 | R112: 54 | S112: 48.00000001 | T112: 21 | U112: 832 | V112: 103 | W112: 48.00000001 | X112: 850708.6109 | Y112: 103 | Z112: 21 | AA112: 832 | AB112: 103 | AC112: 48.00000001 | AD112: 850708.6109
A113: 00210998 | B113: 0021 | C113: 0998 | D113: 104 | E113: 21 | G113: 998 | I113: 0 | J113: 0 | K113: 0 | L113: =IF(K114>0, K113/K114, 0) -> 0 | N113: =ROUND(M114*L113,0) -> 0 | O113: 0 | P113: =N113-O113 -> 0 | Q113: 0 | R113: 0 | S113: 0 | T113: 21 | U113: 998 | V113: 104 | W113: 0 | X113: 0 | Y113: 104 | Z113: 21 | AA113: 998 | AB113: 104 | AC113: 0 | AD113: 0
A114: 00210999 | B114: 0021 | C114: 0999 | D114: 105 | E114: 21 | F114: Barre | G114: 999 | H114: Total | I114: 9253839.562 | J114: 1 | K114: =SUM(K110:K113) -> 9331528.711 | L114: =SUM(L110:L113) -> 1 | M114: =VLOOKUP(E114,town351,24) -> 3779390 | N114: =SUM(N110:N113) -> 3779390 | O114: 3685412 | P114: =SUM(P110:P113) -> 93978 | Q114: 2.549999837 | R114: 788.5938462 | S114: 767.1044776 | T114: 21 | U114: 999 | V114: 105 | W114: 767.1044776 | X114: 9331528.711 | Y114: 105 | Z114: 21 | AA114: 999 | AB114: 105 | AC114: 767.1044776 | AD114: 9331528.711
A115: 00220022 | B115: 0022 | C115: 0022 | D115: 106 | E115: 22 | F115: Becket | G115: 22 | H115: Becket | I115: 188943.82 | J115: 0.08011418385 | K115: =X115 -> 207582.36 | L115: =IF(K119>0, K115/K119, 0) -> 0.08083630255 | N115: =ROUND(M119*L115,0) -> 163858 | O115: 155879 | P115: =N115-O115 -> 7979 | Q115: 5.118713874 | R115: 11 | S115: 12 | T115: 22 | U115: 22 | V115: 106 | W115: 12 | X115: 207582.36 | Y115: 106 | Z115: 22 | AA115: 22 | AB115: 106 | AC115: 12 | AD115: 207582.36
A116: 00220635 | B116: 0022 | C116: 0635 | D116: 107 | E116: 22 | F116: Becket | G116: 635 | H116: Central Berkshire | I116: 2169487.745 | J116: 0.9198858161 | K116: 2360352.509 | L116: =IF(K119>0, K116/K119, 0) -> 0.9191636975 | N116: =ROUND(M119*L116,0) -> 1863178 | O116: 1789827 | P116: =N116-O116 -> 73351 | Q116: 4.098217314 | R116: 187.0465116 | S116: 194.4348958 | T116: 22 | U116: 635 | V116: 107 | W116: 194.4348958 | X116: 2360352.509 | Y116: 107 | Z116: 22 | AA116: 635 | AB116: 107 | AC116: 194.4348958 | AD116: 2360352.509
A117: 00220998 | B117: 0022 | C117: 0998 | D117: 108 | E117: 22 | G117: 998 | I117: 0 | J117: 0 | K117: 0 | L117: =IF(K119>0, K117/K119, 0) -> 0 | N117: =ROUND(M119*L117,0) -> 0 | O117: 0 | P117: =N117-O117 -> 0 | Q117: 0 | R117: 0 | S117: 0 | T117: 22 | U117: 998 | V117: 108 | W117: 0 | X117: 0 | Y117: 108 | Z117: 22 | AA117: 998 | AB117: 108 | AC117: 0 | AD117: 0
A118: 00220998 | B118: 0022 | C118: 0998 | D118: 109 | E118: 22 | G118: 998 | I118: 0 | J118: 0 | K118: 0 | L118: =IF(K119>0, K118/K119, 0) -> 0 | N118: =ROUND(M119*L118,0) -> 0 | O118: 0 | P118: =N118-O118 -> 0 | Q118: 0 | R118: 0 | S118: 0 | T118: 22 | U118: 998 | V118: 109 | W118: 0 | X118: 0 | Y118: 109 | Z118: 22 | AA118: 998 | AB118: 109 | AC118: 0 | AD118: 0
A119: 00220999 | B119: 0022 | C119: 0999 | D119: 110 | E119: 22 | F119: Becket | G119: 999 | H119: Total | I119: 2358431.565 | J119: 1 | K119: =SUM(K115:K118) -> 2567934.869 | L119: =SUM(L115:L118) -> 1 | M119: =VLOOKUP(E119,town351,24) -> 2027036 | N119: =SUM(N115:N118) -> 2027036 | O119: 1945706 | P119: =SUM(P115:P118) -> 81330 | Q119: 4.179973747 | R119: 198.0465116 | S119: 206.4348958 | T119: 22 | U119: 999 | V119: 110 | W119: 206.4348958 | X119: 2567934.869 | Y119: 110 | Z119: 22 | AA119: 999 | AB119: 110 | AC119: 206.4348958 | AD119: 2567934.869
A120: 00230023 | B120: 0023 | C120: 0023 | D120: 111 | E120: 23 | F120: Bedford | G120: 23 | H120: Bedford | I120: 30502691.57 | J120: 0.9815981544 | K120: =X120 -> 30729462.66 | L120: =IF(K124>0, K120/K124, 0) -> 0.9776756629 | N120: =ROUND(M124*L120,0) -> 25351806 | O120: 25097492 | P120: =N120-O120 -> 254314 | Q120: 1.013304437 | R120: 2707 | S120: 2649 | T120: 23 | U120: 23 | V120: 111 | W120: 2649 | X120: 30729462.66 | Y120: 111 | Z120: 23 | AA120: 23 | AB120: 111 | AC120: 2649 | AD120: 30729462.66
A121: 00230871 | B121: 0023 | C121: 0871 | D121: 112 | E121: 23 | F121: Bedford | G121: 871 | H121: Shawsheen Valley | I121: 571828.522 | J121: 0.01840184564 | K121: 701679.4101 | L121: =IF(K124>0, K121/K124, 0) -> 0.02232433707 | N121: =ROUND(M124*L121,0) -> 578886 | O121: 470498 | P121: =N121-O121 -> 108388 | Q121: 23.03686732 | R121: 34 | S121: 40.99999999 | T121: 23 | U121: 871 | V121: 112 | W121: 40.99999999 | X121: 701679.4101 | Y121: 112 | Z121: 23 | AA121: 871 | AB121: 112 | AC121: 40.99999999 | AD121: 701679.4101
A122: 00230998 | B122: 0023 | C122: 0998 | D122: 113 | E122: 23 | G122: 998 | I122: 0 | J122: 0 | K122: 0 | L122: =IF(K124>0, K122/K124, 0) -> 0 | N122: =ROUND(M124*L122,0) -> 0 | O122: 0 | P122: =N122-O122 -> 0 | Q122: 0 | R122: 0 | S122: 0 | T122: 23 | U122: 998 | V122: 113 | W122: 0 | X122: 0 | Y122: 113 | Z122: 23 | AA122: 998 | AB122: 113 | AC122: 0 | AD122: 0
A123: 00230998 | B123: 0023 | C123: 0998 | D123: 114 | E123: 23 | G123: 998 | I123: 0 | J123: 0 | K123: 0 | L123: =IF(K124>0, K123/K124, 0) -> 0 | N123: =ROUND(M124*L123,0) -> 0 | O123: 0 | P123: =N123-O123 -> 0 | Q123: 0 | R123: 0 | S123: 0 | T123: 23 | U123: 998 | V123: 114 | W123: 0 | X123: 0 | Y123: 114 | Z123: 23 | AA123: 998 | AB123: 114 | AC123: 0 | AD123: 0
A124: 00230999 | B124: 0023 | C124: 0999 | D124: 115 | E124: 23 | F124: Bedford | G124: 999 | H124: Total | I124: 31074520.1 | J124: 1 | K124: =SUM(K120:K123) -> 31431142.07 | L124: =SUM(L120:L123) -> 1 | M124: =VLOOKUP(E124,town351,24) -> 25930692 | N124: =SUM(N120:N123) -> 25930692 | O124: 25567990 | P124: =SUM(P120:P123) -> 362702 | Q124: 1.418578465 | R124: 2741 | S124: 2690 | T124: 23 | U124: 999 | V124: 115 | W124: 2690 | X124: 31431142.07 | Y124: 115 | Z124: 23 | AA124: 999 | AB124: 115 | AC124: 2690 | AD124: 31431142.07
A125: 00240024 | B125: 0024 | C125: 0024 | D125: 116 | E125: 24 | F125: Belchertown | G125: 24 | H125: Belchertown | I125: 24726417.46 | J125: 0.9419551847 | K125: =X125 -> 24800115.19 | L125: =IF(K129>0, K125/K129, 0) -> 0.940269338 | N125: =ROUND(M129*L125,0) -> 12857028 | O125: 12418125 | P125: =N125-O125 -> 438903 | Q125: 3.534374151 | R125: 2278 | S125: 2204 | T125: 24 | U125: 24 | V125: 116 | W125: 2204 | X125: 24800115.19 | Y125: 116 | Z125: 24 | AA125: 24 | AB125: 116 | AC125: 2204 | AD125: 24800115.19
A126: 00240860 | B126: 0024 | C126: 0860 | D126: 117 | E126: 24 | F126: Belchertown | G126: 860 | H126: Pathfinder | I126: 1523682.185 | J126: 0.05804481529 | K126: 1575428.698 | L126: =IF(K129>0, K126/K129, 0) -> 0.05973066203 | N126: =ROUND(M129*L126,0) -> 816743 | O126: 765225 | P126: =N126-O126 -> 51518 | Q126: 6.732398968 | R126: 84 | S126: 84 | T126: 24 | U126: 860 | V126: 117 | W126: 84 | X126: 1575428.698 | Y126: 117 | Z126: 24 | AA126: 860 | AB126: 117 | AC126: 84 | AD126: 1575428.698
A127: 00240998 | B127: 0024 | C127: 0998 | D127: 118 | E127: 24 | G127: 998 | I127: 0 | J127: 0 | K127: 0 | L127: =IF(K129>0, K127/K129, 0) -> 0 | N127: =ROUND(M129*L127,0) -> 0 | O127: 0 | P127: =N127-O127 -> 0 | Q127: 0 | R127: 0 | S127: 0 | T127: 24 | U127: 998 | V127: 118 | W127: 0 | X127: 0 | Y127: 118 | Z127: 24 | AA127: 998 | AB127: 118 | AC127: 0 | AD127: 0
A128: 00240998 | B128: 0024 | C128: 0998 | D128: 119 | E128: 24 | G128: 998 | I128: 0 | J128: 0 | K128: 0 | L128: =IF(K129>0, K128/K129, 0) -> 0 | N128: =ROUND(M129*L128,0) -> 0 | O128: 0 | P128: =N128-O128 -> 0 | Q128: 0 | R128: 0 | S128: 0 | T128: 24 | U128: 998 | V128: 119 | W128: 0 | X128: 0 | Y128: 119 | Z128: 24 | AA128: 998 | AB128: 119 | AC128: 0 | AD128: 0
A129: 00240999 | B129: 0024 | C129: 0999 | D129: 120 | E129: 24 | F129: Belchertown | G129: 999 | H129: Total | I129: 26250099.65 | J129: 1 | K129: =SUM(K125:K128) -> 26375543.89 | L129: =SUM(L125:L128) -> 1 | M129: =VLOOKUP(E129,town351,24) -> 13673771 | N129: =SUM(N125:N128) -> 13673771 | O129: 13183350 | P129: =SUM(P125:P128) -> 490421 | Q129: 3.720002882 | R129: 2362 | S129: 2288 | T129: 24 | U129: 999 | V129: 120 | W129: 2288 | X129: 26375543.89 | Y129: 120 | Z129: 24 | AA129: 999 | AB129: 120 | AC129: 2288 | AD129: 26375543.89
A130: 00250025 | B130: 0025 | C130: 0025 | D130: 121 | E130: 25 | F130: Bellingham | G130: 25 | H130: Bellingham | I130: 24676853.43 | J130: 0.9395915074 | K130: =X130 -> 24805882.76 | L130: =IF(K134>0, K130/K134, 0) -> 0.9391307279 | N130: =ROUND(M134*L130,0) -> 17397231 | O130: 16772086 | P130: =N130-O130 -> 625145 | Q130: 3.727294267 | R130: 2247 | S130: 2184 | T130: 25 | U130: 25 | V130: 121 | W130: 2184 | X130: 24805882.76 | Y130: 121 | Z130: 25 | AA130: 25 | AB130: 121 | AC130: 2184 | AD130: 24805882.76
A131: 00250805 | B131: 0025 | C131: 0805 | D131: 122 | E131: 25 | F131: Bellingham | G131: 805 | H131: Blackstone Valley | I131: 1119516.477 | J131: 0.0426265114 | K131: 1181072.425 | L131: =IF(K134>0, K131/K134, 0) -> 0.04471445008 | N131: =ROUND(M134*L131,0) -> 828327 | O131: 760900 | P131: =N131-O131 -> 67427 | Q131: 8.861479827 | R131: 68 | S131: 70 | T131: 25 | U131: 805 | V131: 122 | W131: 70 | X131: 1181072.425 | Y131: 122 | Z131: 25 | AA131: 805 | AB131: 122 | AC131: 70 | AD131: 1181072.425
A132: 00250915 | B132: 0025 | C132: 0915 | D132: 123 | E132: 25 | F132: Bellingham | G132: 915 | H132: Norfolk County | I132: 467015.0177 | J132: 0.01778198123 | K132: 426708.0288 | L132: =IF(K134>0, K132/K134, 0) -> 0.01615482204 | N132: =ROUND(M134*L132,0) -> 299265 | O132: 317416 | P132: =N132-O132 -> -18151 | Q132: -5.718363284 | R132: 26 | S132: 23 | T132: 25 | U132: 915 | V132: 123 | W132: 23 | X132: 426708.0288 | Y132: 123 | Z132: 25 | AA132: 915 | AB132: 123 | AC132: 23 | AD132: 426708.0288
A133: 00250998 | B133: 0025 | C133: 0998 | D133: 124 | E133: 25 | G133: 998 | I133: 0 | J133: 0 | K133: 0 | L133: =IF(K134>0, K133/K134, 0) -> 0 | N133: =ROUND(M134*L133,0) -> 0 | O133: 0 | P133: =N133-O133 -> 0 | Q133: 0 | R133: 0 | S133: 0 | T133: 25 | U133: 998 | V133: 124 | W133: 0 | X133: 0 | Y133: 124 | Z133: 25 | AA133: 998 | AB133: 124 | AC133: 0 | AD133: 0
A134: 00250999 | B134: 0025 | C134: 0999 | D134: 125 | E134: 25 | F134: Bellingham | G134: 999 | H134: Total | I134: 26263384.92 | J134: 1 | K134: =SUM(K130:K133) -> 26413663.21 | L134: =SUM(L130:L133) -> 1 | M134: =VLOOKUP(E134,town351,24) -> 18524823 | N134: =SUM(N130:N133) -> 18524823 | O134: 17850402 | P134: =SUM(P130:P133) -> 674421 | Q134: 3.778183819 | R134: 2341 | S134: 2277 | T134: 25 | U134: 999 | V134: 125 | W134: 2277 | X134: 26413663.21 | Y134: 125 | Z134: 25 | AA134: 999 | AB134: 125 | AC134: 2277 | AD134: 26413663.21
A135: 00260026 | B135: 0026 | C135: 0026 | D135: 126 | E135: 26 | F135: Belmont | G135: 26 | H135: Belmont | I135: 50418107.66 | J135: 1 | K135: =X135 -> 50694465.25 | L135: =IF(K139>0, K135/K139, 0) -> 1 | N135: =ROUND(M139*L135,0) -> 40824828 | O135: 40662179 | P135: =N135-O135 -> 162649 | Q135: 0.4000006984 | R135: 4638 | S135: 4534 | T135: 26 | U135: 26 | V135: 126 | W135: 4534 | X135: 50694465.25 | Y135: 126 | Z135: 26 | AA135: 26 | AB135: 126 | AC135: 4534 | AD135: 50694465.25
A136: 00260830 | B136: 0026 | C136: 0830 | D136: 127 | E136: 26 | G136: 998 | I136: 0 | J136: 0 | K136: 0 | L136: =IF(K139>0, K136/K139, 0) -> 0 | N136: =ROUND(M139*L136,0) -> 0 | O136: 0 | P136: =N136-O136 -> 0 | Q136: 0 | R136: 0 | S136: 0 | T136: 26 | U136: 830 | V136: 127 | W136: 0 | X136: 0 | Y136: 127 | Z136: 26 | AA136: 830 | AB136: 127 | AC136: 0 | AD136: 0
A137: 00260998 | B137: 0026 | C137: 0998 | D137: 128 | E137: 26 | G137: 998 | I137: 0 | J137: 0 | K137: 0 | L137: =IF(K139>0, K137/K139, 0) -> 0 | N137: =ROUND(M139*L137,0) -> 0 | O137: 0 | P137: =N137-O137 -> 0 | Q137: 0 | R137: 0 | S137: 0 | T137: 26 | U137: 998 | V137: 128 | W137: 0 | X137: 0 | Y137: 128 | Z137: 26 | AA137: 998 | AB137: 128 | AC137: 0 | AD137: 0
A138: =B138&C138 -> 00260998 | B138: 0026 | C138: 0998 | D138: 129 | E138: 26 | G138: 998 | I138: 0 | J138: 0 | K138: 0 | L138: =IF(K139>0, K138/K139, 0) -> 0 | N138: =ROUND(M139*L138,0) -> 0 | O138: 0 | P138: =N138-O138 -> 0 | Q138: 0 | R138: 0 | S138: 0 | T138: =VLOOKUP($D138, foundoptions, VLOOKUP($T$6, foundoptcell, 2, FALSE), FALSE) -> 26 | U138: =VLOOKUP($D138, foundoptions, VLOOKUP($T$6, foundoptcell, 2, FALSE)+1, FALSE) -> 998 | V138: =VLOOKUP($D138, foundoptions, VLOOKUP($T$6, foundoptcell, 2, FALSE)+2, FALSE) -> 129 | W138: =VLOOKUP($D138, foundoptions, VLOOKUP($T$6, foundoptcell, 2, FALSE)+3, FALSE) -> 0 | X138: =VLOOKUP($D138, foundoptions, VLOOKUP($T$6, foundoptcell, 2, FALSE)+4, FALSE) -> 0 | Y138: 129 | Z138: 26 | AA138: 998 | AB138: 129 | AC138: 0 | AD138: 0
A139: 00260999 | B139: 0026 | C139: 0999 | D139: 130 | E139: 26 | F139: Belmont | G139: 999 | H139: Total | I139: 50418107.66 | J139: 1 | K139: =SUM(K135:K138) -> 50694465.25 | L139: =SUM(L135:L138) -> 1 | M139: =VLOOKUP(E139,town351,24) -> 40824828 | N139: =SUM(N135:N138) -> 40824828 | O139: 40662179 | P139: =SUM(P135:P138) -> 162649 | Q139: 0.4000006984 | R139: 4638 | S139: =W139 -> 4534 | T139: 26 | U139: 999 | V139: 130 | W139: 4534 | X139: 50694465.25 | Y139: =D139 -> 130 | Z139: 26 | AA139: 999 | AB139: 130 | AC139: 4534 | AD139: 50694465.25
A140: 00270027 | B140: 0027 | C140: 0027 | D140: 131 | E140: 27 | F140: Berkley | G140: 27 | H140: Berkley | I140: 8014902.18 | J140: 0.6150031131 | K140: =X140 -> 7950531.78 | L140: =IF(K144>0, K140/K144, 0) -> 0.6016397336 | N140: =ROUND(M144*L140,0) -> 4249272 | O140: 4170576 | P140: =N140-O140 -> 78696 | Q140: 1.886933603 | R140: 764 | S140: 733 | T140: 27 | U140: 27 | V140: 131 | W140: 733 | X140: 7950531.78 | Y140: 131 | Z140: 27 | AA140: 27 | AB140: 131 | AC140: 733 | AD140: 7950531.78
A141: 00270763 | B141: 0027 | C141: 0763 | D141: 132 | E141: 27 | F141: Berkley | G141: 763 | H141: Somerset Berkley | I141: 3435010.976 | J141: 0.2635768218 | K141: 3388681.455 | L141: =IF(K144>0, K141/K144, 0) -> 0.2564313262 | N141: =ROUND(M144*L141,0) -> 1811128 | O141: 1787417 | P141: =N141-O141 -> 23711 | Q141: 1.326551107 | R141: 286 | S141: 274.5362035 | T141: 27 | U141: 763 | V141: 132 | W141: 274.5362035 | X141: 3388681.455 | Y141: 132 | Z141: 27 | AA141: 763 | AB141: 132 | AC141: 274.5362035 | AD141: 3388681.455
A142: 00270810 | B142: 0027 | C142: 0810 | D142: 133 | E142: 27 | F142: Berkley | G142: 810 | H142: Bristol Plymouth | I142: 1390464.314 | J142: 0.106693739 | K142: 1716079.42 | L142: =IF(K144>0, K142/K144, 0) -> 0.1298606928 | N142: =ROUND(M144*L142,0) -> 917182 | O142: 723532 | P142: =N142-O142 -> 193650 | Q142: 26.7645384 | R142: 80.29917727 | S142: 95.28127313 | T142: 27 | U142: 810 | V142: 133 | W142: 95.28127313 | X142: 1716079.42 | Y142: 133 | Z142: 27 | AA142: 810 | AB142: 133 | AC142: 95.28127313 | AD142: 1716079.42
A143: 00270910 | B143: 0027 | C143: 0910 | D143: 134 | E143: 27 | F143: Berkley | G143: 910 | H143: Bristol County | I143: 191917.8311 | J143: 0.01472632615 | K143: 159479.1348 | L143: =IF(K144>0, K143/K144, 0) -> 0.01206824736 | N143: =ROUND(M144*L143,0) -> 85236 | O143: 99865 | P143: =N143-O143 -> -14629 | Q143: -14.64877585 | R143: 11 | S143: 8.999999998 | T143: 27 | U143: 910 | V143: 134 | W143: 8.999999998 | X143: 159479.1348 | Y143: 134 | Z143: 27 | AA143: 910 | AB143: 134 | AC143: 8.999999998 | AD143: 159479.1348
A144: 00270999 | B144: 0027 | C144: 0999 | D144: 135 | E144: 27 | F144: Berkley | G144: 999 | H144: Total | I144: 13032295.3 | J144: 1 | K144: =SUM(K140:K143) -> 13214771.79 | L144: =SUM(L140:L143) -> 1 | M144: =VLOOKUP(E144,town351,24) -> 7062818 | N144: =SUM(N140:N143) -> 7062818 | O144: 6781390 | P144: =SUM(P140:P143) -> 281428 | Q144: =IF(O144>0,P144*100/O144,IF(P144>0,100,0)) -> 4.150004645 | R144: 1141.299177 | S144: 1111.817477 | T144: 27 | U144: 999 | V144: 135 | W144: 1111.817477 | X144: 13214771.79 | Y144: 135 | Z144: 27 | AA144: 999 | AB144: 135 | AC144: 1111.817477 | AD144: 13214771.79
A145: 00280028 | B145: 0028 | C145: 0028 | D145: 136 | E145: 28 | F145: Berlin | G145: 28 | H145: Berlin | I145: 0 | J145: 0 | K145: =X145 -> 0 | L145: =IF(K149>0, K145/K149, 0) -> 0 | N145: =ROUND(M149*L145,0) -> 0 | O145: 0 | P145: =N145-O145 -> 0 | Q145: 0 | R145: 0 | S145: 0 | T145: 28 | U145: 28 | V145: 136 | W145: 0 | X145: 0 | Y145: 136 | Z145: 28 | AA145: 28 | AB145: 136 | AC145: 0 | AD145: 0
A146: 00280620 | B146: 0028 | C146: 0620 | D146: 137 | E146: 28 | F146: Berlin | G146: 620 | H146: Berlin Boylston | I146: 3478424.116 | J146: 0.8657588246 | K146: 3808665.766 | L146: =IF(K149>0, K146/K149, 0) -> 0.86728973 | N146: =ROUND(M149*L146,0) -> 3018513 | O146: 2869700 | P146: =N146-O146 -> 148813 | Q146: 5.185664007 | R146: 326.9351464 | S146: 347.8636826 | T146: 28 | U146: 620 | V146: 137 | W146: 347.8636826 | X146: 3808665.766 | Y146: 137 | Z146: 28 | AA146: 620 | AB146: 137 | AC146: 347.8636826 | AD146: 3808665.766
A147: 00280801 | B147: 0028 | C147: 0801 | D147: 138 | E147: 28 | F147: Berlin | G147: 801 | H147: Assabet Valley | I147: 539350.8312 | J147: 0.1342411754 | K147: 582791.4764 | L147: =IF(K149>0, K147/K149, 0) -> 0.13271027 | N147: =ROUND(M149*L147,0) -> 461885 | O147: 444964 | P147: =N147-O147 -> 16921 | Q147: 3.802779551 | R147: 29 | S147: 30 | T147: 28 | U147: 801 | V147: 138 | W147: 30 | X147: 582791.4764 | Y147: 138 | Z147: 28 | AA147: 801 | AB147: 138 | AC147: 30 | AD147: 582791.4764
A148: 00280998 | B148: 0028 | C148: 0998 | D148: 139 | E148: 28 | G148: 998 | I148: 0 | J148: 0 | K148: 0 | L148: =IF(K149>0, K148/K149, 0) -> 0 | N148: =ROUND(M149*L148,0) -> 0 | O148: 0 | P148: =N148-O148 -> 0 | Q148: 0 | R148: 0 | S148: 0 | T148: 28 | U148: 998 | V148: 139 | W148: 0 | X148: 0 | Y148: 139 | Z148: 28 | AA148: 998 | AB148: 139 | AC148: 0 | AD148: 0
A149: 00280999 | B149: 0028 | C149: 0999 | D149: 140 | E149: 28 | F149: Berlin | G149: 999 | H149: Total | I149: 4017774.947 | J149: 1 | K149: =SUM(K145:K148) -> 4391457.242 | L149: =SUM(L145:L148) -> 1 | M149: =VLOOKUP(E149,town351,24) -> 3480398 | N149: =SUM(N145:N148) -> 3480398 | O149: 3314664 | P149: =SUM(P145:P148) -> 165734 | Q149: 5.000024135 | R149: 355.9351464 | S149: 377.8636826 | T149: 28 | U149: 999 | V149: 140 | W149: 377.8636826 | X149: 4391457.242 | Y149: 140 | Z149: 28 | AA149: 999 | AB149: 140 | AC149: 377.8636826 | AD149: 4391457.242
A150: 00290029 | B150: 0029 | C150: 0029 | D150: 141 | E150: 29 | F150: Bernardston | G150: 29 | H150: Bernardston | I150: 0 | J150: 0 | K150: =X150 -> 0 | L150: =IF(K154>0, K150/K154, 0) -> 0 | N150: =ROUND(M154*L150,0) -> 0 | O150: 0 | P150: =N150-O150 -> 0 | Q150: 0 | R150: 0 | S150: 0 | T150: 29 | U150: 29 | V150: 141 | W150: 0 | X150: 0 | Y150: 141 | Z150: 29 | AA150: 29 | AB150: 141 | AC150: 0 | AD150: 0
A151: 00290750 | B151: 0029 | C151: 0750 | D151: 142 | E151: 29 | F151: Bernardston | G151: 750 | H151: Pioneer | I151: 2656656.363 | J151: 0.8396139443 | K151: 2729706.169 | L151: =IF(K154>0, K151/K154, 0) -> 0.8000487217 | N151: =ROUND(M154*L151,0) -> 1396855 | O151: 1426701 | P151: =N151-O151 -> -29846 | Q151: -2.091959002 | R151: 235.8038633 | S151: 231.5016077 | T151: 29 | U151: 750 | V151: 142 | W151: 231.5016077 | X151: 2729706.169 | Y151: 142 | Z151: 29 | AA151: 750 | AB151: 142 | AC151: 231.5016077 | AD151: 2729706.169
A152: 00290818 | B152: 0029 | C152: 0818 | D152: 143 | E152: 29 | F152: Bernardston | G152: 818 | H152: Franklin County | I152: 507483.9909 | J152: 0.1603860557 | K152: 682218.7491 | L152: =IF(K154>0, K152/K154, 0) -> 0.1999512783 | N152: =ROUND(M154*L152,0) -> 349108 | O152: 272533 | P152: =N152-O152 -> 76575 | Q152: 28.0975148 | R152: 28 | S152: 36 | T152: 29 | U152: 818 | V152: 143 | W152: 36 | X152: 682218.7491 | Y152: 143 | Z152: 29 | AA152: 818 | AB152: 143 | AC152: 36 | AD152: 682218.7491
A153: 00290998 | B153: 0029 | C153: 0998 | D153: 144 | E153: 29 | G153: 998 | I153: 0 | J153: 0 | K153: 0 | L153: =IF(K154>0, K153/K154, 0) -> 0 | N153: =ROUND(M154*L153,0) -> 0 | O153: 0 | P153: =N153-O153 -> 0 | Q153: 0 | R153: 0 | S153: 0 | T153: 29 | U153: 998 | V153: 144 | W153: 0 | X153: 0 | Y153: 144 | Z153: 29 | AA153: 998 | AB153: 144 | AC153: 0 | AD153: 0
A154: 00290999 | B154: 0029 | C154: 0999 | D154: 145 | E154: 29 | F154: Bernardston | G154: 999 | H154: Total | I154: 3164140.354 | J154: 1 | K154: =SUM(K150:K153) -> 3411924.919 | L154: =SUM(L150:L153) -> 1 | M154: =VLOOKUP(E154,town351,24) -> 1745963 | N154: =SUM(N150:N153) -> 1745963 | O154: 1699234 | P154: =SUM(P150:P153) -> 46729 | Q154: 2.750003825 | R154: 263.8038633 | S154: 267.5016077 | T154: 29 | U154: 999 | V154: 145 | W154: 267.5016077 | X154: 3411924.919 | Y154: 145 | Z154: 29 | AA154: 999 | AB154: 145 | AC154: 267.5016077 | AD154: 3411924.919
A155: 00300030 | B155: 0030 | C155: 0030 | D155: 146 | E155: 30 | F155: Beverly | G155: 30 | H155: Beverly | I155: 51866271.12 | J155: 0.9616445719 | K155: =X155 -> 53925726.19 | L155: =IF(K159>0, K155/K159, 0) -> 0.9624624996 | N155: =ROUND(M159*L155,0) -> 43334812 | O155: 41749093 | P155: =N155-O155 -> 1585719 | Q155: 3.798211856 | R155: 4570 | S155: 4613 | T155: 30 | U155: 30 | V155: 146 | W155: 4613 | X155: 53925726.19 | Y155: 146 | Z155: 30 | AA155: 30 | AB155: 146 | AC155: 4613 | AD155: 53925726.19
A156: 00300817 | B156: 0030 | C156: 0817 | D156: 147 | E156: 30 | F156: Beverly | G156: 817 | H156: Essex North Shore | I156: 2068698.866 | J156: 0.03835542814 | K156: 2103185.284 | L156: =IF(K159>0, K156/K159, 0) -> 0.03753750036 | N156: =ROUND(M159*L156,0) -> 1690124 | O156: 1665173 | P156: =N156-O156 -> 24951 | Q156: 1.498402869 | R156: 121 | S156: 116 | T156: 30 | U156: 817 | V156: 147 | W156: 116 | X156: 2103185.284 | Y156: 147 | Z156: 30 | AA156: 817 | AB156: 147 | AC156: 116 | AD156: 2103185.284
A157: 00300998 | B157: 0030 | C157: 0998 | D157: 148 | E157: 30 | G157: 998 | I157: 0 | J157: 0 | K157: 0 | L157: =IF(K159>0, K157/K159, 0) -> 0 | N157: =ROUND(M159*L157,0) -> 0 | O157: 0 | P157: =N157-O157 -> 0 | Q157: 0 | R157: 0 | S157: 0 | T157: 30 | U157: 998 | V157: 148 | W157: 0 | X157: 0 | Y157: 148 | Z157: 30 | AA157: 998 | AB157: 148 | AC157: 0 | AD157: 0
A158: 00300998 | B158: 0030 | C158: 0998 | D158: 149 | E158: 30 | G158: 998 | I158: 0 | J158: 0 | K158: 0 | L158: =IF(K159>0, K158/K159, 0) -> 0 | N158: =ROUND(M159*L158,0) -> 0 | O158: 0 | P158: =N158-O158 -> 0 | Q158: 0 | R158: 0 | S158: 0 | T158: 30 | U158: 998 | V158: 149 | W158: 0 | X158: 0 | Y158: 149 | Z158: 30 | AA158: 998 | AB158: 149 | AC158: 0 | AD158: 0
A159: 00300999 | B159: 0030 | C159: 0999 | D159: 150 | E159: 30 | F159: Beverly | G159: 999 | H159: Total | I159: 53934969.99 | J159: 1 | K159: =SUM(K155:K158) -> 56028911.47 | L159: =SUM(L155:L158) -> 1 | M159: =VLOOKUP(E159,town351,24) -> 45024936 | N159: =SUM(N155:N158) -> 45024936 | O159: 43414266 | P159: =SUM(P155:P158) -> 1610670 | Q159: 3.710001685 | R159: 4691 | S159: 4729 | T159: 30 | U159: 999 | V159: 150 | W159: 4729 | X159: 56028911.47 | Y159: 150 | Z159: 30 | AA159: 999 | AB159: 150 | AC159: 4729 | AD159: 56028911.47
A160: 00310031 | B160: 0031 | C160: 0031 | D160: 151 | E160: 31 | F160: Billerica | G160: 31 | H160: Billerica | I160: 52647471.61 | J160: 0.8582526149 | K160: =X160 -> 52245953.96 | L160: =IF(K164>0, K160/K164, 0) -> 0.8575761092 | N160: =ROUND(M164*L160,0) -> 43102912 | O160: 41417136 | P160: =N160-O160 -> 1685776 | Q160: 4.070237981 | R160: 4866 | S160: 4694 | T160: 31 | U160: 31 | V160: 151 | W160: 4694 | X160: 52245953.96 | Y160: 151 | Z160: 31 | AA160: 31 | AB160: 151 | AC160: 4694 | AD160: 52245953.96
A161: 00310871 | B161: 0031 | C161: 0871 | D161: 152 | E161: 31 | F161: Billerica | G161: 871 | H161: Shawsheen Valley | I161: 8695157.231 | J161: 0.1417473851 | K161: 8676864.902 | L161: =IF(K164>0, K161/K164, 0) -> 0.1424238908 | N161: =ROUND(M164*L161,0) -> 7158414 | O161: 6840376 | P161: =N161-O161 -> 318038 | Q161: 4.64942278 | R161: 517 | S161: 507 | T161: 31 | U161: 871 | V161: 152 | W161: 507 | X161: 8676864.902 | Y161: 152 | Z161: 31 | AA161: 871 | AB161: 152 | AC161: 507 | AD161: 8676864.902
A162: 00310998 | B162: 0031 | C162: 0998 | D162: 153 | E162: 31 | G162: 998 | I162: 0 | J162: 0 | K162: 0 | L162: =IF(K164>0, K162/K164, 0) -> 0 | N162: =ROUND(M164*L162,0) -> 0 | O162: 0 | P162: =N162-O162 -> 0 | Q162: 0 | R162: 0 | S162: 0 | T162: 31 | U162: 998 | V162: 153 | W162: 0 | X162: 0 | Y162: 153 | Z162: 31 | AA162: 998 | AB162: 153 | AC162: 0 | AD162: 0
A163: 00310998 | B163: 0031 | C163: 0998 | D163: 154 | E163: 31 | G163: 998 | I163: 0 | J163: 0 | K163: 0 | L163: =IF(K164>0, K163/K164, 0) -> 0 | N163: =ROUND(M164*L163,0) -> 0 | O163: 0 | P163: =N163-O163 -> 0 | Q163: 0 | R163: 0 | S163: 0 | T163: 31 | U163: 998 | V163: 154 | W163: 0 | X163: 0 | Y163: 154 | Z163: 31 | AA163: 998 | AB163: 154 | AC163: 0 | AD163: 0
A164: 00310999 | B164: 0031 | C164: 0999 | D164: 155 | E164: 31 | F164: Billerica | G164: 999 | H164: Total | I164: 61342628.84 | J164: 1 | K164: =SUM(K160:K163) -> 60922818.86 | L164: =SUM(L160:L163) -> 1 | M164: =VLOOKUP(E164,town351,24) -> 50261326 | N164: =SUM(N160:N163) -> 50261326 | O164: 48257512 | P164: =SUM(P160:P163) -> 2003814 | Q164: 4.15233591 | R164: 5383 | S164: 5201 | T164: 31 | U164: 999 | V164: 155 | W164: 5201 | X164: 60922818.86 | Y164: 155 | Z164: 31 | AA164: 999 | AB164: 155 | AC164: 5201 | AD164: 60922818.86
A165: 00320032 | B165: 0032 | C165: 0032 | D165: 156 | E165: 32 | F165: Blackstone | G165: 32 | H165: Blackstone | I165: 408810.82 | J165: 0.02544576243 | K165: =X165 -> 446826.84 | L165: =IF(K169>0, K165/K169, 0) -> 0.02758723929 | N165: =ROUND(M169*L165,0) -> 218589 | O165: 197411 | P165: =N165-O165 -> 21178 | Q165: 10.72787231 | R165: 26 | S165: 28 | T165: 32 | U165: 32 | V165: 156 | W165: 28 | X165: 446826.84 | Y165: 156 | Z165: 32 | AA165: 32 | AB165: 156 | AC165: 28 | AD165: 446826.84
A166: 00320622 | B166: 0032 | C166: 0622 | D166: 157 | E166: 32 | F166: Blackstone | G166: 622 | H166: Blackstone Millville | I166: 14224835.22 | J166: 0.8854016575 | K166: 14467732.75 | L166: =IF(K169>0, K166/K169, 0) -> 0.8932426829 | N166: =ROUND(M169*L166,0) -> 7077649 | O166: 6869052 | P166: =N166-O166 -> 208597 | Q166: 3.036765481 | R166: 1279.894737 | S166: 1254.770318 | T166: 32 | U166: 622 | V166: 157 | W166: 1254.770318 | X166: 14467732.75 | Y166: 157 | Z166: 32 | AA166: 622 | AB166: 157 | AC166: 1254.770318 | AD166: 14467732.75
A167: 00320805 | B167: 0032 | C167: 0805 | D167: 158 | E167: 32 | F167: Blackstone | G167: 805 | H167: Blackstone Valley | I167: 1432322.551 | J167: 0.08915258008 | K167: 1282307.205 | L167: =IF(K169>0, K167/K169, 0) -> 0.07917007783 | N167: =ROUND(M169*L167,0) -> 627308 | O167: 691656 | P167: =N167-O167 -> -64348 | Q167: -9.303468776 | R167: 87 | S167: 76.00000001 | T167: 32 | U167: 805 | V167: 158 | W167: 76.00000001 | X167: 1282307.205 | Y167: 158 | Z167: 32 | AA167: 805 | AB167: 158 | AC167: 76.00000001 | AD167: 1282307.205
A168: 00320998 | B168: 0032 | C168: 0998 | D168: 159 | E168: 32 | G168: 998 | I168: 0 | J168: 0 | K168: 0 | L168: =IF(K169>0, K168/K169, 0) -> 0 | N168: =ROUND(M169*L168,0) -> 0 | O168: 0 | P168: =N168-O168 -> 0 | Q168: 0 | R168: 0 | S168: 0 | T168: 32 | U168: 998 | V168: 159 | W168: 0 | X168: 0 | Y168: 159 | Z168: 32 | AA168: 998 | AB168: 159 | AC168: 0 | AD168: 0
A169: 00320999 | B169: 0032 | C169: 0999 | D169: 160 | E169: 32 | F169: Blackstone | G169: 999 | H169: Total | I169: 16065968.59 | J169: 1 | K169: =SUM(K165:K168) -> 16196866.79 | L169: =SUM(L165:L168) -> 1 | M169: =VLOOKUP(E169,town351,24) -> 7923545 | N169: =SUM(N165:N168) -> 7923546 | O169: 7758119 | P169: =SUM(P165:P168) -> 165427 | Q169: 2.132308102 | R169: 1392.894737 | S169: 1358.770318 | T169: 32 | U169: 999 | V169: 160 | W169: 1358.770318 | X169: 16196866.79 | Y169: 160 | Z169: 32 | AA169: 999 | AB169: 160 | AC169: 1358.770318 | AD169: 16196866.79
A170: 00330033 | B170: 0033 | C170: 0033 | D170: 161 | E170: 33 | F170: Blandford | G170: 33 | H170: Blandford | I170: 102604.6 | J170: 0.07295490693 | K170: =X170 -> 149527.8 | L170: =IF(K174>0, K170/K174, 0) -> 0.113025951 | N170: =ROUND(M174*L170,0) -> 123360 | O170: 84649 | P170: =N170-O170 -> 38711 | Q170: 45.73119588 | R170: 7 | S170: 10 | T170: 33 | U170: 33 | V170: 161 | W170: 10 | X170: 149527.8 | Y170: 161 | Z170: 33 | AA170: 33 | AB170: 161 | AC170: 10 | AD170: 149527.8
A171: 00330672 | B171: 0033 | C171: 0672 | D171: 162 | E171: 33 | F171: Blandford | G171: 672 | H171: Gateway | I171: 1303806.625 | J171: 0.9270450931 | K171: 1173423.245 | L171: =IF(K174>0, K171/K174, 0) -> 0.886974049 | N171: =ROUND(M174*L171,0) -> 968075 | O171: 1075640 | P171: =N171-O171 -> -107565 | Q171: -10.00009297 | R171: 110.3686007 | S171: 95.40983607 | T171: 33 | U171: 672 | V171: 162 | W171: 95.40983607 | X171: 1173423.245 | Y171: 162 | Z171: 33 | AA171: 672 | AB171: 162 | AC171: 95.40983607 | AD171: 1173423.245
A172: 00330998 | B172: 0033 | C172: 0998 | D172: 163 | E172: 33 | G172: 998 | I172: 0 | J172: 0 | K172: 0 | L172: =IF(K174>0, K172/K174, 0) -> 0 | N172: =ROUND(M174*L172,0) -> 0 | O172: 0 | P172: =N172-O172 -> 0 | Q172: 0 | R172: 0 | S172: 0 | T172: 33 | U172: 998 | V172: 163 | W172: 0 | X172: 0 | Y172: 163 | Z172: 33 | AA172: 998 | AB172: 163 | AC172: 0 | AD172: 0
A173: 00330998 | B173: 0033 | C173: 0998 | D173: 164 | E173: 33 | G173: 998 | I173: 0 | J173: 0 | K173: 0 | L173: =IF(K174>0, K173/K174, 0) -> 0 | N173: =ROUND(M174*L173,0) -> 0 | O173: 0 | P173: =N173-O173 -> 0 | Q173: 0 | R173: 0 | S173: 0 | T173: 33 | U173: 998 | V173: 164 | W173: 0 | X173: 0 | Y173: 164 | Z173: 33 | AA173: 998 | AB173: 164 | AC173: 0 | AD173: 0
A174: 00330999 | B174: 0033 | C174: 0999 | D174: 165 | E174: 33 | F174: Blandford | G174: 999 | H174: Total | I174: 1406411.225 | J174: 1 | K174: =SUM(K170:K173) -> 1322951.045 | L174: =SUM(L170:L173) -> 1 | M174: =VLOOKUP(E174,town351,24) -> 1091435 | N174: =SUM(N170:N173) -> 1091435 | O174: 1160289 | P174: =SUM(P170:P173) -> -68854 | Q174: -5.934211218 | R174: 117.3686007 | S174: 105.4098361 | T174: 33 | U174: 999 | V174: 165 | W174: 105.4098361 | X174: 1322951.045 | Y174: 165 | Z174: 33 | AA174: 999 | AB174: 165 | AC174: 105.4098361 | AD174: 1322951.045
A175: 00340034 | B175: 0034 | C175: 0034 | D175: 166 | E175: 34 | F175: Bolton | G175: 34 | H175: Bolton | I175: 15157.29088 | J175: 0.001364653637 | K175: =X175 -> 15459.31386 | L175: =IF(K179>0, K175/K179, 0) -> 0.001283918095 | N175: =ROUND(M179*L175,0) -> 12370 | O175: 12505 | P175: =N175-O175 -> -135 | Q175: -1.079568173 | R175: 1 | S175: 1 | T175: 34 | U175: 34 | V175: 166 | W175: 1 | X175: 15459.31386 | Y175: 166 | Z175: 34 | AA175: 34 | AB175: 166 | AC175: 1 | AD175: 15459.31386
A176: 00340725 | B176: 0034 | C176: 0725 | D176: 167 | E176: 34 | F176: Bolton | G176: 725 | H176: Nashoba | I176: 10831610.86 | J176: 0.9752004675 | K176: 11682778.34 | L176: =IF(K179>0, K176/K179, 0) -> 0.9702714261 | N176: =ROUND(M179*L176,0) -> 9347905 | O176: 8936079 | P176: =N176-O176 -> 411826 | Q176: 4.608576088 | R176: 1004.171625 | S176: 1054.280557 | T176: 34 | U176: 725 | V176: 167 | W176: 1054.280557 | X176: 11682778.34 | Y176: 167 | Z176: 34 | AA176: 725 | AB176: 167 | AC176: 1054.280557 | AD176: 11682778.34
A177: 00340830 | B177: 0034 | C177: 0830 | D177: 168 | E177: 34 | F177: Bolton | G177: 830 | H177: Minuteman | I177: 260292.6234 | J177: 0.02343487883 | K177: 342494.4816 | L177: =IF(K179>0, K177/K179, 0) -> 0.02844465584 | N177: =ROUND(M179*L177,0) -> 274045 | O177: 214741 | P177: =N177-O177 -> 59304 | Q177: 27.61652409 | R177: 14 | S177: 17 | T177: 34 | U177: 830 | V177: 168 | W177: 17 | X177: 342494.4816 | Y177: 168 | Z177: 34 | AA177: 830 | AB177: 168 | AC177: 17 | AD177: 342494.4816
A178: 00340998 | B178: 0034 | C178: 0998 | D178: 169 | E178: 34 | G178: 998 | I178: 0 | J178: 0 | K178: 0 | L178: =IF(K179>0, K178/K179, 0) -> 0 | N178: =ROUND(M179*L178,0) -> 0 | O178: 0 | P178: =N178-O178 -> 0 | Q178: 0 | R178: 0 | S178: 0 | T178: 34 | U178: 998 | V178: 169 | W178: 0 | X178: 0 | Y178: 169 | Z178: 34 | AA178: 998 | AB178: 169 | AC178: 0 | AD178: 0
A179: 00340999 | B179: 0034 | C179: 0999 | D179: 170 | E179: 34 | F179: Bolton | G179: 999 | H179: Total | I179: 11107060.77 | J179: 1 | K179: =SUM(K175:K178) -> 12040732.13 | L179: =SUM(L175:L178) -> 1 | M179: =VLOOKUP(E179,town351,24) -> 9634320 | N179: =SUM(N175:N178) -> 9634320 | O179: 9163325 | P179: =SUM(P175:P178) -> 470995 | Q179: 5.140001037 | R179: 1019.171625 | S179: 1072.280557 | T179: 34 | U179: 999 | V179: 170 | W179: 1072.280557 | X179: 12040732.13 | Y179: 170 | Z179: 34 | AA179: 999 | AB179: 170 | AC179: 1072.280557 | AD179: 12040732.13
A180: 00350035 | B180: 0035 | C180: 0035 | D180: 171 | E180: 35 | F180: Boston | G180: 35 | H180: Boston | I180: 924506066 | J180: 1 | K180: =X180 -> 978880394.5 | L180: =IF(K184>0, K180/K184, 0) -> 1 | N180: =ROUND(M184*L180,0) -> 788497356 | O180: 762717504 | P180: =N180-O180 -> 25779852 | Q180: 3.380000048 | R180: 62890 | S180: 60704 | T180: 35 | U180: 35 | V180: 171 | W180: 60704 | X180: 978880394.5 | Y180: 171 | Z180: 35 | AA180: 35 | AB180: 171 | AC180: 60704 | AD180: 978880394.5
A181: 00350998 | B181: 0035 | C181: 0998 | D181: 172 | E181: 35 | G181: 998 | I181: 0 | J181: 0 | K181: 0 | L181: =IF(K184>0, K181/K184, 0) -> 0 | N181: =ROUND(M184*L181,0) -> 0 | O181: 0 | P181: =N181-O181 -> 0 | Q181: 0 | R181: 0 | S181: 0 | T181: 35 | U181: 998 | V181: 172 | W181: 0 | X181: 0 | Y181: 172 | Z181: 35 | AA181: 998 | AB181: 172 | AC181: 0 | AD181: 0
A182: 00350998 | B182: 0035 | C182: 0998 | D182: 173 | E182: 35 | G182: 998 | I182: 0 | J182: 0 | K182: 0 | L182: =IF(K184>0, K182/K184, 0) -> 0 | N182: =ROUND(M184*L182,0) -> 0 | O182: 0 | P182: =N182-O182 -> 0 | Q182: 0 | R182: 0 | S182: 0 | T182: 35 | U182: 998 | V182: 173 | W182: 0 | X182: 0 | Y182: 173 | Z182: 35 | AA182: 998 | AB182: 173 | AC182: 0 | AD182: 0
A183: 00350998 | B183: 0035 | C183: 0998 | D183: 174 | E183: 35 | G183: 998 | I183: 0 | J183: 0 | K183: 0 | L183: =IF(K184>0, K183/K184, 0) -> 0 | N183: =ROUND(M184*L183,0) -> 0 | O183: 0 | P183: =N183-O183 -> 0 | Q183: 0 | R183: 0 | S183: 0 | T183: 35 | U183: 998 | V183: 174 | W183: 0 | X183: 0 | Y183: 174 | Z183: 35 | AA183: 998 | AB183: 174 | AC183: 0 | AD183: 0
A184: 00350999 | B184: 0035 | C184: 0999 | D184: 175 | E184: 35 | F184: Boston | G184: 999 | H184: Total | I184: 924506066 | J184: 1 | K184: =SUM(K180:K183) -> 978880394.5 | L184: =SUM(L180:L183) -> 1 | M184: =VLOOKUP(E184,town351,24) -> 788497356 | N184: =SUM(N180:N183) -> 788497356 | O184: 762717504 | P184: =SUM(P180:P183) -> 25779852 | Q184: 3.380000048 | R184: 62890 | S184: 60704 | T184: 35 | U184: 999 | V184: 175 | W184: 60704 | X184: 978880394.5 | Y184: 175 | Z184: 35 | AA184: 999 | AB184: 175 | AC184: 60704 | AD184: 978880394.5
A185: 00360036 | B185: 0036 | C185: 0036 | D185: 176 | E185: 36 | F185: Bourne | G185: 36 | H185: Bourne | I185: 22664002.02 | J185: 0.8760903726 | K185: =X185 -> 20951766.19 | L185: =IF(K189>0, K185/K189, 0) -> 0.8673290846 | N185: =ROUND(M189*L185,0) -> 17285207 | O185: 18697802 | P185: =N185-O185 -> -1412595 | Q185: -7.554871958 | R185: 2012 | S185: 1789 | T185: 36 | U185: 36 | V185: 176 | W185: 1789 | X185: 20951766.19 | Y185: 176 | Z185: 36 | AA185: 36 | AB185: 176 | AC185: 1789 | AD185: 20951766.19
A186: 00360879 | B186: 0036 | C186: 0879 | D186: 177 | E186: 36 | F186: Bourne | G186: 879 | H186: Upper Cape Cod | I186: 3205477.577 | J186: 0.1239096274 | K186: 3204885.031 | L186: =IF(K189>0, K186/K189, 0) -> 0.1326709154 | N186: =ROUND(M189*L186,0) -> 2644030 | O186: 2644519 | P186: =N186-O186 -> -489 | Q186: -0.01849107531 | R186: 185 | S186: 179.7084433 | T186: 36 | U186: 879 | V186: 177 | W186: 179.7084433 | X186: 3204885.031 | Y186: 177 | Z186: 36 | AA186: 879 | AB186: 177 | AC186: 179.7084433 | AD186: 3204885.031
A187: 00360998 | B187: 0036 | C187: 0998 | D187: 178 | E187: 36 | G187: 998 | I187: 0 | J187: 0 | K187: 0 | L187: =IF(K189>0, K187/K189, 0) -> 0 | N187: =ROUND(M189*L187,0) -> 0 | O187: 0 | P187: =N187-O187 -> 0 | Q187: 0 | R187: 0 | S187: 0 | T187: 36 | U187: 998 | V187: 178 | W187: 0 | X187: 0 | Y187: 178 | Z187: 36 | AA187: 998 | AB187: 178 | AC187: 0 | AD187: 0
A188: 00360998 | B188: 0036 | C188: 0998 | D188: 179 | E188: 36 | G188: 998 | I188: 0 | J188: 0 | K188: 0 | L188: =IF(K189>0, K188/K189, 0) -> 0 | N188: =ROUND(M189*L188,0) -> 0 | O188: 0 | P188: =N188-O188 -> 0 | Q188: 0 | R188: 0 | S188: 0 | T188: 36 | U188: 998 | V188: 179 | W188: 0 | X188: 0 | Y188: 179 | Z188: 36 | AA188: 998 | AB188: 179 | AC188: 0 | AD188: 0
A189: 00360999 | B189: 0036 | C189: 0999 | D189: 180 | E189: 36 | F189: Bourne | G189: 999 | H189: Total | I189: 25869479.6 | J189: 1 | K189: =SUM(K185:K188) -> 24156651.22 | L189: =SUM(L185:L188) -> 1 | M189: =VLOOKUP(E189,town351,24) -> 19929237 | N189: =SUM(N185:N188) -> 19929237 | O189: 21342321 | P189: =SUM(P185:P188) -> -1413084 | Q189: -6.621041826 | R189: 2197 | S189: 1968.708443 | T189: 36 | U189: 999 | V189: 180 | W189: 1968.708443 | X189: 24156651.22 | Y189: 180 | Z189: 36 | AA189: 999 | AB189: 180 | AC189: 1968.708443 | AD189: 24156651.22
A190: 00370037 | B190: 0037 | C190: 0037 | D190: 181 | E190: 37 | F190: Boxborough | G190: 37 | H190: Boxborough | I190: 143372.8123 | J190: 0.01512259637 | K190: =X190 -> 144995.1451 | L190: =IF(K194>0, K190/K194, 0) -> 0.01518062229 | N190: =ROUND(M194*L190,0) -> 119621 | O190: 117755 | P190: =N190-O190 -> 1866 | Q190: 1.584646087 | R190: 9 | S190: 9 | T190: 37 | U190: 37 | V190: 181 | W190: 9 | X190: 144995.1451 | Y190: 181 | Z190: 37 | AA190: 37 | AB190: 181 | AC190: 9 | AD190: 144995.1451
A191: 00370600 | B191: 0037 | C191: 0600 | D191: 182 | E191: 37 | F191: Boxborough | G191: 600 | H191: Acton Boxborough | I191: 9337328.04 | J191: 0.9848774036 | K191: 9406335.644 | L191: =IF(K194>0, K191/K194, 0) -> 0.9848193777 | N191: =ROUND(M194*L191,0) -> 7760227 | O191: 7668914 | P191: =N191-O191 -> 91313 | Q191: 1.190690103 | R191: 856.0218559 | S191: 832.8951906 | T191: 37 | U191: 600 | V191: 182 | W191: 832.8951906 | X191: 9406335.644 | Y191: 182 | Z191: 37 | AA191: 600 | AB191: 182 | AC191: 832.8951906 | AD191: 9406335.644
A192: 00370830 | B192: 0037 | C192: 0830 | D192: 183 | E192: 37 | G192: 998 | I192: 0 | J192: 0 | K192: 0 | L192: =IF(K194>0, K192/K194, 0) -> 0 | N192: =ROUND(M194*L192,0) -> 0 | O192: 0 | P192: =N192-O192 -> 0 | Q192: 0 | R192: 0 | S192: 0 | T192: 37 | U192: 998 | V192: 183 | W192: 0 | X192: 0 | Y192: 183 | Z192: 37 | AA192: 998 | AB192: 183 | AC192: 0 | AD192: 0
A193: 00370998 | B193: 0037 | C193: 0998 | D193: 184 | E193: 37 | G193: 998 | I193: 0 | J193: 0 | K193: 0 | L193: =IF(K194>0, K193/K194, 0) -> 0 | N193: =ROUND(M194*L193,0) -> 0 | O193: 0 | P193: =N193-O193 -> 0 | Q193: 0 | R193: 0 | S193: 0 | T193: 37 | U193: 998 | V193: 184 | W193: 0 | X193: 0 | Y193: 184 | Z193: 37 | AA193: 998 | AB193: 184 | AC193: 0 | AD193: 0
A194: 00370999 | B194: 0037 | C194: 0999 | D194: 185 | E194: 37 | F194: Boxborough | G194: 999 | H194: Total | I194: 9480700.853 | J194: 1 | K194: =SUM(K190:K193) -> 9551330.789 | L194: =SUM(L190:L193) -> 1 | M194: =VLOOKUP(E194,town351,24) -> 7879848 | N194: =SUM(N190:N193) -> 7879848 | O194: 7786669 | P194: =SUM(P190:P193) -> 93179 | Q194: 1.196647758 | R194: 865.0218559 | S194: 841.8951906 | T194: 37 | U194: 999 | V194: 185 | W194: 841.8951906 | X194: 9551330.789 | Y194: 185 | Z194: 37 | AA194: 999 | AB194: 185 | AC194: 841.8951906 | AD194: 9551330.789
A195: 00380038 | B195: 0038 | C195: 0038 | D195: 186 | E195: 38 | F195: Boxford | G195: 38 | H195: Boxford | I195: 7419452.155 | J195: 0.4904939192 | K195: =X195 -> 7077684.452 | L195: =IF(K199>0, K195/K199, 0) -> 0.4794040606 | N195: =ROUND(M199*L195,0) -> 5839090 | O195: 6121048 | P195: =N195-O195 -> -281958 | Q195: -4.60636806 | R195: 729 | S195: 673 | T195: 38 | U195: 38 | V195: 186 | W195: 673 | X195: 7077684.452 | Y195: 186 | Z195: 38 | AA195: 38 | AB195: 186 | AC195: 673 | AD195: 7077684.452
A196: 00380705 | B196: 0038 | C196: 0705 | D196: 187 | E196: 38 | F196: Boxford | G196: 705 | H196: Masconomet | I196: 7433492.502 | J196: 0.491422115 | K196: 7250679.196 | L196: =IF(K199>0, K196/K199, 0) -> 0.4911217888 | N196: =ROUND(M199*L196,0) -> 5981810 | O196: 6132632 | P196: =N196-O196 -> -150822 | Q196: -2.459335568 | R196: 669.5079007 | S196: 630.0907514 | T196: 38 | U196: 705 | V196: 187 | W196: 630.0907514 | X196: 7250679.196 | Y196: 187 | Z196: 38 | AA196: 705 | AB196: 187 | AC196: 630.0907514 | AD196: 7250679.196
A197: 00380817 | B197: 0038 | C197: 0817 | D197: 188 | E197: 38 | F197: Boxford | G197: 817 | H197: Essex North Shore | I197: 273546.9575 | J197: 0.01808396583 | K197: 435141.7829 | L197: =IF(K199>0, K197/K199, 0) -> 0.02947415063 | N197: =ROUND(M199*L197,0) -> 358992 | O197: 225676 | P197: =N197-O197 -> 133316 | Q197: 59.07407079 | R197: 16 | S197: 23.99999999 | T197: 38 | U197: 817 | V197: 188 | W197: 23.99999999 | X197: 435141.7829 | Y197: 188 | Z197: 38 | AA197: 817 | AB197: 188 | AC197: 23.99999999 | AD197: 435141.7829
A198: 00380998 | B198: 0038 | C198: 0998 | D198: 189 | E198: 38 | G198: 998 | I198: 0 | J198: 0 | K198: 0 | L198: =IF(K199>0, K198/K199, 0) -> 0 | N198: =ROUND(M199*L198,0) -> 0 | O198: 0 | P198: =N198-O198 -> 0 | Q198: 0 | R198: 0 | S198: 0 | T198: 38 | U198: 998 | V198: 189 | W198: 0 | X198: 0 | Y198: 189 | Z198: 38 | AA198: 998 | AB198: 189 | AC198: 0 | AD198: 0
A199: 00380999 | B199: 0038 | C199: 0999 | D199: 190 | E199: 38 | F199: Boxford | G199: 999 | H199: Total | I199: 15126491.61 | J199: 1 | K199: =SUM(K195:K198) -> 14763505.43 | L199: =SUM(L195:L198) -> 1 | M199: =VLOOKUP(E199,town351,24) -> 12179892 | N199: =SUM(N195:N198) -> 12179892 | O199: 12479356 | P199: =SUM(P195:P198) -> -299464 | Q199: -2.399675111 | R199: 1414.507901 | S199: 1327.090751 | T199: 38 | U199: 999 | V199: 190 | W199: 1327.090751 | X199: 14763505.43 | Y199: 190 | Z199: 38 | AA199: 999 | AB199: 190 | AC199: 1327.090751 | AD199: 14763505.43
A200: 00390039 | B200: 0039 | C200: 0039 | D200: 191 | E200: 39 | F200: Boylston | G200: 39 | H200: Boylston | I200: 438126.42 | J200: 0.06199416389 | K200: =X200 -> 579645.3 | L200: =IF(K204>0, K200/K204, 0) -> 0.07761835643 | N200: =ROUND(M204*L200,0) -> 466173 | O200: 353125 | P200: =N200-O200 -> 113048 | Q200: 32.01359292 | R200: 28 | S200: 35 | T200: 39 | U200: 39 | V200: 191 | W200: 35 | X200: 579645.3 | Y200: 191 | Z200: 39 | AA200: 39 | AB200: 191 | AC200: 35 | AD200: 579645.3
... 1566 more rows

Sheet Foundation Budget
A1: Return to Index | U1: More about the data
A2: Massachusetts Department of Elementary and Secondary Education
A3: Office of School Finance
A4: =parameters!B1&" Chapter 70 Foundation Budget" -> FY22 Chapter 70 Foundation Budget
A5: =lea -> 999 | B5: =IF(lea=999,"State total cannot be computed on this page; Please enter an lea code on the index sheet",VLOOKUP(A5,dist915,2)) -> State total cannot be computed on this page; Please enter an lea code on the index sheet | H5: 6 | I5: 8 | K5: 9 | L5: 10 | M5: 11 | N5: 12 | O5: 13 | P5: 14
C6: Base Foundation Components | K6: Incremental Costs Above the Base
C7: 1 | D7: 2 | E7: 3 | F7: 4 | G7: 5 | H7: 6 | I7: 7 | K7: 8 | L7: 9 | M7: 10 | N7: 11 | O7: 12 | P7: 13 | Q7: 14
D8: ------ Kindergarten ------ | G8: Junior/ | H8: High | K8: Special Ed | L8: Special Ed | M8: English learners | N8: English learners | O8: English learners
C9: Pre-school | D9: Half-Day | E9: Full-Day | F9: Elementary | G9: Middle | H9: School | I9: Vocational | K9: In-District | L9: Tuitioned-Out | M9: PK-5 | N9: 6-8 | O9: High School/Voc | P9: Low income | Q9: TOTAL
B10: Foundation Enrollment | C10: =IF($A$5<>999,VLOOKUP(lea,dist915,VALUE(C$7)+2),0) -> 0 | D10: 0 | E10: 0 | F10: 0 | G10: 0 | H10: 0 | I10: =IF($A$5<>999,VLOOKUP(lea,dist915,VALUE(I$7)+2),0) -> 0 | K10: =IF($A$5<>999,VLOOKUP(lea,dist915,VALUE(K$7)+2),0) -> 0 | L10: 0 | M10: 0 | N10: 0 | O10: 0 | P10: 0 | Q10: 0
A12: 1 | B12: Administration | C12: =(VLOOKUP(VALUE(C$7),newrates,$A12+2)*C$10*waf) -> 0 | D12: 0 | E12: 0 | F12: 0 | G12: 0 | H12: 0 | I12: 0 | K12: =(VLOOKUP(VALUE(K$7),newrates,$A12+2)*K$10*waf) -> 0 | L12: 0 | M12: 0 | N12: 0 | O12: 0 | P12: =IF(C29=0,0,(VLOOKUP(VALUE(P$7)+$C$29-1, newrates, $A12+2, FALSE))*P$10*waf) -> 0 | Q12: =SUM(C12:P12) -> 0
A13: 2 | B13: Instructional Leadership | C13: 0 | D13: 0 | E13: 0 | F13: 0 | G13: 0 | H13: 0 | I13: 0 | K13: 0 | L13: 0 | M13: 0 | N13: 0 | O13: 0 | P13: =IF(C29=0,0,(VLOOKUP(VALUE(P$7)+$C$29-1, newrates, $A13+2, FALSE))*P$10*waf) -> 0 | Q13: 0
A14: 3 | B14: Classroom & Specialist Teachers | C14: 0 | D14: 0 | E14: 0 | F14: 0 | G14: 0 | H14: 0 | I14: 0 | K14: 0 | L14: 0 | M14: 0 | N14: 0 | O14: 0 | P14: =IF(C29=0,0,(VLOOKUP(VALUE(P$7)+$C$29-1, newrates, $A14+2, FALSE))*P$10*waf) -> 0 | Q14: 0
A15: 4 | B15: Other Teaching Services | C15: 0 | D15: 0 | E15: 0 | F15: 0 | G15: 0 | H15: 0 | I15: 0 | K15: 0 | L15: 0 | M15: 0 | N15: 0 | O15: 0 | P15: =IF(C29=0,0,(VLOOKUP(VALUE(P$7)+$C$29-1, newrates, $A15+2, FALSE))*P$10*waf) -> 0 | Q15: 0
A16: 5 | B16: Professional Development | C16: 0 | D16: 0 | E16: 0 | F16: 0 | G16: 0 | H16: 0 | I16: 0 | K16: 0 | L16: 0 | M16: 0 | N16: 0 | O16: 0 | P16: =IF(C29=0,0,(VLOOKUP(VALUE(P$7)+$C$29-1, newrates, $A16+2, FALSE))*P$10*waf) -> 0 | Q16: 0
A17: 6 | B17: Instructional Materials, Equipment & Technology* | C17: =(VLOOKUP(VALUE(C$7),newrates,$A17+2)*C$10) -> 0 | D17: 0 | E17: 0 | F17: 0 | G17: 0 | H17: 0 | I17: 0 | K17: =(VLOOKUP(VALUE(K$7),newrates,$A17+2)*K$10) -> 0 | L17: =(VLOOKUP(VALUE(L$7),newrates,$A17+2)*L$10) -> 0 | M17: =(VLOOKUP(VALUE(M$7),newrates,$A17+2)*M$10) -> 0 | N17: =(VLOOKUP(VALUE(N$7),newrates,$A17+2)*N$10) -> 0 | O17: =(VLOOKUP(VALUE(O$7),newrates,$A17+2)*O$10) -> 0 | P17: =IF(C29=0,0,(VLOOKUP(VALUE(P$7)+$C$29-1, newrates, $A17+2, FALSE))*P$10) -> 0 | Q17: 0
A18: 7 | B18: Guidance & Psychological Services | C18: =(VLOOKUP(VALUE(C$7),newrates,$A18+2)*C$10*waf) -> 0 | D18: 0 | E18: 0 | F18: 0 | G18: 0 | H18: 0 | I18: 0 | K18: =(VLOOKUP(VALUE(K$7),newrates,$A18+2)*K$10*waf) -> 0 | L18: 0 | M18: 0 | N18: 0 | O18: 0 | P18: =IF(C29=0,0,(VLOOKUP(VALUE(P$7)+$C$29-1, newrates, $A18+2, FALSE))*P$10*waf) -> 0 | Q18: 0
A19: 8 | B19: Pupil Services | C19: 0 | D19: 0 | E19: 0 | F19: 0 | G19: 0 | H19: 0 | I19: 0 | K19: 0 | L19: 0 | M19: 0 | N19: 0 | O19: 0 | P19: =IF(C29=0,0,(VLOOKUP(VALUE(P$7)+$C$29-1, newrates, $A19+2, FALSE))*P$10*waf) -> 0 | Q19: 0
A20: 9 | B20: Operations & Maintenance | C20: 0 | D20: 0 | E20: 0 | F20: 0 | G20: 0 | H20: 0 | I20: 0 | K20: 0 | L20: 0 | M20: 0 | N20: 0 | O20: 0 | P20: =IF(C29=0,0,(VLOOKUP(VALUE(P$7)+$C$29-1, newrates, $A20+2, FALSE))*P$10*waf) -> 0 | Q20: 0
A21: 10 | B21: Employee Benefits/Fixed Charges* | C21: =(VLOOKUP(VALUE(C$7),newrates,$A21+2)*C$10) -> 0 | D21: 0 | E21: 0 | F21: 0 | G21: 0 | H21: 0 | I21: 0 | K21: =(VLOOKUP(VALUE(K$7),newrates,$A21+2)*K$10) -> 0 | L21: =(VLOOKUP(VALUE(L$7),newrates,$A21+2)*L$10) -> 0 | M21: =(VLOOKUP(VALUE(M$7),newrates,$A21+2)*M$10) -> 0 | N21: =(VLOOKUP(VALUE(N$7),newrates,$A21+2)*N$10) -> 0 | O21: =(VLOOKUP(VALUE(O$7),newrates,$A21+2)*O$10) -> 0 | P21: =IF(C29=0,0,(VLOOKUP(VALUE(P$7)+$C$29-1, newrates, $A21+2, FALSE))*P$10) -> 0 | Q21: 0
A22: 11 | B22: Special Education Tuition* | C22: 0 | D22: 0 | E22: 0 | F22: 0 | G22: 0 | H22: 0 | I22: 0 | K22: =(VLOOKUP(VALUE(K$7)-2,newrates,$A22+2)*K$10) -> 0 | L22: =(VLOOKUP(VALUE(L$7),newrates,$A22+2)*L$10) -> 0 | M22: =(VLOOKUP(VALUE(M$7),newrates,$A22+2)*M$10) -> 0 | N22: =(VLOOKUP(VALUE(N$7),newrates,$A22+2)*N$10) -> 0 | O22: =(VLOOKUP(VALUE(O$7)-2,newrates,$A22+2)*O$10) -> 0 | P22: =IF(C29=0,0,(VLOOKUP(VALUE(P$7)+$C$29-1, newrates, $A22+2, FALSE))*P$10) -> 0 | Q22: 0
A24: 12 | B24: Total | C24: =SUM(C12:C22) -> 0 | D24: =SUM(D12:D22) -> 0 | E24: =SUM(E12:E22) -> 0 | F24: 0 | G24: 0 | H24: 0 | I24: =SUM(I12:I22) -> 0 | K24: 0 | L24: 0 | M24: 0 | N24: 0 | O24: 0 | P24: 0 | Q24: =SUM(Q12:Q23) -> 0
A26: 13 | B26: Wage Adjustment Factor | C26: =VLOOKUP(lea,dist915,17) -> 0 | N26: Foundation Budget per Pupil | Q26: =IFERROR(IF(A5<>999,Q24/Q10," "),"") -> 
B27: *The wage adjustment factor is applied to underlying rates in all functions except instructional equipment, benefits and special education tuition.
A28: 14 | B28: Low income percentage | C28: =VLOOKUP(lea,dist915,19) -> 0 | L28: English learner foundation budget as % total foundation budget | Q28: =IFERROR(IF(A5=999,"",SUM(M24:O24)/Q24),"") -> 
A29: 15 | B29: Low income group | C29: =VLOOKUP(lea,dist915,18) -> 0 | L29: Low-income foundation budget as % total foundation budget | Q29: =IFERROR(IF(A5=999,"",P24/Q24),"") -> 
L31: Low income enrollment determination
B32: Total foundation enrollment (column 14) does not include incremental costs above the base. The pupils are already counted in columns 1 to 7. | L32: Estimated low income enrollment based on FY16 Ch.70 | P32: =IF($A$5<>999,VLOOKUP(lea,dist915,44,0),"") -> 
B33: Total foundation enrollment assigns pupils in pre-kindergarten and half-time kindergarten an enrollment count of .5. | L33: FY22 low income enrollment from direct certification | P33: =IF($A$5<>999,VLOOKUP(lea,dist915,45,0),"") -> 
B34: Special education in-district enrollment is an assumed percentage, representing 3.83 percent of K-12 non-vocational enrollment and | L34: greater number used for FY22 Chapter 70 | P34: =IF($A$5<>999,VLOOKUP(lea,dist915,46,0),"") -> 
B35: 4.83 percent of vocational enrollment.
B36: Special education tuitioned-out enrollment is also an assumed percentage, representing 1 percent of non-vocational K-12 enrollment.
B37: Direct certification includes the Supplemental Nutrition Assistance Program (SNAP);
B38: the Transitional Assistance for Families with Dependent Children (TAFDC); MassHealth (Medicaid); and students in foster care.
B39: Low income and English learner foundation budget increments are based on:
B40: the number of students attending school in the district or district residents who attend charter schools.
B41: The low income percentage is the ratio of the low-income enrollment to:
B42: the total students attending school in the district and the total resident students attending charter schools.
B44: Each component of the foundation budget represents the enrollment in row 10 multiplied by the appropriate statewide foundation allotment.
B45: The foundation budget shown on this page may differ from the final number used in the formula, due to rounding error.
B48: Return to Index

Sheet Municipal Contribution
M1: =IF(VLOOKUP(A6,town351,18)>0,"lo","hi") -> hi
A2: Return to Index | G2: More about the data
A3: Massachusetts Department of Elementary and Secondary Education
A4: Office of School Finance
A5: =parameters!B1&" Chapter 70 Determination of City and Town Total Required Contribution" -> FY22 Chapter 70 Determination of City and Town Total Required Contribution
A6: =lea -> 999 | B6: =IF(lea>351, "This lea code does not refer to a city or a town - this table shows municipal data only.",VLOOKUP(A6,aidcalc,2)) -> This lea code does not refer to a city or a town - this table shows municipal data only.
A8: Effort Goal | E8: =parameters!B1&" Increments Toward Goal" -> FY22 Increments Toward Goal
A10: 1) | B10: 2020 equalized valuation | C10: =IF(A6<352,VLOOKUP($A$6,town351,3)," ") ->  | E10: 13) | F10: =PYr&" required local contribution" -> FY21 required local contribution | G10: =IF(A6<352,VLOOKUP($A$6,town351,14)," ") -> 
A11: 2) | B11: Uniform property percentage | C11: =IF(A6<352,'Townwide Contributions'!D5," ") ->  | E11: 14) | F11: Municipal revenue growth factor (DOR) | G11: =IF(A$6<352,VLOOKUP($A$6,town351,15)," ") -> 
A12: 3) | B12: Local effort from property wealth | C12: =IF(A6<352,VLOOKUP($A$6,town351,4)," ") ->  | E12: 15) | F12: =parameters!B1&" preliminary contribution (13 raised by 14)" -> FY22 preliminary contribution (13 raised by 14) | G12: =IF(A$6<352,VLOOKUP($A$6,town351,16)," ") -> 
E13: 16) | F13: Preliminary contribution pct of foundation (15 / 8) | G13: =IF(A$6<352,VLOOKUP($A$6,town351,17)/100," ") -> 
A14: 4) | B14: 2018 income | C14: =IF(A6<352,VLOOKUP($A$6,town351,5)," ") -> 
A15: 5) | B15: Uniform income percentage | C15: =IF(A6<352,'Townwide Contributions'!F5," ") ->  | E15: If preliminary contribution is above the target share:
A16: 6) | B16: Local effort from income | C16: =IF(A6<352,VLOOKUP($A$6,town351,6)," ") ->  | E16: 17) | F16: Excess local effort (15 - 10) | G16: =IF(AND(A$6<352,M$1="hi"),VLOOKUP($A$6,town351,21)," ") -> 
E17: 18) | F17: =parameters!$C$50&" reduction toward target (17 x "&parameters!$C$50&")" -> 100% reduction toward target (17 x 100%) | G17: =IF(AND(A$6<352,M$1="hi"),VLOOKUP($A$6,town351,22)," ") -> 
A18: 7) | B18: Combined effort yield (3 + 6) | C18: =IF(A6<352,VLOOKUP($A$6,town351,7)," ") ->  | E18: 19) | F18: =parameters!B1&" required local contribution (15 - 18), capped at 90% of foundation" -> FY22 required local contribution (15 - 18), capped at 90% of foundation | G18: =IF(AND(A$6<352,M$1="hi"),VLOOKUP($A$6,town351,24)," ") -> 
E19: 20) | F19: Contribution as percentage of foundation (19 / 8) | G19: =IF(AND(A$6<352,M$1="hi"),VLOOKUP($A$6,town351,25)/100," ") -> 
A20: 8) | B20: =parameters!B1&" Foundation budget" -> FY22 Foundation budget | C20: =IF(A6<352,VLOOKUP($A$6,town351,8)," ") -> 
A21: 9) | B21: Maximum local contribution (82.5% * 8) | C21: =IF(A6<352,VLOOKUP($A$6,town351,10)," ") ->  | E21: If preliminary contribution is below the target share:
E22: 21) | F22: Shortfall from target local share (10 - 15) | G22: =IF(AND(A$6<352,M1="lo"),-1*VLOOKUP($A$6,town351,27)," ") -> 
A23: 10) | B23: Target local contribution (lesser of 7 or 9) | C23: =IF(A6<352,VLOOKUP($A$6,town351,11)," ") ->  | E23: 22) | F23: Shortfall percentage (11 - 16) | G23: =IF(AND(A$6<352,M1="lo"),VLOOKUP($A$6,town351,18)/100," ") -> 
E24: 23) | F24: Added increment toward target (13 x 1% or 2%)* | G24: =IF(AND(A$6<352,M1="lo"),VLOOKUP($A$6,town351,20)," ") -> 
A25: 11) | B25: Target local share (10 as % of 8) | C25: =IF(A6<352,VLOOKUP(lea,town351,12)/100," ") ->  | F25: *1% if shortfall is between 2.5% and 7.5%; 2% if shortfall > 7.5%
A26: 12) | B26: Target aid share (100% minus 11) | C26: =IF(A6<352,VLOOKUP(lea,aidcalc,13)/100," ") ->  | E26: 24) | F26: Special increment toward 82.5% target** | G26: =IF(AND(A$6<352,M1="lo"),VLOOKUP($A$6,town351,23)," ") -> 
F27: **if combined effort yield > 175% foundation
F28: Combined effort yield as % of foundation | G28: =IF(AND(A$6<352,M1="lo"),IF(VLOOKUP($A$6,town351,9)>175%,VLOOKUP($A$6,town351,9)," "),"") -> 
B29: See a listing of all 351 communities | E29: 25) | F29: Shortfall from target after adding increments (10 - 15 - 23 - 24) | G29: =IF(AND(A$6<352,M1="lo"),-1*VLOOKUP($A$6,town351,28)," ") -> 
E30: 26) | F30: =parameters!B1&" required local contribution (15 + 23 + 24)" -> FY22 required local contribution (15 + 23 + 24) | G30: =IF(AND(A$6<352,M1="lo"),VLOOKUP($A$6,town351,24)," ") -> 
E31: 27) | F31: Contribution as percentage of foundation (26 / 8) | G31: =IF(AND(A$6<352,M1="lo"),VLOOKUP($A$6,town351,25)/100," ") -> 

Sheet Regional Allocation
J1: More about the data
D2: Return to Index
D3: Massachusetts Department of Elementary and Secondary Education
D4: Office of School Finance
D5: =CYr& " Chapter 70 Apportionment of Local Contribution Across School Districts" -> FY22 Chapter 70 Apportionment of Local Contribution Across School Districts
E7: 4 | F7: 4 | G7: 3 | H7: 2 | I7: 1
A9: 5 | D9: =lea -> 999 | E9: =IF($D$9>351, "", IF(AND($D$9>0, VLOOKUP($D$9*5-E$7, order1755, $A9)<>0), VLOOKUP($D$9*5-E$7, order1755, $A9), "")) ->  | F9: =IF(OR($D$9="", $D$9>351), "", IF(AND($D$9>0, VLOOKUP($D$9*5-F$7, order1755, $A9)<>0), VLOOKUP($D$9*5-F$7, order1755, $A9), "")) ->  | G9: =IF(OR($D$9="", $D$9>351), "", IF(AND($D$9>0, VLOOKUP($D$9*5-G$7, order1755, $A9)<>0), VLOOKUP($D$9*5-G$7, order1755, $A9), "")) ->  | H9: =IF(OR($D$9="", $D$9>351), "", IF(AND($D$9>0, VLOOKUP($D$9*5-H$7, order1755, $A9)<>0), VLOOKUP($D$9*5-H$7, order1755, $A9), "")) ->  | I9: =IF(OR($D$9="", $D$9>351), "", IF(AND($D$9>0, VLOOKUP($D$9*5-I$7, order1755, $A9)<>0), VLOOKUP($D$9*5-I$7, order1755, $A9), "")) ->  | J9: Combined Total for All Districts
A10: 6
E11: Prior Year Data (for comparison purposes)
A13: 15 | D13: 1 | E13: =parameters!B2&" foundation enrollment" -> FY21 foundation enrollment | F13: =IF(OR($D$9="", $D$9>351), "", IF(AND($D$9>0, VLOOKUP($D$9*5-F$7, order1755, $A13)<>0), VLOOKUP($D$9*5-F$7, order1755, $A13), "")) ->  | J13: =IF(OR($D$9="", $D$9>351), "", VLOOKUP($D$9*5, order1755, $A13)) -> 
A14: 6 | D14: 2 | E14: =parameters!B2&" foundation budget" -> FY21 foundation budget | J14: =IF(OR($D$9="", $D$9>351), "", VLOOKUP($D$9*5, order1755, $A14)) -> 
A15: 7 | D15: 3 | E15: ="Each district's share of municipality's combined "& parameters!B2&" foundation" -> Each district's share of municipality's combined FY21 foundation | J15: =IF(OR($D$9="", $D$9>351), "", VLOOKUP($D$9*5, order1755, $A15)) -> 
A16: 12 | D16: 4 | E16: =parameters!B2&" required contribution" -> FY21 required contribution | J16: =IF(OR($D$9="", $D$9>351), "", VLOOKUP($D$9*5, order1755, $A16)) -> 
E17: =parameters!B1& " apportionment of contribution among community's districts" -> FY22 apportionment of contribution among community's districts
D18: 5 | E18: =parameters!B1&" total unapportioned required contribution ('municipal contribution' tab row 19 or 25)" -> FY22 total unapportioned required contribution ('municipal contribution' tab row 19 or 25) | J18: =IF(OR($D$9="", $D$9>351), "", VLOOKUP($D$9,town351,24)) -> 
A19: 20 | D19: 6 | E19: =parameters!B1&" foundation enrollment" -> FY22 foundation enrollment | F19: =IF(OR($D$9="", $D$9>351), "", IF(AND($D$9>0, VLOOKUP($D$9*5-F$7, order1755, $A19)<>0), VLOOKUP($D$9*5-F$7, order1755, $A19), "")) ->  | J19: =IF(OR($D$9="", $D$9>351), "", VLOOKUP($D$9*5, order1755, $A19)) -> 
A20: 8 | D20: 7 | E20: =parameters!B1&" foundation budget" -> FY22 foundation budget | J20: =IF(OR($D$9="", $D$9>351), "", VLOOKUP($D$9*5, order1755, $A20)) -> 
A21: 9 | D21: 8 | E21: ="Each district's share of municipality's total "& parameters!B1&" foundation " -> Each district's share of municipality's total FY22 foundation | J21: =IF(OR($D$9="", $D$9>351), "", VLOOKUP($D$9*5, order1755, $A21)) -> 
A22: 11 | D22: 9 | E22: =parameters!B1&" Required Contribution" -> FY22 Required Contribution | J22: =VLOOKUP($D$9*5, order1755, $A22) -> 6827673657
A24: 13 | D24: 10 | E24: ="Change "&parameters!B1&" to "&parameters!B2& " (9 - 4)" -> Change FY22 to FY21 (9 - 4) | F24: =IF(OR($D$9="", $D$9>351), "", IF(AND($D$9>0, VLOOKUP($D$9*5-F$7, order1755, $A24)<>0), VLOOKUP($D$9*5-F$7, order1755, $A24), "")) ->  | G24: =IF(OR($D$9="", $D$9>351), "", IF(AND($D$9>0, VLOOKUP($D$9*5-G$7, order1755, $A24)<>0), VLOOKUP($D$9*5-G$7, order1755, $A24), "")) ->  | H24: =IF(OR($D$9="", $D$9>351), "", IF(AND($D$9>0, VLOOKUP($D$9*5-H$7, order1755, $A24)<>0), VLOOKUP($D$9*5-H$7, order1755, $A24), "")) ->  | I24: =IF(OR($D$9="", $D$9>351), "", IF(AND($D$9>0, VLOOKUP($D$9*5-I$7, order1755, $A24)<>0), VLOOKUP($D$9*5-I$7, order1755, $A24), "")) ->  | J24: =IF(OR($D$9="", $D$9>351), "", VLOOKUP($D$9*5, order1755, $A24)) -> 
E26: The combined totals on lines 5 and 9 may differ due to rounding.

Sheet Summary
A1: Return to Index | J1: More about the data
A3: Massachusetts Department of Elementary and Secondary Education
A4: =parameters!B1&" Chapter 70 Summary" -> FY22 Chapter 70 Summary
A6: =lea -> 999 | B6: =PROPER(VLOOKUP(A6,dist915,2)) -> State Total
A8: Aid Calculation FY22 | E8: ="Comparison to "&PYr -> Comparison to FY21
F10: =PYr -> FY21 | G10: =CYr -> FY22 | H10: Change | I10: Pct Chg | U10: FY06 | V10: FY07 | W10: FY08 | X10: FY09 | Y10: FY10 | Z10: FY11 | AA10: FY12 | AB10: FY13 | AC10: FY14 | AD10: FY15 | AE10: FY16 | AF10: FY17 | AG10: FY18 | AH10: FY19 | AI10: FY20 | AJ10: FY21 | AK10: FY22
A11: Prior Year Aid | E11: Enrollment | F11: =VLOOKUP(A6,aidcalc,14) -> 938085 | G11: =VLOOKUP(A6,aidcalc,15) -> 907506 | H11: =G11-F11 -> -30579 | I11: =IF(F11>0, H11/F11, 0) -> -0.03259725931 | T11: Required District Contribution | U11: =VLOOKUP($A$6,disthist,5) -> 4743946672 | V11: =VLOOKUP($A$6,disthist,8) -> 4876428772 | W11: =VLOOKUP($A$6,disthist,11) -> 4997705374 | X11: =VLOOKUP($A$6,disthist,14) -> 5110365426 | Y11: =VLOOKUP($A$6,disthist,18) -> 5250106061 | Z11: =VLOOKUP($A$6,disthist,22) -> 5302200670 | AA11: =VLOOKUP($A$6,disthist,27) -> 5413602268 | AB11: =VLOOKUP($A$6,disthist,30) -> 5582113529 | AC11: =VLOOKUP($A$6,disthist, 33) -> 5748475145 | AD11: =VLOOKUP($A$6,disthist, 36) -> 5817618237 | AE11: =VLOOKUP($A$6,disthist, 39) -> 5943909029 | AF11: =VLOOKUP($A$6,disthist, 42) -> 5926185567 | AG11: =VLOOKUP($A$6,disthist, 45) -> 6046916786 | AH11: =VLOOKUP($A$6,disthist, 48) -> 6246842886 | AI11: =VLOOKUP($A$6,disthist, 51) -> 6513607368 | AJ11: =VLOOKUP($A$6,disthist, 54) -> 6705321561 | AK11: =VLOOKUP($A$6,aidcalc,10 ) -> 6827673657
A12: 1 | B12: ="Chapter 70 "&PYr -> Chapter 70 FY21 | C12: =VLOOKUP(A6,aidcalc,6) -> 5283343073 | E12: Foundation budget | F12: =VLOOKUP(A6,disthist,53) -> 1.16265311e+10 | G12: =VLOOKUP(A6,aidcalc,9) -> 1.192622579e+10 | H12: =G12-F12 -> 299694696.4 | I12: =IF(F12>0, H12/F12, 0) -> 0.02577679395 | T12: C70 Aid | U12: =VLOOKUP($A$6,disthist,6) -> 3288603062 | V12: =VLOOKUP($A$6,disthist,9) -> 3505192039 | W12: =VLOOKUP($A$6,disthist,12) -> 3725343327 | X12: =VLOOKUP($A$6,disthist,15)+VLOOKUP($A$6,disthist,16) -> 3948496062 | Y12: =VLOOKUP($A$6,disthist,19)+VLOOKUP($A$6,disthist,20) -> 4043156700 | Z12: =VLOOKUP($A$6,disthist,23)+VLOOKUP($A$6,disthist,24)+VLOOKUP($A$6,disthist,25) -> 4072032853 | AA12: =VLOOKUP($A$6,disthist,28) -> 3990504093 | AB12: =VLOOKUP($A$6,disthist,31) -> 4173223954 | AC12: =VLOOKUP($A$6,disthist,34) -> 4300854366 | AD12: =VLOOKUP($A$6,disthist,37) -> 4400335962 | AE12: =VLOOKUP($A$6,disthist,40) -> 4511521974 | AF12: =VLOOKUP($A$6,disthist,43) -> 4627705061 | AG12: =VLOOKUP($A$6,disthist,46) -> 4745645156 | AH12: =VLOOKUP($A$6,disthist,49) -> 4906614766 | AI12: =VLOOKUP($A$6,disthist,52) -> 5175694094 | AJ12: =VLOOKUP($A$6,disthist,55) -> 5283343073 | AK12: =VLOOKUP($A$6,aidcalc,25) -> 5502959667
E13: Required district contribution | F13: =VLOOKUP(A6,disthist,54) -> 6705321561 | G13: =VLOOKUP($A$6, aidcalc, 10) -> 6827673657 | H13: =G13-F13 -> 122352096 | I13: =IF(F13>0, H13/F13, 0) -> 0.01824701394 | T13: Foundation Budget | U13: =VLOOKUP($A$6,disthist,4) -> 7551933454 | V13: =VLOOKUP($A$6,disthist,7) -> 8014672861 | W13: =VLOOKUP($A$6,disthist,10) -> 8406096436 | X13: =VLOOKUP($A$6,disthist,13) -> 8811314229 | Y13: =VLOOKUP($A$6,disthist,17) -> 9088557473 | Z13: =VLOOKUP($A$6,disthist,21) -> 8921047970 | AA13: =VLOOKUP($A$6,disthist,26) -> 9119340580 | AB13: =VLOOKUP($A$6,disthist,29) -> 9467117141 | AC13: =VLOOKUP($A$6,disthist, 32) -> 9711217585 | AD13: =VLOOKUP($A$6,disthist, 35) -> 9866011313 | AE13: =VLOOKUP($A$6,disthist, 38) -> 1.009017727e+10 | AF13: =VLOOKUP($A$6,disthist, 41) -> 1.012823838e+10 | AG13: =VLOOKUP($A$6,disthist, 44) -> 1.037917384e+10 | AH13: =VLOOKUP($A$6,disthist, 47) -> 1.077758855e+10 | AI13: =VLOOKUP($A$6,disthist, 50) -> 1.135904851e+10 | AJ13: =VLOOKUP($A$6,disthist, 53) -> 1.16265311e+10 | AK13: =VLOOKUP($A$6,aidcalc,9 ) -> 1.192622579e+10
A14: Foundation Aid | E14: Chapter 70 aid | F14: =IF(A6=999,VLOOKUP(A6,disthist,55,0)+308558,VLOOKUP(A6,disthist,55,0)) -> 5283651631 | G14: =IF(A6=999,VLOOKUP($A$6,aidcalc,25,0)+308558,VLOOKUP($A$6,aidcalc,25,0)) -> 5503268225 | H14: =G14-F14 -> 219616593.1 | I14: =IF(F14>0, H14/F14, 0) -> 0.04156530529
A15: 2 | B15: Foundation budget FY22 | C15: =VLOOKUP($A$6, aidcalc, 9) -> 1.192622579e+10 | E15: Required net school spending (NSS) | F15: =F13+F14 -> 1.198897319e+10 | G15: =G13+G14 -> 1.233094188e+10 | H15: =G15-F15 -> 341968689.1 | I15: =IF(F15>0, H15/F15, 0) -> 0.02852360111
A16: 3 | B16: ="Required district contribution "& CYr -> Required district contribution FY22 | C16: =VLOOKUP($A$6, aidcalc, 10) -> 6827673657
A17: 4 | B17: Foundation aid (2 -3) | C17: =VLOOKUP($A$6, aidcalc, 11) -> 5098552128 | E17: Target aid share | F17: =VLOOKUP(A$6,disthist,3)/100 -> 0.41 | G17: =VLOOKUP(A6,aidcalc,13)/100 -> 0.41
A18: 5 | B18: ="Increase over " & PYr&" (4 - 1)" -> Increase over FY21 (4 - 1) | C18: =VLOOKUP($A$6, aidcalc, 12) -> 199286644.4 | E18: C70 % of foundation | F18: =IF(F12>0,F14/F12,IF(F14>0,1,0)) -> 0.4544478132 | G18: =IF(G12>0,G14/G12,IF(G14>0,1,0)) -> 0.4614425654
A20: Minimum Aid | E20: Required NSS % of foundation | F20: =IF(F12>0,F15/F12,IF(F15>0,1,0)) -> 1.031173709 | G20: =IF(G12>0,G15/G12,IF(G15>0,1,0)) -> 1.033934968
A21: 6 | B21: Minimum $30 per pupil increase | C21: =IF(A6=999,"",VLOOKUP($A$6,aidcalc,17,0)) -> 
A22: 7 | B22: Minimum aid amount
B23: (if line 6 - line 5 > 0, then line 6 - line 5, otherwise 0) | C23: =VLOOKUP($A$6, aidcalc, 18,0) -> 16714836
A25: Subtotal
A26: 8 | B26: Sum of 1,5,7 | C26: =C12+C18+C23 -> 5499344554
A28: Minimum Aid Adjustment
A29: 9 | B29: Minimum aid adjustment | C29: =IF(A6=999,"",VLOOKUP($A$6, aidcalc, 20)) -> 
A30: 10 | B30: Aid adjustment increment
B31: (if line 9 - line 8 > 0, then line 9 - line 8, otherwise 0) | C31: =VLOOKUP($A$6, aidcalc, 21, FALSE) -> 3553119
A33: Non-Operating District Reduction to Foundation
A34: 11 | B34: Reduction to foundation | C34: =VLOOKUP($A$6, aidcalc, 23) -> 31346.88
A36: Hold harmless aid based on Municipal Revenue Growth Factors used in House 1
A37: 12 | B37: Hold harmless aid increment | C37: =VLOOKUP($A$6, aidcalc, 24) -> 93340.6
A39: =CYr&" Chapter 70 Aid" -> FY22 Chapter 70 Aid
A40: 13 | B40: Sum of 1,5,7,10 minus 11 plus 12 | C40: =VLOOKUP($A$6, aidcalc, 25) -> 5502959667
B41: =IF(A6=999,"with Devens aid","") -> with Devens aid | C41: =IF(A6=999,C40+308558,"") -> 5503268225
A43: Note on Minimum Aid Adjustment on lines 9 and 10:
A44: The minimum aid adjustment is the sum of (a) the greater of foundation aid or base aid determined based on the FY21 base and incremental rates, inflated to FY22, and (b) foundation enrollment multiplied by $30. The aid adjustment increment (line 10) is the line 9 amount less the line 9 amount if the difference is positive. Otherwise, the increment is zero.
A52: Note on hold harmless add on line 12
A53: The hold harmless aid increment (line 12) guarantees districts the greater of (a) Chapter 70 aid based on the final FY22 budget parameters including the Municipal Revenue Growth Factors (MRGFs), and (b) Chapter 70 aid based on the same parameters except for MRGFs used in House 1.

Sheet Regional District Members
E2: Return to Index
F3: Select or type full regional district name below
E4: =VLOOKUP(reg_order, regdistricts, 3, FALSE) -> 600 | F4: Acton Boxborough | G4: =VLOOKUP(F4,leas!$E$450:$H$536,4,FALSE) -> 1
E6: Massachusetts Department of Elementary and Secondary Education
E7: Office of School Finance
E8: =CYr&" Chapter 70" -> FY22 Chapter 70
E9: Regional District Enrollment and Contributions by Member City or Town
E10: The table below presents the minimum required local contribution for each member to the selected regional district.
E11: Note: A city or town might belong to more than one regional district (e.g., a regional district and a vocational district) and therefore be required to contribute to multiple districts. See the regional allocation tab for a full list of minimum required contributions for each city or town. Foundation enrollments are presented as whole numbers. The change column reflects differences prior to rounding.
B12: =VLOOKUP(E4, leas!D6:G445, 4, FALSE) -> 0600 | D12: 2 | E12: =VLOOKUP(reg_order, regdistricts, 2, FALSE) -> 600 Acton Boxborough
G14: Foundation Enrollment in Regional District | J14: Required Minimum Contribution to Regional District
B16: =VLOOKUP($E$4, regcount, 2, FALSE) -> 2 | E16: LEA | F16: Member | G16: =PYr -> FY21 | H16: =CYr -> FY22 | I16: Change | J16: =PYr -> FY21 | K16: =CYr -> FY22 | L16: Change
F18: Total | G18: =SUM(G20:G67) -> 5294 | H18: =SUM(H20:H67) -> 5120 | I18: =SUM(I20:I67) -> -174 | J18: =SUM(J20:J67) -> 46230356 | K18: =SUM(K20:K67) -> 46723042 | L18: =SUM(L20:L62) -> 492686
A20: =IF($C20<=$B$16,VLOOKUP(E20,leas!D6:G445,4,FALSE),"") -> 0002 | B20: =$E$4*100+C20 -> 60001 | C20: 1 | E20: =IF($C20<=$B$16, VLOOKUP($B20, regdetail, 5), " ") -> 2 | F20: =IF($C20<=$B$16, VLOOKUP($B20, regdetail, 6), " ") -> Acton | G20: =IF($C20<=$B$16,VLOOKUP(A20&$B$12, localcont!A10:X1764, 18, FALSE), "") -> 4437.978144 | H20: =IF($C20<=$B$16,VLOOKUP(A20&$B$12, localcont!$A$10:$X$1764, 23, FALSE), "") -> 4287.104809 | I20: =IF($C20<=$B$16, H20-G20, " ") -> -150.8733347 | J20: =IF($C20<=$B$16,VLOOKUP(A20&$B$12, localcont!$A$10:$X$1764, 15, FALSE), "") -> 38561442 | K20: =IF($C20<=$B$16,VLOOKUP(A20&$B$12, localcont!$A$10:$X$1764, 14, FALSE),"") -> 38962815 | L20: =IF($C20<=$B$16, K20-J20, " ") -> 401373
A21: =IF($C21<=$B$16,VLOOKUP(E21,leas!D7:G446,4,FALSE),"") -> 0037 | B21: =$E$4*100+C21 -> 60002 | C21: 2 | E21: 37 | F21: Boxborough | G21: =IF($C21<=$B$16,VLOOKUP(A21&$B$12, localcont!A11:X1765, 18, FALSE), "") -> 856.0218559 | H21: =IF($C21<=$B$16,VLOOKUP(A21&$B$12, localcont!$A$10:$X$1764, 23, FALSE), "") -> 832.8951906 | I21: =IF($C21<=$B$16, H21-G21, " ") -> -23.12666525 | J21: =IF($C21<=$B$16,VLOOKUP(A21&$B$12, localcont!$A$10:$X$1764, 15, FALSE), "") -> 7668914 | K21: =IF($C21<=$B$16,VLOOKUP(A21&$B$12, localcont!$A$10:$X$1764, 14, FALSE),"") -> 7760227 | L21: =IF($C21<=$B$16, K21-J21, " ") -> 91313
A22: =IF($C22<=$B$16,VLOOKUP(E22,leas!D8:G447,4,FALSE),"") ->  | B22: 60003 | C22: 3 | G22: =IF($C22<=$B$16,VLOOKUP(A22&$B$12, localcont!A12:X1766, 18, FALSE), "") ->  | H22: =IF($C22<=$B$16,VLOOKUP(A22&$B$12, localcont!$A$10:$X$1764, 23, FALSE), "") ->  | J22: =IF($C22<=$B$16,VLOOKUP(A22&$B$12, localcont!$A$10:$X$1764, 15, FALSE), "") ->  | K22: =IF($C22<=$B$16,VLOOKUP(A22&$B$12, localcont!$A$10:$X$1764, 14, FALSE),"") -> 
A23: =IF($C23<=$B$16,VLOOKUP(E23,leas!D9:G448,4,FALSE),"") ->  | B23: 60004 | C23: 4 | G23: =IF($C23<=$B$16,VLOOKUP(A23&$B$12, localcont!A13:X1767, 18, FALSE), "") ->  | H23: =IF($C23<=$B$16,VLOOKUP(A23&$B$12, localcont!$A$10:$X$1764, 23, FALSE), "") ->  | J23: =IF($C23<=$B$16,VLOOKUP(A23&$B$12, localcont!$A$10:$X$1764, 15, FALSE), "") ->  | K23: =IF($C23<=$B$16,VLOOKUP(A23&$B$12, localcont!$A$10:$X$1764, 14, FALSE),"") -> 
A24: =IF($C24<=$B$16,VLOOKUP(E24,leas!D10:G449,4,FALSE),"") ->  | B24: 60005 | C24: 5 | G24: =IF($C24<=$B$16,VLOOKUP(A24&$B$12, localcont!A14:X1768, 18, FALSE), "") ->  | H24: =IF($C24<=$B$16,VLOOKUP(A24&$B$12, localcont!$A$10:$X$1764, 23, FALSE), "") ->  | J24: =IF($C24<=$B$16,VLOOKUP(A24&$B$12, localcont!$A$10:$X$1764, 15, FALSE), "") ->  | K24: =IF($C24<=$B$16,VLOOKUP(A24&$B$12, localcont!$A$10:$X$1764, 14, FALSE),"") -> 
A25: =IF($C25<=$B$16,VLOOKUP(E25,leas!D11:G450,4,FALSE),"") ->  | B25: 60006 | C25: 6 | G25: =IF($C25<=$B$16,VLOOKUP(A25&$B$12, localcont!A15:X1769, 18, FALSE), "") ->  | H25: =IF($C25<=$B$16,VLOOKUP(A25&$B$12, localcont!$A$10:$X$1764, 23, FALSE), "") ->  | J25: =IF($C25<=$B$16,VLOOKUP(A25&$B$12, localcont!$A$10:$X$1764, 15, FALSE), "") ->  | K25: =IF($C25<=$B$16,VLOOKUP(A25&$B$12, localcont!$A$10:$X$1764, 14, FALSE),"") -> 
A26: =IF($C26<=$B$16,VLOOKUP(E26,leas!D12:G451,4,FALSE),"") ->  | B26: 60007 | C26: 7 | G26: =IF($C26<=$B$16,VLOOKUP(A26&$B$12, localcont!A16:X1770, 18, FALSE), "") ->  | H26: =IF($C26<=$B$16,VLOOKUP(A26&$B$12, localcont!$A$10:$X$1764, 23, FALSE), "") ->  | J26: =IF($C26<=$B$16,VLOOKUP(A26&$B$12, localcont!$A$10:$X$1764, 15, FALSE), "") ->  | K26: =IF($C26<=$B$16,VLOOKUP(A26&$B$12, localcont!$A$10:$X$1764, 14, FALSE),"") -> 
A27: =IF($C27<=$B$16,VLOOKUP(E27,leas!D13:G452,4,FALSE),"") ->  | B27: 60008 | C27: 8 | G27: =IF($C27<=$B$16,VLOOKUP(A27&$B$12, localcont!A17:X1771, 18, FALSE), "") ->  | H27: =IF($C27<=$B$16,VLOOKUP(A27&$B$12, localcont!$A$10:$X$1764, 23, FALSE), "") ->  | J27: =IF($C27<=$B$16,VLOOKUP(A27&$B$12, localcont!$A$10:$X$1764, 15, FALSE), "") ->  | K27: =IF($C27<=$B$16,VLOOKUP(A27&$B$12, localcont!$A$10:$X$1764, 14, FALSE),"") -> 
A28: =IF($C28<=$B$16,VLOOKUP(E28,leas!D14:G453,4,FALSE),"") ->  | B28: 60009 | C28: 9 | G28: =IF($C28<=$B$16,VLOOKUP(A28&$B$12, localcont!A18:X1772, 18, FALSE), "") ->  | H28: =IF($C28<=$B$16,VLOOKUP(A28&$B$12, localcont!$A$10:$X$1764, 23, FALSE), "") ->  | J28: =IF($C28<=$B$16,VLOOKUP(A28&$B$12, localcont!$A$10:$X$1764, 15, FALSE), "") ->  | K28: =IF($C28<=$B$16,VLOOKUP(A28&$B$12, localcont!$A$10:$X$1764, 14, FALSE),"") -> 
A29: =IF($C29<=$B$16,VLOOKUP(E29,leas!D15:G454,4,FALSE),"") ->  | B29: 60010 | C29: 10 | G29: =IF($C29<=$B$16,VLOOKUP(A29&$B$12, localcont!A19:X1773, 18, FALSE), "") ->  | H29: =IF($C29<=$B$16,VLOOKUP(A29&$B$12, localcont!$A$10:$X$1764, 23, FALSE), "") ->  | J29: =IF($C29<=$B$16,VLOOKUP(A29&$B$12, localcont!$A$10:$X$1764, 15, FALSE), "") ->  | K29: =IF($C29<=$B$16,VLOOKUP(A29&$B$12, localcont!$A$10:$X$1764, 14, FALSE),"") -> 
A30: =IF($C30<=$B$16,VLOOKUP(E30,leas!D16:G455,4,FALSE),"") ->  | B30: 60011 | C30: 11 | G30: =IF($C30<=$B$16,VLOOKUP(A30&$B$12, localcont!A20:X1774, 18, FALSE), "") ->  | H30: =IF($C30<=$B$16,VLOOKUP(A30&$B$12, localcont!$A$10:$X$1764, 23, FALSE), "") ->  | J30: =IF($C30<=$B$16,VLOOKUP(A30&$B$12, localcont!$A$10:$X$1764, 15, FALSE), "") ->  | K30: =IF($C30<=$B$16,VLOOKUP(A30&$B$12, localcont!$A$10:$X$1764, 14, FALSE),"") -> 
A31: =IF($C31<=$B$16,VLOOKUP(E31,leas!D17:G456,4,FALSE),"") ->  | B31: 60012 | C31: 12 | G31: =IF($C31<=$B$16,VLOOKUP(A31&$B$12, localcont!A21:X1775, 18, FALSE), "") ->  | H31: =IF($C31<=$B$16,VLOOKUP(A31&$B$12, localcont!$A$10:$X$1764, 23, FALSE), "") ->  | J31: =IF($C31<=$B$16,VLOOKUP(A31&$B$12, localcont!$A$10:$X$1764, 15, FALSE), "") ->  | K31: =IF($C31<=$B$16,VLOOKUP(A31&$B$12, localcont!$A$10:$X$1764, 14, FALSE),"") -> 
A32: =IF($C32<=$B$16,VLOOKUP(E32,leas!D18:G457,4,FALSE),"") ->  | B32: 60013 | C32: 13 | G32: =IF($C32<=$B$16,VLOOKUP(A32&$B$12, localcont!A22:X1776, 18, FALSE), "") ->  | H32: =IF($C32<=$B$16,VLOOKUP(A32&$B$12, localcont!$A$10:$X$1764, 23, FALSE), "") ->  | J32: =IF($C32<=$B$16,VLOOKUP(A32&$B$12, localcont!$A$10:$X$1764, 15, FALSE), "") ->  | K32: =IF($C32<=$B$16,VLOOKUP(A32&$B$12, localcont!$A$10:$X$1764, 14, FALSE),"") -> 
A33: =IF($C33<=$B$16,VLOOKUP(E33,leas!D19:G458,4,FALSE),"") ->  | B33: 60014 | C33: 14 | G33: =IF($C33<=$B$16,VLOOKUP(A33&$B$12, localcont!A23:X1777, 18, FALSE), "") ->  | H33: =IF($C33<=$B$16,VLOOKUP(A33&$B$12, localcont!$A$10:$X$1764, 23, FALSE), "") ->  | J33: =IF($C33<=$B$16,VLOOKUP(A33&$B$12, localcont!$A$10:$X$1764, 15, FALSE), "") ->  | K33: =IF($C33<=$B$16,VLOOKUP(A33&$B$12, localcont!$A$10:$X$1764, 14, FALSE),"") -> 
A34: =IF($C34<=$B$16,VLOOKUP(E34,leas!D20:G459,4,FALSE),"") ->  | B34: 60015 | C34: 15 | G34: =IF($C34<=$B$16,VLOOKUP(A34&$B$12, localcont!A24:X1778, 18, FALSE), "") ->  | H34: =IF($C34<=$B$16,VLOOKUP(A34&$B$12, localcont!$A$10:$X$1764, 23, FALSE), "") ->  | J34: =IF($C34<=$B$16,VLOOKUP(A34&$B$12, localcont!$A$10:$X$1764, 15, FALSE), "") ->  | K34: =IF($C34<=$B$16,VLOOKUP(A34&$B$12, localcont!$A$10:$X$1764, 14, FALSE),"") -> 
A35: =IF($C35<=$B$16,VLOOKUP(E35,leas!D21:G460,4,FALSE),"") ->  | B35: 60016 | C35: 16 | G35: =IF($C35<=$B$16,VLOOKUP(A35&$B$12, localcont!A25:X1779, 18, FALSE), "") ->  | H35: =IF($C35<=$B$16,VLOOKUP(A35&$B$12, localcont!$A$10:$X$1764, 23, FALSE), "") ->  | J35: =IF($C35<=$B$16,VLOOKUP(A35&$B$12, localcont!$A$10:$X$1764, 15, FALSE), "") ->  | K35: =IF($C35<=$B$16,VLOOKUP(A35&$B$12, localcont!$A$10:$X$1764, 14, FALSE),"") -> 
A36: =IF($C36<=$B$16,VLOOKUP(E36,leas!D22:G461,4,FALSE),"") ->  | B36: 60017 | C36: 17 | G36: =IF($C36<=$B$16,VLOOKUP(A36&$B$12, localcont!A26:X1780, 18, FALSE), "") ->  | H36: =IF($C36<=$B$16,VLOOKUP(A36&$B$12, localcont!$A$10:$X$1764, 23, FALSE), "") ->  | J36: =IF($C36<=$B$16,VLOOKUP(A36&$B$12, localcont!$A$10:$X$1764, 15, FALSE), "") ->  | K36: =IF($C36<=$B$16,VLOOKUP(A36&$B$12, localcont!$A$10:$X$1764, 14, FALSE),"") -> 
A37: =IF($C37<=$B$16,VLOOKUP(E37,leas!D23:G462,4,FALSE),"") ->  | B37: 60018 | C37: 18 | G37: =IF($C37<=$B$16,VLOOKUP(A37&$B$12, localcont!A27:X1781, 18, FALSE), "") ->  | H37: =IF($C37<=$B$16,VLOOKUP(A37&$B$12, localcont!$A$10:$X$1764, 23, FALSE), "") ->  | J37: =IF($C37<=$B$16,VLOOKUP(A37&$B$12, localcont!$A$10:$X$1764, 15, FALSE), "") ->  | K37: =IF($C37<=$B$16,VLOOKUP(A37&$B$12, localcont!$A$10:$X$1764, 14, FALSE),"") -> 
A38: =IF($C38<=$B$16,VLOOKUP(E38,leas!D24:G463,4,FALSE),"") ->  | B38: 60019 | C38: 19 | G38: =IF($C38<=$B$16,VLOOKUP(A38&$B$12, localcont!A28:X1782, 18, FALSE), "") ->  | H38: =IF($C38<=$B$16,VLOOKUP(A38&$B$12, localcont!$A$10:$X$1764, 23, FALSE), "") ->  | J38: =IF($C38<=$B$16,VLOOKUP(A38&$B$12, localcont!$A$10:$X$1764, 15, FALSE), "") ->  | K38: =IF($C38<=$B$16,VLOOKUP(A38&$B$12, localcont!$A$10:$X$1764, 14, FALSE),"") -> 
A39: =IF($C39<=$B$16,VLOOKUP(E39,leas!D25:G464,4,FALSE),"") ->  | B39: 60020 | C39: 20 | G39: =IF($C39<=$B$16,VLOOKUP(A39&$B$12, localcont!A29:X1783, 18, FALSE), "") ->  | H39: =IF($C39<=$B$16,VLOOKUP(A39&$B$12, localcont!$A$10:$X$1764, 23, FALSE), "") ->  | J39: =IF($C39<=$B$16,VLOOKUP(A39&$B$12, localcont!$A$10:$X$1764, 15, FALSE), "") ->  | K39: =IF($C39<=$B$16,VLOOKUP(A39&$B$12, localcont!$A$10:$X$1764, 14, FALSE),"") -> 
A40: =IF($C40<=$B$16,VLOOKUP(E40,leas!D26:G465,4,FALSE),"") ->  | B40: 60021 | C40: 21 | G40: =IF($C40<=$B$16,VLOOKUP(A40&$B$12, localcont!A30:X1784, 18, FALSE), "") ->  | H40: =IF($C40<=$B$16,VLOOKUP(A40&$B$12, localcont!$A$10:$X$1764, 23, FALSE), "") ->  | J40: =IF($C40<=$B$16,VLOOKUP(A40&$B$12, localcont!$A$10:$X$1764, 15, FALSE), "") ->  | K40: =IF($C40<=$B$16,VLOOKUP(A40&$B$12, localcont!$A$10:$X$1764, 14, FALSE),"") -> 
A41: =IF($C41<=$B$16,VLOOKUP(E41,leas!D27:G466,4,FALSE),"") ->  | B41: 60022 | C41: 22 | G41: =IF($C41<=$B$16,VLOOKUP(A41&$B$12, localcont!A31:X1785, 18, FALSE), "") ->  | H41: =IF($C41<=$B$16,VLOOKUP(A41&$B$12, localcont!$A$10:$X$1764, 23, FALSE), "") ->  | J41: =IF($C41<=$B$16,VLOOKUP(A41&$B$12, localcont!$A$10:$X$1764, 15, FALSE), "") ->  | K41: =IF($C41<=$B$16,VLOOKUP(A41&$B$12, localcont!$A$10:$X$1764, 14, FALSE),"") -> 
A42: =IF($C42<=$B$16,VLOOKUP(E42,leas!D28:G467,4,FALSE),"") ->  | B42: 60023 | C42: 23 | G42: =IF($C42<=$B$16,VLOOKUP(A42&$B$12, localcont!A32:X1786, 18, FALSE), "") ->  | H42: =IF($C42<=$B$16,VLOOKUP(A42&$B$12, localcont!$A$10:$X$1764, 23, FALSE), "") ->  | J42: =IF($C42<=$B$16,VLOOKUP(A42&$B$12, localcont!$A$10:$X$1764, 15, FALSE), "") ->  | K42: =IF($C42<=$B$16,VLOOKUP(A42&$B$12, localcont!$A$10:$X$1764, 14, FALSE),"") -> 
A43: =IF($C43<=$B$16,VLOOKUP(E43,leas!D29:G468,4,FALSE),"") ->  | B43: 60024 | C43: 24 | G43: =IF($C43<=$B$16,VLOOKUP(A43&$B$12, localcont!A33:X1787, 18, FALSE), "") ->  | H43: =IF($C43<=$B$16,VLOOKUP(A43&$B$12, localcont!$A$10:$X$1764, 23, FALSE), "") ->  | J43: =IF($C43<=$B$16,VLOOKUP(A43&$B$12, localcont!$A$10:$X$1764, 15, FALSE), "") ->  | K43: =IF($C43<=$B$16,VLOOKUP(A43&$B$12, localcont!$A$10:$X$1764, 14, FALSE),"") -> 
A44: =IF($C44<=$B$16,VLOOKUP(E44,leas!D30:G469,4,FALSE),"") ->  | B44: 60025 | C44: 25 | G44: =IF($C44<=$B$16,VLOOKUP(A44&$B$12, localcont!A34:X1788, 18, FALSE), "") ->  | H44: =IF($C44<=$B$16,VLOOKUP(A44&$B$12, localcont!$A$10:$X$1764, 23, FALSE), "") ->  | J44: =IF($C44<=$B$16,VLOOKUP(A44&$B$12, localcont!$A$10:$X$1764, 15, FALSE), "") ->  | K44: =IF($C44<=$B$16,VLOOKUP(A44&$B$12, localcont!$A$10:$X$1764, 14, FALSE),"") -> 
A45: =IF($C45<=$B$16,VLOOKUP(E45,leas!D31:G470,4,FALSE),"") ->  | B45: 60026 | C45: 26 | G45: =IF($C45<=$B$16,VLOOKUP(A45&$B$12, localcont!A35:X1789, 18, FALSE), "") ->  | H45: =IF($C45<=$B$16,VLOOKUP(A45&$B$12, localcont!$A$10:$X$1764, 23, FALSE), "") ->  | J45: =IF($C45<=$B$16,VLOOKUP(A45&$B$12, localcont!$A$10:$X$1764, 15, FALSE), "") ->  | K45: =IF($C45<=$B$16,VLOOKUP(A45&$B$12, localcont!$A$10:$X$1764, 14, FALSE),"") -> 
A46: =IF($C46<=$B$16,VLOOKUP(E46,leas!D32:G471,4,FALSE),"") ->  | B46: 60027 | C46: 27 | G46: =IF($C46<=$B$16,VLOOKUP(A46&$B$12, localcont!A36:X1790, 18, FALSE), "") ->  | H46: =IF($C46<=$B$16,VLOOKUP(A46&$B$12, localcont!$A$10:$X$1764, 23, FALSE), "") ->  | J46: =IF($C46<=$B$16,VLOOKUP(A46&$B$12, localcont!$A$10:$X$1764, 15, FALSE), "") ->  | K46: =IF($C46<=$B$16,VLOOKUP(A46&$B$12, localcont!$A$10:$X$1764, 14, FALSE),"") -> 
A47: =IF($C47<=$B$16,VLOOKUP(E47,leas!D33:G472,4,FALSE),"") ->  | B47: 60028 | C47: 28 | G47: =IF($C47<=$B$16,VLOOKUP(A47&$B$12, localcont!A37:X1791, 18, FALSE), "") ->  | H47: =IF($C47<=$B$16,VLOOKUP(A47&$B$12, localcont!$A$10:$X$1764, 23, FALSE), "") ->  | J47: =IF($C47<=$B$16,VLOOKUP(A47&$B$12, localcont!$A$10:$X$1764, 15, FALSE), "") ->  | K47: =IF($C47<=$B$16,VLOOKUP(A47&$B$12, localcont!$A$10:$X$1764, 14, FALSE),"") -> 
A48: =IF($C48<=$B$16,VLOOKUP(E48,leas!D34:G473,4,FALSE),"") ->  | B48: 60029 | C48: 29 | G48: =IF($C48<=$B$16,VLOOKUP(A48&$B$12, localcont!A38:X1792, 18, FALSE), "") ->  | H48: =IF($C48<=$B$16,VLOOKUP(A48&$B$12, localcont!$A$10:$X$1764, 23, FALSE), "") ->  | J48: =IF($C48<=$B$16,VLOOKUP(A48&$B$12, localcont!$A$10:$X$1764, 15, FALSE), "") ->  | K48: =IF($C48<=$B$16,VLOOKUP(A48&$B$12, localcont!$A$10:$X$1764, 14, FALSE),"") -> 
A49: =IF($C49<=$B$16,VLOOKUP(E49,leas!D35:G474,4,FALSE),"") ->  | B49: 60030 | C49: 30 | G49: =IF($C49<=$B$16,VLOOKUP(A49&$B$12, localcont!A39:X1793, 18, FALSE), "") ->  | H49: =IF($C49<=$B$16,VLOOKUP(A49&$B$12, localcont!$A$10:$X$1764, 23, FALSE), "") ->  | J49: =IF($C49<=$B$16,VLOOKUP(A49&$B$12, localcont!$A$10:$X$1764, 15, FALSE), "") ->  | K49: =IF($C49<=$B$16,VLOOKUP(A49&$B$12, localcont!$A$10:$X$1764, 14, FALSE),"") -> 
A50: =IF($C50<=$B$16,VLOOKUP(E50,leas!D36:G475,4,FALSE),"") ->  | B50: 60031 | C50: 31 | G50: =IF($C50<=$B$16,VLOOKUP(A50&$B$12, localcont!A40:X1794, 18, FALSE), "") ->  | H50: =IF($C50<=$B$16,VLOOKUP(A50&$B$12, localcont!$A$10:$X$1764, 23, FALSE), "") ->  | J50: =IF($C50<=$B$16,VLOOKUP(A50&$B$12, localcont!$A$10:$X$1764, 15, FALSE), "") ->  | K50: =IF($C50<=$B$16,VLOOKUP(A50&$B$12, localcont!$A$10:$X$1764, 14, FALSE),"") -> 
A51: =IF($C51<=$B$16,VLOOKUP(E51,leas!D37:G476,4,FALSE),"") ->  | B51: 60032 | C51: 32 | G51: =IF($C51<=$B$16,VLOOKUP(A51&$B$12, localcont!A41:X1795, 18, FALSE), "") ->  | H51: =IF($C51<=$B$16,VLOOKUP(A51&$B$12, localcont!$A$10:$X$1764, 23, FALSE), "") ->  | J51: =IF($C51<=$B$16,VLOOKUP(A51&$B$12, localcont!$A$10:$X$1764, 15, FALSE), "") ->  | K51: =IF($C51<=$B$16,VLOOKUP(A51&$B$12, localcont!$A$10:$X$1764, 14, FALSE),"") -> 
A52: =IF($C52<=$B$16,VLOOKUP(E52,leas!D38:G477,4,FALSE),"") ->  | B52: 60033 | C52: 33 | F52: =IF($C52<=$B$16, VLOOKUP($B52, regdetail, 6), " ") ->  | G52: =IF($C52<=$B$16,VLOOKUP(A52&$B$12, localcont!A42:X1796, 18, FALSE), "") ->  | H52: =IF($C52<=$B$16,VLOOKUP(A52&$B$12, localcont!$A$10:$X$1764, 23, FALSE), "") ->  | J52: =IF($C52<=$B$16,VLOOKUP(A52&$B$12, localcont!$A$10:$X$1764, 15, FALSE), "") ->  | K52: =IF($C52<=$B$16,VLOOKUP(A52&$B$12, localcont!$A$10:$X$1764, 14, FALSE),"") -> 
A53: =IF($C53<=$B$16,VLOOKUP(E53,leas!D39:G478,4,FALSE),"") ->  | B53: 60034 | C53: 34 | G53: =IF($C53<=$B$16,VLOOKUP(A53&$B$12, localcont!A43:X1797, 18, FALSE), "") ->  | H53: =IF($C53<=$B$16,VLOOKUP(A53&$B$12, localcont!$A$10:$X$1764, 23, FALSE), "") ->  | J53: =IF($C53<=$B$16,VLOOKUP(A53&$B$12, localcont!$A$10:$X$1764, 15, FALSE), "") ->  | K53: =IF($C53<=$B$16,VLOOKUP(A53&$B$12, localcont!$A$10:$X$1764, 14, FALSE),"") -> 
A54: =IF($C54<=$B$16,VLOOKUP(E54,leas!D40:G479,4,FALSE),"") ->  | B54: 60035 | C54: 35 | G54: =IF($C54<=$B$16,VLOOKUP(A54&$B$12, localcont!A44:X1798, 18, FALSE), "") ->  | H54: =IF($C54<=$B$16,VLOOKUP(A54&$B$12, localcont!$A$10:$X$1764, 23, FALSE), "") ->  | J54: =IF($C54<=$B$16,VLOOKUP(A54&$B$12, localcont!$A$10:$X$1764, 15, FALSE), "") ->  | K54: =IF($C54<=$B$16,VLOOKUP(A54&$B$12, localcont!$A$10:$X$1764, 14, FALSE),"") -> 
A55: =IF($C55<=$B$16,VLOOKUP(E55,leas!D41:G480,4,FALSE),"") ->  | B55: 60036 | C55: 36 | G55: =IF($C55<=$B$16,VLOOKUP(A55&$B$12, localcont!A45:X1799, 18, FALSE), "") ->  | H55: =IF($C55<=$B$16,VLOOKUP(A55&$B$12, localcont!$A$10:$X$1764, 23, FALSE), "") ->  | J55: =IF($C55<=$B$16,VLOOKUP(A55&$B$12, localcont!$A$10:$X$1764, 15, FALSE), "") ->  | K55: =IF($C55<=$B$16,VLOOKUP(A55&$B$12, localcont!$A$10:$X$1764, 14, FALSE),"") -> 
A56: =IF($C56<=$B$16,VLOOKUP(E56,leas!D42:G481,4,FALSE),"") ->  | B56: 60037 | C56: 37 | G56: =IF($C56<=$B$16,VLOOKUP(A56&$B$12, localcont!A46:X1800, 18, FALSE), "") ->  | H56: =IF($C56<=$B$16,VLOOKUP(A56&$B$12, localcont!$A$10:$X$1764, 23, FALSE), "") ->  | J56: =IF($C56<=$B$16,VLOOKUP(A56&$B$12, localcont!$A$10:$X$1764, 15, FALSE), "") ->  | K56: =IF($C56<=$B$16,VLOOKUP(A56&$B$12, localcont!$A$10:$X$1764, 14, FALSE),"") -> 
A57: =IF($C57<=$B$16,VLOOKUP(E57,leas!D43:G482,4,FALSE),"") ->  | B57: 60038 | C57: 38 | G57: =IF($C57<=$B$16,VLOOKUP(A57&$B$12, localcont!A47:X1801, 18, FALSE), "") ->  | H57: =IF($C57<=$B$16,VLOOKUP(A57&$B$12, localcont!$A$10:$X$1764, 23, FALSE), "") ->  | J57: =IF($C57<=$B$16,VLOOKUP(A57&$B$12, localcont!$A$10:$X$1764, 15, FALSE), "") ->  | K57: =IF($C57<=$B$16,VLOOKUP(A57&$B$12, localcont!$A$10:$X$1764, 14, FALSE),"") -> 
A58: =IF($C58<=$B$16,VLOOKUP(E58,leas!D44:G483,4,FALSE),"") ->  | B58: 60039 | C58: 39 | G58: =IF($C58<=$B$16,VLOOKUP(A58&$B$12, localcont!A48:X1802, 18, FALSE), "") ->  | H58: =IF($C58<=$B$16,VLOOKUP(A58&$B$12, localcont!$A$10:$X$1764, 23, FALSE), "") ->  | J58: =IF($C58<=$B$16,VLOOKUP(A58&$B$12, localcont!$A$10:$X$1764, 15, FALSE), "") ->  | K58: =IF($C58<=$B$16,VLOOKUP(A58&$B$12, localcont!$A$10:$X$1764, 14, FALSE),"") -> 
A59: =IF($C59<=$B$16,VLOOKUP(E59,leas!D45:G484,4,FALSE),"") ->  | B59: 60040 | C59: 40 | G59: =IF($C59<=$B$16,VLOOKUP(A59&$B$12, localcont!A49:X1803, 18, FALSE), "") ->  | H59: =IF($C59<=$B$16,VLOOKUP(A59&$B$12, localcont!$A$10:$X$1764, 23, FALSE), "") ->  | J59: =IF($C59<=$B$16,VLOOKUP(A59&$B$12, localcont!$A$10:$X$1764, 15, FALSE), "") ->  | K59: =IF($C59<=$B$16,VLOOKUP(A59&$B$12, localcont!$A$10:$X$1764, 14, FALSE),"") -> 
A60: =IF($C60<=$B$16,VLOOKUP(E60,leas!D46:G485,4,FALSE),"") ->  | B60: 60041 | C60: 41 | G60: =IF($C60<=$B$16,VLOOKUP(A60&$B$12, localcont!A50:X1804, 18, FALSE), "") ->  | H60: =IF($C60<=$B$16,VLOOKUP(A60&$B$12, localcont!$A$10:$X$1764, 23, FALSE), "") ->  | J60: =IF($C60<=$B$16,VLOOKUP(A60&$B$12, localcont!$A$10:$X$1764, 15, FALSE), "") ->  | K60: =IF($C60<=$B$16,VLOOKUP(A60&$B$12, localcont!$A$10:$X$1764, 14, FALSE),"") -> 
A61: =IF($C61<=$B$16,VLOOKUP(E61,leas!D47:G486,4,FALSE),"") ->  | B61: 60042 | C61: 42 | G61: =IF($C61<=$B$16,VLOOKUP(A61&$B$12, localcont!A51:X1805, 18, FALSE), "") ->  | H61: =IF($C61<=$B$16,VLOOKUP(A61&$B$12, localcont!$A$10:$X$1764, 23, FALSE), "") ->  | J61: =IF($C61<=$B$16,VLOOKUP(A61&$B$12, localcont!$A$10:$X$1764, 15, FALSE), "") ->  | K61: =IF($C61<=$B$16,VLOOKUP(A61&$B$12, localcont!$A$10:$X$1764, 14, FALSE),"") -> 
A62: =IF($C62<=$B$16,VLOOKUP(E62,leas!D48:G487,4,FALSE),"") ->  | B62: 60043 | C62: 43 | G62: =IF($C62<=$B$16,VLOOKUP(A62&$B$12, localcont!A52:X1806, 18, FALSE), "") ->  | H62: =IF($C62<=$B$16,VLOOKUP(A62&$B$12, localcont!$A$10:$X$1764, 23, FALSE), "") ->  | J62: =IF($C62<=$B$16,VLOOKUP(A62&$B$12, localcont!$A$10:$X$1764, 15, FALSE), "") ->  | K62: =IF($C62<=$B$16,VLOOKUP(A62&$B$12, localcont!$A$10:$X$1764, 14, FALSE),"") -> 
A63: =IF($C63<=$B$16,VLOOKUP(E63,leas!D49:G488,4,FALSE),"") ->  | B63: 60044 | C63: 44 | G63: =IF($C63<=$B$16,VLOOKUP(A63&$B$12, localcont!A53:X1807, 18, FALSE), "") ->  | H63: =IF($C63<=$B$16,VLOOKUP(A63&$B$12, localcont!$A$10:$X$1764, 23, FALSE), "") ->  | J63: =IF($C63<=$B$16,VLOOKUP(A63&$B$12, localcont!$A$10:$X$1764, 15, FALSE), "") ->  | K63: =IF($C63<=$B$16,VLOOKUP(A63&$B$12, localcont!$A$10:$X$1764, 14, FALSE),"") ->  | P63: =IF($C63>$B$16,"",O63*$P$13) -> 
A64: =IF($C64<=$B$16,VLOOKUP(E64,leas!D50:G489,4,FALSE),"") ->  | B64: 60045 | C64: 45 | G64: =IF($C64<=$B$16,VLOOKUP(A64&$B$12, localcont!A54:X1808, 18, FALSE), "") ->  | H64: =IF($C64<=$B$16,VLOOKUP(A64&$B$12, localcont!$A$10:$X$1764, 23, FALSE), "") ->  | J64: =IF($C64<=$B$16,VLOOKUP(A64&$B$12, localcont!$A$10:$X$1764, 15, FALSE), "") ->  | K64: =IF($C64<=$B$16,VLOOKUP(A64&$B$12, localcont!$A$10:$X$1764, 14, FALSE),"") -> 
A65: =IF($C65<=$B$16,VLOOKUP(E65,leas!D51:G490,4,FALSE),"") ->  | B65: 60046 | C65: 46 | G65: =IF($C65<=$B$16,VLOOKUP(A65&$B$12, localcont!A55:X1809, 18, FALSE), "") ->  | H65: =IF($C65<=$B$16,VLOOKUP(A65&$B$12, localcont!$A$10:$X$1764, 23, FALSE), "") ->  | J65: =IF($C65<=$B$16,VLOOKUP(A65&$B$12, localcont!$A$10:$X$1764, 15, FALSE), "") ->  | K65: =IF($C65<=$B$16,VLOOKUP(A65&$B$12, localcont!$A$10:$X$1764, 14, FALSE),"") -> 
A66: =IF($C66<=$B$16,VLOOKUP(E66,leas!D52:G491,4,FALSE),"") ->  | B66: 60047 | C66: 47 | G66: =IF($C66<=$B$16,VLOOKUP(A66&$B$12, localcont!A56:X1810, 18, FALSE), "") ->  | H66: =IF($C66<=$B$16,VLOOKUP(A66&$B$12, localcont!$A$10:$X$1764, 23, FALSE), "") ->  | J66: =IF($C66<=$B$16,VLOOKUP(A66&$B$12, localcont!$A$10:$X$1764, 15, FALSE), "") ->  | K66: =IF($C66<=$B$16,VLOOKUP(A66&$B$12, localcont!$A$10:$X$1764, 14, FALSE),"") -> 
A67: =IF($C67<=$B$16,VLOOKUP(E67,leas!D53:G492,4,FALSE),"") ->  | B67: 60048 | C67: 48 | G67: =IF($C67<=$B$16,VLOOKUP(A67&$B$12, localcont!A57:X1811, 18, FALSE), "") ->  | H67: =IF($C67<=$B$16,VLOOKUP(A67&$B$12, localcont!$A$10:$X$1764, 23, FALSE), "") ->  | J67: =IF($C67<=$B$16,VLOOKUP(A67&$B$12, localcont!$A$10:$X$1764, 15, FALSE), "") ->  | K67: =IF($C67<=$B$16,VLOOKUP(A67&$B$12, localcont!$A$10:$X$1764, 14, FALSE),"") -> 
A68: =IF($C68<=$B$16,VLOOKUP(E68,leas!D54:G493,4,FALSE),"") ->  | B68: 60049 | C68: 49 | G68: =IF($C68<=$B$16,VLOOKUP(A68&$B$12, localcont!A58:X1812, 18, FALSE), "") ->  | H68: =IF($C68<=$B$16,VLOOKUP(A68&$B$12, localcont!$A$10:$X$1764, 23, FALSE), "") ->  | J68: =IF($C68<=$B$16,VLOOKUP(A68&$B$12, localcont!$A$10:$X$1764, 15, FALSE), "") ->  | K68: =IF($C68<=$B$16,VLOOKUP(A68&$B$12, localcont!$A$10:$X$1764, 14, FALSE),"") -> 

Sheet Comparison to FY21
B1: Return to Index | P1: More about the data
A2: Massachusetts Department of Elementary and Secondary Education
A3: =CYr&" Chapter 70 Comparison to "&PYr -> FY22 Chapter 70 Comparison to FY21
C7: =PYr -> FY21 | D7: FY22 | F7: =PYr -> FY21 | G7: =CYr -> FY22 | I7: =PYr -> FY21 | J7: =CYr -> FY22 | L7: =PYr -> FY21 | M7: =CYr -> FY22
B8: Operating | C8: Foundation | D8: Foundation | F8: Foundation | G8: Foundation | I8: Minimum | J8: Minimum | L8: Chapter 70 | M8: Chapter 70
A9: LEA | B9: District name | C9: Enrollment | D9: Enrollment | E9: change | F9: Budget | G9: Budget | H9: change per pupil | I9: Contribution | J9: Contribution | K9: change per pupil | L9: aid | M9: aid | N9: change in aid | O9: change in aid per pupil | P9: % change in aid
A10: 1 | B10: Abington | C10: =VLOOKUP(A10,aidcalc,14,FALSE) -> 2197 | D10: =VLOOKUP(A10,aidcalc,15,FALSE) -> 2193 | E10: =D10-C10 -> -4 | F10: =VLOOKUP(A10,aidcalc,4,FALSE) -> 25332546.71 | G10: =VLOOKUP(A10,aidcalc,9,FALSE) -> 26529795.66 | H10: =(G10-F10)/$D10 -> 545.941152 | I10: =VLOOKUP(A10,aidcalc,5,FALSE) -> 15287069 | J10: =VLOOKUP(A10,aidcalc,10,FALSE) -> 15771170 | K10: =(J10-I10)/$D10 -> 220.74829 | L10: =VLOOKUP(A10,aidcalc,6,FALSE) -> 10045478 | M10: =VLOOKUP(A10,aidcalc,25,FALSE) -> 10858340 | N10: =M10-L10 -> 812862 | O10: =(M10-L10)/$D10 -> 370.6621067 | P10: =ROUND(IF(F10>0,(M10-L10)/L10,100),2) -> 0.08
A11: 3 | B11: Acushnet | C11: 1292 | D11: 1207 | E11: =D11-C11 -> -85 | F11: 13990412.9 | G11: 13489100.06 | H11: -415.3378956 | I11: 7889510 | J11: 7882117 | K11: =(J11-I11)/$D11 -> -6.125103563 | L11: 6361492 | M11: 6397702 | N11: =M11-L11 -> 36210 | O11: =(M11-L11)/$D11 -> 30 | P11: 0.01
A12: 5 | B12: Agawam | C12: 3623 | D12: 3516 | E12: -107 | F12: 42427489.5 | G12: 42850725.39 | H12: 120.3742577 | I12: 23256462 | J12: 23421246 | K12: 46.8668942 | L12: 19477412 | M12: 19949538 | N12: 472126 | O12: 134.2792947 | P12: 0.02
A13: 7 | B13: Amesbury | C13: 2036 | D13: 1930 | E13: -106 | F13: 22553274.58 | G13: 22473928.55 | H13: -41.11193264 | I13: 16118764 | J13: 16512866 | K13: 204.1979275 | L13: 9190887 | M13: 9248787 | N13: 57900 | O13: 30 | P13: 0.01
A14: 8 | B14: Amherst | C14: 1097 | D14: 1045 | E14: -52 | F14: 12512134.57 | G14: 12765297.7 | H14: 242.2613684 | I14: 9645618 | J14: 9889673 | K14: 233.5454545 | L14: 6122223 | M14: 6153573 | N14: 31350 | O14: 30 | P14: 0.01
A15: 9 | B15: Andover | C15: 5740 | D15: 5628 | E15: -112 | F15: 64237434.88 | G15: 64739542.48 | H15: 89.21599187 | I15: 52995883 | J15: 53410123 | K15: 73.60341151 | L15: 11668291 | M15: 11837131 | N15: 168840 | O15: 30 | P15: 0.01
A16: 10 | B16: Arlington | C16: 6092 | D16: 5836 | E16: -256 | F16: 64895656.34 | G16: 64412505.94 | H16: -82.78793795 | I16: 50343449 | J16: 51220285 | K16: 150.2460589 | L16: 14566028 | M16: 14741108 | N16: 175080 | O16: 30 | P16: 0.01
A17: 14 | B17: Ashland | C17: 2786 | D17: 2694 | E17: -92 | F17: 30232498.72 | G17: 30147061.93 | H17: -31.71373051 | I17: 22294876 | J17: 22838677 | K17: 201.8563474 | L17: 7937623 | M17: 8018443 | N17: 80820 | O17: 30 | P17: 0.01
A18: 16 | B18: Attleboro | C18: 6383 | D18: 6188 | E18: -195 | F18: 79207276.43 | G18: 80741145.67 | H18: 247.8780284 | I18: 38037529 | J18: 39217459 | K18: 190.6803491 | L18: 41169747 | M18: 41523687 | N18: 353940 | O18: 57.1978022 | P18: 0.01
A19: 17 | B19: Auburn | C19: 2511 | D19: 2421 | E19: -90 | F19: 27521289.79 | G19: 27367440.74 | H19: -63.54772821 | I19: 15309359 | J19: 15568309 | K19: 106.9599339 | L19: 12211931 | M19: 12284561 | N19: 72630 | O19: 30 | P19: 0.01
A20: 18 | B20: Avon | C20: 586 | D20: 560 | E20: -26 | F20: 7045846.11 | G20: 7016240.13 | H20: -52.86782143 | I20: 4598969 | J20: 4689958 | K20: 162.4803571 | L20: 2448769 | M20: 2465569 | N20: 16800 | O20: =(M20-L20)/$D20 -> 30 | P20: 0.01
A21: 20 | B21: Barnstable | C21: 5405 | D21: 5147 | E21: -258 | F21: 65773443.14 | G21: 65238260.34 | H21: -103.9795609 | I21: 52762387 | J21: 53821564 | K21: 205.7853118 | L21: 13011056 | M21: 13165466 | N21: 154410 | O21: 30 | P21: 0.01
A22: 23 | B22: Bedford | C22: 2707 | D22: 2649 | E22: -58 | F22: 30502691.57 | G22: 30729462.66 | H22: 85.60629971 | I22: 25097492 | J22: 25351806 | K22: 96.00377501 | L22: 5595167 | M22: 5674637 | N22: 79470 | O22: 30 | P22: 0.01
A23: 24 | B23: Belchertown | C23: 2278 | D23: 2204 | E23: -74 | F23: 24726417.46 | G23: 24800115.19 | H23: 33.43817151 | I23: 12418125 | J23: 12857028 | K23: 199.1392922 | L23: 13884146 | M23: 13950266 | N23: 66120 | O23: 30 | P23: 0
A24: 25 | B24: Bellingham | C24: 2247 | D24: 2184 | E24: -63 | F24: 24676853.43 | G24: 24805882.76 | H24: 59.07936355 | I24: 16772086 | J24: 17397231 | K24: 286.2385531 | L24: 8642425 | M24: 8707945 | N24: 65520 | O24: 30 | P24: 0.01
A25: 26 | B25: Belmont | C25: 4638 | D25: 4534 | E25: -104 | F25: 50418107.66 | G25: 50694465.25 | H25: 60.95226874 | I25: 40662179 | J25: 40824828 | K25: 35.87318041 | L25: 9755929 | M25: 9891949 | N25: 136020 | O25: 30 | P25: 0.01
A26: 27 | B26: Berkley | C26: 764 | D26: 733 | E26: -31 | F26: 8014902.18 | G26: 7950531.78 | H26: -87.81773533 | I26: 4170576 | J26: 4249272 | K26: 107.361528 | L26: 4003448 | M26: 4025438 | N26: 21990 | O26: 30 | P26: 0.01
A27: 30 | B27: Beverly | C27: 4570 | D27: 4613 | E27: 43 | F27: 51866271.12 | G27: 53925726.19 | H27: 446.4459289 | I27: 41749093 | J27: 43334812 | K27: 343.7500542 | L27: 10125430 | M27: 10590914 | N27: 465484 | O27: 100.907002 | P27: 0.05
A28: 31 | B28: Billerica | C28: 4866 | D28: 4694 | E28: -172 | F28: 52647471.61 | G28: 52245953.96 | H28: -85.53848648 | I28: 41417136 | J28: 43102912 | K28: 359.1342139 | L28: 19348854 | M28: 19489674 | N28: 140820 | O28: 30 | P28: 0.01
A29: 35 | B29: Boston | C29: 62890 | D29: 60704 | E29: -2186 | F29: 924506066 | G29: 978880394.5 | H29: 895.728922 | I29: 762717504 | J29: 788497356 | K29: 424.6812731 | L29: 221915045 | M29: 223736165 | N29: 1821120 | O29: 30 | P29: 0.01
A30: 36 | B30: Bourne | C30: 2012 | D30: 1789 | E30: -223 | F30: 22664002.02 | G30: 20951766.19 | H30: -957.0910173 | I30: 18697802 | J30: 17285207 | K30: -789.6003354 | L30: 5215213 | M30: 5268883 | N30: 53670 | O30: 30 | P30: 0.01
A31: 38 | B31: Boxford | C31: 729 | D31: 673 | E31: -56 | F31: 7419452.155 | G31: 7077684.452 | H31: -507.8271967 | I31: 6121048 | J31: 5839090 | K31: -418.9569094 | L31: 1747903 | M31: 1768093 | N31: 20190 | O31: 30 | P31: 0.01
A32: 40 | B32: Braintree | C32: 5666 | D32: 5383 | E32: -283 | F32: 64248920.53 | G32: 63352380.46 | H32: -166.5502631 | I32: 46089277 | J32: 47033101 | K32: 175.3342003 | L32: 18297651 | M32: 18459141 | N32: 161490 | O32: 30 | P32: 0.01
A33: 41 | B33: Brewster | C33: 468 | D33: 431 | E33: -37 | F33: 5175998.03 | G33: 4895214.06 | H33: -651.4709281 | I33: 4206025 | J33: 4038551 | K33: -388.5707657 | L33: 1011979 | M33: 1024909 | N33: 12930 | O33: 30 | P33: 0.01
A34: 43 | B34: Brimfield | C34: 283 | D34: 269 | E34: -14 | F34: 3081860.73 | G34: 2957057.94 | H34: -463.9508922 | I34: 1716855 | J34: 1755767 | K34: 144.6542751 | L34: 1365006 | M34: 1373076 | N34: 8070 | O34: 30 | P34: 0.01
A35: 44 | B35: Brockton | C35: 17491 | D35: 17092 | E35: -399 | F35: 237304379 | G35: 261944926.6 | H35: 1441.642149 | I35: 48074759 | J35: 49559396 | K35: 86.86151416 | L35: 189236745 | M35: 212385531 | N35: 23148786 | O35: 1354.363796 | P35: 0.12
A36: 45 | B36: Brookfield | C36: 253 | D36: 230 | E36: -23 | F36: 2871199.05 | G36: 2739833.11 | H36: -571.1562609 | I36: 1170696 | J36: 1154807 | K36: -69.0826087 | L36: 1700503 | M36: 1707403 | N36: 6900 | O36: 30 | P36: 0
A37: 46 | B37: Brookline | C37: 7648 | D37: 6858 | E37: -790 | F37: 83874467.61 | G37: 77422819.85 | H37: -940.7477052 | I37: 69196436 | J37: 63873826 | K37: -776.1169437 | L37: 15006787 | M37: 15212527 | N37: 205740 | O37: 30 | P37: 0.01
A38: 48 | B38: Burlington | C38: 3518 | D38: 3420 | E38: -98 | F38: 40012176.14 | G38: 40093789.19 | H38: 23.86346554 | I38: 33010045 | J38: 33077377 | K38: 19.6877193 | L38: 7002131 | M38: 7104731 | N38: 102600 | O38: 30 | P38: 0.01
A39: 49 | B39: Cambridge | C39: 7519 | D39: 7160 | E39: -359 | F39: 97837766.09 | G39: 100848386.9 | H39: 420.4777741 | I39: 80716157 | J39: 83199919 | K39: 346.8941341 | L39: 17121609 | M39: 17648468 | N39: 526859 | O39: 73.58365922 | P39: 0.03
A40: 50 | B40: Canton | C40: 3325 | D40: 3234 | E40: -91 | F40: 37234938.64 | G40: 37413396.48 | H40: 55.18176866 | I40: 30718825 | J40: 30866052 | K40: 45.52473717 | L40: 6516115 | M40: 6613135 | N40: 97020 | O40: 30 | P40: 0.01
A41: 51 | B41: Carlisle | C41: 570 | D41: 556 | E41: -14 | F41: 5783671.18 | G41: 5777297.333 | H41: -11.46375388 | I41: 4771528 | J41: 4766270 | K41: -9.456834532 | L41: 1012143 | M41: 1028823 | N41: 16680 | O41: 30 | P41: 0.02
A42: 52 | B42: Carver | C42: 1591 | D42: 1501 | E42: -90 | F42: 18039221.23 | G42: 17600656.4 | H42: -292.1817707 | I42: 9418559 | J42: 9595425 | K42: 117.8321119 | L42: 10008599 | M42: 10053629 | N42: 45030 | O42: 30 | P42: 0
A43: 56 | B43: Chelmsford | C43: 5112 | D43: 4956 | E43: -156 | F43: 54223728 | G43: 54364865.71 | H43: 28.47814972 | I43: 43879883 | J43: 44851014 | K43: 195.950565 | L43: 11199428 | M43: 11348108 | N43: 148680 | O43: 30 | P43: 0.01
A44: 57 | B44: Chelsea | C44: 7289 | D44: 7097 | E44: -192 | F44: 105670798.9 | G44: 114106347.7 | H44: 1188.607687 | I44: 19903086 | J44: 19018231 | K44: -124.6801465 | L44: 85769782 | M44: 95092112 | N44: 9322330 | O44: 1313.55925 | P44: 0.11
A45: 61 | B45: Chicopee | C45: 7571 | D45: 7269 | E45: -302 | F45: 99981143.99 | G45: 103803922 | H45: 525.9015064 | I45: 30903112 | J45: 31307943 | K45: 55.69280506 | L45: 69078032 | M45: 72495979 | N45: 3417947 | O45: 470.2086945 | P45: 0.05
A46: 63 | B46: Clarksburg | C46: 171 | D46: 180 | E46: 9 | F46: 2005332.37 | G46: 2139256.18 | H46: 744.0211667 | I46: 683465 | J46: 735842 | K46: 290.9833333 | L46: 1799935 | M46: 1805335 | N46: 5400 | O46: 30 | P46: 0
A47: 64 | B47: Clinton | C47: 2086 | D47: 2050 | E47: -36 | F47: 25739349.56 | G47: 26864608.99 | H47: 548.907039 | I47: 11372125 | J47: 11925947 | K47: 270.1570732 | L47: 14367225 | M47: 14938662 | N47: 571437 | O47: 278.7497561 | P47: 0.04
A48: 65 | B48: Cohasset | C48: 1468 | D48: 1419 | E48: -49 | F48: 15514224.73 | G48: 15385213.72 | H48: -90.91684424 | I48: 12799236 | J48: 12692802 | K48: -75.00634249 | L48: 2748292 | M48: 2790862 | N48: 42570 | O48: 30 | P48: 0.02
A49: 67 | B49: Concord | C49: 2081 | D49: 1998 | E49: -83 | F49: 21359034.91 | G49: 21236752.31 | H49: -61.20250308 | I49: 17621204 | J49: 17520320 | K49: -50.49249249 | L49: 3737831 | M49: 3797771 | N49: 59940 | O49: 30 | P49: 0.02
A50: 68 | B50: Conway | C50: 79 | D50: 78 | E50: -1 | F50: 894594.82 | G50: 926021.78 | H50: 402.9097436 | I50: 738041 | J50: 763968 | K50: 332.3974359 | L50: 626464 | M50: 628804 | N50: 2340 | O50: 30 | P50: 0
A51: 71 | B51: Danvers | C51: 3483 | D51: 3384 | E51: -99 | F51: 37325532.02 | G51: 37556776.83 | H51: 68.33475473 | I51: 30589946 | J51: 30917580 | K51: 96.81855792 | L51: 7108192 | M51: 7209712 | N51: 101520 | O51: 30 | P51: 0.01
A52: 72 | B52: Dartmouth | C52: 3517 | D52: 3369 | E52: -148 | F52: 38785092.38 | G52: 38413025.86 | H52: -110.4382665 | I52: 31997701 | J52: 31690747 | K52: -91.11130899 | L52: 9948121 | M52: 10049191 | N52: 101070 | O52: 30 | P52: 0.01
A53: 73 | B53: Dedham | C53: 2700 | D53: 2586 | E53: -114 | F53: 31069861.76 | G53: 30666508.9 | H53: -155.975585 | I53: 25205198 | J53: 25299870 | K53: 36.60943542 | L53: 6066360 | M53: 6143940 | N53: 77580 | O53: 30 | P53: 0.01
A54: 74 | B54: Deerfield | C54: 315 | D54: 293 | E54: -22 | F54: 3368724.27 | G54: 3195342.38 | H54: -591.7470648 | I54: 2732273 | J54: 2636157 | K54: -328.0409556 | L54: 1114363 | M54: 1123153 | N54: 8790 | O54: 30 | P54: 0.01
A55: 77 | B55: Douglas | C55: 1213 | D55: 1106 | E55: -107 | F55: 13102757.23 | G55: 12319421.25 | H55: -708.2603797 | I55: 7355911 | J55: 7492002 | K55: 123.0479204 | L55: 8759585 | M55: 8792765 | N55: 33180 | O55: 30 | P55: 0
A56: 78 | B56: Dover | C56: 492 | D56: 476 | E56: -16 | F56: 4983216.45 | G56: 4983017.631 | H56: -0.4176871429 | I56: 4111154 | J56: 4110989 | K56: -0.3466386555 | L56: 872062 | M56: 886342 | N56: 14280 | O56: 30 | P56: 0.02
A57: 79 | B57: Dracut | C57: 3964 | D57: 3982 | E57: 18 | F57: 44096709.13 | G57: 46058563.06 | H57: 492.680545 | I57: 23979412 | J57: 25045152 | K57: 267.6393772 | L57: 20128364 | M57: 21013411 | N57: 885047 | O57: 222.2619287 | P57: 0.04
A58: 82 | B58: Duxbury | C58: 2888 | D58: 2730 | E58: -158 | F58: 30754555.55 | G58: 29901986.56 | H58: -312.2963355 | I58: 25372508 | J58: 24669139 | K58: -257.6443223 | L58: 5382048 | M58: 5463948 | N58: 81900 | O58: 30 | P58: 0.02
A59: 83 | B59: East Bridgewater | C59: 2153 | D59: 2067 | E59: -86 | F59: 23574021.35 | G59: 23394636.07 | H59: -86.7853314 | I59: 12580578 | J59: 12898727 | K59: 153.918239 | L59: 10995125 | M59: 11057135 | N59: 62010 | O59: 30 | P59: 0.01
A60: 85 | B60: Eastham | C60: 191 | D60: 196 | E60: 5 | F60: 2151871.93 | G60: 2320433.89 | H60: 860.01 | I60: 1775294 | J60: 1914358 | K60: 709.5102041 | L60: 376578 | M60: 406076 | N60: 29498 | O60: 150.5 | P60: 0.08
A61: 86 | B61: Easthampton | C61: 1719 | D61: 1630 | E61: -89 | F61: 20082994.25 | G61: 19817458.09 | H61: -162.9056196 | I61: 12651233 | J61: 12976004 | K61: 199.2460123 | L61: 8029692 | M61: 8078592 | N61: 48900 | O61: 30 | P61: 0.01
A62: 87 | B62: East Longmeadow | C62: 2643 | D62: 2457 | E62: -186 | F62: 29030299.67 | G62: 27993088.18 | H62: -422.1454986 | I62: 17494208 | J62: 17190078 | K62: -123.7810338 | L62: 12102248 | M62: 12175958 | N62: 73710 | O62: 30 | P62: 0.01
A63: 88 | B63: Easton | C63: 3516 | D63: 3373 | E63: -143 | F63: 37563612.82 | G63: 37338104.88 | H63: -66.85678624 | I63: 29384825 | J63: 30163362 | K63: 230.8144085 | L63: 10148451 | M63: 10249641 | N63: 101190 | O63: 30 | P63: 0.01
A64: 89 | B64: Edgartown | C64: 441 | D64: 428 | E64: -13 | F64: 5167542.74 | G64: 5243884.84 | H64: 178.3693925 | I64: 4263223 | J64: 4326205 | K64: 147.1542056 | L64: 904320 | M64: 917680 | N64: 13360 | O64: 31.21495327 | P64: 0.01
A65: 91 | B65: Erving | C65: 219 | D65: 207 | E65: -12 | F65: 2326189.63 | G65: 2355746.09 | H65: 142.7848309 | I65: 1919106 | J65: 1943490 | K65: 117.7971014 | L65: 471505 | M65: 477715 | N65: 6210 | O65: 30 | P65: 0.01
A66: 93 | B66: Everett | C66: 7652 | D66: 7505 | E66: -147 | F66: 109071464.2 | G66: 120819748.3 | H66: 1565.394283 | I66: 35431511 | J66: 36483827 | K66: 140.2153231 | L66: 75001709 | M66: 84335921 | N66: 9334212 | O66: 1243.732445 | P66: 0.12
A67: 94 | B67: Fairhaven | C67: 1816 | D67: 1727 | E67: -89 | F67: 20977288.11 | G67: 20710203.66 | H67: -154.6522583 | I67: 12688884 | J67: 12632417 | K67: -32.69658367 | L67: 8291230 | M67: 8343040 | N67: 51810 | O67: 30 | P67: 0.01
A68: 95 | B68: Fall River | C68: 12095 | D68: 11894 | E68: -201 | F68: 169915017.7 | G68: 179465809.7 | H68: 802.9924323 | I68: 32906432 | J68: 34286248 | K68: 116.0094165 | L68: 137016364 | M68: 145182843 | N68: 8166479 | O68: 686.6049269 | P68: 0.06
A69: 96 | B69: Falmouth | C69: 3221 | D69: 3037 | E69: -184 | F69: 38101629.06 | G69: 36995294.28 | H69: -364.2854067 | I69: 31433844 | J69: 30521118 | K69: =(J69-I69)/$D69 -> -300.5353968 | L69: 6780099 | M69: 6871209 | N69: =M69-L69 -> 91110 | O69: =(M69-L69)/$D69 -> 30 | P69: 0.01
A70: 97 | B70: Fitchburg | C70: 5815 | D70: 5644 | E70: -171 | F70: 77039272.93 | G70: 80948312.82 | H70: 692.6009727 | I70: 19328344 | J70: 19699066 | K70: 65.68426648 | L70: 57710929 | M70: 61251183 | N70: 3540254 | O70: 627.2597449 | P70: 0.06
A71: 98 | B71: Florida | C71: 66 | D71: 58 | E71: -8 | F71: 747149.5 | G71: 710252.54 | H71: -636.1544828 | I71: 475424 | J71: 432738 | K71: -735.9655172 | L71: 550717 | M71: 552457 | N71: 1740 | O71: 30 | P71: 0
A72: 99 | B72: Foxborough | C72: 2639 | D72: 2543 | E72: -96 | F72: 29781054.53 | G72: 29685008.98 | H72: -37.76859829 | I72: 24569370 | J72: 24490132 | K72: -31.15926072 | L72: 9046950 | M72: 9123240 | N72: 76290 | O72: 30 | P72: 0.01
A73: 100 | B73: Framingham | C73: 9572 | D73: 9303 | E73: -269 | F73: 121857618.3 | G73: 124104569.5 | H73: 241.5297338 | I73: 65102393 | J73: 67201559 | K73: 225.6439858 | L73: 56755225 | M73: 57034315 | N73: 279090 | O73: 30 | P73: 0
A74: 101 | B74: Franklin | C74: =VLOOKUP(A74,aidcalc,14,FALSE) -> 5511 | D74: =VLOOKUP(A74,aidcalc,15,FALSE) -> 5292 | E74: -219 | F74: =VLOOKUP(A74,aidcalc,4,FALSE) -> 60169866.39 | G74: =VLOOKUP(A74,aidcalc,9,FALSE) -> 59769256.12 | H74: =(G74-F74)/$D74 -> -75.70111023 | I74: =VLOOKUP(A74,aidcalc,5,FALSE) -> 41152523 | J74: =VLOOKUP(A74,aidcalc,10,FALSE) -> 42443297 | K74: 243.9104308 | L74: =VLOOKUP(A74,aidcalc,6,FALSE) -> 28416161 | M74: =VLOOKUP(A74,aidcalc,25,FALSE) -> 28574921 | N74: 158760 | O74: 30 | P74: =ROUND(IF(F74>0,(M74-L74)/L74,100),2) -> 0.01
A75: 103 | B75: Gardner | C75: 2418 | D75: 2285 | E75: =D75-C75 -> -133 | F75: 30692122.61 | G75: 30713287.02 | H75: 9.262323851 | I75: 9927325 | J75: 10332365 | K75: 177.2603939 | L75: 21003460 | M75: 21072010 | N75: 68550 | O75: 30 | P75: 0
A76: 105 | B76: Georgetown | C76: 1303 | D76: 1239 | E76: -64 | F76: 13521537.54 | G76: 13268519.02 | H76: -204.2118805 | I76: 10617926 | J76: 10680486 | K76: 50.49233253 | L76: 5527768 | M76: 5564938 | N76: 37170 | O76: 30 | P76: 0.01
A77: 107 | B77: Gloucester | C77: 3094 | D77: 3017 | E77: -77 | F77: 38460242.65 | G77: 39342679.29 | H77: 292.4881138 | I77: 31729700 | J77: 32457710 | K77: 241.3026185 | L77: 6730543 | M77: 6884969 | N77: 154426 | O77: 51.18528339 | P77: 0.02
A78: 110 | B78: Grafton | C78: 3079 | D78: 3021 | E78: -58 | F78: 32659858.43 | G78: 33113667.03 | H78: 150.2180073 | I78: 22211911 | J78: 22380816 | K78: 55.9102946 | L78: 11108735 | M78: 11350399 | N78: 241664 | O78: 79.99470374 | P78: 0.02
A79: 111 | B79: Granby | C79: 710 | D79: 685 | E79: -25 | F79: 8181734.87 | G79: 8293230.86 | H79: 162.7678686 | I79: 5150983 | J79: 5148277 | K79: -3.950364964 | L79: 4664780 | M79: 4685330 | N79: 20550 | O79: 30 | P79: 0
A80: 114 | B80: Greenfield | C80: 1965 | D80: 1859 | E80: -106 | F80: 24159291.55 | G80: 23851070.39 | H80: -165.7994406 | I80: 10256971 | J80: 10181012 | K80: -40.86013986 | L80: 13902321 | M80: 13958091 | N80: 55770 | O80: 30 | P80: 0
A81: 117 | B81: Hadley | C81: 520 | D81: 498 | E81: -22 | F81: 5921818.32 | G81: 5857373.94 | H81: -129.4063855 | I81: 4885500 | J81: 4832334 | K81: -106.7590361 | L81: 1279420 | M81: 1294360 | N81: 14940 | O81: 30 | P81: 0.01
A82: 118 | B82: Halifax | C82: 630 | D82: 615 | E82: -15 | F82: 6764091.258 | G82: 6881455.874 | H82: 190.8367734 | I82: 3795461 | J82: 3833817 | K82: 62.36747967 | L82: 3063392 | M82: 3081842 | N82: 18450 | O82: 30 | P82: 0.01
A83: 121 | B83: Hancock | C83: 77 | D83: 81 | E83: 4 | F83: 883632.04 | G83: 936904.26 | H83: 657.6817284 | I83: 673593 | J83: 689423 | K83: 195.4320988 | L83: 211450 | M83: 247481 | N83: 36031 | O83: 444.8271605 | P83: 0.17
A84: 122 | B84: Hanover | C84: 2558 | D84: 2548 | E84: -10 | F84: 27226298.17 | G84: 27986422.45 | H84: 298.3219297 | I84: 21124278 | J84: 21593458 | K84: 184.1365777 | L84: 7023879 | M84: 7100319 | N84: 76440 | O84: 30 | P84: 0.01
A85: 125 | B85: Harvard | C85: 911 | D85: 876 | E85: -35 | F85: 9458347.19 | G85: 9395298.26 | H85: -71.97366438 | I85: 7803137 | J85: 7751121 | K85: -59.37899543 | L85: 1982671 | M85: 2008951 | N85: 26280 | O85: 30 | P85: 0.01
A86: 127 | B86: Hatfield | C86: 353 | D86: 334 | E86: -19 | F86: 3943217.63 | G86: 3877179.38 | H86: -197.7193114 | I86: 3167592 | J86: 3198673 | K86: 93.05688623 | L86: 846256 | M86: 856276 | N86: 10020 | O86: 30 | P86: 0.01
A87: 128 | B87: Haverhill | C87: 8540 | D87: 8276 | E87: -264 | F87: 107173075.3 | G87: 109839437.8 | H87: 322.1800942 | I87: 43835110 | J87: 44857002 | K87: 123.4765587 | L87: 63349956 | M87: 64982436 | N87: 1632480 | O87: 197.2547124 | P87: 0.03
A88: 131 | B88: Hingham | C88: 4289 | D88: 3947 | E88: -342 | F88: 45460703.84 | G88: 43233894.31 | H88: -564.1777363 | I88: 37505081 | J88: 35667963 | K88: -465.4466684 | L88: 7955623 | M88: 8074033 | N88: 118410 | O88: 30 | P88: 0.01
A89: 133 | B89: Holbrook | C89: 1346 | D89: 1315 | E89: -31 | F89: 16096140.68 | G89: 17262299.15 | H89: 886.8125223 | I89: 8273118 | J89: 8486011 | K89: 161.8958175 | L89: 7826400 | M89: 8776288 | N89: 949888 | O89: 722.348289 | P89: 0.12
A90: 135 | B90: Holland | C90: 156 | D90: 152 | E90: -4 | F90: 1899540.24 | G90: 1813558.83 | H90: -565.6671711 | I90: 1117998 | J90: 1163643 | K90: 300.2960526 | L90: 933678 | M90: 938238 | N90: 4560 | O90: 30 | P90: 0
A91: 136 | B91: Holliston | C91: 2706 | D91: 2604 | E91: -102 | F91: 28673820.52 | G91: 28327730.34 | H91: -132.9071359 | I91: 21202129 | J91: 21443054 | K91: 92.52112135 | L91: 7936216 | M91: 8014336 | N91: 78120 | O91: 30 | P91: 0.01
A92: 137 | B92: Holyoke | C92: 6357 | D92: 6159 | E92: -198 | F92: 90161028.66 | G92: 94346220.06 | H92: 679.5245007 | I92: 11207668 | J92: 11493463 | K92: 46.40282513 | L92: 78953361 | M92: 82853878 | N92: 3900517 | O92: 633.3036207 | P92: 0.05
A93: 138 | B93: Hopedale | C93: 924 | D93: 914 | E93: -10 | F93: 9927021.495 | G93: 10312156.29 | H93: 421.3728625 | I93: 5864081 | J93: 6099344 | K93: 257.3993435 | L93: 6087390 | M93: 6114810 | N93: 27420 | O93: 30 | P93: 0
A94: 139 | B94: Hopkinton | C94: 3867 | D94: 3935 | E94: 68 | F94: 41585309.19 | G94: 43582814.8 | H94: 507.6253148 | I94: 34279876 | J94: 35955822 | K94: 425.9074968 | L94: 7305433 | M94: 8050421 | N94: 744988 | O94: 189.323507 | P94: 0.1
A95: 141 | B95: Hudson | C95: 2658 | D95: 2512 | E95: -146 | F95: 30603552.29 | G95: 30183664.78 | H95: -167.1526713 | I95: 18666759 | J95: 18931449 | K95: 105.3702229 | L95: 12020446 | M95: 12095806 | N95: 75360 | O95: 30 | P95: 0.01
A96: 142 | B96: Hull | C96: 896 | D96: 837 | E96: -59 | F96: 10567859.95 | G96: 10312532.87 | H96: -305.0502768 | I96: 8718484 | J96: 8507840 | K96: -251.6654719 | L96: 3874466 | M96: 3899576 | N96: 25110 | O96: 30 | P96: 0.01
A97: 144 | B97: Ipswich | C97: 1654 | D97: 1585 | E97: -69 | F97: 18495911.75 | G97: 18360232.91 | H97: -85.6017924 | I97: 15259127 | J97: 15147192 | K97: -70.6214511 | L97: 3332340 | M97: 3379890 | N97: 47550 | O97: 30 | P97: 0.01
A98: 145 | B98: Kingston | C98: 1105 | D98: 1076 | E98: -29 | F98: 11789935.42 | G98: 11891965.33 | H98: 94.82333121 | I98: 7692593 | J98: 7846238 | K98: 142.7927509 | L98: 4372585 | M98: 4404865 | N98: 32280 | O98: 30 | P98: 0.01
A99: 149 | B99: Lawrence | C99: 15367 | D99: 14746 | E99: -621 | F99: 218786376.4 | G99: 234592260.9 | H99: 1071.876066 | I99: 11530073 | J99: 12048747 | K99: 35.17387766 | L99: 207256303 | M99: 222543514 | N99: 15287211 | O99: 1036.702224 | P99: 0.07
A100: 150 | B100: Lee | C100: 616 | D100: 579 | E100: -37 | F100: 7515008.59 | G100: 7363633.63 | H100: -261.4420725 | I100: 6036549 | J100: 6074998 | K100: 66.40587219 | L100: 2085069 | M100: 2102439 | N100: 17370 | O100: 30 | P100: 0.01
A101: 151 | B101: Leicester | C101: 1539 | D101: 1458 | E101: -81 | F101: 18032789.12 | G101: 17918102.01 | H101: -78.66056927 | I101: 8592877 | J101: 8874997 | K101: 193.4979424 | L101: 9802497 | M101: 9846237 | N101: 43740 | O101: 30 | P101: 0
A102: 152 | B102: Lenox | C102: 507 | D102: 496 | E102: -11 | F102: 5736170.58 | G102: 5879254.1 | H102: 288.4748387 | I102: 4728371 | J102: 4784639 | K102: 113.4435484 | L102: 1272525 | M102: 1287405 | N102: 14880 | O102: 30 | P102: 0.01
A103: 153 | B103: Leominster | C103: 6177 | D103: 5990 | E103: -187 | F103: 79655609.19 | G103: 81402160.15 | H103: 291.5777896 | I103: 30886014 | J103: 32019531 | K103: 189.2348915 | L103: 48769595 | M103: 49388806 | N103: 619211 | O103: 103.3741235 | P103: 0.01
A104: 154 | B104: Leverett | C104: 116 | D104: 105 | E104: -11 | F104: 1203602.15 | G104: 1142444.52 | H104: -582.453619 | I104: 992972 | J104: 942517 | K104: -480.5238095 | L104: 295511 | M104: 298661 | N104: 3150 | O104: 30 | P104: 0.01
A105: 155 | B105: Lexington | C105: 7282 | D105: 6982 | E105: -300 | F105: 81400953.56 | G105: 80618068.69 | H105: -112.1290278 | I105: 67155786 | J105: 66509907 | K105: -92.50630192 | L105: 14438034 | M105: 14647494 | N105: 209460 | O105: 30 | P105: 0.01
A106: 157 | B106: Lincoln | C106: 595 | D106: 578 | E106: -17 | F106: 6274212.113 | G106: 6357796.133 | H106: 144.6090315 | I106: 5176225 | J106: 5245182 | K106: 119.3027682 | L106: 1174169 | M106: 1191509 | N106: 17340 | O106: 30 | P106: 0.01
A107: 158 | B107: Littleton | C107: 1611 | D107: 1515 | E107: -96 | F107: 16791308.8 | G107: 16227167.91 | H107: -372.3702216 | I107: 13852830 | J107: 13387414 | K107: -307.2052805 | L107: 4039908 | M107: 4085358 | N107: 45450 | O107: 30 | P107: 0.01
A108: 159 | B108: Longmeadow | C108: 2808 | D108: 2705 | E108: -103 | F108: 29237892.87 | G108: 29129978.33 | H108: -39.8944695 | I108: 24121262 | J108: 24032232 | K108: -32.91312384 | L108: 5669282 | M108: 5750432 | N108: 81150 | O108: 30 | P108: 0.01
A109: 160 | B109: Lowell | C109: 16352 | D109: 16047 | E109: -305 | F109: 218744159.7 | G109: 232660515.4 | H109: 867.2247554 | I109: 51808768 | J109: 54112190 | K109: 143.5422197 | L109: 166954483 | M109: 178553488 | N109: 11599005 | O109: 722.8145448 | P109: 0.07
A110: 161 | B110: Ludlow | C110: 2509 | D110: 2381 | E110: -128 | F110: 29294399.16 | G110: 28842661.47 | H110: -189.7260353 | I110: 16443714 | J110: 16677575 | K110: 98.21965561 | L110: 13795983 | M110: 13867413 | N110: 71430 | O110: 30 | P110: 0.01
A111: 162 | B111: Lunenburg | C111: 1705 | D111: 1656 | E111: -49 | F111: 18301715.41 | G111: 18408485.4 | H111: 64.47463164 | I111: 10527777 | J111: 10908378 | K111: 229.8315217 | L111: 7773938 | M111: 7823618 | N111: 49680 | O111: 30 | P111: 0.01
A112: 163 | B112: Lynn | C112: 18087 | D112: 17156 | E112: -931 | F112: 252551048.5 | G112: 268344427.4 | H112: 920.5746654 | I112: 53396054 | J112: 55110068 | K112: 99.90755421 | L112: 199154994 | M112: 213234359 | N112: 14079365 | O112: 820.6671135 | P112: 0.07
A113: 164 | B113: Lynnfield | C113: 2205 | D113: 2175 | E113: -30 | F113: 23513323.47 | G113: 23928671.95 | H113: 190.9648186 | I113: 19317442 | J113: 19741154 | K113: 194.8101149 | L113: 4404631 | M113: 4469881 | N113: 65250 | O113: 30 | P113: 0.01
A114: 165 | B114: Malden | C114: 7268 | D114: 6921 | E114: -347 | F114: 94879629.91 | G114: 97816216.36 | H114: 424.3008886 | I114: 45560692 | J114: 47782256 | K114: 320.9888744 | L114: 51206223 | M114: 51413853 | N114: 207630 | O114: 30 | P114: 0
A115: 167 | B115: Mansfield | C115: 3730 | D115: 3599 | E115: -131 | F115: 41671720.92 | G115: 41585192 | H115: -24.04249013 | I115: 29709526 | J115: 29922569 | K115: 59.19505418 | L115: 18962339 | M115: 19070309 | N115: 107970 | O115: 30 | P115: 0.01
A116: 168 | B116: Marblehead | C116: 3023 | D116: 2772 | E116: -251 | F116: 31915735.24 | G116: 30235711.09 | H116: -606.0693182 | I116: 26330482 | J116: 24944462 | K116: -500.007215 | L116: 5952147 | M116: 6035307 | N116: 83160 | O116: 30 | P116: 0.01
A117: 169 | B117: Marion | C117: 432 | D117: 403 | E117: -29 | F117: 4522671.78 | G117: 4374312.45 | H117: -368.1372953 | I117: 3731204 | J117: 3608808 | K117: -303.7121588 | L117: 860344 | M117: 872434 | N117: 12090 | O117: 30 | P117: 0.01
A118: 170 | B118: Marlborough | C118: 5336 | D118: 5207 | E118: -129 | F118: 67959735.83 | G118: 68784010.92 | H118: 158.3013413 | I118: 36937156 | J118: 38142644 | K118: 231.5129633 | L118: 31032674 | M118: 31188884 | N118: 156210 | O118: 30 | P118: 0.01
A119: 171 | B119: Marshfield | C119: 3941 | D119: 3791 | E119: -150 | F119: 43514601.6 | G119: 43275872.18 | H119: -62.97267677 | I119: 35899546 | J119: 35702595 | K119: -51.95225534 | L119: 14664853 | M119: 14778583 | N119: 113730 | O119: 30 | P119: 0.01
A120: 172 | B120: Mashpee | C120: 1585 | D120: 1510 | E120: -75 | F120: 18424932.77 | G120: 18231111.67 | H120: -128.3583444 | I120: 15200570 | J120: 15040667 | K120: -105.8960265 | L120: 4640166 | M120: 4685466 | N120: 45300 | O120: 30 | P120: 0.01
A121: 173 | B121: Mattapoisett | C121: 437 | D121: 396 | E121: -41 | F121: 4546818.59 | G121: 4252682.29 | H121: -742.7684343 | I121: 3751126 | J121: 3508463 | K121: -612.7853535 | L121: 839485 | M121: 851365 | N121: 11880 | O121: 30 | P121: 0.01
A122: 174 | B122: Maynard | C122: 1305 | D122: 1256 | E122: -49 | F122: 14950228.73 | G122: 14868952.43 | H122: -64.71042573 | I122: 10176959 | J122: 10603032 | K122: 339.2300955 | L122: 5442941 | M122: 5480621 | N122: 37680 | O122: 30 | P122: 0.01
A123: 175 | B123: Medfield | C123: 2513 | D123: 2433 | E123: -80 | F123: 26552098.79 | G123: 26424181.49 | H123: -52.57595395 | I123: 21905481 | J123: 21799950 | K123: -43.37484587 | L123: 6288744 | M123: 6361734 | N123: 72990 | O123: 30 | P123: 0.01
A124: 176 | B124: Medford | C124: 4622 | D124: 4414 | E124: -208 | F124: 59524340.66 | G124: 59164566.02 | H124: -81.50762277 | I124: 49107581 | J124: 48810767 | K124: -67.24376982 | L124: 12143306 | M124: 12275726 | N124: 132420 | O124: 30 | P124: 0.01
A125: 177 | B125: Medway | C125: 2186 | D125: 2089 | E125: -97 | F125: 23623580.68 | G125: 23134189.31 | H125: -234.2706422 | I125: 16885292 | J125: 17421552 | K125: 256.7065582 | L125: 10501419 | M125: 10564089 | N125: 62670 | O125: 30 | P125: 0.01
A126: 178 | B126: Melrose | C126: 4013 | D126: 3914 | E126: -99 | F126: 43519030.45 | G126: 44344391.46 | H126: 210.8740441 | I126: 35108451 | J126: 36147679 | K126: 265.5155851 | L126: 8514496 | M126: 8631916 | N126: 117420 | O126: 30 | P126: 0.01
A127: 181 | B127: Methuen | C127: 7124 | D127: 6767 | E127: -357 | F127: 88769466.08 | G127: 89379134.69 | H127: 90.09437121 | I127: 40325303 | J127: 40893031 | K127: 83.89655682 | L127: 48444163 | M127: 48647173 | N127: 203010 | O127: 30 | P127: 0
A128: 182 | B128: Middleborough | C128: 3073 | D128: 3021 | E128: -52 | F128: 35057530.5 | G128: 35767383 | H128: 234.9726912 | I128: 18220402 | J128: 19089621 | K128: =(J128-I128)/$D128 -> 287.7255876 | L128: 17978609 | M128: 18069239 | N128: =M128-L128 -> 90630 | O128: =(M128-L128)/$D128 -> 30 | P128: 0.01
A129: 184 | B129: Middleton | C129: 686 | D129: 658 | E129: -28 | F129: 7013290.126 | G129: 6927207.154 | H129: -130.8251858 | I129: 5785964 | J129: 5714946 | K129: -107.9300912 | L129: 1666151 | M129: 1685891 | N129: 19740 | O129: 30 | P129: 0.01
A130: 185 | B130: Milford | C130: 4482 | D130: 4422 | E130: -60 | F130: 56604613.88 | G130: 58526188.08 | H130: 434.5486674 | I130: 25435714 | J130: 26079517 | K130: 145.5909091 | L130: 31168900 | M130: 32446671 | N130: 1277771 | O130: 288.9577114 | P130: 0.04
A131: 186 | B131: Millbury | C131: 1743 | D131: 1633 | E131: -110 | F131: 19675592.06 | G131: 19104092.83 | H131: -349.96891 | I131: 11797270 | J131: 12049555 | K131: 154.491733 | L131: 7878322 | M131: 7927312 | N131: 48990 | O131: 30 | P131: 0.01
A132: 187 | B132: Millis | C132: 1088 | D132: 1051 | E132: -37 | F132: 11739340.25 | G132: 11844886.36 | H132: 100.4244637 | I132: 8676571 | J132: 9095464 | K132: 398.5661275 | L132: 4831312 | M132: 4862842 | N132: 31530 | O132: 30 | P132: 0.01
A133: 189 | B133: Milton | C133: 4374 | D133: 4340 | E133: -34 | F133: 46912230.01 | G133: 48097215.82 | H133: 273.0382049 | I133: 37346878 | J133: 38757408 | K133: 325.0069124 | L133: 9567275 | M133: 9697475 | N133: 130200 | O133: 30 | P133: 0.01
A134: 191 | B134: Monson | C134: 934 | D134: 883 | E134: -51 | F134: 10603017.18 | G134: 10403183.45 | H134: -226.312265 | I134: 5893568 | J134: 6007448 | K134: 128.9694224 | L134: 7541075 | M134: 7567565 | N134: 26490 | O134: 30 | P134: 0
A135: 196 | B135: Nahant | C135: 266 | D135: 263 | E135: -3 | F135: 2739284.95 | G135: 2845521.76 | H135: 403.9422433 | I135: 2259910 | J135: 2347555 | K135: 333.2509506 | L135: 523513 | M135: 531403 | N135: 7890 | O135: 30 | P135: 0.02
A136: 197 | B136: Nantucket | C136: 1664 | D136: 1663 | E136: -1 | F136: 19472349.76 | G136: 20100924.6 | H136: 377.9764522 | I136: 16064689 | J136: 16583263 | K136: 311.8304269 | L136: 3600249 | M136: 3650139 | N136: 49890 | O136: 30 | P136: 0.01
A137: 198 | B137: Natick | C137: 5484 | D137: 5270 | E137: -214 | F137: 58312471.33 | G137: 57529966.22 | H137: -148.4829431 | I137: 48107789 | J137: 47462222 | K137: -122.498482 | L137: 10204682 | M137: 10362782 | N137: 158100 | O137: 30 | P137: 0.02
A138: 199 | B138: Needham | C138: =VLOOKUP(A138,aidcalc,14,FALSE) -> 5754 | D138: =VLOOKUP(A138,aidcalc,15,FALSE) -> 5561 | E138: -193 | F138: =VLOOKUP(A138,aidcalc,4,FALSE) -> 63004475.7 | G138: =VLOOKUP(A138,aidcalc,9,FALSE) -> 62757965.94 | H138: =(G138-F138)/$D138 -> -44.32831529 | I138: =VLOOKUP(A138,aidcalc,5,FALSE) -> 51978693 | J138: =VLOOKUP(A138,aidcalc,10,FALSE) -> 51775322 | K138: -36.57094048 | L138: =VLOOKUP(A138,aidcalc,6,FALSE) -> 11025783 | M138: =VLOOKUP(A138,aidcalc,25,FALSE) -> 11192613 | N138: 166830 | O138: 30 | P138: =ROUND(IF(F138>0,(M138-L138)/L138,100),2) -> 0.02
A139: 201 | B139: New Bedford | C139: 14257 | D139: 14010 | E139: =D139-C139 -> -247 | F139: 197388756 | G139: 206188927.6 | H139: 628.1350157 | I139: 31307615 | J139: 32442344 | K139: 80.99421842 | L139: 166091904 | M139: 173746584 | N139: 7654680 | O139: 546.372591 | P139: 0.05
A140: 204 | B140: Newburyport | C140: 2308 | D140: 2211 | E140: -97 | F140: 24204978.57 | G140: 24047193.3 | H140: -71.36375848 | I140: 19969107 | J140: 19838934 | K140: -58.87516961 | L140: 4235872 | M140: 4302202 | N140: 66330 | O140: 30 | P140: 0.02
A141: 207 | B141: Newton | C141: 12831 | D141: 12113 | E141: -718 | F141: 143592665.2 | G141: 140792530 | H141: -231.1677684 | I141: 118463949 | J141: 116153837 | K141: -190.7134484 | L141: 25128716 | M141: 25492106 | N141: 363390 | O141: 30 | P141: 0.01
A142: 208 | B142: Norfolk | C142: 944 | D142: 968 | E142: 24 | F142: 9555961.115 | G142: 10190816.71 | H142: 655.8425533 | I142: 7883668 | J142: 8337473 | K142: 468.8068182 | L142: 3461385 | M142: 3490425 | N142: 29040 | O142: 30 | P142: 0.01
A143: 209 | B143: North Adams | C143: 1424 | D143: 1308 | E143: -116 | F143: 18178355.15 | G143: 17897202.07 | H143: -214.9488379 | I143: 5057245 | J143: 5027520 | K143: -22.72553517 | L143: 13809703 | M143: 13848943 | N143: 39240 | O143: 30 | P143: 0
A144: 210 | B144: Northampton | C144: 2745 | D144: 2656 | E144: -89 | F144: 31063338.95 | G144: 30678559 | H144: -144.8719691 | I144: 25627255 | J144: 25309811 | K144: -119.5195783 | L144: 7558369 | M144: 7638049 | N144: 79680 | O144: 30 | P144: 0.01
A145: 211 | B145: North Andover | C145: 4704 | D145: 4600 | E145: -104 | F145: 50577443.99 | G145: 51229167.58 | H145: 141.6790413 | I145: 41726391 | J145: 42264063 | K145: 116.8852174 | L145: 9160097 | M145: 9298097 | N145: 138000 | O145: 30 | P145: 0.02
A146: 212 | B146: North Attleborough | C146: 4170 | D146: 4093 | E146: -77 | F146: 45073173.74 | G146: 45683012.36 | H146: 148.9955094 | I146: 28270188 | J146: 29002278 | K146: 178.863914 | L146: 20682041 | M146: 20804831 | N146: 122790 | O146: 30 | P146: 0.01
A147: 213 | B147: Northborough | C147: 1540 | D147: 1567 | E147: 27 | F147: 15653167.56 | G147: 16551243.65 | H147: 573.1181174 | I147: 12913864 | J147: 13451109 | K147: 342.8493937 | L147: 3993500 | M147: 4040510 | N147: 47010 | O147: 30 | P147: 0.01
A148: 214 | B148: Northbridge | C148: 2074 | D148: 2023 | E148: -51 | F148: 23651358.31 | G148: 24066339.76 | H148: 205.1317103 | I148: 12499433 | J148: 12899827 | K148: 197.9209095 | L148: 15603931 | M148: 15664621 | N148: 60690 | O148: 30 | P148: 0
A149: 215 | B149: North Brookfield | C149: 609 | D149: 573 | E149: -36 | F149: 6921441.02 | G149: 6863578.77 | H149: -100.9812391 | I149: 2970928 | J149: 3115388 | K149: 252.1116928 | L149: 4290838 | M149: 4308028 | N149: 17190 | O149: 30 | P149: 0
A150: 217 | B150: North Reading | C150: 2320 | D150: 2243 | E150: -77 | F150: 25345400.25 | G150: 25122867.63 | H150: -99.2120457 | I150: 20909956 | J150: 20726365 | K150: -81.85064646 | L150: 7153937 | M150: 7221227 | N150: 67290 | O150: 30 | P150: 0.01
A151: 218 | B151: Norton | C151: 2400 | D151: 2301 | E151: -99 | F151: 26443914.05 | G151: 26330388.29 | H151: -49.33757497 | I151: 18367335 | J151: 18951479 | K151: 253.865276 | L151: 12827390 | M151: 12896420 | N151: 69030 | O151: 30 | P151: 0.01
A152: 219 | B152: Norwell | C152: 2153 | D152: 2138 | E152: -15 | F152: 22887277.59 | G152: 23347458.35 | H152: 215.2388941 | I152: 18882004 | J152: 19261653 | K152: 177.5720299 | L152: 4011711 | M152: 4092385 | N152: 80674 | O152: 37.7333957 | P152: 0.02
A153: 220 | B153: Norwood | C153: 3531 | D153: 3494 | E153: -37 | F153: 42697305.22 | G153: 43678902.62 | H153: 280.9380083 | I153: 33534173 | J153: 34547211 | K153: 289.9364625 | L153: 9166992 | M153: 9271812 | N153: 104820 | O153: 30 | P153: 0.01
A154: 221 | B154: Oak Bluffs | C154: 447 | D154: 438 | E154: -9 | F154: 5068644.35 | G154: 5250477.4 | H154: 415.1439498 | I154: 3984819 | J154: 4061903 | K154: 175.9908676 | L154: 1083825 | M154: 1190134 | N154: 106309 | O154: 242.7146119 | P154: 0.1
A155: 223 | B155: Orange | C155: 595 | D155: 532 | E155: -63 | F155: 7238630.15 | G155: 6806427.04 | H155: -812.4118609 | I155: 2020501 | J155: 1964703 | K155: -104.8834586 | L155: 5432046 | M155: 5448006 | N155: 15960 | O155: 30 | P155: 0
A156: 224 | B156: Orleans | C156: 204 | D156: 183 | E156: -21 | F156: 2333514.66 | G156: 2121258.23 | H156: -1159.871202 | I156: 1925150 | J156: 1750038 | K156: -956.8961749 | L156: 429984 | M156: 435474 | N156: 5490 | O156: 30 | P156: 0.01
A157: 226 | B157: Oxford | C157: 1655 | D157: 1563 | E157: -92 | F157: 19171590.48 | G157: 18679880.2 | H157: -314.5939091 | I157: 9891135 | J157: 10080418 | K157: 121.1023672 | L157: 10566894 | M157: 10613784 | N157: 46890 | O157: 30 | P157: 0
A158: 227 | B158: Palmer | C158: 1413 | D158: 1318 | E158: -95 | F158: 17071234.92 | G158: 16709438.48 | H158: -274.5041275 | I158: 6857027 | J158: 6791117 | K158: -50.00758725 | L158: 10915640 | M158: 10955180 | N158: 39540 | O158: 30 | P158: 0
A159: 229 | B159: Peabody | C159: 5983 | D159: 5877 | E159: -106 | F159: 72290192.48 | G159: 74033830.66 | H159: 296.6884771 | I159: 50135481 | J159: 50930549 | K159: 135.284669 | L159: 22171771 | M159: 23103282 | N159: 931511 | O159: 158.501106 | P159: 0.04
A160: 230 | B160: Pelham | C160: 84 | D160: 70 | E160: -14 | F160: 928975.21 | G160: 782638.47 | H160: -2090.524857 | I160: 690492 | J160: 645677 | K160: -640.2142857 | L160: 238483 | M160: 240583 | N160: 2100 | O160: 30 | P160: 0.01
A161: 231 | B161: Pembroke | C161: 2854 | D161: 2740 | E161: -114 | F161: 31797805.65 | G161: 31570380.37 | H161: -83.00192692 | I161: 21249366 | J161: 21759351 | K161: 186.1259124 | L161: 13608752 | M161: 13690952 | N161: 82200 | O161: 30 | P161: 0.01
A162: 234 | B162: Petersham | C162: 79 | D162: 67 | E162: -12 | F162: 932984.68 | G162: 859319.13 | H162: -1099.485821 | I162: 640821 | J162: 588398 | K162: -782.4328358 | L162: 435523 | M162: 437533 | N162: 2010 | O162: 30 | P162: 0
A163: 236 | B163: Pittsfield | C163: 5920 | D163: 5707 | E163: -213 | F163: 76463876.15 | G163: 79110404.66 | H163: 463.7337498 | I163: 28300807 | J163: 29449820 | K163: 201.3339758 | L163: 48163069 | M163: 49660585 | N163: 1497516 | O163: 262.3998598 | P163: 0.03
A164: 238 | B164: Plainville | C164: 716 | D164: 658 | E164: -58 | F164: 7517996.15 | G164: 7127762.91 | H164: -593.0596353 | I164: 5427402 | J164: 5273871 | K164: -233.3297872 | L164: 2927801 | M164: 2947541 | N164: 19740 | O164: 30 | P164: 0.01
A165: 239 | B165: Plymouth | C165: 7951 | D165: 7708 | E165: -243 | F165: 94027629.56 | G165: 96767564.54 | H165: 355.4663956 | I165: 71603127 | J165: 74471293 | K165: 372.1024909 | L165: 26369547 | M165: 26600787 | N165: 231240 | O165: 30 | P165: 0.01
A166: 240 | B166: Plympton | C166: 227 | D166: 214 | E166: -13 | F166: 2429975.092 | G166: 2366031.939 | H166: -298.7997835 | I166: 1772432 | J166: 1783978 | K166: 53.95327103 | L166: 740470 | M166: 746890 | N166: 6420 | O166: 30 | P166: 0.01
A167: 242 | B167: Provincetown | C167: 97 | D167: 99 | E167: 2 | F167: 1297760.28 | G167: 1357829.12 | H167: 606.7559596 | I167: 1070652 | J167: 1120209 | K167: 500.5757576 | L167: 290781 | M167: 293751 | N167: 2970 | O167: 30 | P167: 0.01
A168: 243 | B168: Quincy | C168: 9657 | D168: 9549 | E168: -108 | F168: 129336079.2 | G168: 138447528 | H168: 954.1783203 | I168: 101589945 | J168: 106595521 | K168: 524.1989737 | L168: 28647763 | M168: 31872332 | N168: 3224569 | O168: 337.686564 | P168: 0.11
A169: 244 | B169: Randolph | C169: 3286 | D169: 3265 | E169: -21 | F169: 42468258.92 | G169: 44771562.8 | H169: 705.4529491 | I169: 23490641 | J169: 24106610 | K169: 188.658193 | L169: 18986721 | M169: 20667301 | N169: 1680580 | O169: 514.7258806 | P169: 0.09
A170: 246 | B170: Reading | C170: 3975 | D170: 3835 | E170: -140 | F170: 42488891.06 | G170: 42274011.34 | H170: -56.03121873 | I170: 35053335 | J170: 34876059 | K170: -46.22581486 | L170: 10834809 | M170: 10949859 | N170: 115050 | O170: 30 | P170: 0.01
A171: 248 | B171: Revere | C171: 7979 | D171: 7766 | E171: -213 | F171: 107222329.5 | G171: 119408964.5 | H171: 1569.229327 | I171: 36927909 | J171: 38458098 | K171: 197.036956 | L171: 70298333 | M171: 80950866 | N171: 10652533 | O171: 1371.688514 | P171: 0.15
A172: 249 | B172: Richmond | C172: 125 | D172: 112 | E172: -13 | F172: 1449827.3 | G172: 1294266.88 | H172: -1388.932321 | I172: 1196108 | J172: 1067770 | K172: -1145.875 | L172: 364649 | M172: 368009 | N172: 3360 | O172: 30 | P172: 0.01
A173: 250 | B173: Rochester | C173: 514 | D173: 483 | E173: -31 | F173: 5386708.88 | G173: 5247585.08 | H173: -288.0409938 | I173: 3382851 | J173: 3517393 | K173: 278.5548654 | L173: 2057549 | M173: 2072039 | N173: 14490 | O173: 30 | P173: 0.01
A174: 251 | B174: Rockland | C174: 2326 | D174: 2251 | E174: -75 | F174: 29202100.01 | G174: 29636842.03 | H174: 193.1328409 | I174: 14473503 | J174: 14836781 | K174: 161.3851622 | L174: 14728597 | M174: 14800061 | N174: 71464 | O174: 31.7476677 | P174: 0
A175: 252 | B175: Rockport | C175: 665 | D175: 594 | E175: -71 | F175: 7619056.399 | G175: 6998375.141 | H175: -1044.917943 | I175: 6285722 | J175: 5773659 | K175: -862.0589226 | L175: 1502126 | M175: 1519946 | N175: 17820 | O175: 30 | P175: 0.01
A176: 253 | B176: Rowe | C176: 50 | D176: 43 | E176: -7 | F176: 643874.47 | G176: 580639.88 | H176: -1470.57186 | I176: 531196 | J176: 479028 | K176: -1213.209302 | L176: 139775 | M176: 141065 | N176: 1290 | O176: 30 | P176: 0.01
A177: 258 | B177: Salem | C177: 4536 | D177: 4315 | E177: -221 | F177: 59442159.62 | G177: 59973101.91 | H177: 123.0457219 | I177: 35764101 | J177: 36940239 | K177: 272.5696408 | L177: 25807152 | M177: 25936602 | N177: 129450 | O177: 30 | P177: 0.01
A178: 261 | B178: Sandwich | C178: 2644 | D178: 2480 | E178: -164 | F178: 28550950.06 | G178: 27638904.29 | H178: -367.7603911 | I178: 23554534 | J178: 22802096 | K178: -303.4024194 | L178: 7151788 | M178: 7226188 | N178: 74400 | O178: 30 | P178: 0.01
A179: 262 | B179: Saugus | C179: 2798 | D179: 2612 | E179: -186 | F179: 33051187.88 | G179: 31864908.98 | H179: -454.1649694 | I179: 26786282 | J179: 26288549 | K179: -190.5562787 | L179: 6270812 | M179: 6349172 | N179: 78360 | O179: 30 | P179: 0.01
A180: 263 | B180: Savoy | C180: 50 | D180: 45 | E180: -5 | F180: 635304.58 | G180: 542332.33 | H180: -2066.05 | I180: 372887 | J180: 447424 | K180: 1656.377778 | L180: 515849 | M180: 517199 | N180: 1350 | O180: 30 | P180: 0
A181: 264 | B181: Scituate | C181: 2991 | D181: 2790 | E181: -201 | F181: 32099035.58 | G181: 30894315.61 | H181: -431.7992729 | I181: 26068183 | J181: 25487810 | K181: -208.0189964 | L181: 6030853 | M181: 6114553 | N181: 83700 | O181: 30 | P181: 0.01
A182: 265 | B182: Seekonk | C182: 2077 | D182: 2048 | E182: -29 | F182: 22173871.39 | G182: 22858887.2 | H182: 334.480376 | I182: 15952238 | J182: 16514693 | K182: 274.6362305 | L182: 6705263 | M182: 6766703 | N182: 61440 | O182: 30 | P182: 0.01
A183: 266 | B183: Sharon | C183: 3535 | D183: 3471 | E183: -64 | F183: 38206192.1 | G183: 38638373.19 | H183: 124.5119799 | I183: 30736571 | J183: 31062235 | K183: 93.82425814 | L183: 7469972 | M183: 8528536 | N183: 1058564 | O183: 304.9737828 | P183: 0.14
A184: 269 | B184: Sherborn | C184: 400 | D184: 387 | E184: -13 | F184: 4086891.646 | G184: 4092250.435 | H184: 13.84699894 | I184: 3371686 | J184: 3376106 | K184: 11.42118863 | L184: 715207 | M184: 726817 | N184: 11610 | O184: 30 | P184: 0.02
A185: 271 | B185: Shrewsbury | C185: 6207 | D185: 6144 | E185: -63 | F185: 66373147.32 | G185: 67854307.58 | H185: 241.0742611 | I185: 50487975 | J185: 52472153 | K185: 322.945638 | L185: 20068648 | M185: 20252968 | N185: 184320 | O185: 30 | P185: 0.01
A186: 272 | B186: Shutesbury | C186: 105 | D186: 98 | E186: -7 | F186: 1221694.11 | G186: 1167665.85 | H186: -551.3087755 | I186: 712492 | J186: 713413 | K186: 9.397959184 | L186: 630386 | M186: 633326 | N186: 2940 | O186: 30 | P186: 0
A187: 273 | B187: Somerset | C187: 1758 | D187: 1642 | E187: -116 | F187: 18501842.41 | G187: 17923179.72 | H187: -352.4133313 | I187: 9406646 | J187: 9348329 | K187: -35.51583435 | L187: 9096902 | M187: 9146162 | N187: 49260 | O187: 30 | P187: 0.01
A188: 274 | B188: Somerville | C188: 5282 | D188: 5049 | E188: -233 | F188: 72325602.75 | G188: 77023976.66 | H188: 930.555339 | I188: 59668622 | J188: 62371611 | K188: 535.3513567 | L188: 20486918 | M188: 20638388 | N188: 151470 | O188: 30 | P188: 0.01
A189: 275 | B189: Southampton | C189: 462 | D189: 448 | E189: -14 | F189: 4972548.33 | G189: 5095671.48 | H189: 274.8284598 | I189: 3367625 | J189: 3512848 | K189: 324.1584821 | L189: 2551486 | M189: 2564926 | N189: 13440 | O189: 30 | P189: 0.01
A190: 276 | B190: Southborough | C190: 1225 | D190: 1156 | E190: -69 | F190: 12497359.94 | G190: 12226979.46 | H190: -233.8931547 | I190: 10310322 | J190: 10087258 | K190: -192.9619377 | L190: 2986051 | M190: 3020731 | N190: 34680 | O190: 30 | P190: 0.01
A191: 277 | B191: Southbridge | C191: 2231 | D191: 2210 | E191: -21 | F191: 29979243.07 | G191: 31977786.81 | H191: 904.3184344 | I191: 8016911 | J191: 8279716 | K191: =(J191-I191)/$D191 -> 118.9162896 | L191: 22989832 | M191: 23698071 | N191: =M191-L191 -> 708239 | O191: =(M191-L191)/$D191 -> 320.4701357 | P191: 0.03
A192: 278 | B192: South Hadley | C192: 1941 | D192: 1837 | E192: -104 | F192: 22558199.09 | G192: 22281902.76 | H192: -150.4062765 | I192: 14027360 | J192: 14084456 | K192: 31.08111051 | L192: 8530839 | M192: 8585949 | N192: 55110 | O192: 30 | P192: 0.01
A193: 281 | B193: Springfield | C193: 29551 | D193: 29144 | E193: -407 | F193: 419043165.7 | G193: 446524568 | H193: 942.9523161 | I193: 41873391 | J193: 43175654 | K193: 44.68374279 | L193: 377169775 | M193: 403348914 | N193: 26179139 | O193: 898.268563 | P193: 0.07
A194: 284 | B194: Stoneham | C194: 2450 | D194: 2376 | E194: -74 | F194: 27298622.59 | G194: 27721100.21 | H194: 177.8104427 | I194: 22148293 | J194: 22660313 | K194: 215.496633 | L194: 5266351 | M194: 5337631 | N194: 71280 | O194: 30 | P194: 0.01
A195: 285 | B195: Stoughton | C195: 3644 | D195: 3540 | E195: -104 | F195: 44058289.5 | G195: 44927626.42 | H195: 245.5754003 | I195: 27084504 | J195: 27845850 | K195: 215.0694915 | L195: 16973793 | M195: 17235177 | N195: 261384 | O195: 73.83728814 | P195: 0.02
A196: 287 | B196: Sturbridge | C196: 870 | D196: 804 | E196: -66 | F196: 8866569.39 | G196: 8608625.43 | H196: -320.8258209 | I196: 5185477 | J196: 5070480 | K196: -143.0310945 | L196: 3846634 | M196: 3870754 | N196: 24120 | O196: 30 | P196: 0.01
A197: 288 | B197: Sudbury | C197: 2690 | D197: 2524 | E197: -166 | F197: 26639866.14 | G197: 25581450.37 | H197: -419.3406366 | I197: 21977890 | J197: 21104696 | K197: -345.9564184 | L197: 4990518 | M197: 5066238 | N197: 75720 | O197: 30 | P197: 0.02
A198: 289 | B198: Sunderland | C198: 171 | D198: 141 | E198: -30 | F198: 2034470.88 | G198: 1721299.1 | H198: -2221.076454 | I198: 1662285 | J198: 1420072 | K198: -1717.822695 | L198: 872838 | M198: 877068 | N198: 4230 | O198: 30 | P198: 0
A199: 290 | B199: Sutton | C199: 1321 | D199: 1257 | E199: -64 | F199: 13916186.88 | G199: 13690363.95 | H199: -179.6522912 | I199: 10856059 | J199: 11091587 | K199: 187.3731106 | L199: 5479815 | M199: 5517525 | N199: 37710 | O199: 30 | P199: 0.01
A200: 291 | B200: Swampscott | C200: 2155 | D200: 2086 | E200: -69 | F200: 23409223.78 | G200: 23502231.44 | H200: 44.58660594 | I200: 18964138 | J200: 19389341 | K200: 203.8365292 | L200: 4447386 | M200: 4509966 | N200: 62580 | O200: 30 | P200: 0.01
A201: 292 | B201: Swansea | C201: 2115 | D201: 2044 | E201: -71 | F201: 22877752.37 | G201: 23940769.11 | H201: 520.0668982 | I201: 14533757 | J201: 14745527 | K201: 103.6056751 | L201: 8449049 | M201: 9195242 | N201: 746193 | O201: 365.0650685 | P201: 0.09
A202: 293 | B202: Taunton | C202: =VLOOKUP(A202,aidcalc,14,FALSE) -> 8113 | D202: =VLOOKUP(A202,aidcalc,15,FALSE) -> 7953 | E202: -160 | F202: =VLOOKUP(A202,aidcalc,4,FALSE) -> 103523189.7 | G202: =VLOOKUP(A202,aidcalc,9,FALSE) -> 107043467.6 | H202: =(G202-F202)/$D202 -> 442.6352182 | I202: =VLOOKUP(A202,aidcalc,5,FALSE) -> 36893138 | J202: =VLOOKUP(A202,aidcalc,10,FALSE) -> 38153915 | K202: 158.5284798 | L202: =VLOOKUP(A202,aidcalc,6,FALSE) -> 66638377 | M202: =VLOOKUP(A202,aidcalc,25,FALSE) -> 68896940 | N202: 2258563 | O202: 283.9888093 | P202: =ROUND(IF(F202>0,(M202-L202)/L202,100),2) -> 0.03
A203: 295 | B203: Tewksbury | C203: 3364 | D203: 3256 | E203: =D203-C203 -> -108 | F203: 35851430.13 | G203: 35982818.32 | H203: 40.35263821 | I203: 29577430 | J203: 29685825 | K203: 33.29084767 | L203: 13326215 | M203: 13423895 | N203: 97680 | O203: 30 | P203: 0.01
... 128 more rows

Sheet Rates
A3: Massachusetts Department of Elementary and Secondary Education
A4: Office of School Finance
A6: ="Foundation Budget Rates Per Pupil, "& CYr &" Chapter 70" -> Foundation Budget Rates Per Pupil, FY22 Chapter 70
C8: Administration | D8: Instructional Leadership | E8: Classroom & Specialist Teachers | F8: Other Teaching Services | G8: Professional Development | H8: Instructional Materials, Equipment & Technology | I8: Guidance & Psychological Services | J8: Pupil Services | K8: Operations & Maintenance | L8: Employee Benefits/Fixed Charges | M8: Special Education Tuition | N8: Total, All Categories
A10: 1 | B10: Pre-school | C10: 202.69 | D10: 366.06 | E10: 1678.52 | F10: 430.49 | G10: 66.38 | H10: 242.94 | I10: 134.35 | J10: 48.57 | K10: 466.11 | L10: 583.96 | M10: 0 | N10: 4220.07
A11: 2 | B11: Kindergarten half-day | C11: 202.69 | D11: 366.06 | E11: 1678.52 | F11: 430.49 | G11: 66.38 | H11: 242.94 | I11: 134.35 | J11: 48.57 | K11: 466.11 | L11: 583.96 | M11: 0 | N11: 4220.07
A12: 3 | B12: Kindergarten full-day | C12: 405.37 | D12: 732.13 | E12: 3357.03 | F12: 861.01 | G12: 132.83 | H12: 485.89 | I12: 268.72 | J12: 97.19 | K12: 932.2 | L12: 1167.9 | M12: 0 | N12: 8440.27
A13: 4 | B13: Elementary | C13: 405.37 | D13: 732.13 | E13: 3356.99 | F13: 861.01 | G13: 132.85 | H13: 485.89 | I13: 268.72 | J13: 145.76 | K13: 932.2 | L13: 1167.93 | M13: 0 | N13: 8488.85
A14: 5 | B14: Junior/Middle | C14: 405.37 | D14: 732.13 | E14: 2954.16 | F14: 619.8 | G14: 144.01 | H14: 485.89 | I14: 336.12 | J14: 238.1 | K14: 1010.62 | L14: 1215.91 | M14: 0 | N14: 8142.11
A15: 6 | B15: High School | C15: 405.37 | D15: 732.13 | E15: 4344.33 | F15: 515.98 | G15: 139.64 | H15: 777.42 | I15: 407.6 | J15: 549.04 | K15: 979.9 | L15: 1093.9 | M15: 0 | N15: 9945.31
A16: 7 | B16: Vocational | C16: 405.37 | D16: 732.13 | E16: 7385.41 | F16: 515.98 | G16: 230.86 | H16: 1360.47 | I16: 407.6 | J16: 549.04 | K16: 1833.94 | L16: 1531.98 | M16: 0 | N16: 14952.78
A17: 8 | B17: Special Ed-in district | C17: 2797.71 | D17: 0 | E17: 9231.73 | F17: 8619.54 | G17: 445.33 | H17: 388.7 | I17: 0 | J17: 0 | K17: 3125.17 | L17: 3540.82 | M17: 0 | N17: 28149
A18: 9 | B18: Special Ed-tuitioned out | C18: 3010.64 | D18: 0 | E18: 0 | F18: 45.99 | G18: 0 | H18: 0 | I18: 0 | J18: 0 | K18: 0 | L18: 0 | M18: 28584.4 | N18: 31641.03
A19: 10 | B19: English learners PK-5 | C19: 95.01 | D19: 166.27 | E19: 1163.85 | F19: 166.27 | G19: 47.5 | H19: 118.75 | I19: 71.26 | J19: 23.76 | K19: 285.02 | L19: 261.27 | M19: 0 | N19: 2398.96
A20: 11 | B20: English learners 6-8 | C20: 99.85 | D20: 174.72 | E20: 1222.99 | F20: 174.72 | G20: 49.92 | H20: 124.79 | I20: 74.88 | J20: 24.96 | K20: 299.51 | L20: 274.55 | M20: 0 | N20: 2520.89
A21: 12 | B21: English learners high school/voc | C21: 85.72 | D21: 150.02 | E21: 1050.09 | F21: 150.02 | G21: 42.86 | H21: 107.15 | I21: 64.29 | J21: 21.43 | K21: 257.17 | L21: 235.73 | M21: 0 | N21: 2164.48
A22: 13 | B22: Low income group 1 | C22: 52.17 | D22: 247.19 | E22: 2413.12 | F22: 0 | G22: 117.08 | H22: 17.94 | I22: 97.71 | J22: 507.75 | K22: 0 | L22: 390.34 | M22: 0 | N22: 3843.3
A23: 14 | B23: Low income group 2 | C23: 53.18 | D23: 251.94 | E23: 2459.38 | F23: 0 | G23: 119.32 | H23: 18.29 | I23: 99.58 | J23: 517.49 | K23: 0 | L23: 397.82 | M23: 0 | N23: 3917
A24: 15 | B24: Low income group 3 | C24: 54.17 | D24: 256.68 | E24: 2505.65 | F24: 0 | G24: 121.57 | H24: 18.64 | I24: 101.47 | J24: 527.23 | K24: 0 | L24: 405.31 | M24: 0 | N24: 3990.72
A25: 16 | B25: Low income group 4 | C25: 55.17 | D25: 261.41 | E25: 2551.91 | F25: 0 | G25: 123.81 | H25: 18.98 | I25: 103.34 | J25: 536.95 | K25: 0 | L25: 412.79 | M25: 0 | N25: 4064.36
A26: 17 | B26: Low income group 5 | C26: 56.17 | D26: 266.15 | E26: 2598.17 | F26: 0 | G26: 126.05 | H26: 19.32 | I26: 105.21 | J26: 546.69 | K26: 0 | L26: 420.28 | M26: 0 | N26: 4138.04
A27: 18 | B27: Low income group 6 | C27: 60.56 | D27: 286.93 | E27: 2800.97 | F27: 0 | G27: 135.88 | H27: 20.83 | I27: 113.42 | J27: 589.36 | K27: 0 | L27: 453.08 | M27: 0 | N27: 4461.03
A28: 19 | B28: Low income group 7 | C28: 62.96 | D28: 298.31 | E28: 2912.09 | F28: 0 | G28: 141.28 | H28: 21.66 | I28: 117.92 | J28: 612.75 | K28: 0 | L28: 471.05 | M28: 0 | N28: 4638.02
A29: 20 | B29: Low income group 8 | C29: 65.36 | D29: 309.69 | E29: 3023.19 | F29: 0 | G29: 146.67 | H29: 22.49 | I29: 122.42 | J29: 636.12 | K29: 0 | L29: 489.02 | M29: 0 | N29: 4814.96
A30: 21 | B30: Low income group 9 | C30: 67.77 | D30: 321.08 | E30: 3134.33 | F30: 0 | G30: 152.06 | H30: 23.31 | I30: 126.92 | J30: 659.5 | K30: 0 | L30: 507 | M30: 0 | N30: 4991.97
A31: 22 | B31: Low income group 10 | C31: 70.17 | D31: 332.46 | E31: 3245.44 | F31: 0 | G31: 157.45 | H31: 24.14 | I31: 131.42 | J31: 682.88 | K31: 0 | L31: 524.98 | M31: 0 | N31: 5168.94
A32: 23 | B32: Low income group 11 | C32: 72.23 | D32: 342.21 | E32: 3340.67 | F32: 0 | G32: 162.07 | H32: 24.84 | I32: 135.27 | J32: 702.92 | K32: 0 | L32: 540.38 | M32: 0 | N32: 5320.59
A33: 24 | B33: Low income group 12 | C33: 74.29 | D33: 351.97 | E33: 3435.89 | F33: 0 | G33: 166.69 | H33: 25.55 | I33: 139.13 | J33: 722.96 | K33: 0 | L33: 555.78 | M33: 0 | N33: 5472.26

Sheet Townwide Contributions
A1: 1 | C1: From DOR 3 | D1: 4 | E1: From DOR 5 | F1: 6 | G1: 7 | H1: 8 | I1: =H1+1 -> 9 | J1: =I1+1 -> 10 | K1: 11 | L1: 12 | M1: 13 | N1: c70fy21 14 | O1: From DOR 15 | P1: 16 | Q1: 17 | R1: 18 | S1: 19 | T1: 20 | U1: 21 | V1: 22 | W1: 23 | X1: 24 | Y1: 25 | Z1: 26 | AA1: 27 | AB1: 28 | AC1: 29 | AD1: 30 | AE1: 29
B2: Return to Index | C2: 1. Calculation of effort goal (target local share) | N2: 2. Calculation of annual increments toward goal (required local contribution) | AA2: Analysis of Gap Closing
B3: More about the data | S3: Increments | T3: Thresholds
D4: uniform property percentage | F4: uniform income percentage | N4: Updated 12/17/20 | O4: Updated 4/5/21 | S4: =parameters!C18 -> 0.01 | T4: =parameters!C16 -> 2.5 | V4: Effort Reduction | W4: OPTION TO ACTIVATE THIS INCREMENT
D5: =parameters!C29 -> 0.003325837062 | F5: =parameters!C30 -> 0.01419874795 | S5: =parameters!C19 -> 0.02 | T5: =parameters!C17 -> 7.5 | V5: =effortred -> 1 | W5: 1 | AG5: SUMMARY FOR EXPORT (reads from columns to the left)
C6: Updated 12/17/20 | E6: Updated 12/17/20 | J6: maximum | K6: target local | N6: required | Q6: preliminary | S6: percentage | T6: dollar
D7: local effort | E7: DOR total | F7: local effort | G7: combined | J7: local contribution | K7: contribution | L7: target | N7: local | P7: preliminary | Q7: contribution | R7: shortfall | S7: increment | T7: increment | V7: excess effort | X7: required | AA7: Before | AB7: After implementation | AI7: CEY% | AJ7: target
C8: total | D8: from property | E8: income | F8: from income | G8: effort | H8: =CYr -> FY22 | I8: CEY % | J8: foundation pct= | K8: (lesser of max local | L8: local | N8: contribution | O8: mrgf | P8: contribution | Q8: percentage of | R8: from target | S8: toward | T8: toward | U8: excess | V8: times effort | W8: CEY% > 175% | X8: contribution | Y8: percentage | AA8: below effort | AB8: below effort | AC8: above effort | AD8: distance from | AG8: 3 digit town code | AI8: found | AJ8: local share | AK8: RLC | AL8: distance from
A9: LEA | B9: Town | C9: EQV 2020 | D9: wealth | E9: 2018 | F9: wealth | G9: yield | H9: foundation | I9: Found | J9: =maxloc -> 0.825 | K9: or effort yield) | L9: share | N9: FY21 | O9: FY21 | P9: =CYr -> FY22 | Q9: foundation | R9: local share | S9: target | T9: target | U9: effort | V9: reduction % | W9: increment | X9: =CYr -> FY22 | Y9: of foundation | AA9: shortfall | AB9: shortfall | AC9: excess | AD9: target | AE9: blank | AF9: blank | AG9: =CYr -> FY22 | AH9: Town | AI9: =CYr -> FY22 | AJ9: =CYr -> FY22 | AK9: =CYr -> FY22 | AL9: target
A10: 1 | B10: Abington | C10: 2379458500 | D10: =D$5*C10 -> 7913691.266 | E10: 640153000 | F10: =E10*F$5 -> 9089371.097 | G10: =ROUND(D10+F10,0) -> 17003062 | H10: =(SUMIF(town1755,A10,found1755)/2) -> 28150953.47 | I10: =G10/H10 -> 0.6039959542 | J10: =ROUND(H10*maxloc,0) -> 23224537 | K10: =MIN(G10,J10) -> 17003062 | L10: =IF(H10>0, ROUND((K10*100/H10), 2), 0) -> 60.4 | N10: 16195587 | O10: 0.0333 | P10: =ROUND(N10*(1+O10),0) -> 16734900 | Q10: =P10*100/H10 -> 59.44700957 | R10: =IF(L10>Q10,L10-Q10,0) -> 0.9529904347 | S10: =IF(AND(R10>$T$4,R10<=$T$5),$S$4,IF(R10>$T$5,$S$5,0)) -> 0 | T10: =ROUND(S10*N10,0) -> 0 | U10: =MAX(P10-K10,0) -> 0 | V10: =MAX(U10*(V$5),0) -> 0 | W10: =IF(AND(I10>1.75,$W$5=1),MAX(K10-(P10+T10),0),0) -> 0 | X10: =MIN(H10*parameters!C$22,ROUND(P10+T10-V10+W10,0)) -> 16734900 | Y10: =X10*100/H10 -> 59.44700957 | AA10: =IF(Q10<L10, P10-K10, 0) -> -268162 | AB10: =-1*MAX(K10-(P10+T10+W10),0) -> -268162 | AC10: =IF(Q10>L10, X10-K10,0) -> 0 | AD10: =Y10-L10 -> -0.9529904347 | AG10: =TEXT(A10,"000") -> 001 | AH10: =B10 -> Abington | AI10: =I10 -> 0.6039959542 | AJ10: =L10 -> 60.4 | AK10: =X10 -> 16734900 | AL10: =AD10 -> -0.9529904347
A11: 2 | B11: Acton | C11: 4940912200 | D11: 16432668.91 | E11: 1656423000 | F11: =E11*F$5 -> 23519132.68 | G11: 39951802 | H11: =(SUMIF(town1755,A11,found1755)/2) -> 49645542.97 | I11: =G11/H11 -> 0.8047409618 | J11: 40957573 | K11: =MIN(G11,J11) -> 39951802 | L11: =IF(H11>0, ROUND((K11*100/H11), 2), 0) -> 80.47 | N11: 39168665 | O11: 0.0329 | P11: =ROUND(N11*(1+O11),0) -> 40457314 | Q11: =P11*100/H11 -> 81.49233864 | R11: =IF(L11>Q11,L11-Q11,0) -> 0 | S11: =IF(AND(R11>$T$4,R11<=$T$5),$S$4,IF(R11>$T$5,$S$5,0)) -> 0 | T11: =ROUND(S11*N11,0) -> 0 | U11: =MAX(P11-K11,0) -> 505512 | V11: 505512 | W11: =IF(AND(I11>1.75,$W$5=1),MAX(K11-(P11+T11),0),0) -> 0 | X11: =MIN(H11*parameters!C$22,ROUND(P11+T11-V11+W11,0)) -> 39951802 | Y11: =X11*100/H11 -> 80.47409618 | AA11: =IF(Q11<L11, P11-K11, 0) -> 0 | AB11: =-1*MAX(K11-(P11+T11+W11),0) -> 0 | AC11: =IF(Q11>L11, X11-K11,0) -> 0 | AD11: =Y11-L11 -> 0.004096180747 | AG11: =TEXT(A11,"000") -> 002 | AH11: =B11 -> Acton | AI11: =I11 -> 0.8047409618 | AJ11: 80.47 | AK11: 39951802 | AL11: =AD11 -> 0.004096180747
A12: 3 | B12: Acushnet | C12: 1346443900 | D12: 4478053.024 | E12: 351419000 | F12: =E12*F$5 -> 4989709.806 | G12: 9467763 | H12: 16202703.74 | I12: 0.5843322912 | J12: 13367231 | K12: 9467763 | L12: 58.43 | N12: 9217585 | O12: 0.0319 | P12: 9511626 | Q12: 58.7039432 | R12: 0 | S12: 0 | T12: 0 | U12: 43863 | V12: 43863 | W12: 0 | X12: =MIN(H12*parameters!C$22,ROUND(P12+T12-V12+W12,0)) -> 9467763 | Y12: 58.43322912 | AA12: 0 | AB12: 0 | AC12: 0 | AD12: 0.003229117304 | AG12: 003 | AH12: Acushnet | AI12: 0.5843322912 | AJ12: 58.43 | AK12: 9467763 | AL12: 0.003229117304
A13: 4 | B13: Adams | C13: 549332800 | D13: 1826991.386 | E13: 189808000 | F13: 2695035.951 | G13: 4522027 | H13: 13699145.79 | I13: 0.3300955454 | J13: 11301795 | K13: 4522027 | L13: 33.01 | N13: 4656528 | O13: 0.0294 | P13: 4793430 | Q13: 34.99072187 | R13: 0 | S13: 0 | T13: 0 | U13: 271403 | V13: 271403 | W13: 0 | X13: =MIN(H13*parameters!C$22,ROUND(P13+T13-V13+W13,0)) -> 4522027 | Y13: 33.00955454 | AA13: 0 | AB13: 0 | AC13: 0 | AD13: -0.0004454580188 | AG13: 004 | AH13: Adams | AI13: 0.3300955454 | AJ13: 33.01 | AK13: 4522027 | AL13: -0.0004454580188
A14: 5 | B14: Agawam | C14: 3286756800 | D14: 10931217.58 | E14: 879657000 | F14: 12490028.03 | G14: 23421246 | H14: 42850725.39 | I14: 0.546577585 | J14: 35351848 | K14: 23421246 | L14: 54.66 | N14: 23256462 | O14: 0.0131 | P14: 23561122 | Q14: 54.98418471 | R14: 0 | S14: 0 | T14: 0 | U14: 139876 | V14: 139876 | W14: 0 | X14: =MIN(H14*parameters!C$22,ROUND(P14+T14-V14+W14,0)) -> 23421246 | Y14: 54.6577585 | AA14: 0 | AB14: 0 | AC14: 0 | AD14: -0.00224149805 | AG14: 005 | AH14: Agawam | AI14: 0.546577585 | AJ14: 54.66 | AK14: 23421246 | AL14: -0.00224149805
A15: 6 | B15: Alford | C15: 279886100 | D15: 930855.5645 | E15: 18905000 | F15: 268427.33 | G15: 1199283 | H15: 243289.8046 | I15: 4.929442078 | J15: 200714 | K15: 200714 | L15: 82.5 | N15: 205780 | O15: 0.0269 | P15: 211315 | Q15: 86.8573183 | R15: 0 | S15: 0 | T15: 0 | U15: 10601 | V15: 10601 | W15: 0 | X15: =MIN(H15*parameters!C$22,ROUND(P15+T15-V15+W15,0)) -> 200714 | Y15: 82.49996349 | AA15: 0 | AB15: 0 | AC15: 0 | AD15: -3.650921724e-05 | AG15: 006 | AH15: Alford | AI15: 4.929442078 | AJ15: 82.5 | AK15: 200714 | AL15: -3.650921724e-05
A16: 7 | B16: Amesbury | C16: 2652855600 | D16: 8822965.474 | E16: 724019000 | F16: 10280163.29 | G16: 19103129 | H16: 24432670.76 | I16: 0.7818682284 | J16: 20156953 | K16: 19103129 | L16: 78.19 | N16: 17319889 | O16: 0.0265 | P16: 17778866 | Q16: 72.76677272 | R16: 5.423227276 | S16: 0.01 | T16: 173199 | U16: 0 | V16: 0 | W16: 0 | X16: =MIN(H16*parameters!C$22,ROUND(P16+T16-V16+W16,0)) -> 17952065 | Y16: 73.47565552 | AA16: -1324263 | AB16: -1151064 | AC16: 0 | AD16: -4.714344479 | AG16: 007 | AH16: Amesbury | AI16: 0.7818682284 | AJ16: 78.19 | AK16: 17952065 | AL16: -4.714344479
A17: 8 | B17: Amherst | C17: 2727618700 | D17: 9071615.363 | E17: 795343000 | F17: 11292874.79 | G17: 20364490 | H17: 26285881.06 | I17: 0.7747311171 | J17: 21685852 | K17: 20364490 | L17: 77.47 | N17: 20191326 | O17: 0.0096 | P17: 20385163 | Q17: 77.55175849 | R17: 0 | S17: 0 | T17: 0 | U17: 20673 | V17: 20673 | W17: 0 | X17: =MIN(H17*parameters!C$22,ROUND(P17+T17-V17+W17,0)) -> 20364490 | Y17: 77.47311171 | AA17: 0 | AB17: 0 | AC17: 0 | AD17: 0.003111707734 | AG17: 008 | AH17: Amherst | AI17: 0.7747311171 | AJ17: 77.47 | AK17: 20364490 | AL17: 0.003111707734
A18: 9 | B18: Andover | C18: 9328654100 | D18: 31025583.54 | E18: 3175310000 | F18: 45085426.36 | G18: 76111010 | H18: 65742561.87 | I18: 1.15771287 | J18: 54237614 | K18: 54237614 | L18: 82.5 | N18: 53540138 | O18: 0.0339 | P18: 55355149 | Q18: 84.199866 | R18: 0 | S18: 0 | T18: 0 | U18: 1117535 | V18: 1117535 | W18: 0 | X18: =MIN(H18*parameters!C$22,ROUND(P18+T18-V18+W18,0)) -> 54237614 | Y18: 82.50000069 | AA18: 0 | AB18: 0 | AC18: 0 | AD18: 6.949793345e-07 | AG18: 009 | AH18: Andover | AI18: 1.15771287 | AJ18: 82.5 | AK18: 54237614 | AL18: 6.949793345e-07
A19: 10 | B19: Arlington | C19: 12795048700 | D19: 42554247.17 | E19: 2994953000 | F19: 42524582.77 | G19: 85078830 | H19: 67918037.69 | I19: 1.252669142 | J19: 56032381 | K19: 56032381 | L19: 82.5 | N19: 52434811 | O19: 0.02 | P19: 53483507 | Q19: 78.74713231 | R19: 3.752867691 | S19: 0.01 | T19: 524348 | U19: 0 | V19: 0 | W19: 0 | X19: =MIN(H19*parameters!C$22,ROUND(P19+T19-V19+W19,0)) -> 54007855 | Y19: 79.51916286 | AA19: -2548874 | AB19: -2024526 | AC19: 0 | AD19: -2.980837141 | AG19: 010 | AH19: Arlington | AI19: 1.252669142 | AJ19: 82.5 | AK19: 54007855 | AL19: -2.980837141
A20: 11 | B20: Ashburnham | C20: 795346900 | D20: 2645194.197 | E20: 231628000 | F20: 3288827.59 | G20: 5934022 | H20: 12472547.87 | I20: 0.4757666246 | J20: 10289852 | K20: 5934022 | L20: 47.58 | N20: 5587688 | O20: 0.0151 | P20: 5672062 | Q20: 45.47636986 | R20: 2.10363014 | S20: 0 | T20: 0 | U20: 0 | V20: 0 | W20: 0 | X20: =MIN(H20*parameters!C$22,ROUND(P20+T20-V20+W20,0)) -> 5672062 | Y20: 45.47636986 | AA20: -261960 | AB20: -261960 | AC20: 0 | AD20: -2.10363014 | AG20: 011 | AH20: Ashburnham | AI20: 0.4757666246 | AJ20: 47.58 | AK20: 5672062 | AL20: -2.10363014
A21: 12 | B21: Ashby | C21: 366133300 | D21: 1217699.699 | E21: 106452000 | F21: 1511485.117 | G21: 2729185 | H21: 4561905.072 | I21: 0.5982555439 | J21: 3763572 | K21: 2729185 | L21: 59.83 | N21: 2598778 | O21: 0.0398 | P21: 2702209 | Q21: 59.23422249 | R21: 0.595777508 | S21: 0 | T21: 0 | U21: 0 | V21: 0 | W21: 0 | X21: =MIN(H21*parameters!C$22,ROUND(P21+T21-V21+W21,0)) -> 2702209 | Y21: 59.23422249 | AA21: -26976 | AB21: -26976 | AC21: 0 | AD21: -0.595777508 | AG21: 012 | AH21: Ashby | AI21: 0.5982555439 | AJ21: 59.83 | AK21: 2702209 | AL21: -0.595777508
A22: 13 | B22: Ashfield | C22: 271206700 | D22: 901989.2943 | E22: 47427000 | F22: 673404.0191 | G22: 1575393 | H22: 1756665.272 | I22: 0.8968088715 | J22: 1449249 | K22: 1449249 | L22: 82.5 | N22: 1530546 | O22: 0.0329 | P22: 1580901 | Q22: 89.99443578 | R22: 0 | S22: 0 | T22: 0 | U22: 131652 | V22: 131652 | W22: 0 | X22: =MIN(H22*parameters!C$22,ROUND(P22+T22-V22+W22,0)) -> 1449249 | Y22: 82.50000858 | AA22: 0 | AB22: 0 | AC22: 0 | AD22: 8.579313189e-06 | AG22: 013 | AH22: Ashfield | AI22: 0.8968088715 | AJ22: 82.5 | AK22: 1449249 | AL22: 8.579313189e-06
A23: 14 | B23: Ashland | C23: 3214888000 | D23: 10692193.66 | E23: 977144000 | F23: 13874221.37 | G23: 24566415 | H23: 31424970.59 | I23: 0.7817482257 | J23: 25925601 | K23: 24566415 | L23: 78.17 | N23: 23048494 | O23: 0.0329 | P23: 23806789 | Q23: 75.7575538 | R23: 2.412446204 | S23: 0 | T23: 0 | U23: 0 | V23: 0 | W23: 0 | X23: =MIN(H23*parameters!C$22,ROUND(P23+T23-V23+W23,0)) -> 23806789 | Y23: 75.7575538 | AA23: -759626 | AB23: -759626 | AC23: 0 | AD23: -2.412446204 | AG23: 014 | AH23: Ashland | AI23: 0.7817482257 | AJ23: 78.17 | AK23: 23806789 | AL23: -2.412446204
A24: 15 | B24: Athol | C24: 880913600 | D24: 2929775.099 | E24: 252764000 | F24: 3588932.327 | G24: 6518707 | H24: 21989167.34 | I24: 0.2964508342 | J24: 18141063 | K24: 6518707 | L24: 29.65 | N24: 3370898 | O24: 0.0439 | P24: 3518880 | Q24: 16.00278876 | R24: 13.64721124 | S24: 0.02 | T24: 67418 | U24: 0 | V24: 0 | W24: 0 | X24: =MIN(H24*parameters!C$22,ROUND(P24+T24-V24+W24,0)) -> 3586298 | Y24: 16.30938519 | AA24: -2999827 | AB24: -2932409 | AC24: 0 | AD24: -13.34061481 | AG24: 015 | AH24: Athol | AI24: 0.2964508342 | AJ24: 29.65 | AK24: 3586298 | AL24: -13.34061481
A25: 16 | B25: Attleboro | C25: 5286614900 | D25: 17582419.77 | E25: 1548600000 | F25: 21988181.08 | G25: 39570601 | H25: 81095543.75 | I25: 0.4879503752 | J25: 66903824 | K25: 39570601 | L25: 48.8 | N25: 38238615 | O25: 0.0301 | P25: 39389597 | Q25: 48.57183907 | R25: 0.2281609324 | S25: 0 | T25: 0 | U25: 0 | V25: 0 | W25: 0 | X25: =MIN(H25*parameters!C$22,ROUND(P25+T25-V25+W25,0)) -> 39389597 | Y25: 48.57183907 | AA25: -181004 | AB25: -181004 | AC25: 0 | AD25: -0.2281609324 | AG25: 016 | AH25: Attleboro | AI25: 0.4879503752 | AJ25: 48.8 | AK25: 39389597 | AL25: -0.2281609324
A26: 17 | B26: Auburn | C26: 2423368200 | D26: 8059727.774 | E26: 599612000 | F26: 8513739.656 | G26: 16573467 | H26: 29134402.89 | I26: 0.5688624223 | J26: 24035882 | K26: 16573467 | L26: 56.89 | N26: 16167017 | O26: 0.0295 | P26: 16643944 | Q26: 57.12814525 | R26: 0 | S26: 0 | T26: 0 | U26: 70477 | V26: 70477 | W26: 0 | X26: =MIN(H26*parameters!C$22,ROUND(P26+T26-V26+W26,0)) -> 16573467 | Y26: 56.88624223 | AA26: 0 | AB26: 0 | AC26: 0 | AD26: -0.003757772487 | AG26: 017 | AH26: Auburn | AI26: 0.5688624223 | AJ26: 56.89 | AK26: 16573467 | AL26: -0.003757772487
A27: 18 | B27: Avon | C27: 912879000 | D27: 3036086.811 | E27: 173502000 | F27: 2463511.167 | G27: 5499598 | H27: 8227471.803 | I27: 0.6684432511 | J27: 6787664 | K27: 5499598 | L27: 66.84 | N27: 5396077 | O27: 0.0384 | P27: 5603286 | Q27: 68.10459074 | R27: 0 | S27: 0 | T27: 0 | U27: 103688 | V27: 103688 | W27: 0 | X27: =MIN(H27*parameters!C$22,ROUND(P27+T27-V27+W27,0)) -> 5499598 | Y27: 66.84432511 | AA27: 0 | AB27: 0 | AC27: 0 | AD27: 0.004325106581 | AG27: 018 | AH27: Avon | AI27: 0.6684432511 | AJ27: 66.84 | AK27: 5499598 | AL27: 0.004325106581
A28: 19 | B28: Ayer | C28: 1414841800 | D28: 4705533.295 | E28: 300571000 | F28: 4267731.87 | G28: 8973265 | H28: 11977515 | I28: 0.7491758518 | J28: 9881450 | K28: 8973265 | L28: 74.92 | N28: 8451074 | O28: 0.0577 | P28: 8938701 | Q28: 74.62901114 | R28: 0.2909888644 | S28: 0 | T28: 0 | U28: 0 | V28: 0 | W28: 0 | X28: =MIN(H28*parameters!C$22,ROUND(P28+T28-V28+W28,0)) -> 8938701 | Y28: 74.62901114 | AA28: -34564 | AB28: -34564 | AC28: 0 | AD28: -0.2909888644 | AG28: 019 | AH28: Ayer | AI28: 0.7491758518 | AJ28: 74.92 | AK28: 8938701 | AL28: -0.2909888644
A29: 20 | B29: Barnstable | C29: 16031008100 | D29: 53316520.88 | E29: 1909202000 | F29: 27108277.99 | G29: 80424799 | H29: 68438802.8 | I29: 1.17513451 | J29: 56462012 | K29: 56462012 | L29: 82.5 | N29: 55634192 | O29: 0.024 | P29: 56969413 | Q29: 83.24139329 | R29: 0 | S29: 0 | T29: 0 | U29: 507401 | V29: 507401 | W29: 0 | X29: =MIN(H29*parameters!C$22,ROUND(P29+T29-V29+W29,0)) -> 56462012 | Y29: 82.49999955 | AA29: 0 | AB29: 0 | AC29: 0 | AD29: -4.517999486e-07 | AG29: 020 | AH29: Barnstable | AI29: 1.17513451 | AJ29: 82.5 | AK29: 56462012 | AL29: -4.517999486e-07
A30: 21 | B30: Barre | C30: 507030500 | D30: 1686300.828 | E30: 150607000 | F30: 2138430.833 | G30: 3824732 | H30: 9331528.711 | I30: 0.409871964 | J30: 7698511 | K30: 3824732 | L30: 40.99 | N30: 3685412 | O30: 0.0255 | P30: 3779390 | Q30: 40.50129531 | R30: 0.4887046908 | S30: 0 | T30: 0 | U30: 0 | V30: 0 | W30: 0 | X30: =MIN(H30*parameters!C$22,ROUND(P30+T30-V30+W30,0)) -> 3779390 | Y30: 40.50129531 | AA30: -45342 | AB30: -45342 | AC30: 0 | AD30: -0.4887046908 | AG30: 021 | AH30: Barre | AI30: 0.409871964 | AJ30: 40.99 | AK30: 3779390 | AL30: -0.4887046908
A31: 22 | B31: Becket | C31: 558339300 | D31: 1856945.537 | E31: 53841000 | F31: 764474.7884 | G31: 2621420 | H31: 2567934.869 | I31: 1.020828071 | J31: 2118546 | K31: 2118546 | L31: 82.5 | N31: 1945706 | O31: 0.0318 | P31: 2007579 | Q31: 78.17873515 | R31: 4.321264853 | S31: 0.01 | T31: 19457 | U31: 0 | V31: 0 | W31: 0 | X31: =MIN(H31*parameters!C$22,ROUND(P31+T31-V31+W31,0)) -> 2027036 | Y31: 78.9364257 | AA31: -110967 | AB31: -91510 | AC31: 0 | AD31: -3.563574297 | AG31: 022 | AH31: Becket | AI31: 1.020828071 | AJ31: 82.5 | AK31: 2027036 | AL31: -3.563574297
A32: 23 | B32: Bedford | C32: 4399434500 | D32: 14631802.31 | E32: 1096519000 | F32: 15569196.9 | G32: 30200999 | H32: 31431142.07 | I32: 0.9608622853 | J32: 25930692 | K32: 25930692 | L32: 82.5 | N32: 25567990 | O32: 0.0362 | P32: 26493551 | Q32: 84.29076786 | R32: 0 | S32: 0 | T32: 0 | U32: 562859 | V32: 562859 | W32: 0 | X32: =MIN(H32*parameters!C$22,ROUND(P32+T32-V32+W32,0)) -> 25930692 | Y32: 82.49999934 | AA32: 0 | AB32: 0 | AC32: 0 | AD32: -6.640798631e-07 | AG32: 023 | AH32: Bedford | AI32: 0.9608622853 | AJ32: 82.5 | AK32: 25930692 | AL32: -6.640798631e-07
A33: 24 | B33: Belchertown | C33: 1706796100 | D33: 5676525.726 | E33: 564318000 | F33: 8012609.046 | G33: 13689135 | H33: 26375543.89 | I33: 0.5190086338 | J33: 21759824 | K33: 13689135 | L33: 51.9 | N33: 13183350 | O33: 0.0372 | P33: 13673771 | Q33: 51.84261245 | R33: 0.05738754778 | S33: 0 | T33: 0 | U33: 0 | V33: 0 | W33: 0 | X33: =MIN(H33*parameters!C$22,ROUND(P33+T33-V33+W33,0)) -> 13673771 | Y33: 51.84261245 | AA33: -15364 | AB33: -15364 | AC33: 0 | AD33: -0.05738754778 | AG33: 024 | AH33: Belchertown | AI33: 0.5190086338 | AJ33: 51.9 | AK33: 13673771 | AL33: -0.05738754778
A34: 25 | B34: Bellingham | C34: 2853759500 | D34: 9491139.111 | E34: 636231000 | F34: 9033683.607 | G34: 18524823 | H34: 26413663.21 | I34: 0.7013348679 | J34: 21791272 | K34: 18524823 | L34: 70.13 | N34: 17850402 | O34: 0.0405 | P34: 18573343 | Q34: 70.3171796 | R34: 0 | S34: 0 | T34: 0 | U34: 48520 | V34: 48520 | W34: 0 | X34: =MIN(H34*parameters!C$22,ROUND(P34+T34-V34+W34,0)) -> 18524823 | Y34: 70.13348679 | AA34: 0 | AB34: 0 | AC34: 0 | AD34: 0.003486786362 | AG34: 025 | AH34: Bellingham | AI34: 0.7013348679 | AJ34: 70.13 | AK34: 18524823 | AL34: 0.003486786362
A35: 26 | B35: Belmont | C35: 9840875900 | D35: 32729149.79 | E35: 2583978000 | F35: 36689252.33 | G35: =ROUND(D35+F35,0) -> 69418402 | H35: =(SUMIF(town1755,A35,found1755)/2) -> 50694465.25 | I35: 1.369348738 | J35: 41822934 | K35: 41822934 | L35: 82.5 | N35: 40662179 | O35: 0.004 | P35: 40824828 | Q35: 80.53113452 | R35: =IF(L35>Q35,L35-Q35,0) -> 1.968865484 | S35: =IF(AND(R35>$T$4,R35<=$T$5),$S$4,IF(R35>$T$5,$S$5,0)) -> 0 | T35: =ROUND(S35*N35,0) -> 0 | U35: 0 | V35: 0 | W35: 0 | X35: =MIN(H35*parameters!C$22,ROUND(P35+T35-V35+W35,0)) -> 40824828 | Y35: 80.53113452 | AA35: -998106 | AB35: -998106 | AC35: 0 | AD35: -1.968865484 | AG35: 026 | AH35: Belmont | AI35: 1.369348738 | AJ35: 82.5 | AK35: 40824828 | AL35: -1.968865484
A36: 27 | B36: Berkley | C36: 971888500 | D36: 3232342.793 | E36: 270345000 | F36: 3838560.515 | G36: 7070903 | H36: 13214771.79 | I36: 0.5350756798 | J36: 10902187 | K36: 7070903 | L36: 53.51 | N36: 6781390 | O36: 0.0415 | P36: 7062818 | Q36: 53.44638645 | R36: 0.06361354846 | S36: 0 | T36: 0 | U36: 0 | V36: 0 | W36: 0 | X36: =MIN(H36*parameters!C$22,ROUND(P36+T36-V36+W36,0)) -> 7062818 | Y36: 53.44638645 | AA36: -8085 | AB36: -8085 | AC36: 0 | AD36: -0.06361354846 | AG36: 027 | AH36: Berkley | AI36: 0.5350756798 | AJ36: 53.51 | AK36: 7062818 | AL36: -0.06361354846
A37: 28 | B37: Berlin | C37: 710453400 | D37: 2362852.248 | E37: 169836000 | F37: 2411458.557 | G37: 4774311 | H37: 4391457.242 | I37: 1.087181484 | J37: 3622952 | K37: 3622952 | L37: 82.5 | N37: 3314664 | O37: 0.04 | P37: 3447251 | Q37: 78.49902231 | R37: 4.000977692 | S37: 0.01 | T37: 33147 | U37: 0 | V37: 0 | W37: 0 | X37: =MIN(H37*parameters!C$22,ROUND(P37+T37-V37+W37,0)) -> 3480398 | Y37: 79.2538287 | AA37: -175701 | AB37: -142554 | AC37: 0 | AD37: -3.246171299 | AG37: 028 | AH37: Berlin | AI37: 1.087181484 | AJ37: 82.5 | AK37: 3480398 | AL37: -3.246171299
A38: 29 | B38: Bernardston | C38: 248325200 | D38: 825889.1536 | E38: 65708000 | F38: 932971.3303 | G38: 1758860 | H38: 3411924.919 | I38: 0.5155037236 | J38: 2814838 | K38: 1758860 | L38: 51.55 | N38: 1699234 | O38: 0.0275 | P38: 1745963 | Q38: 51.17237459 | R38: 0.3776254114 | S38: 0 | T38: 0 | U38: 0 | V38: 0 | W38: 0 | X38: =MIN(H38*parameters!C$22,ROUND(P38+T38-V38+W38,0)) -> 1745963 | Y38: 51.17237459 | AA38: -12897 | AB38: -12897 | AC38: 0 | AD38: -0.3776254114 | AG38: 029 | AH38: Bernardston | AI38: 0.5155037236 | AJ38: 51.55 | AK38: 1745963 | AL38: -0.3776254114
A39: 30 | B39: Beverly | C39: 7994706700 | D39: 26589091.84 | E39: 2115626000 | F39: 30039240.33 | G39: 56628332 | H39: 56028911.47 | I39: 1.010698415 | J39: 46223852 | K39: 46223852 | L39: 82.5 | N39: 43414266 | O39: 0.0271 | P39: 44590793 | Q39: 79.58532805 | R39: 2.91467195 | S39: 0.01 | T39: 434143 | U39: 0 | V39: 0 | W39: 0 | X39: =MIN(H39*parameters!C$22,ROUND(P39+T39-V39+W39,0)) -> 45024936 | Y39: 80.36018337 | AA39: -1633059 | AB39: -1198916 | AC39: 0 | AD39: -2.139816632 | AG39: 030 | AH39: Beverly | AI39: 1.010698415 | AJ39: 82.5 | AK39: 45024936 | AL39: -2.139816632
A40: 31 | B40: Billerica | C40: 7998669600 | D40: 26602271.8 | E40: 1728420000 | F40: 24541399.93 | G40: 51143672 | H40: 60922818.86 | I40: 0.8394830206 | J40: 50261326 | K40: 50261326 | L40: 82.5 | N40: 48257512 | O40: 0.0419 | P40: 50279502 | Q40: 82.52983519 | R40: 0 | S40: 0 | T40: 0 | U40: 18176 | V40: 18176 | W40: 0 | X40: =MIN(H40*parameters!C$22,ROUND(P40+T40-V40+W40,0)) -> 50261326 | Y40: 82.50000072 | AA40: 0 | AB40: 0 | AC40: 0 | AD40: 7.245477178e-07 | AG40: 031 | AH40: Billerica | AI40: 0.8394830206 | AJ40: 82.5 | AK40: 50261326 | AL40: 7.245477178e-07
A41: 32 | B41: Blackstone | C41: 1075325500 | D41: 3576357.401 | E41: 306167000 | F41: 4347188.064 | G41: 7923545 | H41: 16196866.79 | I41: 0.4892023316 | J41: 13362415 | K41: 7923545 | L41: 48.92 | N41: 7758120 | O41: 0.0304 | P41: 7993967 | Q41: 49.35502095 | R41: 0 | S41: 0 | T41: 0 | U41: 70422 | V41: 70422 | W41: 0 | X41: =MIN(H41*parameters!C$22,ROUND(P41+T41-V41+W41,0)) -> 7923545 | Y41: 48.92023316 | AA41: 0 | AB41: 0 | AC41: 0 | AD41: 0.0002331585607 | AG41: 032 | AH41: Blackstone | AI41: 0.4892023316 | AJ41: 48.92 | AK41: 7923545 | AL41: 0.0002331585607
A42: 33 | B42: Blandford | C42: 180760100 | D42: 601178.6399 | E42: 40004000 | F42: 568006.713 | G42: 1169185 | H42: 1322951.045 | I42: 0.8837704192 | J42: 1091435 | K42: 1091435 | L42: 82.5 | N42: 1160289 | O42: 0.0415 | P42: 1208441 | Q42: 91.34434748 | R42: 0 | S42: 0 | T42: 0 | U42: 117006 | V42: 117006 | W42: 0 | X42: =MIN(H42*parameters!C$22,ROUND(P42+T42-V42+W42,0)) -> 1091435 | Y42: 82.50002929 | AA42: 0 | AB42: 0 | AC42: 0 | AD42: 2.929148525e-05 | AG42: 033 | AH42: Blandford | AI42: 0.8837704192 | AJ42: 82.5 | AK42: 1091435 | AL42: 2.929148525e-05
A43: 34 | B43: Bolton | C43: 1191544800 | D43: 3962883.857 | E43: 447908000 | F43: 6359732.797 | G43: 10322617 | H43: 12040732.13 | I43: 0.8573080844 | J43: 9933604 | K43: 9933604 | L43: 82.5 | N43: 9163325 | O43: 0.0414 | P43: 9542687 | Q43: 79.2533784 | R43: 3.246621601 | S43: 0.01 | T43: 91633 | U43: 0 | V43: 0 | W43: 0 | X43: =MIN(H43*parameters!C$22,ROUND(P43+T43-V43+W43,0)) -> 9634320 | Y43: 80.01440355 | AA43: -390917 | AB43: -299284 | AC43: 0 | AD43: -2.485596449 | AG43: 034 | AH43: Bolton | AI43: 0.8573080844 | AJ43: 82.5 | AK43: 9634320 | AL43: -2.485596449
A44: 35 | B44: Boston | C44: 203894526100 | D44: 678119971.6 | E44: 37097269000 | F44: 526734772.2 | G44: 1204854744 | H44: 978880394.5 | I44: 1.230849806 | J44: 807576325 | K44: 807576325 | L44: 82.5 | N44: 762717504 | O44: 0.0238 | P44: 780870181 | Q44: 79.77176634 | R44: 2.728233664 | S44: 0.01 | T44: 7627175 | U44: 0 | V44: 0 | W44: 0 | X44: =MIN(H44*parameters!C$22,ROUND(P44+T44-V44+W44,0)) -> 788497356 | Y44: 80.55093967 | AA44: -26706144 | AB44: -19078969 | AC44: 0 | AD44: -1.949060331 | AG44: 035 | AH44: Boston | AI44: 1.230849806 | AJ44: 82.5 | AK44: 788497356 | AL44: -1.949060331
A45: 36 | B45: Bourne | C45: 5178654100 | D45: 17223359.74 | E45: 778353000 | F45: 11051638.06 | G45: 28274998 | H45: 24156651.22 | I45: 1.170485004 | J45: 19929237 | K45: 19929237 | L45: 82.5 | N45: 21342321 | O45: 0.0295 | P45: 21971919 | Q45: 90.95598061 | R45: 0 | S45: 0 | T45: 0 | U45: 2042682 | V45: 2042682 | W45: 0 | X45: =MIN(H45*parameters!C$22,ROUND(P45+T45-V45+W45,0)) -> 19929237 | Y45: 82.49999894 | AA45: 0 | AB45: 0 | AC45: 0 | AD45: -1.064440696e-06 | AG45: 036 | AH45: Bourne | AI45: 1.170485004 | AJ45: 82.5 | AK45: 19929237 | AL45: -1.064440696e-06
A46: 37 | B46: Boxborough | C46: 1245735100 | D46: 4143111.965 | E46: 358888000 | F46: 5095760.255 | G46: 9238872 | H46: 9551330.789 | I46: 0.9672863608 | J46: 7879848 | K46: 7879848 | L46: 82.5 | N46: 7786669 | O46: 0.0351 | P46: 8059981 | Q46: 84.38594766 | R46: =IF(L46>Q46,L46-Q46,0) -> 0 | S46: 0 | T46: 0 | U46: 180133 | V46: 180133 | W46: 0 | X46: =MIN(H46*parameters!C$22,ROUND(P46+T46-V46+W46,0)) -> 7879848 | Y46: 82.50000104 | AA46: 0 | AB46: 0 | AC46: 0 | AD46: 1.038508472e-06 | AG46: 037 | AH46: Boxborough | AI46: 0.9672863608 | AJ46: 82.5 | AK46: 7879848 | AL46: 1.038508472e-06
A47: 38 | B47: Boxford | C47: 2027205500 | D47: 6742155.184 | E47: 844353000 | F47: 11988755.43 | G47: 18730911 | H47: 14763505.43 | I47: 1.268730593 | J47: 12179892 | K47: 12179892 | L47: 82.5 | N47: 12479356 | O47: 0.026 | P47: 12803819 | Q47: 86.72614414 | R47: 0 | S47: 0 | T47: 0 | U47: 623927 | V47: 623927 | W47: 0 | X47: =MIN(H47*parameters!C$22,ROUND(P47+T47-V47+W47,0)) -> 12179892 | Y47: 82.50000014 | AA47: 0 | AB47: 0 | AC47: 0 | AD47: 1.352104277e-07 | AG47: 038 | AH47: Boxford | AI47: 1.268730593 | AJ47: 82.5 | AK47: 12179892 | AL47: 1.352104277e-07
A48: 39 | B48: Boylston | C48: 894665100 | D48: 2975510.348 | E48: 311214000 | F48: 4418849.145 | G48: 7394359 | H48: 7467889.384 | I48: 0.990153793 | J48: 6161009 | K48: 6161009 | L48: 82.5 | N48: 5696095 | O48: 0.0444 | P48: 5949002 | Q48: 79.66108888 | R48: 2.83891112 | S48: 0.01 | T48: 56961 | U48: 0 | V48: 0 | W48: 0 | X48: =MIN(H48*parameters!C$22,ROUND(P48+T48-V48+W48,0)) -> 6005963 | Y48: 80.42383451 | AA48: -212007 | AB48: -155046 | AC48: 0 | AD48: -2.076165489 | AG48: 039 | AH48: Boylston | AI48: 0.990153793 | AJ48: 82.5 | AK48: 6005963 | AL48: -2.076165489
A49: 40 | B49: Braintree | C49: 8213296300 | D49: 27316085.23 | E49: 1720700000 | F49: 24431785.6 | G49: 51747871 | H49: 66187045.11 | I49: 0.7818428956 | J49: 54604312 | K49: 51747871 | L49: 78.18 | N49: 48075109 | O49: 0.0121 | P49: 48656818 | Q49: 73.51411129 | R49: 4.665888715 | S49: 0.01 | T49: 480751 | U49: 0 | V49: 0 | W49: 0 | X49: =MIN(H49*parameters!C$22,ROUND(P49+T49-V49+W49,0)) -> 49137569 | Y49: 74.2404634 | AA49: -3091053 | AB49: -2610302 | AC49: 0 | AD49: -3.939536603 | AG49: 040 | AH49: Braintree | AI49: 0.7818428956 | AJ49: 78.18 | AK49: 49137569 | AL49: -3.939536603
A50: 41 | B50: Brewster | C50: 4380442300 | D50: 14568637.35 | E50: 383285000 | F50: 5442167.108 | G50: 20010804 | H50: 12555235.63 | I50: 1.593821462 | J50: 10358069 | K50: 10358069 | L50: 82.5 | N50: 10089445 | O50: 0.0313 | P50: 10405245 | Q50: 82.8757445 | R50: 0 | S50: 0 | T50: 0 | U50: 47176 | V50: 47176 | W50: 0 | X50: =MIN(H50*parameters!C$22,ROUND(P50+T50-V50+W50,0)) -> 10358069 | Y50: 82.49999688 | AA50: 0 | AB50: 0 | AC50: 0 | AD50: -3.123114325e-06 | AG50: 041 | AH50: Brewster | AI50: 1.593821462 | AJ50: 82.5 | AK50: 10358069 | AL50: -3.123114325e-06
A51: 42 | B51: Bridgewater | C51: 3400108700 | D51: 11308207.53 | E51: 976278000 | F51: 13861925.25 | G51: 25170133 | H51: 39100667.7 | I51: 0.6437264242 | J51: 32258051 | K51: 25170133 | L51: 64.37 | N51: 23804915 | O51: 0.0223 | P51: 24335765 | Q51: 62.23874535 | R51: 2.131254648 | S51: 0 | T51: 0 | U51: 0 | V51: 0 | W51: 0 | X51: =MIN(H51*parameters!C$22,ROUND(P51+T51-V51+W51,0)) -> 24335765 | Y51: 62.23874535 | AA51: -834368 | AB51: -834368 | AC51: 0 | AD51: -2.131254648 | AG51: 042 | AH51: Bridgewater | AI51: 0.6437264242 | AJ51: 64.37 | AK51: 24335765 | AL51: -2.131254648
A52: 43 | B52: Brimfield | C52: 466597600 | D52: 1551827.591 | E52: 145657000 | F52: 2068147.03 | G52: 3619975 | H52: 6057724.255 | I52: 0.5975800231 | J52: 4997623 | K52: 3619975 | L52: 59.76 | N52: 3503607 | O52: 0.0266 | P52: 3596803 | Q52: 59.37548242 | R52: 0.3845175822 | S52: 0 | T52: 0 | U52: 0 | V52: 0 | W52: 0 | X52: =MIN(H52*parameters!C$22,ROUND(P52+T52-V52+W52,0)) -> 3596803 | Y52: 59.37548242 | AA52: -23172 | AB52: -23172 | AC52: 0 | AD52: -0.3845175822 | AG52: 043 | AH52: Brimfield | AI52: 0.5975800231 | AJ52: 59.76 | AK52: 3596803 | AL52: -0.3845175822
A53: 44 | B53: Brockton | C53: 8886561300 | D53: 29555254.92 | E53: 2189454000 | F53: 31087505.5 | G53: 60642760 | H53: 281403816.5 | I53: 0.2155008441 | J53: 232158149 | K53: 60642760 | L53: 21.55 | N53: 51480348 | O53: 0.0242 | P53: 52726172 | Q53: 18.73683614 | R53: 2.813163856 | S53: 0.01 | T53: 514803 | U53: 0 | V53: 0 | W53: 0 | X53: =MIN(H53*parameters!C$22,ROUND(P53+T53-V53+W53,0)) -> 53240975 | Y53: 18.91977716 | AA53: -7916588 | AB53: -7401785 | AC53: 0 | AD53: -2.63022284 | AG53: 044 | AH53: Brockton | AI53: 0.2155008441 | AJ53: 21.55 | AK53: 53240975 | AL53: -2.63022284
A54: 45 | B54: Brookfield | C54: 312533400 | D54: 1039435.165 | E54: 99385000 | F54: 1411142.565 | G54: 2450578 | H54: 5814110.775 | I54: 0.4214880133 | J54: 4796641 | K54: 2450578 | L54: 42.15 | N54: 2395082 | O54: 0.0483 | P54: 2510764 | Q54: 43.18397253 | R54: 0 | S54: 0 | T54: 0 | U54: 60186 | V54: 60186 | W54: 0 | X54: =MIN(H54*parameters!C$22,ROUND(P54+T54-V54+W54,0)) -> 2450578 | Y54: 42.14880133 | AA54: 0 | AB54: 0 | AC54: 0 | AD54: -0.00119866768 | AG54: 045 | AH54: Brookfield | AI54: 0.4214880133 | AJ54: 42.15 | AK54: 2450578 | AL54: -0.00119866768
A55: 46 | B55: Brookline | C55: 28147948700 | D55: 93615491 | E55: 5644070000 | F55: 80138727.35 | G55: 173754218 | H55: 77441372.37 | I55: 2.243687227 | J55: 63889132 | K55: 63889132 | L55: 82.5 | N55: 69211255 | O55: 0.0172 | P55: 70401689 | Q55: 90.90966087 | R55: 0 | S55: 0 | T55: 0 | U55: 6512557 | V55: 6512557 | W55: 0 | X55: =MIN(H55*parameters!C$22,ROUND(P55+T55-V55+W55,0)) -> 63889132 | Y55: 82.49999973 | AA55: 0 | AB55: 0 | AC55: 0 | AD55: -2.695638273e-07 | AG55: 046 | AH55: Brookline | AI55: 2.243687227 | AJ55: 82.5 | AK55: 63889132 | AL55: -2.695638273e-07
A56: 47 | B56: Buckland | C56: 236099700 | D56: 785229.1326 | E56: 42927187.5 | F56: 609512.3155 | G56: 1394741 | H56: 2263767.426 | I56: 0.6161149702 | J56: 1867608 | K56: 1394741 | L56: 61.61 | N56: 1364402 | O56: 0.0291 | P56: 1404106 | Q56: 62.02518793 | R56: 0 | S56: 0 | T56: 0 | U56: 9365 | V56: 9365 | W56: 0 | X56: =MIN(H56*parameters!C$22,ROUND(P56+T56-V56+W56,0)) -> 1394741 | Y56: 61.61149702 | AA56: 0 | AB56: 0 | AC56: 0 | AD56: 0.001497022391 | AG56: 047 | AH56: Buckland | AI56: 0.6161149702 | AJ56: 61.61 | AK56: 1394741 | AL56: 0.001497022391
A57: 48 | B57: Burlington | C57: 8100649200 | D57: 26941439.33 | E57: 1382790000 | F57: 19633886.68 | G57: 46575326 | H57: 42404197 | I57: 1.098365947 | J57: 34983463 | K57: 34983463 | L57: 82.5 | N57: 34772202 | O57: 0.0338 | P57: 35947502 | Q57: 84.77345296 | R57: 0 | S57: 0 | T57: 0 | U57: 964039 | V57: 964039 | W57: 0 | X57: =MIN(H57*parameters!C$22,ROUND(P57+T57-V57+W57,0)) -> 34983463 | Y57: 82.50000112 | AA57: 0 | AB57: 0 | AC57: 0 | AD57: 1.117655245e-06 | AG57: 048 | AH57: Burlington | AI57: 1.098365947 | AJ57: 82.5 | AK57: 34983463 | AL57: 1.117655245e-06
A58: 49 | B58: Cambridge | C58: 63505735500 | D58: 211209728.8 | E58: 8087170000 | F58: 114827688.5 | G58: 326037417 | H58: 100848386.9 | I58: 3.232946276 | J58: 83199919 | K58: 83199919 | L58: 82.5 | N58: 80716157 | O58: 0.026 | P58: 82814777 | Q58: 82.11809778 | R58: 0.3819022245 | S58: 0 | T58: 0 | U58: 0 | V58: 0 | W58: 385142 | X58: =MIN(H58*parameters!C$22,ROUND(P58+T58-V58+W58,0)) -> 83199919 | Y58: 82.49999977 | AA58: -385142 | AB58: 0 | AC58: 0 | AD58: -2.311945764e-07 | AG58: 049 | AH58: Cambridge | AI58: 3.232946276 | AJ58: 82.5 | AK58: 83199919 | AL58: -2.311945764e-07
A59: 50 | B59: Canton | C59: 5664784600 | D59: 18840150.57 | E59: 1475836000 | F59: 20955023.38 | G59: 39795174 | H59: 38850899.64 | I59: 1.024305083 | J59: 32051992 | K59: 32051992 | L59: 82.5 | N59: 31875439 | O59: 0.0343 | P59: 32968767 | Q59: 84.85972604 | R59: 0 | S59: 0 | T59: 0 | U59: 916775 | V59: 916775 | W59: 0 | X59: =MIN(H59*parameters!C$22,ROUND(P59+T59-V59+W59,0)) -> 32051992 | Y59: 82.49999948 | AA59: 0 | AB59: 0 | AC59: 0 | AD59: -5.247509165e-07 | AG59: 050 | AH59: Canton | AI59: 1.024305083 | AJ59: 82.5 | AK59: 32051992 | AL59: -5.247509165e-07
A60: 51 | B60: Carlisle | C60: 1657167300 | D60: 5511468.424 | E60: 815711000 | F60: 11582074.89 | G60: 17093543 | H60: 9536650.9 | I60: 1.792405235 | J60: 7867737 | K60: 7867737 | L60: 82.5 | N60: 7887677 | O60: 0.0345 | P60: 8159802 | Q60: 85.5625532 | R60: 0 | S60: 0 | T60: 0 | U60: 292065 | V60: 292065 | W60: 0 | X60: =MIN(H60*parameters!C$22,ROUND(P60+T60-V60+W60,0)) -> 7867737 | Y60: 82.50000008 | AA60: 0 | AB60: 0 | AC60: 0 | AD60: 7.906261601e-08 | AG60: 051 | AH60: Carlisle | AI60: 1.792405235 | AJ60: 82.5 | AK60: 7867737 | AL60: 7.906261601e-08
A61: 52 | B61: Carver | C61: 1542843600 | D61: 5131246.426 | E61: 383236000 | F61: 5441471.37 | G61: 10572718 | H61: 19291592.83 | I61: 0.5480479552 | J61: 15915564 | K61: 10572718 | L61: 54.8 | N61: 10245767 | O61: 0.0265 | P61: 10517280 | Q61: 54.51742682 | R61: 0.2825731845 | S61: 0 | T61: 0 | U61: 0 | V61: 0 | W61: 0 | X61: =MIN(H61*parameters!C$22,ROUND(P61+T61-V61+W61,0)) -> 10517280 | Y61: 54.51742682 | AA61: -55438 | AB61: -55438 | AC61: 0 | AD61: -0.2825731845 | AG61: 052 | AH61: Carver | AI61: 0.5480479552 | AJ61: 54.8 | AK61: 10517280 | AL61: -0.2825731845
A62: 53 | B62: Charlemont | C62: 147289000 | D62: 489859.215 | E62: 27710000 | F62: 393447.3057 | G62: 883307 | H62: 1690885.009 | I62: 0.5223933 | J62: 1394980 | K62: 883307 | L62: 52.24 | N62: 898461 | O62: 0.0327 | P62: 927841 | Q62: 54.87309869 | R62: 0 | S62: 0 | T62: 0 | U62: 44534 | V62: 44534 | W62: 0 | X62: =MIN(H62*parameters!C$22,ROUND(P62+T62-V62+W62,0)) -> 883307 | Y62: 52.23933 | AA62: 0 | AB62: 0 | AC62: 0 | AD62: -0.0006699982264 | AG62: 053 | AH62: Charlemont | AI62: 0.5223933 | AJ62: 52.24 | AK62: 883307 | AL62: -0.0006699982264
A63: 54 | B63: Charlton | C63: 1794497600 | D63: 5968206.626 | E63: 534595000 | F63: 7590579.661 | G63: 13558786 | H63: 24146568.98 | I63: 0.5615201899 | J63: 19920919 | K63: 13558786 | L63: 56.15 | N63: 13080033 | O63: 0.0371 | P63: 13565302 | Q63: 56.17900419 | R63: 0 | S63: 0 | T63: 0 | U63: 6516 | V63: 6516 | W63: 0 | X63: =MIN(H63*parameters!C$22,ROUND(P63+T63-V63+W63,0)) -> 13558786 | Y63: 56.15201899 | AA63: 0 | AB63: 0 | AC63: 0 | AD63: 0.002018991802 | AG63: 054 | AH63: Charlton | AI63: 0.5615201899 | AJ63: 56.15 | AK63: 13558786 | AL63: 0.002018991802
A64: 55 | B64: Chatham | C64: 7904158600 | D64: 26287943.61 | E64: 475325000 | F64: 6749019.87 | G64: 33036963 | H64: 4965248.931 | I64: 6.653636799 | J64: 4096330 | K64: 4096330 | L64: 82.5 | N64: 4342030 | O64: -0.0008 | P64: 4338556 | Q64: 87.3784187 | R64: 0 | S64: 0 | T64: 0 | U64: 242226 | V64: 242226 | W64: 0 | X64: =MIN(H64*parameters!C$22,ROUND(P64+T64-V64+W64,0)) -> 4096330 | Y64: 82.49999259 | AA64: 0 | AB64: 0 | AC64: 0 | AD64: -7.405608656e-06 | AG64: 055 | AH64: Chatham | AI64: 6.653636799 | AJ64: 82.5 | AK64: 4096330 | AL64: -7.405608656e-06
A65: 56 | B65: Chelmsford | C65: 6551073600 | D65: 21787803.37 | E65: 2003049000 | F65: 28440787.88 | G65: 50228591 | H65: 58129083.46 | I65: 0.8640870974 | J65: 47956494 | K65: 47956494 | L65: 82.5 | N65: 46684327 | O65: 0.0293 | P65: 48052178 | Q65: 82.66460632 | R65: 0 | S65: 0 | T65: 0 | U65: 95684 | V65: 95684 | W65: 0 | X65: =MIN(H65*parameters!C$22,ROUND(P65+T65-V65+W65,0)) -> 47956494 | Y65: 82.50000025 | AA65: 0 | AB65: 0 | AC65: 0 | AD65: 2.536237389e-07 | AG65: 056 | AH65: Chelmsford | AI65: 0.8640870974 | AJ65: 82.5 | AK65: 47956494 | AL65: 2.536237389e-07
A66: 57 | B66: Chelsea | C66: 4225152600 | D66: 14052169.11 | E66: 821843000 | F66: 11669141.61 | G66: 25721311 | H66: 118862448.9 | I66: 0.2163956004 | J66: 98061520 | K66: 25721311 | L66: 21.64 | N66: 20807621 | O66: -0.0579 | P66: 19602860 | Q66: 16.49205462 | R66: 5.147945383 | S66: 0.01 | T66: 208076 | U66: 0 | V66: 0 | W66: 0 | X66: =MIN(H66*parameters!C$22,ROUND(P66+T66-V66+W66,0)) -> 19810936 | Y66: 16.66711074 | AA66: -6118451 | AB66: -5910375 | AC66: 0 | AD66: -4.972889255 | AG66: 057 | AH66: Chelsea | AI66: 0.2163956004 | AJ66: 21.64 | AK66: 19810936 | AL66: -4.972889255
A67: 58 | B67: Cheshire | C67: 327182900 | D67: 1088157.015 | E67: 98301000 | F67: 1395751.122 | G67: 2483908 | H67: 4943335.112 | I67: 0.5024761509 | J67: 4078251 | K67: 2483908 | L67: 50.25 | N67: 2495473 | O67: 0.0249 | P67: 2557610 | Q67: 51.73855185 | R67: 0 | S67: 0 | T67: 0 | U67: 73702 | V67: 73702 | W67: 0 | X67: =MIN(H67*parameters!C$22,ROUND(P67+T67-V67+W67,0)) -> 2483908 | Y67: 50.24761509 | AA67: 0 | AB67: 0 | AC67: 0 | AD67: -0.00238490659 | AG67: 058 | AH67: Cheshire | AI67: 0.5024761509 | AJ67: 50.25 | AK67: 2483908 | AL67: -0.00238490659
A68: 59 | B68: Chester | C68: 129904800 | D68: 432042.1984 | E68: 32818000 | F68: 465974.5102 | G68: 898017 | H68: 1876564.168 | I68: 0.4785431883 | J68: 1548165 | K68: 898017 | L68: 47.85 | N68: 913983 | O68: 0.0339 | P68: 944967 | Q68: 50.35623168 | R68: 0 | S68: 0 | T68: 0 | U68: 46950 | V68: 46950 | W68: 0 | X68: =MIN(H68*parameters!C$22,ROUND(P68+T68-V68+W68,0)) -> 898017 | Y68: 47.85431883 | AA68: 0 | AB68: 0 | AC68: 0 | AD68: 0.004318833853 | AG68: 059 | AH68: Chester | AI68: 0.4785431883 | AJ68: 47.85 | AK68: 898017 | AL68: 0.004318833853
A69: 60 | B69: Chesterfield | C69: 165075500 | D69: 549014.2159 | E69: 27782000 | F69: 394469.6156 | G69: 943484 | H69: 1203665.075 | I69: 0.7838426318 | J69: 993024 | K69: 943484 | L69: 78.38 | N69: 956565 | O69: 0.0373 | P69: 992245 | Q69: 82.43530704 | R69: 0 | S69: 0 | T69: 0 | U69: 48761 | V69: 48761 | W69: 0 | X69: =MIN(H69*parameters!C$22,ROUND(P69+T69-V69+W69,0)) -> 943484 | Y69: 78.38426318 | AA69: 0 | AB69: 0 | AC69: 0 | AD69: 0.004263183614 | AG69: 060 | AH69: Chesterfield | AI69: 0.7838426318 | AJ69: 78.38 | AK69: 943484 | AL69: 0.004263183614
A70: 61 | B70: Chicopee | C70: 4282298400 | D70: 14242226.73 | E70: 1201917000 | F70: 17065716.54 | G70: 31307943 | H70: 103803922 | I70: 0.3016065519 | J70: 85638236 | K70: 31307943 | L70: 30.16 | N70: 30903112 | O70: 0.0297 | P70: 31820934 | Q70: 30.6548475 | R70: 0 | S70: 0 | T70: 0 | U70: 512991 | V70: 512991 | W70: 0 | X70: =MIN(H70*parameters!C$22,ROUND(P70+T70-V70+W70,0)) -> 31307943 | Y70: 30.16065519 | AA70: 0 | AB70: 0 | AC70: 0 | AD70: 0.0006551898258 | AG70: 061 | AH70: Chicopee | AI70: 0.3016065519 | AJ70: 30.16 | AK70: 31307943 | AL70: 0.0006551898258
A71: 62 | B71: Chilmark | C71: 3657005200 | D71: 12162603.43 | E71: 69962000 | F71: 993372.8041 | G71: 13155976 | H71: 1487474.457 | I71: 8.844505491 | J71: 1227166 | K71: 1227166 | L71: 82.5 | N71: 1154430 | O71: 0.0552 | P71: 1218155 | Q71: 81.89417939 | R71: 0.6058206054 | S71: 0 | T71: 0 | U71: 0 | V71: 0 | W71: 9011 | X71: =MIN(H71*parameters!C$22,ROUND(P71+T71-V71+W71,0)) -> 1227166 | Y71: 82.49997131 | AA71: -9011 | AB71: 0 | AC71: 0 | AD71: -2.869012626e-05 | AG71: 062 | AH71: Chilmark | AI71: 8.844505491 | AJ71: 82.5 | AK71: 1227166 | AL71: -2.869012626e-05
A72: 63 | B72: Clarksburg | C72: 133566700 | D72: 444221.0811 | E72: 41976000 | F72: 596006.644 | G72: 1040228 | H72: 2954866.647 | I72: 0.3520388987 | J72: 2437765 | K72: 1040228 | L72: 35.2 | N72: 988224 | O72: 0.0285 | P72: 1016388 | Q72: 34.39708527 | R72: 0.8029147308 | S72: 0 | T72: 0 | U72: 0 | V72: 0 | W72: 0 | X72: =MIN(H72*parameters!C$22,ROUND(P72+T72-V72+W72,0)) -> 1016388 | Y72: 34.39708527 | AA72: -23840 | AB72: -23840 | AC72: 0 | AD72: -0.8029147308 | AG72: 063 | AH72: Clarksburg | AI72: 0.3520388987 | AJ72: 35.2 | AK72: 1016388 | AL72: -0.8029147308
A73: 64 | B73: Clinton | C73: 1653168200 | D73: 5498168.069 | E73: 456680000 | F73: 6484284.214 | G73: 11982452 | H73: 26864608.99 | I73: 0.4460311335 | J73: 22163302 | K73: 11982452 | L73: 44.6 | N73: 11372125 | O73: 0.0487 | P73: 11925947 | Q73: 44.39278087 | R73: 0.2072191319 | S73: 0 | T73: 0 | U73: 0 | V73: 0 | W73: 0 | X73: =MIN(H73*parameters!C$22,ROUND(P73+T73-V73+W73,0)) -> 11925947 | Y73: 44.39278087 | AA73: -56505 | AB73: -56505 | AC73: 0 | AD73: -0.2072191319 | AG73: 064 | AH73: Clinton | AI73: 0.4460311335 | AJ73: 44.6 | AK73: 11925947 | AL73: -0.2072191319
A74: 65 | B74: Cohasset | C74: 3240448100 | D74: 10777202.39 | E74: 1097162000 | F74: 15578326.7 | G74: 26355529 | H74: 15514169.46 | I74: 1.698803734 | J74: =ROUND(H74*maxloc,0) -> 12799190 | K74: 12799190 | L74: 82.5 | N74: 12917527 | O74: 0.0332 | P74: 13346389 | Q74: 86.02709308 | R74: 0 | S74: 0 | T74: 0 | U74: 547199 | V74: =MAX(U74*(V$5),0) -> 547199 | W74: 0 | X74: =MIN(H74*parameters!C$22,ROUND(P74+T74-V74+W74,0)) -> 12799190 | Y74: 82.50000127 | AA74: 0 | AB74: 0 | AC74: 0 | AD74: 1.267509845e-06 | AG74: 065 | AH74: Cohasset | AI74: 1.698803734 | AJ74: =L74 -> 82.5 | AK74: =X74 -> 12799190 | AL74: 1.267509845e-06
A75: 66 | B75: Colrain | C75: 182644300 | D75: =D$5*C75 -> 607445.1821 | E75: 54839000 | F75: 778645.1389 | G75: =ROUND(D75+F75,0) -> 1386090 | H75: =(SUMIF(town1755,A75,found1755)/2) -> 2157432.054 | I75: =G75/H75 -> 0.6424721451 | J75: 1779881 | K75: =MIN(G75,J75) -> 1386090 | L75: =IF(H75>0, ROUND((K75*100/H75), 2), 0) -> 64.25 | N75: 1285699 | O75: 0.0343 | P75: =ROUND(N75*(1+O75),0) -> 1329798 | Q75: =P75*100/H75 -> 61.6380014 | R75: =IF(L75>Q75,L75-Q75,0) -> 2.611998597 | S75: =IF(AND(R75>$T$4,R75<=$T$5),$S$4,IF(R75>$T$5,$S$5,0)) -> 0.01 | T75: =ROUND(S75*N75,0) -> 12857 | U75: =MAX(P75-K75,0) -> 0 | V75: 0 | W75: =IF(AND(I75>1.75,$W$5=1),MAX(K75-(P75+T75),0),0) -> 0 | X75: =MIN(H75*parameters!C$22,ROUND(P75+T75-V75+W75,0)) -> 1342655 | Y75: =X75*100/H75 -> 62.23394138 | AA75: =IF(Q75<L75, P75-K75, 0) -> -56292 | AB75: =-1*MAX(K75-(P75+T75+W75),0) -> -43435 | AC75: =IF(Q75>L75, X75-K75,0) -> 0 | AD75: =Y75-L75 -> -2.016058624 | AG75: =TEXT(A75,"000") -> 066 | AH75: =B75 -> Colrain | AI75: =I75 -> 0.6424721451 | AJ75: 64.25 | AK75: 1342655 | AL75: =AD75 -> -2.016058624
A76: 67 | B76: Concord | C76: 7134203400 | D76: 23727198.07 | E76: 2921432000 | F76: =E76*F$5 -> 41480676.62 | G76: 65207875 | H76: 34499103.43 | I76: 1.890132453 | J76: 28461760 | K76: 28461760 | L76: 82.5 | N76: 27870369 | O76: 0.025 | P76: 28567128 | Q76: 82.80542148 | R76: 0 | S76: 0 | T76: 0 | U76: 105368 | V76: 105368 | W76: 0 | X76: =MIN(H76*parameters!C$22,ROUND(P76+T76-V76+W76,0)) -> 28461760 | Y76: 82.49999905 | AA76: 0 | AB76: 0 | AC76: 0 | AD76: -9.471771563e-07 | AG76: 067 | AH76: Concord | AI76: 1.890132453 | AJ76: 82.5 | AK76: 28461760 | AL76: -9.471771563e-07
A77: 68 | B77: Conway | C77: 272849200 | D77: 907451.9817 | E77: 69800000 | F77: 991072.607 | G77: 1898525 | H77: 2223405.644 | I77: 0.8538815242 | J77: 1834310 | K77: 1834310 | L77: 82.5 | N77: 1861596 | O77: 0.0287 | P77: 1915024 | Q77: 86.13021225 | R77: 0 | S77: 0 | T77: 0 | U77: 80714 | V77: 80714 | W77: 0 | X77: =MIN(H77*parameters!C$22,ROUND(P77+T77-V77+W77,0)) -> 1834310 | Y77: 82.50001547 | AA77: 0 | AB77: 0 | AC77: 0 | AD77: 1.54713984e-05 | AG77: 068 | AH77: Conway | AI77: 0.8538815242 | AJ77: 82.5 | AK77: 1834310 | AL77: 1.54713984e-05
A78: 69 | B78: Cummington | C78: 136764000 | D78: 454854.7799 | E78: 27624000 | F78: 392226.2134 | G78: 847081 | H78: 730774.2697 | I78: 1.159155481 | J78: 602889 | K78: 602889 | L78: 82.5 | N78: 640755 | O78: 0.0338 | P78: 662413 | Q78: 90.64536444 | R78: 0 | S78: 0 | T78: 0 | U78: 59524 | V78: 59524 | W78: 0 | X78: =MIN(H78*parameters!C$22,ROUND(P78+T78-V78+W78,0)) -> 602889 | Y78: 82.50003113 | AA78: 0 | AB78: 0 | AC78: 0 | AD78: 3.112759907e-05 | AG78: 069 | AH78: Cummington | AI78: 1.159155481 | AJ78: 82.5 | AK78: 602889 | AL78: 3.112759907e-05
A79: 70 | B79: Dalton | C79: 659304000 | D79: 2192737.678 | E79: 231336000 | F79: 3284681.556 | G79: 5477419 | H79: 10999736.28 | I79: 0.4979591203 | J79: 9074782 | K79: 5477419 | L79: 49.8 | N79: 5300714 | O79: 0.0342 | P79: 5481998 | Q79: 49.8375403 | R79: 0 | S79: 0 | T79: 0 | U79: 4579 | V79: 4579 | W79: 0 | X79: =MIN(H79*parameters!C$22,ROUND(P79+T79-V79+W79,0)) -> 5477419 | Y79: 49.79591203 | AA79: 0 | AB79: 0 | AC79: 0 | AD79: -0.004087972314 | AG79: 070 | AH79: Dalton | AI79: 0.4979591203 | AJ79: 49.8 | AK79: 5477419 | AL79: -0.004087972314
A80: 71 | B80: Danvers | C80: 5748464900 | D80: 19118457.61 | E80: 1428486000 | F80: 20282712.67 | G80: 39401170 | H80: 41237351.08 | I80: 0.9554728655 | J80: 34020815 | K80: 34020815 | L80: 82.5 | N80: 33168062 | O80: 0.0235 | P80: 33947511 | Q80: 82.3222397 | R80: 0.1777603002 | S80: 0 | T80: 0 | U80: 0 | V80: 0 | W80: 0 | X80: =MIN(H80*parameters!C$22,ROUND(P80+T80-V80+W80,0)) -> 33947511 | Y80: 82.3222397 | AA80: -73304 | AB80: -73304 | AC80: 0 | AD80: -0.1777603002 | AG80: 071 | AH80: Danvers | AI80: 0.9554728655 | AJ80: 82.5 | AK80: 33947511 | AL80: -0.1777603002
A81: 72 | B81: Dartmouth | C81: 6198070600 | D81: 20613772.91 | E81: 1269313000 | F81: 18022655.36 | G81: 38636428 | H81: 44989685.73 | I81: 0.8587841274 | J81: 37116491 | K81: 37116491 | L81: 82.5 | N81: 37246993 | O81: 0.0362 | P81: 38595334 | Q81: 85.7870718 | R81: 0 | S81: 0 | T81: 0 | U81: 1478843 | V81: 1478843 | W81: 0 | X81: =MIN(H81*parameters!C$22,ROUND(P81+T81-V81+W81,0)) -> 37116491 | Y81: 82.50000061 | AA81: 0 | AB81: 0 | AC81: 0 | AD81: 6.057112074e-07 | AG81: 072 | AH81: Dartmouth | AI81: 0.8587841274 | AJ81: 82.5 | AK81: 37116491 | AL81: 6.057112074e-07
A82: 73 | B82: Dedham | C82: 5863555800 | D82: 19501231.19 | E82: 1532426000 | F82: 21758530.53 | G82: 41259762 | H82: 32652554.31 | I82: 1.263599828 | J82: 26938357 | K82: 26938357 | L82: 82.5 | N82: 26785616 | O82: 0.0323 | P82: 27650791 | Q82: 84.68186207 | R82: 0 | S82: 0 | T82: 0 | U82: 712434 | V82: 712434 | W82: 0 | X82: =MIN(H82*parameters!C$22,ROUND(P82+T82-V82+W82,0)) -> 26938357 | Y82: 82.49999908 | AA82: 0 | AB82: 0 | AC82: 0 | AD82: -9.246283668e-07 | AG82: 073 | AH82: Dedham | AI82: 1.263599828 | AJ82: 82.5 | AK82: 26938357 | AL82: -9.246283668e-07
A83: 74 | B83: Deerfield | C83: 808941100 | D83: 2690406.291 | E83: 215554000 | F83: 3060596.916 | G83: 5751003 | H83: 6703076.37 | I83: 0.8579647139 | J83: 5530038 | K83: 5530038 | L83: 82.5 | N83: 5606753 | O83: 0.0249 | P83: 5746361 | Q83: 85.72721961 | R83: 0 | S83: 0 | T83: 0 | U83: 216323 | V83: 216323 | W83: 0 | X83: =MIN(H83*parameters!C$22,ROUND(P83+T83-V83+W83,0)) -> 5530038 | Y83: 82.49999992 | AA83: 0 | AB83: 0 | AC83: 0 | AD83: -7.711250305e-08 | AG83: 074 | AH83: Deerfield | AI83: 0.8579647139 | AJ83: 82.5 | AK83: 5530038 | AL83: -7.711250305e-08
A84: 75 | B84: Dennis | C84: 7955584100 | D84: 26458976.45 | E84: 537187000 | F84: 7627382.815 | G84: 34086359 | H84: 13656983.83 | I84: 2.49589217 | J84: 11267012 | K84: 11267012 | L84: 82.5 | N84: 11656730 | O84: 0.0356 | P84: 12071710 | Q84: 88.39221129 | R84: 0 | S84: 0 | T84: 0 | U84: 804698 | V84: 804698 | W84: 0 | X84: =MIN(H84*parameters!C$22,ROUND(P84+T84-V84+W84,0)) -> 11267012 | Y84: 82.50000251 | AA84: 0 | AB84: 0 | AC84: 0 | AD84: 2.51005028e-06 | AG84: 075 | AH84: Dennis | AI84: 2.49589217 | AJ84: 82.5 | AK84: 11267012 | AL84: 2.51005028e-06
A85: 76 | B85: Dighton | C85: 1162938400 | D85: 3867743.631 | E85: 289109000 | F85: 4104985.821 | G85: 7972729 | H85: 15440336.17 | I85: 0.5163572159 | J85: 12738277 | K85: 7972729 | L85: 51.64 | N85: 7624404 | O85: 0.0419 | P85: 7943867 | Q85: 51.44879561 | R85: 0.1912043878 | S85: 0 | T85: 0 | U85: 0 | V85: 0 | W85: 0 | X85: =MIN(H85*parameters!C$22,ROUND(P85+T85-V85+W85,0)) -> 7943867 | Y85: 51.44879561 | AA85: -28862 | AB85: -28862 | AC85: 0 | AD85: -0.1912043878 | AG85: 076 | AH85: Dighton | AI85: 0.5163572159 | AJ85: 51.64 | AK85: 7943867 | AL85: -0.1912043878
A86: 77 | B86: Douglas | C86: 1154562000 | D86: 3839885.09 | E86: 345379000 | F86: 4903949.368 | G86: 8743834 | H86: 14377861.76 | I86: 0.6081456439 | J86: 11861736 | K86: 8743834 | L86: 60.81 | N86: 8465026 | O86: 0.0495 | P86: 8884045 | Q86: 61.78975112 | R86: 0 | S86: 0 | T86: 0 | U86: 140211 | V86: 140211 | W86: 0 | X86: =MIN(H86*parameters!C$22,ROUND(P86+T86-V86+W86,0)) -> 8743834 | Y86: 60.81456439 | AA86: 0 | AB86: 0 | AC86: 0 | AD86: 0.004564393568 | AG86: 077 | AH86: Douglas | AI86: 0.6081456439 | AJ86: 60.81 | AK86: 8743834 | AL86: 0.004564393568
A87: 78 | B87: Dover | C87: 2831290600 | D87: 9416411.21 | E87: 1475249000 | F87: 20946688.72 | G87: 30363100 | H87: 12739659.59 | I87: 2.383352536 | J87: 10510219 | K87: 10510219 | L87: 82.5 | N87: 10420506 | O87: 0.0237 | P87: 10667472 | Q87: 83.73435666 | R87: 0 | S87: 0 | T87: 0 | U87: 157253 | V87: 157253 | W87: 0 | X87: =MIN(H87*parameters!C$22,ROUND(P87+T87-V87+W87,0)) -> 10510219 | Y87: 82.49999871 | AA87: 0 | AB87: 0 | AC87: 0 | AD87: -1.286654793e-06 | AG87: 078 | AH87: Dover | AI87: 2.383352536 | AJ87: 82.5 | AK87: 10510219 | AL87: -1.286654793e-06
A88: 79 | B88: Dracut | C88: 4153988500 | D88: 13815488.91 | E88: 1156106000 | F88: 16415257.7 | G88: 30230747 | H88: 54544100.7 | I88: 0.5542441182 | J88: 44998883 | K88: 30230747 | L88: 55.42 | N88: 28650804 | O88: 0.0352 | P88: 29659312 | Q88: 54.37675499 | R88: 1.043245012 | S88: 0 | T88: 0 | U88: 0 | V88: 0 | W88: 0 | X88: =MIN(H88*parameters!C$22,ROUND(P88+T88-V88+W88,0)) -> 29659312 | Y88: 54.37675499 | AA88: -571435 | AB88: -571435 | AC88: 0 | AD88: -1.043245012 | AG88: 079 | AH88: Dracut | AI88: 0.5542441182 | AJ88: 55.42 | AK88: 29659312 | AL88: -1.043245012
A89: 80 | B89: Dudley | C89: 1146095200 | D89: 3811725.893 | E89: 343087000 | F89: 4871405.838 | G89: 8683132 | H89: 20263625.29 | I89: 0.4285083186 | J89: 16717491 | K89: 8683132 | L89: 42.85 | N89: 7521654 | O89: 0.0166 | P89: 7646513 | Q89: 37.73516778 | R89: 5.11483222 | S89: 0.01 | T89: 75217 | U89: 0 | V89: 0 | W89: 0 | X89: =MIN(H89*parameters!C$22,ROUND(P89+T89-V89+W89,0)) -> 7721730 | Y89: 38.10636 | AA89: -1036619 | AB89: -961402 | AC89: 0 | AD89: -4.743640002 | AG89: 080 | AH89: Dudley | AI89: 0.4285083186 | AJ89: 42.85 | AK89: 7721730 | AL89: -4.743640002
A90: 81 | B90: Dunstable | C90: 606991900 | D90: 2018756.157 | E90: 208516000 | F90: 2960666.128 | G90: 4979422 | H90: 5821759.547 | I90: 0.8553122058 | J90: 4802952 | K90: 4802952 | L90: 82.5 | N90: 4814706 | O90: 0.0544 | P90: 5076626 | Q90: 87.20088761 | R90: 0 | S90: 0 | T90: 0 | U90: 273674 | V90: 273674 | W90: 0 | X90: =MIN(H90*parameters!C$22,ROUND(P90+T90-V90+W90,0)) -> 4802952 | Y90: 82.50000642 | AA90: 0 | AB90: 0 | AC90: 0 | AD90: 6.415321138e-06 | AG90: 081 | AH90: Dunstable | AI90: 0.8553122058 | AJ90: 82.5 | AK90: 4802952 | AL90: 6.415321138e-06
A91: 82 | B91: Duxbury | C91: 4654728300 | D91: 15480867.89 | E91: 1401567000 | F91: 19900496.57 | G91: 35381364 | H91: 29901986.56 | I91: 1.183244596 | J91: 24669139 | K91: 24669139 | L91: 82.5 | N91: 25372508 | O91: 0.0266 | P91: 26047417 | Q91: 87.10931948 | R91: 0 | S91: 0 | T91: 0 | U91: 1378278 | V91: 1378278 | W91: 0 | X91: =MIN(H91*parameters!C$22,ROUND(P91+T91-V91+W91,0)) -> 24669139 | Y91: 82.5000003 | AA91: 0 | AB91: 0 | AC91: 0 | AD91: 3.040065479e-07 | AG91: 082 | AH91: Duxbury | AI91: 1.183244596 | AJ91: 82.5 | AK91: 24669139 | AL91: 3.040065479e-07
A92: 83 | B92: East Bridgewater | C92: 1926835300 | D92: 6408340.253 | E92: 535363000 | F92: 7601484.299 | G92: 14009825 | H92: 25126881.46 | I92: 0.5575632225 | J92: 20729677 | K92: 14009825 | L92: 55.76 | N92: 13378858 | O92: 0.0355 | P92: 13853807 | Q92: 55.13540159 | R92: 0.6245984137 | S92: 0 | T92: 0 | U92: 0 | V92: 0 | W92: 0 | X92: =MIN(H92*parameters!C$22,ROUND(P92+T92-V92+W92,0)) -> 13853807 | Y92: 55.13540159 | AA92: -156018 | AB92: -156018 | AC92: 0 | AD92: -0.6245984137 | AG92: 083 | AH92: East Bridgewater | AI92: 0.5575632225 | AJ92: 55.76 | AK92: 13853807 | AL92: -0.6245984137
A93: 84 | B93: East Brookfield | C93: 278867500 | D93: 927467.8669 | E93: 74695000 | F93: 1060575.478 | G93: 1988043 | H93: 3883680.151 | I93: 0.5118966863 | J93: 3204036 | K93: 1988043 | L93: 51.19 | N93: 1841750 | O93: 0.0357 | P93: 1907500 | Q93: 49.11578518 | R93: 2.074214825 | S93: 0 | T93: 0 | U93: 0 | V93: 0 | W93: 0 | X93: =MIN(H93*parameters!C$22,ROUND(P93+T93-V93+W93,0)) -> 1907500 | Y93: 49.11578518 | AA93: -80543 | AB93: -80543 | AC93: 0 | AD93: -2.074214825 | AG93: 084 | AH93: East Brookfield | AI93: 0.5118966863 | AJ93: 51.19 | AK93: 1907500 | AL93: -2.074214825
A94: 85 | B94: Eastham | C94: 3250149400 | D94: 10809467.33 | E94: 189533000 | F94: 2691131.295 | G94: 13500599 | H94: 5592554.318 | I94: 2.414030912 | J94: 4613857 | K94: 4613857 | L94: 82.5 | N94: 4337460 | O94: 0.0122 | P94: 4390377 | Q94: 78.50396706 | R94: 3.996032939 | S94: 0.01 | T94: 43375 | U94: 0 | V94: 0 | W94: 180105 | X94: =MIN(H94*parameters!C$22,ROUND(P94+T94-V94+W94,0)) -> 4613857 | Y94: 82.49999441 | AA94: -223480 | AB94: 0 | AC94: 0 | AD94: -5.591145708e-06 | AG94: 085 | AH94: Eastham | AI94: 2.414030912 | AJ94: 82.5 | AK94: 4613857 | AL94: -5.591145708e-06
A95: 86 | B95: Easthampton | C95: 1773024900 | D95: 5896791.924 | E95: 498580000 | F95: 7079211.753 | G95: 12976004 | H95: 19817458.09 | I95: 0.6547764068 | J95: 16349403 | K95: 12976004 | L95: 65.48 | N95: 12651233 | O95: 0.0361 | P95: 13107943 | Q95: 66.14341224 | R95: 0 | S95: 0 | T95: 0 | U95: 131939 | V95: 131939 | W95: 0 | X95: =MIN(H95*parameters!C$22,ROUND(P95+T95-V95+W95,0)) -> 12976004 | Y95: 65.47764068 | AA95: 0 | AB95: 0 | AC95: 0 | AD95: -0.002359320403 | AG95: 086 | AH95: Easthampton | AI95: 0.6547764068 | AJ95: 65.48 | AK95: 12976004 | AL95: -0.002359320403
A96: 87 | B96: East Longmeadow | C96: 2143969100 | D96: 7130491.892 | E96: 708484000 | F96: 10059585.74 | G96: 17190078 | H96: 27993088.18 | I96: 0.614082944 | J96: 23094298 | K96: 17190078 | L96: 61.41 | N96: 17494208 | O96: 0.0312 | P96: 18040027 | Q96: 64.44457605 | R96: 0 | S96: 0 | T96: 0 | U96: 849949 | V96: 849949 | W96: 0 | X96: =MIN(H96*parameters!C$22,ROUND(P96+T96-V96+W96,0)) -> 17190078 | Y96: 61.4082944 | AA96: 0 | AB96: 0 | AC96: 0 | AD96: -0.00170560438 | AG96: 087 | AH96: East Longmeadow | AI96: 0.614082944 | AJ96: 61.41 | AK96: 17190078 | AL96: -0.00170560438
A97: 88 | B97: Easton | C97: 4091504700 | D97: 13607677.97 | E97: 1319292000 | F97: 18732294.58 | G97: 32339973 | H97: 39115873.65 | I97: 0.8267736339 | J97: 32270596 | K97: 32270596 | L97: 82.5 | N97: 30622659 | O97: 0.0319 | P97: 31599522 | Q97: 80.78439532 | R97: 1.715604681 | S97: 0 | T97: 0 | U97: 0 | V97: 0 | W97: 0 | X97: =MIN(H97*parameters!C$22,ROUND(P97+T97-V97+W97,0)) -> 31599522 | Y97: 80.78439532 | AA97: -671074 | AB97: -671074 | AC97: 0 | AD97: -1.715604681 | AG97: 088 | AH97: Easton | AI97: 0.8267736339 | AJ97: 82.5 | AK97: 31599522 | AL97: -1.715604681
A98: 89 | B98: Edgartown | C98: 10127877000 | D98: 33683668.68 | E98: 290012000 | F98: 4117807.291 | G98: 37801476 | H98: 8269249.872 | I98: 4.571330724 | J98: 6822131 | K98: 6822131 | L98: 82.5 | N98: 6533734 | O98: 0.0566 | P98: 6903543 | Q98: 83.48451319 | R98: 0 | S98: 0 | T98: 0 | U98: 81412 | V98: 81412 | W98: 0 | X98: =MIN(H98*parameters!C$22,ROUND(P98+T98-V98+W98,0)) -> 6822131 | Y98: 82.49999826 | AA98: 0 | AB98: 0 | AC98: 0 | AD98: -1.741382391e-06 | AG98: 089 | AH98: Edgartown | AI98: 4.571330724 | AJ98: 82.5 | AK98: 6822131 | AL98: -1.741382391e-06
A99: 90 | B99: Egremont | C99: 461457900 | D99: 1534733.786 | E99: 38278000 | F99: 543499.6741 | G99: 2078233 | H99: 984744.4475 | I99: 2.110428757 | J99: 812414 | K99: 812414 | L99: 82.5 | N99: 729584 | O99: 0.037 | P99: 756579 | Q99: 76.82998385 | R99: 5.670016146 | S99: 0.01 | T99: 7296 | U99: 0 | V99: 0 | W99: 48539 | X99: =MIN(H99*parameters!C$22,ROUND(P99+T99-V99+W99,0)) -> 812414 | Y99: 82.49998282 | AA99: -55835 | AB99: 0 | AC99: 0 | AD99: -1.717859793e-05 | AG99: 090 | AH99: Egremont | AI99: 2.110428757 | AJ99: 82.5 | AK99: 812414 | AL99: -1.717859793e-05
A100: 91 | B100: Erving | C100: 956478200 | D100: 3181090.646 | E100: 40698000 | F100: 577860.6441 | G100: 3758951 | H100: 2867410.152 | I100: 1.310921982 | J100: 2365613 | K100: 2365613 | L100: 82.5 | N100: 2307875 | O100: 0.0299 | P100: 2376880 | Q100: 82.89291989 | R100: 0 | S100: 0 | T100: 0 | U100: 11267 | V100: 11267 | W100: 0 | X100: =MIN(H100*parameters!C$22,ROUND(P100+T100-V100+W100,0)) -> 2365613 | Y100: 82.49998691 | AA100: 0 | AB100: 0 | AC100: 0 | AD100: -1.308708775e-05 | AG100: 091 | AH100: Erving | AI100: 1.310921982 | AJ100: 82.5 | AK100: 2365613 | AL100: -1.308708775e-05
A101: 92 | B101: Essex | C101: 944642600 | D101: 3141727.369 | E101: 267540000 | F101: 3798733.027 | G101: 6940460 | H101: 5763689.074 | I101: 1.204169745 | J101: 4755043 | K101: 4755043 | L101: 82.5 | N101: 4828458 | O101: 0.0216 | P101: 4932753 | Q101: 85.58325989 | R101: 0 | S101: 0 | T101: 0 | U101: 177710 | V101: 177710 | W101: 0 | X101: =MIN(H101*parameters!C$22,ROUND(P101+T101-V101+W101,0)) -> 4755043 | Y101: 82.49999156 | AA101: 0 | AB101: 0 | AC101: 0 | AD101: -8.437388274e-06 | AG101: 092 | AH101: Essex | AI101: 1.204169745 | AJ101: 82.5 | AK101: 4755043 | AL101: -8.437388274e-06
A102: 93 | B102: Everett | C102: 7029819300 | D102: 23380033.57 | E102: 1048306000 | F102: 14884632.67 | G102: 38264666 | H102: 120819748.3 | I102: 0.3167087049 | J102: 99676292 | K102: 38264666 | L102: 31.67 | N102: 35431511 | O102: 0.0297 | P102: 36483827 | Q102: 30.19690699 | R102: 1.473093014 | S102: 0 | T102: 0 | U102: 0 | V102: 0 | W102: 0 | X102: =MIN(H102*parameters!C$22,ROUND(P102+T102-V102+W102,0)) -> 36483827 | Y102: 30.19690699 | AA102: -1780839 | AB102: -1780839 | AC102: 0 | AD102: -1.473093014 | AG102: 093 | AH102: Everett | AI102: 0.3167087049 | AJ102: 31.67 | AK102: 36483827 | AL102: -1.473093014
A103: 94 | B103: Fairhaven | C103: 2482405500 | D103: 8256076.214 | E103: 504096000 | F103: 7157532.047 | G103: 15413608 | H103: 24435623.65 | I103: 0.6307843098 | J103: 20159390 | K103: 15413608 | L103: 63.08 | N103: 14691748 | O103: 0.0145 | P103: 14904778 | Q103: 60.9961023 | R103: 2.083897703 | S103: 0 | T103: 0 | U103: 0 | V103: 0 | W103: 0 | X103: =MIN(H103*parameters!C$22,ROUND(P103+T103-V103+W103,0)) -> 14904778 | Y103: 60.9961023 | AA103: -508830 | AB103: -508830 | AC103: 0 | AD103: -2.083897703 | AG103: 094 | AH103: Fairhaven | AI103: 0.6307843098 | AJ103: 63.08 | AK103: 14904778 | AL103: -2.083897703
A104: 95 | B104: Fall River | C104: 6253556700 | D104: 20798310.64 | E104: 1696635000 | F104: 24090092.73 | G104: 44888403 | H104: 201363934.9 | I104: 0.2229217612 | J104: 166125246 | K104: 44888403 | L104: 22.29 | N104: 36806161 | O104: 0.0352 | P104: 38101738 | Q104: 18.92182829 | R104: 3.368171707 | S104: 0.01 | T104: 368062 | U104: 0 | V104: 0 | W104: 0 | X104: =MIN(H104*parameters!C$22,ROUND(P104+T104-V104+W104,0)) -> 38469800 | Y104: 19.10461276 | AA104: -6786665 | AB104: -6418603 | AC104: 0 | AD104: -3.185387238 | AG104: 095 | AH104: Fall River | AI104: 0.2229217612 | AJ104: 22.29 | AK104: 38469800 | AL104: -3.185387238
A105: 96 | B105: Falmouth | C105: 13186717700 | D105: 43856874.45 | E105: 1469734000 | F105: 20868382.62 | G105: 64725257 | H105: 40253892.47 | I105: 1.607925421 | J105: 33209461 | K105: 33209461 | L105: 82.5 | N105: 33892532 | O105: 0.0213 | P105: 34614443 | Q105: 85.99030026 | R105: 0 | S105: 0 | T105: 0 | U105: 1404982 | V105: 1404982 | W105: 0 | X105: =MIN(H105*parameters!C$22,ROUND(P105+T105-V105+W105,0)) -> 33209461 | Y105: 82.49999929 | AA105: 0 | AB105: 0 | AC105: 0 | AD105: -7.101056525e-07 | AG105: 096 | AH105: Falmouth | AI105: 1.607925421 | AJ105: 82.5 | AK105: 33209461 | AL105: -7.101056525e-07
A106: 97 | B106: Fitchburg | C106: 3008407300 | D106: 10005472.5 | E106: 871769000 | F106: 12378028.3 | G106: 22383501 | H106: 87753981.71 | I106: 0.2550710585 | J106: 72397035 | K106: 22383501 | L106: 25.51 | N106: 20996215 | O106: 0.0171 | P106: 21355250 | Q106: 24.33536301 | R106: 1.174636994 | S106: 0 | T106: 0 | U106: 0 | V106: 0 | W106: 0 | X106: =MIN(H106*parameters!C$22,ROUND(P106+T106-V106+W106,0)) -> 21355250 | Y106: 24.33536301 | AA106: -1028251 | AB106: -1028251 | AC106: 0 | AD106: -1.174636994 | AG106: 097 | AH106: Fitchburg | AI106: 0.2550710585 | AJ106: 25.51 | AK106: 21355250 | AL106: -1.174636994
A107: 98 | B107: Florida | C107: 182043400 | D107: 605446.6866 | E107: 14109000 | F107: 200330.1348 | G107: 805777 | H107: 1118057.773 | I107: 0.720693527 | J107: 922398 | K107: 805777 | L107: 72.07 | N107: 646119 | O107: 0.0343 | P107: 668281 | Q107: 59.77159821 | R107: 12.29840179 | S107: 0.02 | T107: 12922 | U107: 0 | V107: 0 | W107: 0 | X107: =MIN(H107*parameters!C$22,ROUND(P107+T107-V107+W107,0)) -> 681203 | Y107: 60.92735244 | AA107: -137496 | AB107: -124574 | AC107: 0 | AD107: -11.14264756 | AG107: 098 | AH107: Florida | AI107: 0.720693527 | AJ107: 72.07 | AK107: 681203 | AL107: -11.14264756
A108: 99 | B108: Foxborough | C108: 3632254300 | D108: 12080285.97 | E108: 982169000 | F108: 13945570.08 | G108: 26025856 | H108: 30830808.82 | I108: 0.844150932 | J108: 25435417 | K108: 25435417 | L108: 82.5 | N108: 25364233 | O108: 0.0056 | P108: 25506273 | Q108: 82.72982116 | R108: 0 | S108: 0 | T108: 0 | U108: 70856 | V108: 70856 | W108: 0 | X108: =MIN(H108*parameters!C$22,ROUND(P108+T108-V108+W108,0)) -> 25435417 | Y108: 82.4999991 | AA108: 0 | AB108: 0 | AC108: 0 | AD108: -8.997046876e-07 | AG108: 099 | AH108: Foxborough | AI108: 0.844150932 | AJ108: 82.5 | AK108: 25435417 | AL108: -8.997046876e-07
A109: 100 | B109: Framingham | C109: 11101738800 | D109: 36922574.35 | E109: 2729430000 | F109: 38754488.62 | G109: 75677063 | H109: 136315696.7 | I109: 0.5551602997 | J109: 112460450 | K109: 75677063 | L109: 55.52 | N109: 71200714 | O109: 0.0367 | P109: 73813780 | Q109: 54.14914189 | R109: 1.370858109 | S109: 0 | T109: 0 | U109: 0 | V109: 0 | W109: 0 | X109: =MIN(H109*parameters!C$22,ROUND(P109+T109-V109+W109,0)) -> 73813780 | Y109: 54.14914189 | AA109: -1863283 | AB109: -1863283 | AC109: 0 | AD109: -1.370858109 | AG109: 100 | AH109: Framingham | AI109: 0.5551602997 | AJ109: 55.52 | AK109: 73813780 | AL109: -1.370858109
A110: 101 | B110: Franklin | C110: 6057291000 | D110: 20145562.9 | E110: 1754160000 | F110: 24906875.71 | G110: 45052439 | H110: 63037808.32 | I110: 0.7146891715 | J110: 52006192 | K110: 45052439 | L110: 71.47 | N110: 43477427 | O110: 0.0296 | P110: 44764359 | Q110: 71.01192157 | R110: 0.4580784319 | S110: 0 | T110: 0 | U110: 0 | V110: 0 | W110: 0 | X110: =MIN(H110*parameters!C$22,ROUND(P110+T110-V110+W110,0)) -> 44764359 | Y110: 71.01192157 | AA110: -288080 | AB110: -288080 | AC110: 0 | AD110: -0.4580784319 | AG110: 101 | AH110: Franklin | AI110: 0.7146891715 | AJ110: 71.47 | AK110: 44764359 | AL110: -0.4580784319
A111: 102 | B111: Freetown | C111: 1612258700 | D111: 5362109.738 | E111: 349394000 | F111: 4960957.341 | G111: 10323067 | H111: 14421897.77 | I111: 0.7157911644 | J111: 11898066 | K111: 10323067 | L111: 71.58 | N111: 10100766 | O111: 0.0259 | P111: 10362376 | Q111: 71.85168113 | R111: 0 | S111: 0 | T111: 0 | U111: 39309 | V111: 39309 | W111: 0 | X111: =MIN(H111*parameters!C$22,ROUND(P111+T111-V111+W111,0)) -> 10323067 | Y111: 71.57911644 | AA111: 0 | AB111: 0 | AC111: 0 | AD111: -0.0008835573409 | AG111: 102 | AH111: Freetown | AI111: 0.7157911644 | AJ111: 71.58 | AK111: 10323067 | AL111: -0.0008835573409
A112: 103 | B112: Gardner | C112: 1481985500 | D112: 4928842.301 | E112: 462479000 | F112: 6566622.753 | G112: 11495465 | H112: 33867998.12 | I112: 0.3394196775 | J112: 27941098 | K112: 11495465 | L112: 33.94 | N112: 10982893 | O112: 0.0374 | P112: 11393653 | Q112: 33.64135359 | R112: 0.2986464125 | S112: 0 | T112: 0 | U112: 0 | V112: 0 | W112: 0 | X112: =MIN(H112*parameters!C$22,ROUND(P112+T112-V112+W112,0)) -> 11393653 | Y112: 33.64135359 | AA112: -101812 | AB112: -101812 | AC112: 0 | AD112: -0.2986464125 | AG112: 103 | AH112: Gardner | AI112: 0.3394196775 | AJ112: 33.94 | AK112: 11393653 | AL112: -0.2986464125
A113: 104 | B113: Aquinnah | C113: 810687000 | D113: 2696212.87 | E113: 14482000 | F113: 205626.2678 | G113: 2901839 | H113: 768638.7863 | I113: 3.775296084 | J113: 634127 | K113: 634127 | L113: 82.5 | N113: 621391 | O113: 0.0286 | P113: 639163 | Q113: 83.15518439 | R113: 0 | S113: 0 | T113: 0 | U113: 5036 | V113: 5036 | W113: 0 | X113: =MIN(H113*parameters!C$22,ROUND(P113+T113-V113+W113,0)) -> 634127 | Y113: 82.50000017 | AA113: 0 | AB113: 0 | AC113: 0 | AD113: 1.733633752e-07 | AG113: 104 | AH113: Aquinnah | AI113: 3.775296084 | AJ113: 82.5 | AK113: 634127 | AL113: 1.733633752e-07
A114: 105 | B114: Georgetown | C114: 1425622900 | D114: 4741389.477 | E114: 459139000 | F114: 6519198.935 | G114: 11260588 | H114: 13989188.32 | I114: 0.8049493466 | J114: 11541080 | K114: 11260588 | L114: 80.49 | N114: 11076353 | O114: 0.0319 | P114: 11429689 | Q114: 81.70373246 | R114: 0 | S114: 0 | T114: 0 | U114: 169101 | V114: 169101 | W114: 0 | X114: =MIN(H114*parameters!C$22,ROUND(P114+T114-V114+W114,0)) -> 11260588 | Y114: 80.49493466 | AA114: 0 | AB114: 0 | AC114: 0 | AD114: 0.004934661733 | AG114: 105 | AH114: Georgetown | AI114: 0.8049493466 | AJ114: 80.49 | AK114: 11260588 | AL114: 0.004934661733
A115: 106 | B115: Gill | C115: 173933200 | D115: 578473.4828 | E115: 38825000 | F115: 551266.3892 | G115: 1129740 | H115: 1687690.864 | I115: 0.6693998433 | J115: 1392345 | K115: 1129740 | L115: 66.94 | N115: 1145145 | O115: 0.0351 | P115: 1185340 | Q115: 70.23442652 | R115: 0 | S115: 0 | T115: 0 | U115: 55600 | V115: 55600 | W115: 0 | X115: =MIN(H115*parameters!C$22,ROUND(P115+T115-V115+W115,0)) -> 1129740 | Y115: 66.93998433 | AA115: 0 | AB115: 0 | AC115: 0 | AD115: -1.567423307e-05 | AG115: 106 | AH115: Gill | AI115: 0.6693998433 | AJ115: 66.94 | AK115: 1129740 | AL115: -1.567423307e-05
A116: 107 | B116: Gloucester | C116: 7571872500 | D116: 25182814.19 | E116: 1213317000 | F116: 17227582.27 | G116: 42410396 | H116: 41101377.33 | I116: 1.031848535 | J116: 33908636 | K116: 33908636 | L116: 82.5 | N116: 33097862 | O116: 0.0369 | P116: 34319173 | Q116: 83.49883929 | R116: 0 | S116: 0 | T116: 0 | U116: 410537 | V116: 410537 | W116: 0 | X116: =MIN(H116*parameters!C$22,ROUND(P116+T116-V116+W116,0)) -> 33908636 | Y116: 82.49999928 | AA116: 0 | AB116: 0 | AC116: 0 | AD116: -7.19215592e-07 | AG116: 107 | AH116: Gloucester | AI116: 1.031848535 | AJ116: 82.5 | AK116: 33908636 | AL116: -7.19215592e-07
A117: 108 | B117: Goshen | C117: 173818900 | D117: 578093.3397 | E117: 14647000 | F117: 207969.0612 | G117: 786062 | H117: 1206448.162 | I117: 0.6515505805 | J117: 995320 | K117: 786062 | L117: 65.16 | N117: 763317 | O117: 0.0333 | P117: 788735 | Q117: 65.37661751 | R117: 0 | S117: 0 | T117: 0 | U117: 2673 | V117: 2673 | W117: 0 | X117: =MIN(H117*parameters!C$22,ROUND(P117+T117-V117+W117,0)) -> 786062 | Y117: 65.15505805 | AA117: 0 | AB117: 0 | AC117: 0 | AD117: -0.004941947807 | AG117: 108 | AH117: Goshen | AI117: 0.6515505805 | AJ117: 65.16 | AK117: 786062 | AL117: -0.004941947807
A118: 109 | B118: Gosnold | C118: 229578500 | D118: 763540.6839 | E118: 1900000 | F118: 26977.62111 | G118: 790518 | H118: 41750.77 | I118: 18.93421367 | J118: 34444 | K118: 34444 | L118: 82.5 | N118: 6810 | O118: 0.0653 | P118: 7255 | Q118: 17.37692502 | R118: 65.12307498 | S118: 0.02 | T118: 136 | U118: 0 | V118: 0 | W118: 27053 | X118: =MIN(H118*parameters!C$22,ROUND(P118+T118-V118+W118,0)) -> 34444 | Y118: 82.49907726 | AA118: -27189 | AB118: 0 | AC118: 0 | AD118: -0.0009227374729 | AG118: 109 | AH118: Gosnold | AI118: 18.93421367 | AJ118: 82.5 | AK118: 34444 | AL118: -0.0009227374729
A119: 110 | B119: Grafton | C119: 2853771800 | D119: 9491180.019 | E119: 961612000 | F119: 13653686.41 | G119: 23144866 | H119: 34244122.07 | I119: 0.6758785042 | J119: 28251401 | K119: 23144866 | L119: 67.59 | N119: 22883718 | O119: 0.0405 | P119: 23810509 | Q119: 69.53166723 | R119: 0 | S119: 0 | T119: 0 | U119: 665643 | V119: 665643 | W119: 0 | X119: =MIN(H119*parameters!C$22,ROUND(P119+T119-V119+W119,0)) -> 23144866 | Y119: 67.58785042 | AA119: 0 | AB119: 0 | AC119: 0 | AD119: -0.002149578003 | AG119: 110 | AH119: Grafton | AI119: 0.6758785042 | AJ119: 67.59 | AK119: 23144866 | AL119: -0.002149578003
A120: 111 | B120: Granby | C120: 698314800 | D120: 2322481.243 | E120: 215417000 | F120: 3058651.687 | G120: 5381133 | H120: 8668332.931 | I120: 0.6207806095 | J120: 7151375 | K120: 5381133 | L120: 62.08 | N120: 5345120 | O120: 0.035 | P120: 5532199 | Q120: 63.82079512 | R120: 0 | S120: 0 | T120: 0 | U120: 151066 | V120: 151066 | W120: 0 | X120: =MIN(H120*parameters!C$22,ROUND(P120+T120-V120+W120,0)) -> 5381133 | Y120: 62.07806095 | AA120: 0 | AB120: 0 | AC120: 0 | AD120: -0.001939052855 | AG120: 111 | AH120: Granby | AI120: 0.6207806095 | AJ120: 62.08 | AK120: 5381133 | AL120: -0.001939052855
A121: 112 | B121: Granville | C121: 210428400 | D121: 699850.5716 | E121: 54671000 | F121: 776259.7492 | G121: 1476110 | H121: 2022276.348 | I121: 0.7299249685 | J121: 1668378 | K121: 1476110 | L121: 72.99 | N121: 1482039 | O121: 0.042 | P121: 1544285 | Q121: 76.36369783 | R121: 0 | S121: 0 | T121: 0 | U121: 68175 | V121: 68175 | W121: 0 | X121: =MIN(H121*parameters!C$22,ROUND(P121+T121-V121+W121,0)) -> 1476110 | Y121: 72.99249685 | AA121: 0 | AB121: 0 | AC121: 0 | AD121: 0.002496854295 | AG121: 112 | AH121: Granville | AI121: 0.7299249685 | AJ121: 72.99 | AK121: 1476110 | AL121: 0.002496854295
A122: 113 | B122: Great Barrington | C122: 1600428300 | D122: 5322763.755 | E122: 308304000 | F122: 4377530.788 | G122: 9700295 | H122: 8890660.44 | I122: 1.091065739 | J122: 7334795 | K122: 7334795 | L122: 82.5 | N122: 7180359 | O122: 0.0523 | P122: 7555892 | Q122: 84.98684716 | R122: 0 | S122: 0 | T122: 0 | U122: 221097 | V122: 221097 | W122: 0 | X122: =MIN(H122*parameters!C$22,ROUND(P122+T122-V122+W122,0)) -> 7334795 | Y122: 82.50000154 | AA122: 0 | AB122: 0 | AC122: 0 | AD122: 1.538971745e-06 | AG122: 113 | AH122: Great Barrington | AI122: 1.091065739 | AJ122: 82.5 | AK122: 7334795 | AL122: 1.538971745e-06
A123: 114 | B123: Greenfield | C123: 1635101600 | D123: 5438081.501 | E123: 404113000 | F123: 5737898.631 | G123: 11175980 | H123: 26181984.45 | I123: 0.4268576365 | J123: 21600137 | K123: 11175980 | L123: 42.69 | N123: 11026454 | O123: 0.0268 | P123: 11321963 | Q123: 43.24333406 | R123: 0 | S123: 0 | T123: 0 | U123: 145983 | V123: 145983 | W123: 0 | X123: =MIN(H123*parameters!C$22,ROUND(P123+T123-V123+W123,0)) -> 11175980 | Y123: 42.68576365 | AA123: 0 | AB123: 0 | AC123: 0 | AD123: -0.004236353679 | AG123: 114 | AH123: Greenfield | AI123: 0.4268576365 | AJ123: 42.69 | AK123: 11175980 | AL123: -0.004236353679
A124: 115 | B124: Groton | C124: 2033204400 | D124: 6762106.548 | E124: 803259000 | F124: 11405272.08 | G124: 18167379 | H124: 19265738.8 | I124: 0.9429889602 | J124: 15894235 | K124: 15894235 | L124: 82.5 | N124: 15823797 | O124: 0.0368 | P124: 16406113 | Q124: 85.15693672 | R124: 0 | S124: 0 | T124: 0 | U124: 511878 | V124: 511878 | W124: 0 | X124: =MIN(H124*parameters!C$22,ROUND(P124+T124-V124+W124,0)) -> 15894235 | Y124: 82.50000253 | AA124: 0 | AB124: 0 | AC124: 0 | AD124: 2.534915069e-06 | AG124: 115 | AH124: Groton | AI124: 0.9429889602 | AJ124: 82.5 | AK124: 15894235 | AL124: 2.534915069e-06
A125: 116 | B125: Groveland | C125: 1116385500 | D125: 3712916.271 | E125: 290488000 | F125: 4124565.895 | G125: 7837482 | H125: 10329714.85 | I125: 0.7587316898 | J125: 8522015 | K125: 7837482 | L125: 75.87 | N125: 7470948 | O125: 0.0334 | P125: 7720478 | Q125: 74.74047556 | R125: 1.12952444 | S125: 0 | T125: 0 | U125: 0 | V125: 0 | W125: 0 | X125: =MIN(H125*parameters!C$22,ROUND(P125+T125-V125+W125,0)) -> 7720478 | Y125: 74.74047556 | AA125: -117004 | AB125: -117004 | AC125: 0 | AD125: -1.12952444 | AG125: 116 | AH125: Groveland | AI125: 0.7587316898 | AJ125: 75.87 | AK125: 7720478 | AL125: -1.12952444
A126: 117 | B126: Hadley | C126: 1106994300 | D126: 3681682.67 | E126: 195843000 | F126: 2780725.395 | G126: 6462408 | H126: 5857373.94 | I126: 1.103294423 | J126: 4832334 | K126: 4832334 | L126: 82.5 | N126: 4885500 | O126: -0.0068 | P126: 4852279 | Q126: 82.84051948 | R126: 0 | S126: 0 | T126: 0 | U126: 19945 | V126: 19945 | W126: 0 | X126: =MIN(H126*parameters!C$22,ROUND(P126+T126-V126+W126,0)) -> 4832334 | Y126: 82.50000853 | AA126: 0 | AB126: 0 | AC126: 0 | AD126: 8.527712353e-06 | AG126: 117 | AH126: Hadley | AI126: 1.103294423 | AJ126: 82.5 | AK126: 4832334 | AL126: 8.527712353e-06
A127: 118 | B127: Halifax | C127: 1059770900 | D127: 3524625.336 | E127: 278799000 | F127: 3958596.73 | G127: 7483222 | H127: 13431903.03 | I127: 0.5571229918 | J127: 11081320 | K127: 7483222 | L127: 55.71 | N127: 7282905 | O127: 0.0288 | P127: 7492653 | Q127: 55.78251261 | R127: 0 | S127: 0 | T127: 0 | U127: 9431 | V127: 9431 | W127: 0 | X127: =MIN(H127*parameters!C$22,ROUND(P127+T127-V127+W127,0)) -> 7483222 | Y127: 55.71229918 | AA127: 0 | AB127: 0 | AC127: 0 | AD127: 0.00229917605 | AG127: 118 | AH127: Halifax | AI127: 0.5571229918 | AJ127: 55.71 | AK127: 7483222 | AL127: 0.00229917605
A128: 119 | B128: Hamilton | C128: 1756199200 | D128: 5840832.387 | E128: 620295000 | F128: 8807412.36 | G128: 14648245 | H128: 12022278.33 | I128: 1.218425044 | J128: 9918380 | K128: 9918380 | L128: 82.5 | N128: 9956066 | O128: 0.0246 | P128: 10200985 | Q128: 84.85068075 | R128: 0 | S128: 0 | T128: 0 | U128: 282605 | V128: 282605 | W128: 0 | X128: =MIN(H128*parameters!C$22,ROUND(P128+T128-V128+W128,0)) -> 9918380 | Y128: 82.50000318 | AA128: 0 | AB128: 0 | AC128: 0 | AD128: 3.175087656e-06 | AG128: 119 | AH128: Hamilton | AI128: 1.218425044 | AJ128: 82.5 | AK128: 9918380 | AL128: 3.175087656e-06
A129: 120 | B129: Hampden | C129: 662234900 | D129: 2202485.374 | E129: 211978000 | F129: 3009822.193 | G129: 5212308 | H129: 6505214.942 | I129: 0.801250696 | J129: 5366802 | K129: 5212308 | L129: 80.13 | N129: 5348433 | O129: 0.0325 | P129: 5522257 | Q129: 84.8896931 | R129: 0 | S129: 0 | T129: 0 | U129: 309949 | V129: 309949 | W129: 0 | X129: =MIN(H129*parameters!C$22,ROUND(P129+T129-V129+W129,0)) -> 5212308 | Y129: 80.1250696 | AA129: 0 | AB129: 0 | AC129: 0 | AD129: -0.004930403232 | AG129: 120 | AH129: Hampden | AI129: 0.801250696 | AJ129: 80.13 | AK129: 5212308 | AL129: -0.004930403232
A130: 121 | B130: Hancock | C130: 322918000 | D130: 1073972.652 | E130: 9915000 | F130: 140780.5859 | G130: 1214753 | H130: 936904.26 | I130: 1.29656044 | J130: 772946 | K130: 772946 | L130: 82.5 | N130: 673593 | O130: 0.0035 | P130: 675951 | Q130: 72.14728643 | R130: 10.35271357 | S130: 0.02 | T130: 13472 | U130: 0 | V130: 0 | W130: 0 | X130: =MIN(H130*parameters!C$22,ROUND(P130+T130-V130+W130,0)) -> 689423 | Y130: 73.5852135 | AA130: -96995 | AB130: -83523 | AC130: 0 | AD130: -8.914786501 | AG130: 121 | AH130: Hancock | AI130: 1.29656044 | AJ130: 82.5 | AK130: 689423 | AL130: -8.914786501
A131: 122 | B131: Hanover | C131: 3073778500 | D131: 10222886.46 | E131: 851870000 | F131: 12095487.42 | G131: 22318374 | H131: 28925957.08 | I131: 0.7715690767 | J131: 23863915 | K131: 22318374 | L131: 77.16 | N131: 21680518 | O131: 0.0382 | P131: 22508714 | Q131: 77.81493257 | R131: 0 | S131: 0 | T131: 0 | U131: 190340 | V131: 190340 | W131: 0 | X131: =MIN(H131*parameters!C$22,ROUND(P131+T131-V131+W131,0)) -> 22318374 | Y131: 77.15690767 | AA131: 0 | AB131: 0 | AC131: 0 | AD131: -0.003092329446 | AG131: 122 | AH131: Hanover | AI131: 0.7715690767 | AJ131: 77.16 | AK131: 22318374 | AL131: -0.003092329446
A132: 123 | B132: Hanson | C132: 1526710200 | D132: 5077589.366 | E132: 415143000 | F132: 5894510.821 | G132: 10972100 | H132: 17326916.69 | I132: 0.6332401892 | J132: 14294706 | K132: 10972100 | L132: 63.32 | N132: 10176049 | O132: 0.0433 | P132: 10616672 | Q132: 61.27271339 | R132: 2.047286611 | S132: 0 | T132: 0 | U132: 0 | V132: 0 | W132: 0 | X132: =MIN(H132*parameters!C$22,ROUND(P132+T132-V132+W132,0)) -> 10616672 | Y132: 61.27271339 | AA132: -355428 | AB132: -355428 | AC132: 0 | AD132: -2.047286611 | AG132: 123 | AH132: Hanson | AI132: 0.6332401892 | AJ132: 63.32 | AK132: 10616672 | AL132: -2.047286611
A133: 124 | B133: Hardwick | C133: 270761600 | D133: 900508.9642 | E133: 64626000 | F133: 917608.2851 | G133: 1818117 | H133: 4572745.01 | I133: 0.3975985969 | J133: 3772515 | K133: 1818117 | L133: 39.76 | N133: 1685972 | O133: 0.0129 | P133: 1707721 | Q133: 37.34564241 | R133: 2.414357586 | S133: 0 | T133: 0 | U133: 0 | V133: 0 | W133: 0 | X133: =MIN(H133*parameters!C$22,ROUND(P133+T133-V133+W133,0)) -> 1707721 | Y133: 37.34564241 | AA133: -110396 | AB133: -110396 | AC133: 0 | AD133: -2.414357586 | AG133: 124 | AH133: Hardwick | AI133: 0.3975985969 | AJ133: 39.76 | AK133: 1707721 | AL133: -2.414357586
A134: 125 | B134: Harvard | C134: 1320082000 | D134: 4390377.64 | E134: 469429000 | F134: 6665304.052 | G134: 11055682 | H134: 9466190.644 | I134: 1.16791246 | J134: 7809607 | K134: 7809607 | L134: 82.5 | N134: 7860118 | O134: 0.0323 | P134: 8114000 | Q134: 85.71557773 | R134: 0 | S134: 0 | T134: 0 | U134: 304393 | V134: 304393 | W134: 0 | X134: =MIN(H134*parameters!C$22,ROUND(P134+T134-V134+W134,0)) -> 7809607 | Y134: 82.49999703 | AA134: 0 | AB134: 0 | AC134: 0 | AD134: -2.974279809e-06 | AG134: 125 | AH134: Harvard | AI134: 1.16791246 | AJ134: 82.5 | AK134: 7809607 | AL134: -2.974279809e-06
A135: 126 | B135: Harwich | C135: 6396397000 | D135: 21273374.21 | E135: 503299000 | F135: 7146215.645 | G135: 28419590 | H135: 17046282.25 | I135: 1.667201656 | J135: 14063183 | K135: 14063183 | L135: 82.5 | N135: 14035133 | O135: 0.0012 | P135: 14051975 | Q135: 82.43425042 | R135: 0.06574957528 | S135: 0 | T135: 0 | U135: 0 | V135: 0 | W135: 0 | X135: =MIN(H135*parameters!C$22,ROUND(P135+T135-V135+W135,0)) -> 14051975 | Y135: 82.43425042 | AA135: -11208 | AB135: -11208 | AC135: 0 | AD135: -0.06574957528 | AG135: 126 | AH135: Harwich | AI135: 1.667201656 | AJ135: 82.5 | AK135: 14051975 | AL135: -0.06574957528
A136: 127 | B136: Hatfield | C136: 610123900 | D136: 2029172.679 | E136: 130093000 | F136: 1847157.717 | G136: 3876330 | H136: 3877179.38 | I136: 0.9997809284 | J136: 3198673 | K136: 3198673 | L136: 82.5 | N136: 3167592 | O136: 0.0379 | P136: 3287644 | Q136: 84.7947355 | R136: 0 | S136: 0 | T136: 0 | U136: 88971 | V136: 88971 | W136: 0 | X136: =MIN(H136*parameters!C$22,ROUND(P136+T136-V136+W136,0)) -> 3198673 | Y136: 82.5000003 | AA136: 0 | AB136: 0 | AC136: 0 | AD136: 2.966073822e-07 | AG136: 127 | AH136: Hatfield | AI136: 0.9997809284 | AJ136: 82.5 | AK136: 3198673 | AL136: 2.966073822e-07
A137: 128 | B137: Haverhill | C137: 7590825800 | D137: 25245849.78 | E137: 2007640000 | F137: 28505974.34 | G137: 53751824 | H137: 125915906.8 | I137: 0.4268866846 | J137: 103880623 | K137: 53751824 | L137: 42.69 | N137: 50202503 | O137: 0.0243 | P137: 51422424 | Q137: 40.83870363 | R137: 1.851296373 | S137: 0 | T137: 0 | U137: 0 | V137: 0 | W137: 0 | X137: =MIN(H137*parameters!C$22,ROUND(P137+T137-V137+W137,0)) -> 51422424 | Y137: 40.83870363 | AA137: -2329400 | AB137: -2329400 | AC137: 0 | AD137: -1.851296373 | AG137: 128 | AH137: Haverhill | AI137: 0.4268866846 | AJ137: 42.69 | AK137: 51422424 | AL137: -1.851296373
A138: 129 | B138: Hawley | C138: 51879800 | D138: 172543.7616 | E138: 8262000 | F138: 117310.0556 | G138: 289854 | H138: 358832.5849 | I138: 0.8077694507 | J138: =ROUND(H138*maxloc,0) -> 296037 | K138: 289854 | L138: 80.78 | N138: 266791 | O138: 0.0366 | P138: 276556 | Q138: 77.0710386 | R138: 3.708961402 | S138: 0.01 | T138: 2668 | U138: 0 | V138: =MAX(U138*(V$5),0) -> 0 | W138: 0 | X138: =MIN(H138*parameters!C$22,ROUND(P138+T138-V138+W138,0)) -> 279224 | Y138: 77.81456082 | AA138: -13298 | AB138: -10630 | AC138: 0 | AD138: -2.965439183 | AG138: 129 | AH138: Hawley | AI138: 0.8077694507 | AJ138: =L138 -> 80.78 | AK138: =X138 -> 279224 | AL138: -2.965439183
A139: 130 | B139: Heath | C139: 96423600 | D139: =D$5*C139 -> 320689.1825 | E139: 9383000 | F139: 133226.852 | G139: =ROUND(D139+F139,0) -> 453916 | H139: =(SUMIF(town1755,A139,found1755)/2) -> 1080054.764 | I139: =G139/H139 -> 0.4202712816 | J139: 891045 | K139: =MIN(G139,J139) -> 453916 | L139: =IF(H139>0, ROUND((K139*100/H139), 2), 0) -> 42.03 | N139: 470069 | O139: 0.0371 | P139: =ROUND(N139*(1+O139),0) -> 487509 | Q139: =P139*100/H139 -> 45.13743341 | R139: =IF(L139>Q139,L139-Q139,0) -> 0 | S139: =IF(AND(R139>$T$4,R139<=$T$5),$S$4,IF(R139>$T$5,$S$5,0)) -> 0 | T139: =ROUND(S139*N139,0) -> 0 | U139: =MAX(P139-K139,0) -> 33593 | V139: 33593 | W139: =IF(AND(I139>1.75,$W$5=1),MAX(K139-(P139+T139),0),0) -> 0 | X139: =MIN(H139*parameters!C$22,ROUND(P139+T139-V139+W139,0)) -> 453916 | Y139: =X139*100/H139 -> 42.02712816 | AA139: =IF(Q139<L139, P139-K139, 0) -> 0 | AB139: =-1*MAX(K139-(P139+T139+W139),0) -> 0 | AC139: =IF(Q139>L139, X139-K139,0) -> 0 | AD139: =Y139-L139 -> -0.002871838538 | AG139: =TEXT(A139,"000") -> 130 | AH139: =B139 -> Heath | AI139: =I139 -> 0.4202712816 | AJ139: 42.03 | AK139: 453916 | AL139: =AD139 -> -0.002871838538
A140: 131 | B140: Hingham | C140: 7942260800 | D140: 26414665.32 | E140: 2988570000 | F140: =E140*F$5 -> 42433952.16 | G140: 68848617 | H140: 43233894.31 | I140: 1.59246855 | J140: 35667963 | K140: 35667963 | L140: 82.5 | N140: 37505081 | O140: 0.0166 | P140: 38127665 | Q140: 88.18929131 | R140: 0 | S140: 0 | T140: 0 | U140: 2459702 | V140: 2459702 | W140: 0 | X140: =MIN(H140*parameters!C$22,ROUND(P140+T140-V140+W140,0)) -> 35667963 | Y140: 82.50000044 | AA140: 0 | AB140: 0 | AC140: 0 | AD140: 4.418581767e-07 | AG140: 131 | AH140: Hingham | AI140: 1.59246855 | AJ140: 82.5 | AK140: 35667963 | AL140: 4.418581767e-07
A141: 132 | B141: Hinsdale | C141: 323523800 | D141: 1075987.444 | E141: 67709000 | F141: 961383.025 | G141: 2037370 | H141: 2324215.447 | I141: 0.8765839686 | J141: 1917478 | K141: 1917478 | L141: 82.5 | N141: 1810809 | O141: 0.038 | P141: 1879620 | Q141: 80.87116032 | R141: 1.628839677 | S141: 0 | T141: 0 | U141: 0 | V141: 0 | W141: 0 | X141: =MIN(H141*parameters!C$22,ROUND(P141+T141-V141+W141,0)) -> 1879620 | Y141: 80.87116032 | AA141: -37858 | AB141: -37858 | AC141: 0 | AD141: -1.628839677 | AG141: 132 | AH141: Hinsdale | AI141: 0.8765839686 | AJ141: 82.5 | AK141: 1879620 | AL141: -1.628839677
A142: 133 | B142: Holbrook | C142: 1455967400 | D142: 4842310.34 | E142: 359991000 | F142: 5111421.474 | G142: 9953732 | H142: 19535533.15 | I142: 0.5095193422 | J142: 16116815 | K142: 9953732 | L142: 50.95 | N142: 9351037 | O142: 0.027 | P142: 9603515 | Q142: 49.15921632 | R142: 1.790783684 | S142: 0 | T142: 0 | U142: 0 | V142: 0 | W142: 0 | X142: =MIN(H142*parameters!C$22,ROUND(P142+T142-V142+W142,0)) -> 9603515 | Y142: 49.15921632 | AA142: -350217 | AB142: -350217 | AC142: 0 | AD142: -1.790783684 | AG142: 133 | AH142: Holbrook | AI142: 0.5095193422 | AJ142: 50.95 | AK142: 9603515 | AL142: -1.790783684
A143: 134 | B143: Holden | C143: 2669892800 | D143: 8879628.425 | E143: 893156000 | F143: 12681696.92 | G143: 21561325 | H143: 36401807.49 | I143: 0.5923146812 | J143: 30031491 | K143: 21561325 | L143: 59.23 | N143: 20855299 | O143: 0.0384 | P143: 21656142 | Q143: 59.49194145 | R143: 0 | S143: 0 | T143: 0 | U143: 94817 | V143: 94817 | W143: 0 | X143: =MIN(H143*parameters!C$22,ROUND(P143+T143-V143+W143,0)) -> 21561325 | Y143: 59.23146812 | AA143: 0 | AB143: 0 | AC143: 0 | AD143: 0.001468120952 | AG143: 134 | AH143: Holden | AI143: 0.5923146812 | AJ143: 59.23 | AK143: 21561325 | AL143: 0.001468120952
A144: 135 | B144: Holland | C144: 368404300 | D144: 1225252.675 | E144: 89712000 | F144: 1273798.076 | G144: 2499051 | H144: 3779513.217 | I144: 0.6612097528 | J144: 3118098 | K144: 2499051 | L144: 66.12 | N144: 2381488 | O144: 0.0183 | P144: 2425069 | Q144: 64.16352744 | R144: 1.956472564 | S144: 0 | T144: 0 | U144: 0 | V144: 0 | W144: 0 | X144: =MIN(H144*parameters!C$22,ROUND(P144+T144-V144+W144,0)) -> 2425069 | Y144: 64.16352744 | AA144: -73982 | AB144: -73982 | AC144: 0 | AD144: -1.956472564 | AG144: 135 | AH144: Holland | AI144: 0.6612097528 | AJ144: 66.12 | AK144: 2425069 | AL144: -1.956472564
A145: 136 | B145: Holliston | C145: 2882048100 | D145: 9585222.385 | E145: 908667000 | F145: 12901933.7 | G145: 22487156 | H145: 29707060.32 | I145: 0.7569633535 | J145: 24508325 | K145: 22487156 | L145: 75.7 | N145: 22057569 | O145: 0.0412 | P145: 22966341 | Q145: 77.3093694 | R145: 0 | S145: 0 | T145: 0 | U145: 479185 | V145: 479185 | W145: 0 | X145: =MIN(H145*parameters!C$22,ROUND(P145+T145-V145+W145,0)) -> 22487156 | Y145: 75.69633535 | AA145: 0 | AB145: 0 | AC145: 0 | AD145: -0.003664654778 | AG145: 136 | AH145: Holliston | AI145: 0.7569633535 | AJ145: 75.7 | AK145: 22487156 | AL145: -0.003664654778
A146: 137 | B146: Holyoke | C146: 2379718800 | D146: 7914556.982 | E146: 736279000 | F146: 10454239.94 | G146: 18368797 | H146: 94346220.06 | I146: 0.1946956326 | J146: 77835632 | K146: 18368797 | L146: 19.47 | N146: 11207668 | O146: 0.0055 | P146: 11269310 | Q146: 11.94463328 | R146: 7.52536672 | S146: 0.02 | T146: 224153 | U146: 0 | V146: 0 | W146: 0 | X146: =MIN(H146*parameters!C$22,ROUND(P146+T146-V146+W146,0)) -> 11493463 | Y146: 12.18221885 | AA146: -7099487 | AB146: -6875334 | AC146: 0 | AD146: -7.287781155 | AG146: 137 | AH146: Holyoke | AI146: 0.1946956326 | AJ146: 19.47 | AK146: 11493463 | AL146: -7.287781155
A147: 138 | B147: Hopedale | C147: 867520800 | D147: 2885232.829 | E147: 262914000 | F147: 3733049.619 | G147: 6618282 | H147: 11189524.38 | I147: 0.5914712526 | J147: 9231358 | K147: 6618282 | L147: 59.15 | N147: 6408697 | O147: 0.0381 | P147: 6652868 | Q147: 59.45621793 | R147: 0 | S147: 0 | T147: 0 | U147: 34586 | V147: 34586 | W147: 0 | X147: =MIN(H147*parameters!C$22,ROUND(P147+T147-V147+W147,0)) -> 6618282 | Y147: 59.14712526 | AA147: 0 | AB147: 0 | AC147: 0 | AD147: -0.002874742759 | AG147: 138 | AH147: Hopedale | AI147: 0.5914712526 | AJ147: 59.15 | AK147: 6618282 | AL147: -0.002874742759
